Workbook

Sheet LDC Info
AA3: Algoma Power Inc.
AA4: Atikokan Hydro Inc.
AA5: Attawapiskat Power Corporation
AA6: Bluewater Power Distribution Corp.
AA7: Brant County Power
AA8: Brantford Power Inc.
AA9: Burlington Hydro Inc.
AA10: Cambridge and North Dumfries Hydro
AA11: Canadian Niagara Power Inc. – Eastern Ontario Power/Fort Erie/Port Colborne
AA12: Centre Wellington Hydro Ltd.
N13: Version 2.0 | AA13: Chapleau Public Utilities Corporation
D14: Utility Name | E14: Oshawa PUC Networks Inc. | AA14: COLLUS Power Corp.
AA15: Cooperative Hydro Embrun Inc.
D16: Assigned EB Number | E16: EB-2014-0101 | AA16: E.L.K. Energy Inc.
AA17: Enersource Hydro Mississauga Inc.
D18: Name of Contact and Title | E18: David Savage, Corporate Controller | AA18: Entegrus Powerlines Inc.
AA19: ENWIN Utilities Ltd.
D20: Phone Number | E20: 905-743-5219 | AA20: Erie Thames Powerlines Corp.
AA21: Espanola Regional Hydro Distribution Corporation
D22: Email Address | E22: dsavage@opuc.on.ca | AA22: Essex Powerlines Corporation
AA23: Festival Hydro Inc.
D24: Test Year | E24: 2015 | AA24: Fort Albany Power Corporation
AA25: Fort Frances Power Corporation
D26: Bridge Year | E26: =E24-1 -> 2014 | AA26: Greater Sudbury Hydro Inc.
AA27: Grimsby Power Inc.
D28: Last Rebasing Year | E28: 2012 | AA28: Guelph Hydro Electric Systems Inc.
AA29: Haldimand County Hydro Inc.
A30: Identify the accounting standard used for the test year
E31: MIFRS
A33: Did you update your depreciation and capitalization policies?
E34: Yes
A36: When did you update your depreciation and capitalization policies?
E37: 2012
A39: Identify the year that the applicant has adopted or is expected to adopt IFRS for financial reporting purposes
E40: 2015
A42: Identify the year that the applicant has made the required changes to capitalization and depreciation expense policies under CGAAP or ASPE
E43: 2012
A45: Are you applying for cost recovery for the test and/or future year(s) for Green Energy initiatives?
E46: No
A48: ="Is " & E14 & " an embedded distributor?" -> Is Oshawa PUC Networks Inc. an embedded distributor? | E48: No
A52: Once all selections have been made above, press the following button to reveal the appropriate worksheets.
A56: To unhide all worksheets in this workbook, press the following button:
B59: Notes | AA59: Guelph Hydro Electric Systems Inc.
AA60: Halton Hills Hydro Inc.
C61: Pale green cells represent input cells. | AA61: Hearst Power Distribution Co. Ltd.
AA62: Horizon Utilities Corporation
C63: Pale blue cells represent drop-down lists. The applicant should select the appropriate item from the drop-down list. | AA63: Hydro 2000 Inc.
AA64: Hydro Hawkesbury Inc.
C65: White cells contain fixed values, automatically generated values or formulae. | AA65: Hydro One Brampton Networks Inc.
AA66: Hydro One Networks Inc.
AA67: Hydro One Remote Communities Inc.
AA68: Hydro Ottawa Limited
AA69: Innisfil Hydro Dist. Systems Limited
AA70: Kashechewan Power Corporation
AA71: Kenora Hydro Electric Corporation Ltd.
AA72: Kingston Hydro Corporation
AA73: Kitchener-Wilmot Hydro Inc.
AA74: Lakefront Utilities Inc.
AA75: Lakeland Power Distribution Ltd.
AA76: London Hydro Inc.
AA77: Midland Power Utility Corporation
AA78: Milton Hydro Distribution Inc.
AA79: Newmarket – Tay Power Distribution Ltd.
AA80: Niagara Peninsula Energy Inc.
AA81: Niagara-on-the-Lake Hydro Inc.
AA82: Norfolk Power Distribution Ltd.
AA83: North Bay Hydro Distribution Limited
AA84: Northern Ontario Wires Inc.
AA85: Oakville Hydro Distribution Inc.
AA86: Orangeville Hydro Limited
AA87: Orillia Power Distribution Corp.
AA88: Oshawa PUC Networks Inc.
AA89: Ottawa River Power Corporation
AA90: Parry Sound Power Corporation
AA91: Peterborough Distribution Inc.
AA92: PowerStream Inc.
AA93: PUC Distribution Inc.
AA94: Renfrew Hydro Inc.
AA95: Rideau St. Lawrence Distribution Inc.
AA96: St. Thomas Energy Inc.
AA97: Sioux Lookout Hydro Inc.
AA98: Thunder Bay Hydro Electricity Distribution
AA99: Tillsonburg Hydro Inc.
AA100: Toronto Hydro-Electric System Limited
AA101: Veridian Connections Inc.
AA102: Wasaga Distribution Inc.
AA103: Waterloo North Hydro Inc.
AA104: Welland Hydro Electric System Corp.
AA105: Wellington North Power Inc.
AA106: West Coast Huron Energy Inc.
AA107: Westario Power Inc.
AA108: Whitby Hydro Electric Corporation
AA109: Woodstock Hydro Services Inc.

Sheet Table of Contents
A15: 1 | B15: LDC Information Sheet | E15: 35 | F15: Appendix 2-DB: Overhead Expense (CGAAP or ASPE)
A16: 2 | B16: Index | E16: 36 | F16: Appendix 2-EA: PP&E Deferral Account (2012 IFRS Adopters) | G16: Not Applicable
A17: 3 | B17: Cost of Service Application Flowchart | E17: 37 | F17: Appendix 2-EB: PP&E Deferral Account (2013 IFRS Adopters)
A18: 4 | B18: List of Key References | E18: 38 | F18: Appendix 2-EC: PP&E Deferral Account (2014 IFRS Adopters)
A19: 5 | B19: Appendix 2-AA: Capital Projects Table | E19: 39 | F19: Appendix 2-ED: Account 1576 - Accounting Changes Under CGAAP (2012 Changes)
A20: 6 | B20: Appendix 2-AB: Capital Expenditures | E20: 40 | F20: Appendix 2-EE: Account 1576 - Accounting Changes Under CGAAP (2013 Changes)
A21: 7 | B21: Appendix 2-BA1: Fixed Asset Continuity Schedule (CGAAP/ASPE/USGAAP) | E21: 41 | F21: Appendix 2-FA: Renewable Generation Connection Investment Summary
A22: 8 | B22: Appendix 2-BA2: Fixed Asset Continuity Schedule (MIFRS) | E22: 42 | F22: Appendix 2-FB: Calculation of Renewable Generation Connection Direct Benefits/Provincial Amount: Renewable Enabling Improvement Investments
A23: 9 | B23: Appendix 2-BB: Service Life Comparison | E23: 43 | F23: Appendix 2-FC: Calculation of Renewable Generation Connection Direct Benefits/Provincial Amount: Renewable Expansion Investments
A24: 10 | B24: General Instructions to MIFRS Appendices | E24: 44 | F24: Appendix 2-G: Service Reliability Indicators
A25: 11 | B25: Appendix 2-CA: 2011 Depreciation and Amortization Expense (CGAAP) | E25: 45 | F25: Appendix 2-H: Other Operating Revenue
A26: 12 | B26: Appendix 2-CB: 2011 Depreciation and Amortization Expense (MIFRS) | E26: 46 | F26: Appendix 2-I: Load Forecast CDM Adjustment Work Form
A27: 13 | B27: Appendix 2-CC: 2012 Depreciation and Amortization Expense (MIFRS) | E27: 47 | F27: Appendix 2-JA: Summary of Recoverable OM&A Expenses
A28: 14 | B28: Appendix 2-CD: 2013 Depreciation and Amortization Expense (MIFRS) | E28: 48 | F28: Appendix 2-JB: Recoverable OM&A Cost Driver Table
A29: 15 | B29: Appendix 2-CE: 2014 Depreciation and Amortization Expense (MIFRS) | E29: 49 | F29: Appendix 2-JC: OMA Programs Table
A30: 16 | B30: Appendix 2-CE: 2015 Depreciation and Amortization Expense (MIFRS) | E30: 50 | F30: Appendix 2-K: Employee Costs
A31: 17 | B31: Appendix 2-CE: 2016 Depreciation and Amortization Expense (MIFRS) | E31: 51 | F31: Appendix 2-L: Recoverable OM&A Cost per Customer and per FTE
A32: 18 | B32: Appendix 2-CE: 2017 Depreciation and Amortization Expense (MIFRS) | E32: 52 | F32: Appendix 2-M: Regulatory Cost Schedule
A33: 19 | B33: Appendix 2-CE: 2018 Depreciation and Amortization Expense (MIFRS) | E33: 53 | F33: App.2-N_Corp_Cost_Alloc 2011-19
A34: 20 | B34: Appendix 2-CE: 2019 Depreciation and Amortization Expense (MIFRS) | E34: 54 | F34: Appendix 2-OA: Capital Structure and Cost of Capital
A35: 21 | B35: Appendix 2-CK: 2013 Depreciation and Amortization Expense (CGAAP) | E35: 55 | F35: Appendix 2-OB: Debt Instruments
A36: 22 | B36: Appendix 2-CL: 2013 Depreciation and Amortization Expense (MIFRS) | E36: 56 | F36: Appendix 2-P: Cost Allocation
A37: 23 | B37: Appendix 2-CM: 2014 Depreciation and Amortization Expense (MIFRS) | E37: 57 | F37: Appendix 2-Q: Cost of Serving Embedded Distributor(s)
A38: 24 | B38: General Instructions to CGAAP-ASPE Appendices | E38: 58 | F38: Appendix 2-R: Loss Factors
A39: 25 | B39: Appendix 2-CN: 2012 Depreciation and Amortization Expense (Old CGAAP) | E39: 59 | F39: Appendix 2-S: Stranded Meter Treatment | G39: N/A : DISPOSED IN 2012 RATE APPLICATION
A40: 26 | B40: Appendix 2-CO: 2012 Depreciation and Amortization Expense (New CGAAP) | E40: 60 | F40: Appendix 2-TA: Account 1592, PILs and Tax Variances | G40: N/A : DISPOSED IN 2012 RATE APPLICATION
A41: 27 | B41: Appendix 2-CP: 2013 Depreciation and Amortization Expense (New CGAAP) | E41: 61 | F41: Appendix 2-TB: Account 1592, HST-OVAT Input Tax Credits | G41: N/A : DISPOSED IN 2012 RATE APPLICATION
A42: 28 | B42: Appendix 2-CQ: 2014 Depreciation and Amortization Expense (New CGAAP) | E42: 62 | F42: Appendix 2-U: One-Time Incremental IFRS Transition Costs
A43: 29 | B43: Appendix 2-CR: 2012 Depreciation and Amortization Expense (Old CGAAP) | E43: 63 | F43: Appendix 2-V: Revenue Reconciliation
A44: 30 | B44: Appendix 2-CS: 2013 Depreciation and Amortization Expense (Old CGAAP) | E44: 64 | F44: Appendix 2-W: Bill Impacts
A45: 31 | B45: Appendix 2-CT: 2013 Depreciation and Amortization Expense (New CGAAP) | E45: 65 | F45: Appendix 2-YA: Transition to MIFRS Summary Impacts
A46: 32 | B46: Appendix 2-CU: 2014 Depreciation and Amortization Expense (New CGAAP) | E46: 66 | F46: Appendix 2-YB: Accounting Changes under CGAAP/ASPE Summary Impacts
A47: 33 | B47: Appendix 2-CV: Depreciation and Amortization Expense (USGAAP) | E47: 67 | F47: App.2-Z: Tariff Schedule | H47: just need to link rates
A48: 34 | B48: Appendix 2-DA: Overhead Expense (MIFRS)
B50: Legend
B51: To be completed by MIFRS filers | D51: OPUCN is MIFRS Filer (Rebased 2012 using MIFRS) - Tabs to be completed highlighted YELLOW.
B52: To be completed by CGAAP and ASPE filers
B53: To be completed by USGAAP filers
B54: To be completed by both CGAAP, ASPE and USGAAP filers

Sheet COS Flowchart
B4: Cost of Service Rate Application Schematic
B6: The Cost of Service Rate Application Schematic is a flowchart appended to Chapter 2 of the Filing Requirements as a guide for the components of an application and how demand and costs interrelate to derive the revenue requirement and then how the revenue requirement is allocated between classes and through fixed/variable splits to derive rates that will be compensatory for the annual revenue requirement, based on the the forecasted demand. There is no form to be filled out; therefore, this Schedule is not required to be filed.

Sheet List of Key References
B3: List of Key References
A5: A list of key references for understanding the Filing Requirements has been embedded in the document below. To access the list of references and associated hyperlinks doublt click the icon below.

Sheet App.2-AA_Capital Projects
J1: File Number: | K1: EB-2014-0101 | R1: File Number: | S1: EB-2014-0101 | AA1: File Number: | AB1: EB-2014-0101
J2: Exhibit: | R2: Exhibit: | AA2: Exhibit:
J3: Tab: | R3: Tab: | AA3: Tab:
J4: Schedule: | R4: Schedule: | AA4: Schedule:
J5: Page: | R5: Page: | AA5: Page:
J7: Date: | R7: Date: | AA7: Date:
A9: Appendix 2-AA | M9: AS PER END OF ORAL HEARING Appendix 2-AA | V9: AS FILED JAN 2015 Appendix 2-AA
A10: Capital Projects Table ( $'000s) | M10: Capital Projects Table ( $'000s) | V10: Capital Projects Table ( $'000s)
A13: Projects | B13: 2010 | C13: 2011 | D13: 2012 | E13: 2013 | F13: 2014 Bridge Year | G13: 2015 Test Year | H13: 2016 Test Year | I13: 2017 Test Year | J13: 2018 Test Year | K13: 2019 Test Year | M13: Projects | N13: 2014 Bridge Year | O13: 2015 Test Year | P13: 2016 Test Year | Q13: 2017 Test Year | R13: 2018 Test Year | S13: 2019 Test Year | V13: Projects | W13: 2014 Bridge Year | X13: 2015 Test Year | Y13: 2016 Test Year | Z13: 2017 Test Year | AA13: 2018 Test Year | AB13: 2019 Test Year | AE13: For AGM Report
A14: Reporting Basis | B14: CGAAP | C14: CGAAP | D14: MIFRS | E14: MIFRS | F14: MIFRS | G14: MIFRS | H14: MIFRS | I14: MIFRS | J14: MIFRS | K14: MIFRS | M14: Reporting Basis | N14: MIFRS | O14: MIFRS | P14: MIFRS | Q14: MIFRS | R14: MIFRS | S14: MIFRS | V14: Reporting Basis | W14: MIFRS | X14: MIFRS | Y14: MIFRS | Z14: MIFRS | AA14: MIFRS | AB14: MIFRS
F15: Actual | N15: Actual
A16: System Access | M16: System Access | V16: System Access
A17: Subdivision Expansions | B17: 918 | C17: 1300 | D17: 1816 | E17: 1820 | F17: =2693-522 -> 2171 | G17: 1075 | H17: 1125 | I17: 1150 | J17: 1180 | K17: 1215 | M17: Subdivision Expansions | N17: =2693-522 -> 2171 | O17: 1075 | P17: 1125 | Q17: 1150 | R17: 1180 | S17: 1215 | V17: Subdivision Expansions | W17: 2100 | X17: 1075 | Y17: 1125 | Z17: 1150 | AA17: 1180 | AB17: 1215 | AE17: =F17 -> 2171
A18: Service connections/requests | B18: 430 | C18: 366 | D18: 150 | E18: 160 | F18: 169 | G18: 120 | H18: 110 | I18: 100 | J18: 100 | K18: 100 | M18: Service connections/requests | N18: 169 | O18: 120 | P18: 110 | Q18: 100 | R18: 100 | S18: 100 | V18: Service connections/requests | W18: 110 | X18: 120 | Y18: 110 | Z18: 100 | AA18: 100 | AB18: 100 | AE18: =F18 -> 169
A19: Service/Expansion Contributions | B19: -2034 | C19: -931 | D19: -1271 | E19: -1459 | F19: =-1902-220-21 -> -2143 | G19: -650 | H19: -675 | I19: -690 | J19: -705 | K19: -730 | M19: Service/Expansion Contributions | N19: =-1902-220-21 -> -2143 | O19: -650 | P19: -675 | Q19: -690 | R19: -705 | S19: -730 | V19: Service/Expansion Contributions | W19: -1560 | X19: -650 | Y19: -675 | Z19: -690 | AA19: -705 | AB19: -730
A20: Hwy 407 Extension - Plant relocation | F20: 432 | G20: 4510 | H20: 700 | M20: Hwy 407 Extension - Plant relocation | N20: 432 | O20: 4510 | P20: 700 | V20: Hwy 407 Extension - Plant relocation | W20: 430 | X20: 4510 | Y20: 700 | AE20: =F20 -> 432
A21: Hwy 407 contribution | F21: 2 | G21: -3580 | H21: -400 | M21: Hwy 407 contribution | N21: 2 | O21: -3580 | P21: -400 | V21: Hwy 407 contribution | W21: 0 | X21: -3580 | Y21: -400 | AE21: =F21 -> 2
A22: Durham Region - Plant relocation | B22: 0 | C22: 447 | D22: 347 | E22: 450 | F22: 98 | G22: 1875 | H22: 935 | I22: 1065 | J22: 1080 | K22: 1055 | M22: Durham Region - Plant relocation | N22: 98 | O22: 1875 | P22: 935 | Q22: 1065 | R22: 1080 | S22: 1055 | V22: Durham Region - Plant relocation | W22: 250 | X22: 1875 | Y22: 935 | Z22: 1065 | AA22: 1080 | AB22: 1055 | AE22: =F22 -> 98
A23: Durham Region Contribution | B23: -139 | C23: 0 | D23: 0 | E23: -150 | F23: 0 | G23: -506 | H23: -235 | I23: -265 | J23: -280 | K23: -255 | M23: Durham Region Contribution | N23: 0 | O23: -506 | P23: -235 | Q23: -265 | R23: -280 | S23: -255 | V23: Durham Region Contribution | W23: 0 | X23: -506 | Y23: -235 | Z23: -265 | AA23: -280 | AB23: -255
A24: City of Oshawa - Plant relocation | B24: 0 | C24: 20 | D24: 0 | E24: 258 | F24: 47 | G24: 680 | H24: 595 | I24: 470 | J24: 460 | K24: 470 | M24: City of Oshawa - Plant relocation | N24: 47 | O24: 680 | P24: 595 | Q24: 470 | R24: 460 | S24: 470 | V24: City of Oshawa - Plant relocation | W24: 302 | X24: 680 | Y24: 595 | Z24: 470 | AA24: 460 | AB24: 470 | AE24: =F24 -> 47
A25: City of Oshawa Contribution | E25: -90 | F25: -117 | G25: -175 | H25: -145 | I25: -120 | J25: -110 | K25: -120 | M25: City of Oshawa Contribution | N25: -117 | O25: -175 | P25: -145 | Q25: -120 | R25: -110 | S25: -120 | V25: City of Oshawa Contribution | W25: 0 | X25: -175 | Y25: -145 | Z25: -120 | AA25: -110 | AB25: -120
A26: Metering service connections | B26: 99 | C26: 6780 | D26: 586 | E26: 573 | F26: 528 | G26: 375 | H26: 380 | I26: 390 | J26: 390 | K26: 390 | M26: Metering service connections | N26: 528 | O26: 375 | P26: 380 | Q26: 390 | R26: 390 | S26: 390 | V26: Metering service connections | W26: 280 | X26: 375 | Y26: 380 | Z26: 390 | AA26: 390 | AB26: 390 | AF26: =F26 -> 528 | AG26: Connections
A27: Remote Disconnect/Reconnect Metering | G27: 100 | H27: 100 | I27: 100 | J27: 100 | K27: 100 | M27: Remote Disconnect/Reconnect Metering | O27: 100 | P27: 100 | Q27: 100 | R27: 100 | S27: 100 | V27: Remote Disconnect/Reconnect Metering | X27: 100 | Y27: 100 | Z27: 100 | AA27: 100 | AB27: 100
A28: PrePaid Metering | I28: 150 | M28: PrePaid Metering | Q28: 150 | V28: PrePaid Metering | Z28: 150
A29: OEB's MIST Metering | G29: 150 | H29: 150 | I29: 125 | J29: 125 | K29: 125 | M29: OEB's MIST Metering | O29: 150 | P29: 150 | Q29: 125 | R29: 125 | S29: 125 | V29: OEB's MIST Metering | W29: 0 | X29: 150 | Y29: 150 | Z29: 125 | AA29: 125 | AB29: 125
A30: Long Term load transfers (LTLT) | E30: 781 | F30: 319 | M30: Long Term load transfers (LTLT) | N30: 319 | V30: Long Term load transfers (LTLT) | W30: 395
A31: MoE approved Micro Grid Project | F31: 0 | G31: 110 | H31: 45 | M31: MoE approved Micro Grid Project | N31: 0 | O31: 110 | P31: 45 | V31: MoE approved Micro Grid Project | W31: 0 | X31: 110 | Y31: 45
A32: Reduce new connections per OEB Decision | G32: -400 | H32: -400 | I32: -400
A33: System Access Total | B33: =SUM(B17:B32) -> -726 | C33: 7982 | D33: 1628 | E33: 2343 | F33: 1506 | G33: 3684 | H33: 2285 | I33: 2075 | J33: 2340 | K33: 2350 | M33: System Access Total | N33: =SUM(N17:N32) -> 1506 | O33: 4084 | P33: 2685 | Q33: 2475 | R33: 2340 | S33: 2350 | V33: System Access Total | W33: =SUM(W17:W32) -> 2307 | X33: 4084 | Y33: 2685 | Z33: 2475 | AA33: 2340 | AB33: 2350 | AD33: Customer Driven | AE33: =SUM(AE17:AE32) -> 2919
A35: System Renewal | M35: System Renewal | V35: System Renewal | AE35: Renewal
A36: O/H Rebuilds | B36: 2288 | C36: 2215 | D36: 1390 | E36: 2407 | F36: =1431+1588-134 -> 2885 | G36: 2410 | H36: 2455 | I36: 2055 | J36: 2510 | K36: 2117 | M36: O/H Rebuilds | N36: =1431+1588-134 -> 2885 | O36: 2410 | P36: 2455 | Q36: 2055 | R36: 2510 | S36: 2117 | T36: CCIEIM | V36: O/H Rebuilds | W36: 2663 | X36: 2410 | Y36: 2455 | Z36: 2055 | AA36: 2510 | AB36: 2117 | AE36: =F36 -> 2885
A37: U/G Rebuilds | B37: 684 | C37: 1416 | D37: 1013 | E37: 1789 | F37: =1047+345 -> 1392 | G37: 1133 | H37: 1007 | I37: 1087 | J37: 921 | K37: 904 | M37: U/G Rebuilds | N37: =1047+345 -> 1392 | O37: 1133 | P37: 1007 | Q37: 1087 | R37: 921 | S37: 904 | T37: CCIEIM | V37: U/G Rebuilds | W37: 1450 | X37: 1133 | Y37: 1007 | Z37: 1087 | AA37: 921 | AB37: 904 | AE37: =F37 -> 1392
A38: Station Rebuilds | B38: 466 | C38: 2758 | D38: 3879 | E38: 925 | F38: =2772+75 -> 2847 | G38: 510 | H38: 640 | I38: 500 | J38: 500 | K38: 1000 | M38: Station Rebuilds | N38: =2772+75 -> 2847 | O38: 510 | P38: 640 | Q38: 500 | R38: 500 | S38: 1000 | T38: CCIEIM | V38: Station Rebuilds | W38: 1015 | X38: 510 | Y38: 640 | Z38: 500 | AA38: 500 | AB38: 1000 | AE38: =F38 -> 2847
A39: Station Rebuilds (MS14 Switchgear in WIP end 2014) | F39: -1060 | G39: =-F39 -> 1060 | M39: Station Rebuilds (MS14 Switchgear in WIP end 2014) | N39: -1060 | O39: =-N39 -> 1060
A40: Reactive/emergency Plant Replacement | B40: 1199 | C40: 650 | D40: 880 | E40: 850 | F40: =1076-76+34 -> 1034 | G40: 830 | H40: 830 | I40: 830 | J40: 830 | K40: 830 | M40: Reactive/emergency Plant Replacement | N40: =1076-76+34 -> 1034 | O40: 830 | P40: 830 | Q40: 830 | R40: 830 | S40: 830 | T40: CCIEIM | V40: Reactive/emergency Plant Replacement | W40: 830 | X40: 830 | Y40: 830 | Z40: 830 | AA40: 830 | AB40: 830 | AE40: =F40 -> 1034
A42: System Renewal Total | B42: =SUM(B36:B41) -> 4637 | C42: 7039 | D42: 7162 | E42: 5971 | F42: 7098 | G42: 5943 | H42: 4932 | I42: 4472 | J42: 4761 | K42: 4851 | M42: System Renewal Total | N42: =SUM(N36:N41) -> 7098 | O42: 5943 | P42: 4932 | Q42: 4472 | R42: 4761 | S42: 4851 | V42: System Renewal Total | W42: =SUM(W36:W41) -> 5958 | X42: 4883 | Y42: 4932 | Z42: 4472 | AA42: 4761 | AB42: 4851 | AD42: System Renewal | AE42: =SUM(AE35:AE41) -> 8158
A44: System Services | M44: System Services | V44: System Services
A45: Wilson TS to Thornton TS Load Transfer - OH Plant Rebuild/Extension | E45: 1903 | F45: =864+305 -> 1169 | M45: Wilson TS to Thornton TS Load Transfer - OH Plant Rebuild/Extension | N45: =864+305 -> 1169 | V45: Wilson TS to Thornton TS Load Transfer - OH Plant Rebuild/Extension | W45: 1930
A46: Thorton TS Capacity - HONI Contributions | M46: Thorton TS Capacity - HONI Contributions | V46: Thorton TS Capacity - HONI Contributions | X46: 1500 | Y46: 1500
A47: Wilson TS Capacity - HONI Contributions | M47: Wilson TS Capacity - HONI Contributions | V47: Wilson TS Capacity - HONI Contributions | Z47: 1000 | AA47: 1000 | AB47: 1500
A48: TS Capacity - HONI Contributions | G48: 1350 | I48: 5400 | J48: 6750 | O48: 1350 | Q48: 5400 | R48: 6750
A49: Move HONI Contributions to 2018 | G49: -1350 | I49: -5400 | J49: =1350+5400 -> 6750
A50: MS9 - 44kV/13.8kV Substation | J50: 7000 | M50: MS9 - 44kV/13.8kV Substation | R50: 7000 | T50: CCIEIM | V50: MS9 - 44kV/13.8kV Substation | X50: 750 | Y50: 1000 | Z50: 3250 | AA50: 2000
A51: MS9 Proposed OH distribution feeders | J51: 4000 | K51: 3500 | M51: MS9 Proposed OH distribution feeders | R51: 4000 | S51: 3500 | T51: CCIEIM | V51: MS9 Proposed OH distribution feeders | AA51: 1000 | AB51: 1000
A52: Neutral Reactors | G52: 450 | H52: 1050 | O52: 450 | P52: 1050 | T52: CCIEIM
A53: Underground Distribution Automation Downtown UG Vaults, including Self Healing system - For Safety, Efficiency, Reliability & Power Quality Improvements | F53: 397 | G53: 548 | H53: 280 | I53: 10 | J53: 10 | K53: 10 | M53: Underground Distribution Automation Downtown UG Vaults, including Self Healing system - For Safety, Efficiency, Reliability & Power Quality Improvements | N53: 397 | O53: 548 | P53: 280 | Q53: 10 | R53: 10 | S53: 10 | V53: Underground Distribution Automation Downtown UG Vaults, including Self Healing system - For Safety, Efficiency, Reliability & Power Quality Improvements | W53: 900 | X53: 548 | Y53: 280 | Z53: 10 | AA53: 10 | AB53: 10
A54: Overhead Automated Self healing Switching - Intellirupters switches (8 feeders 13 switches over 3 years) | I54: 350 | J54: 350 | K54: 255 | M54: Overhead Automated Self healing Switching - Intellirupters switches (8 feeders 13 switches over 3 years) | Q54: 350 | R54: 350 | S54: 255 | V54: Overhead Automated Self healing Switching - Intellirupters switches (8 feeders 13 switches over 3 years) | Z54: 350 | AA54: 350 | AB54: 255
A55: Smart Fault Indicators | G55: 25 | H55: 25 | I55: 25 | J55: 25 | K55: 25 | M55: Smart Fault Indicators | O55: 25 | P55: 25 | Q55: 25 | R55: 25 | S55: 25 | V55: Smart Fault Indicators | X55: 25 | Y55: 25 | Z55: 25 | AA55: 25 | AB55: 25
A56: Volt-Var optimization & Reduction in Distribution Losses | F56: 0 | G56: 0 | H56: 0 | I56: 0 | J56: 225 | K56: 225 | M56: Volt-Var optimization & Reduction in Distribution Losses | N56: 0 | O56: 0 | P56: 0 | Q56: 0 | R56: 225 | S56: 225 | V56: Volt-Var optimization & Reduction in Distribution Losses | W56: 0 | X56: 0 | Y56: 0 | Z56: 0 | AA56: 225 | AB56: 225
A57: Distribution System Supply Optimization | G57: 45 | H57: 25 | I57: 35 | J57: 35 | K57: 35 | M57: Distribution System Supply Optimization | O57: 45 | P57: 25 | Q57: 35 | R57: 35 | S57: 35 | V57: Distribution System Supply Optimization | X57: 45 | Y57: 25 | Z57: 35 | AA57: 35 | AB57: 35
A59: System Services Total | B59: =SUM(B45:B58) -> 0 | C59: 0 | D59: 0 | E59: 1903 | F59: 1566 | G59: 1068 | H59: 1380 | I59: 420 | J59: 25145 | K59: 4050 | M59: System Services Total | N59: =SUM(N45:N58) -> 1566 | O59: 2418 | P59: 1380 | Q59: 5820 | R59: 18395 | S59: 4050 | V59: System Services Total | W59: =SUM(W45:W58) -> 2830 | X59: 2868 | Y59: 2830 | Z59: 4670 | AA59: 4645 | AB59: 3050
A61: General Plant | M61: General Plant | V61: General Plant
A62: Fleet | B62: 245 | C62: 585 | D62: 1438 | E62: 17 | F62: 153 | G62: 420 | H62: 415 | I62: 440 | J62: 190 | K62: 170 | M62: Fleet | N62: 153 | O62: 420 | P62: 415 | Q62: 440 | R62: 190 | S62: 170 | V62: Fleet | W62: 155 | X62: 420 | Y62: 415 | Z62: 440 | AA62: 190 | AB62: 170
A63: Total Facilities Leasehold Improvements | B63: 36 | C63: 354 | D63: 174 | E63: 17 | F63: 76 | G63: 225 | H63: 50 | I63: 50 | J63: 50 | K63: 50 | M63: Total Facilities Leasehold Improvements | N63: 76 | O63: 225 | P63: 50 | Q63: 50 | R63: 50 | S63: 50 | V63: Total Facilities Leasehold Improvements | W63: 104 | X63: 225 | Y63: 50 | Z63: 50 | AA63: 50 | AB63: 50
A64: Major Tools and Equipment | B64: 152 | C64: 110 | D64: 110 | E64: 44 | F64: 54 | G64: 50 | H64: 50 | I64: 50 | J64: 50 | K64: 50 | M64: Major Tools and Equipment | N64: 54 | O64: 50 | P64: 50 | Q64: 50 | R64: 50 | S64: 50 | V64: Major Tools and Equipment | W64: 40 | X64: 50 | Y64: 50 | Z64: 50 | AA64: 50 | AB64: 50
A65: Outage Management System Implementation including interface with SCADA, GIS, CIS, AMI, IVR | B65: 0 | C65: 0 | D65: 0 | E65: 0 | F65: 70 | G65: 850 | H65: 0 | I65: 0 | J65: 0 | K65: 0 | M65: Outage Management System Implementation including interface with SCADA, GIS, CIS, AMI, IVR | N65: 70 | O65: 850 | P65: 0 | Q65: 0 | R65: 0 | S65: 0 | V65: Outage Management System Implementation including interface with SCADA, GIS, CIS, AMI, IVR | W65: 75 | X65: 850 | Y65: 0 | Z65: 0 | AA65: 0 | AB65: 0
A66: Mobile Work force | F66: 0 | H66: 50 | I66: 50 | M66: Mobile Work force | N66: 0 | P66: 50 | Q66: 50 | V66: Mobile Work force | W66: 0 | Y66: 50 | Z66: 50
A67: ODS Replacement due to enhanced operational requirements not available with existing ODS | F67: 0 | H67: 400 | M67: ODS Replacement due to enhanced operational requirements not available with existing ODS | N67: 0 | P67: 400 | V67: ODS Replacement due to enhanced operational requirements not available with existing ODS | Y67: 400
A68: GIS Enhancements for operational needs including OMS | F68: 66 | H68: 60 | I68: 60 | J68: 60 | K68: 60 | M68: GIS Enhancements for operational needs including OMS | N68: 66 | P68: 60 | Q68: 60 | R68: 60 | S68: 60 | V68: GIS Enhancements for operational needs including OMS | W68: 120 | Y68: 60 | Z68: 60 | AA68: 60 | AB68: 60
A69: MAS Enhancements for operational needs | F69: 13 | H69: 25 | I69: 25 | J69: 50 | K69: 50 | M69: MAS Enhancements for operational needs | N69: 13 | P69: 25 | Q69: 25 | R69: 50 | S69: 50 | V69: MAS Enhancements for operational needs | W69: 25 | Y69: 25 | Z69: 25 | AA69: 50 | AB69: 50
A70: ODS/CIS Enhancements for operational needs | J70: 50 | K70: 50 | M70: ODS/CIS Enhancements for operational needs | R70: 50 | S70: 50 | V70: ODS/CIS Enhancements for operational needs | W70: 25 | AA70: 50 | AB70: 50
A71: Office IT Capital Expenditure | B71: 64 | C71: 165 | D71: 167 | E71: 270 | F71: =49+5 -> 54 | G71: 130 | H71: 130 | I71: 80 | J71: 280 | K71: 80 | M71: Office IT Capital Expenditure | N71: =49+5 -> 54 | O71: 130 | P71: 130 | Q71: 80 | R71: 280 | S71: 80 | V71: Office IT Capital Expenditure | W71: 90 | X71: 130 | Y71: 130 | Z71: 80 | AA71: 280 | AB71: 80
A73: General Plant Total | B73: =SUM(B62:B72) -> 497 | C73: 1214 | D73: 1889 | E73: 348 | F73: 486 | G73: 1675 | H73: 1180 | I73: 755 | J73: 730 | K73: 510 | M73: General Plant Total | N73: =SUM(N62:N72) -> 486 | O73: 1675 | P73: 1180 | Q73: 755 | R73: 730 | S73: 510 | V73: General Plant Total | W73: =SUM(W62:W72) -> 634 | X73: 1675 | Y73: 1180 | Z73: 755 | AA73: 730 | AB73: 510
A75: Miscellaneous (2018 $'s are MS9 land) | B75: =4686-4408 -> 278 | C75: 262 | D75: 413 | E75: 182 | F75: 1 | J75: 158.7 | M75: Miscellaneous | N75: 1 | R75: 158.7 | V75: Miscellaneous | AD75: MS9 land ($158.7) removed from opening 2015 balance and added in 2018 when MS9 expected to be in service
A76: Total | B76: =SUM(B75,B73,B59,B42,B33) -> 4686 | C76: 16497 | D76: 11092 | E76: 10747 | F76: 10657 | G76: 12370 | H76: 9777 | I76: 7722 | J76: 33134.7 | K76: 11761 | M76: Total | N76: =SUM(N75,N73,N59,N42,N33) -> 10657 | O76: 14120 | P76: 10177 | Q76: 13522 | R76: 26384.7 | S76: 11761 | V76: Total | W76: =SUM(W75,W73,W59,W42,W33) -> 11729 | X76: 13510 | Y76: 11627 | Z76: 12372 | AA76: 12476 | AB76: 10761
A77: Less Renewable Generation Facility Assets and Other Non Rate-Regulated Utility Assets | M77: Less Renewable Generation Facility Assets and Other Non Rate-Regulated Utility Assets | V77: Less Renewable Generation Facility Assets and Other Non Rate-Regulated Utility Assets
A78: Total | B78: =B76+B77 -> 4686 | C78: 16497 | D78: 11092 | E78: 10747 | F78: 10657 | G78: 12370 | H78: 9777 | I78: 7722 | J78: 33134.7 | K78: 11761 | M78: Total | N78: =N76+N77 -> 10657 | O78: 14120 | P78: 10177 | Q78: 13522 | R78: 26384.7 | S78: 11761 | V78: Total | W78: =W76+W77 -> 11729 | X78: 13510 | Y78: 11627 | Z78: 12372 | AA78: 12476 | AB78: 10761
J80: 2015 - 2019 | K80: =SUM(G78:K78) -> 74764.7 | R80: 2015 - 2019 | S80: =SUM(O78:S78) -> 75964.7 | AA80: 2015 - 2019 | AB80: =SUM(X78:AB78) -> 60746
A82: Vs End of Oral Hearing | F82: =F76-N76 -> 0 | G82: -1750 | H82: -400 | I82: -5800 | J82: 6750 | K82: =K76-S76 -> 0 | M82: Notes: | V82: Notes:
A83: Notes: | J83: 2015-2019 only | K83: =K80-S80 -> -1200
A84: 1 Please provide a breakdown of the major components of each capital project undertaken in each year. Please ensure that all projects below the materiality threshold are included in the miscellaneous line. Add more projects as required. | O84: =SUM(O19,O21,O23,O25) -> -4911 | P84: =SUM(P19,P21,P23,P25) -> -1455 | Q84: -1075 | R84: -1095 | S84: -1105 | X84: =SUM(X19,X21,X23,X25) -> -4911 | Y84: =SUM(Y19,Y21,Y23,Y25) -> -1455 | Z84: -1075 | AA84: -1095 | AB84: -1105
A85: 2 The applicant should group projects appropriately and avoid presentations that result in classification of significant components of the OM&A budget in the miscellaneous category. | O85: =O76-O84 -> 19031 | P85: =P76-P84 -> 11632 | Q85: 14597 | R85: 27479.7 | S85: 12866 | X85: =X76-X84 -> 18421 | Y85: =Y76-Y84 -> 13082 | Z85: 13447 | AA85: 13571 | AB85: 11866
A91: Total From Appendix 2-BA | C91: 16497 | D91: 11092 | E91: 10747 | F91: ='App.2-BA2_Fx Asst Cnt.MIFRS 14'!E59/1000 -> 10657.278 | G91: ='App.2-BA2_Fx Asst Cnt.MIFRS 15'!$E$59/1000 -> 12369.9 | H91: ='App.2-BA2_Fx Asst Cnt.MIFRS 16'!$E$59/1000 -> 9776.999984 | I91: ='App.2-BA2_Fx Asst Cnt.MIFRS 17'!$E$59/1000 -> 7721.99998 | J91: ='App.2-BA2_Fx Asst Cnt.MIFRS 18'!$E$59/1000 -> 33134.72299 | K91: ='App.2-BA2_Fx Asst Cnt.MIFRS 19'!$E$59/1000 -> 11761 | M91: Total From Appendix 2-BA | N91: 11729 | O91: 13509.9 | P91: 11627 | Q91: 12372 | R91: 12476 | S91: 10761 | V91: Total From Appendix 2-BA | W91: 11729 | X91: 13509.9 | Y91: 11627 | Z91: 12372 | AA91: 12476 | AB91: 10761
A92: Diff | C92: =C91-C78 -> 0 | D92: =D91-D78 -> 0 | E92: 0 | F92: 0.278 | G92: -0.09999939945 | H92: -1.570712266e-05 | I92: -1.955667176e-05 | J92: 0.02299337184 | K92: 0 | M92: Diff | N92: =N91-N78 -> 1072 | O92: -610.1 | P92: 1450 | Q92: -1150 | R92: -13908.7 | S92: -1000 | V92: Diff | W92: =W91-W78 -> 0 | X92: -0.1 | Y92: 0 | Z92: 0 | AA92: 0 | AB92: 0
A94: Higher / (lower) than original filing Jan 2015 | F94: =F76-W76 -> -1072 | G94: =G76-X76 -> -1140 | H94: =H76-Y76 -> -1850 | I94: -4650 | J94: 20658.7 | K94: 1000
J95: 2015-2019 only | K95: =SUM(G94:K94) -> 14018.7
A97: Check vs Master Working File | G97: 12369.9 | H97: 9776.999984 | I97: 7721.99998 | J97: 33134.72299 | K97: 11761
A98: Diff | G98: =G97-G76 -> -0.09999939945 | H98: =H97-H76 -> -1.570712266e-05 | I98: -1.955667176e-05 | J98: 0.02299337184 | K98: 0
A106: System Access | B106: =SUM(B17:B18,B20,B22,B24,B26:B32) -> 1447 | C106: =SUM(C17:C18,C20,C22,C24,C26:C32) -> 8913 | D106: 2899 | E106: 4042 | F106: 3764 | G106: 8595 | H106: 3740 | I106: 3150 | J106: 3435 | K106: 3455 | M106: System Access | N106: =SUM(N17:N18,N20,N22,N24,N26:N32) -> 3764 | O106: 8995 | P106: 4140 | Q106: 3550 | R106: 3435 | S106: 3455 | V106: System Access | W106: =SUM(W17:W18,W20,W22,W24,W26:W32) -> 3867 | X106: 8995 | Y106: 4140 | Z106: 3550 | AA106: 3435 | AB106: 3455
A107: System Renewal | B107: =B42 -> 4637 | C107: =C42 -> 7039 | D107: 7162 | E107: 5971 | F107: 7098 | G107: 5943 | H107: 4932 | I107: 4472 | J107: 4761 | K107: 4851 | M107: System Renewal | N107: =N42 -> 7098 | O107: 5943 | P107: 4932 | Q107: 4472 | R107: 4761 | S107: 4851 | V107: System Renewal | W107: =W42 -> 5958 | X107: 4883 | Y107: 4932 | Z107: 4472 | AA107: 4761 | AB107: 4851
A108: System Services | B108: =B59 -> 0 | C108: =C59 -> 0 | D108: 0 | E108: 1903 | F108: 1566 | G108: 1068 | H108: 1380 | I108: 420 | J108: 25145 | K108: 4050 | M108: System Services | N108: =N59 -> 1566 | O108: 2418 | P108: 1380 | Q108: 5820 | R108: 18395 | S108: 4050 | V108: System Services | W108: =W59 -> 2830 | X108: 2868 | Y108: 2830 | Z108: 4670 | AA108: 4645 | AB108: 3050
A109: General Plant | B109: =B73+B75 -> 775 | C109: =C73+C75 -> 1476 | D109: 2302 | E109: 530 | F109: 487 | G109: 1675 | H109: 1180 | I109: 755 | J109: 888.7 | K109: 510 | M109: General Plant | N109: =N73+N75 -> 487 | O109: 1675 | P109: 1180 | Q109: 755 | R109: 888.7 | S109: 510 | V109: General Plant | W109: =W73+W75 -> 634 | X109: 1675 | Y109: 1180 | Z109: 755 | AA109: 730 | AB109: 510
A110: Contributions | B110: =B33-B106 -> -2173 | C110: =C33-C106 -> -931 | D110: -1271 | E110: -1699 | F110: -2258 | G110: -4911 | H110: -1455 | I110: -1075 | J110: -1095 | K110: -1105 | M110: Contributions | N110: =N33-N106 -> -2258 | O110: -4911 | P110: -1455 | Q110: -1075 | R110: -1095 | S110: -1105 | V110: Contributions | W110: =W33-W106 -> -1560 | X110: -4911 | Y110: -1455 | Z110: -1075 | AA110: -1095 | AB110: -1105
B112: =SUM(B106:B111) -> 4686 | C112: =SUM(C106:C111) -> 16497 | D112: 11092 | E112: 10747 | F112: 10657 | G112: 12370 | H112: 9777 | I112: 7722 | J112: 33134.7 | K112: 11761 | N112: =SUM(N106:N111) -> 10657 | O112: 14120 | P112: 10177 | Q112: 13522 | R112: 26384.7 | S112: 11761 | W112: =SUM(W106:W111) -> 11729 | X112: 13510 | Y112: 11627 | Z112: 12372 | AA112: 12476 | AB112: 10761
B114: =B112-B76 -> 0 | C114: =C112-C76 -> 0 | D114: 0 | E114: 0 | F114: 0 | G114: 0 | H114: 0 | I114: 0 | J114: 0 | K114: 0 | N114: =N112-N76 -> 0 | O114: 0 | P114: 0 | Q114: 0 | R114: 0 | S114: 0 | W114: =W112-W76 -> 0 | X114: 0 | Y114: 0 | Z114: 0 | AA114: 0 | AB114: 0
G117: ='App.2-AB_Capital Expenditures'!Q23 -> 12370 | H117: ='App.2-AB_Capital Expenditures'!R23 -> 9777 | I117: ='App.2-AB_Capital Expenditures'!S23 -> 7722 | J117: ='App.2-AB_Capital Expenditures'!T23 -> 33134.7 | K117: ='App.2-AB_Capital Expenditures'!U23 -> 11761
G118: =G112-G117 -> 0 | H118: =H112-H117 -> 0 | I118: 0 | J118: 0 | K118: 0
A130: Subdivision Expansions | B130: 918 | C130: 1300 | D130: 1816 | E130: 1820 | F130: =2693-522 -> 2171 | G130: 1075 | H130: 1125 | I130: 1150 | J130: 1180 | K130: 1215 | M130: Subdivision Expansions | N130: 2100 | O130: 1075 | P130: 1125 | Q130: 1150 | R130: 1180 | S130: 1215 | V130: Subdivision Expansions | W130: 2100 | X130: 1075 | Y130: 1125 | Z130: 1150 | AA130: 1180 | AB130: 1215 | AE130: =F130 -> 2171
A131: Service connections/requests | B131: 430 | C131: 366 | D131: 150 | E131: 160 | F131: 169 | G131: 120 | H131: 110 | I131: 100 | J131: 100 | K131: 100 | M131: Service connections/requests | N131: 110 | O131: 120 | P131: 110 | Q131: 100 | R131: 100 | S131: 100 | V131: Service connections/requests | W131: 110 | X131: 120 | Y131: 110 | Z131: 100 | AA131: 100 | AB131: 100 | AE131: =F131 -> 169
A132: Service/Expansion Contributions | B132: -2034 | C132: -931 | D132: -1271 | E132: -1459 | F132: =-1902-220-21 -> -2143 | G132: -650 | H132: -675 | I132: -690 | J132: -705 | K132: -730 | M132: Service/Expansion Contributions | N132: -1560 | O132: -650 | P132: -675 | Q132: -690 | R132: -705 | S132: -730 | V132: Service/Expansion Contributions | W132: -1560 | X132: -650 | Y132: -675 | Z132: -690 | AA132: -705 | AB132: -730
B135: =-B132/(B130+B131) -> 1.508902077 | C135: =-C132/(C130+C131) -> 0.5588235294 | D135: 0.6464903357 | E135: 0.7368686869 | F135: 0.9158119658 | G135: 0.5439330544 | H135: 0.5465587045 | I135: 0.552 | J135: 0.55078125 | K135: 0.5551330798

Sheet App.2-AA_Capital Projects (OLD) (hidden)
J1: File Number: | K1: =EBNUMBER -> EB-2014-0101 | U1: File Number: | V1: =EBNUMBER -> EB-2014-0101
J2: Exhibit: | U2: Exhibit:
J3: Tab: | U3: Tab:
J4: Schedule: | U4: Schedule:
J5: Page: | U5: Page:
J7: Date: | U7: Date:
A9: Appendix 2-AA | P9: AS FILED JAN 2015 Appendix 2-AA | X9: CCIEIM
A10: Capital Projects Table ( $'000s) | P10: Capital Projects Table ( $'000s)
A13: Projects | B13: 2010 | C13: 2011 | D13: 2012 | E13: 2013 | F13: 2014 Bridge Year | G13: 2015 Test Year | H13: 2016 Test Year | I13: 2017 Test Year | J13: 2018 Test Year | K13: 2019 Test Year | M13: =SUM(M17:M69) -> 28749 | P13: Projects | Q13: 2014 Bridge Year | R13: 2015 Test Year | S13: 2016 Test Year | T13: 2017 Test Year | U13: 2018 Test Year | V13: 2019 Test Year | X13: =SUM(X17:X69) -> 28749
A14: Reporting Basis | B14: CGAAP | C14: CGAAP | D14: MIFRS | E14: MIFRS | F14: MIFRS | G14: MIFRS | H14: MIFRS | I14: MIFRS | J14: MIFRS | K14: MIFRS | P14: Reporting Basis | Q14: MIFRS | R14: MIFRS | S14: MIFRS | T14: MIFRS | U14: MIFRS | V14: MIFRS
A16: System Access | P16: System Access
A17: Subdivision Expansions | B17: 918 | C17: 1300 | D17: 1816 | E17: 1820 | F17: 2100 | G17: 1075 | H17: 1125 | I17: 1150 | J17: 1180 | K17: 1215 | P17: Subdivision Expansions | Q17: 2100 | R17: 1075 | S17: 1125 | T17: 1150 | U17: 1180 | V17: 1215
A18: Service connections/requests | B18: 430 | C18: 366 | D18: 150 | E18: 160 | F18: 110 | G18: 120 | H18: 110 | I18: 100 | J18: 100 | K18: 100 | P18: Service connections/requests | Q18: 110 | R18: 120 | S18: 110 | T18: 100 | U18: 100 | V18: 100
A19: Service/Expansion Contributions | B19: -2034 | C19: -931 | D19: -1271 | E19: -1459 | F19: -1560 | G19: -650 | H19: -675 | I19: -690 | J19: -705 | K19: -730 | P19: Service/Expansion Contributions | Q19: -1560 | R19: -650 | S19: -675 | T19: -690 | U19: -705 | V19: -730
A20: Hwy 407 Extension - Plant relocation | F20: 430 | G20: 4510 | H20: 700 | P20: Hwy 407 Extension - Plant relocation | Q20: 430 | R20: 4510 | S20: 700
A21: Hwy 407 contribution | F21: 0 | G21: -3580 | H21: -400 | P21: Hwy 407 contribution | Q21: 0 | R21: -3580 | S21: -400
A22: Durham Region - Plant relocation | B22: 0 | C22: 447 | D22: 347 | E22: 450 | F22: 250 | G22: 1875 | H22: 935 | I22: 1065 | J22: 1080 | K22: 1055 | P22: Durham Region - Plant relocation | Q22: 250 | R22: 1875 | S22: 935 | T22: 1065 | U22: 1080 | V22: 1055
A23: Durham Region Contribution | B23: -139 | C23: 0 | D23: 0 | E23: -150 | F23: 0 | G23: -506 | H23: -235 | I23: -265 | J23: -280 | K23: -255 | P23: Durham Region Contribution | Q23: 0 | R23: -506 | S23: -235 | T23: -265 | U23: -280 | V23: -255
A24: City of Oshawa - Plant relocation | B24: 0 | C24: 20 | D24: 0 | E24: 258 | F24: 302 | G24: 680 | H24: 595 | I24: 470 | J24: 460 | K24: 470 | P24: City of Oshawa - Plant relocation | Q24: 302 | R24: 680 | S24: 595 | T24: 470 | U24: 460 | V24: 470
A25: City of Oshawa Contribution | E25: -90 | F25: 0 | G25: -175 | H25: -145 | I25: -120 | J25: -110 | K25: -120 | P25: City of Oshawa Contribution | Q25: 0 | R25: -175 | S25: -145 | T25: -120 | U25: -110 | V25: -120
A26: Metering service connections | B26: 99 | C26: 6780 | D26: 586 | E26: 573 | F26: 280 | G26: 375 | H26: 380 | I26: 390 | J26: 390 | K26: 390 | P26: Metering service connections | Q26: 280 | R26: 375 | S26: 380 | T26: 390 | U26: 390 | V26: 390
A27: Remote Disconnect/Reconnect Metering | G27: 100 | H27: 100 | I27: 100 | J27: 100 | K27: 100 | P27: Remote Disconnect/Reconnect Metering | R27: 100 | S27: 100 | T27: 100 | U27: 100 | V27: 100
A28: PrePaid Metering | I28: 150 | P28: PrePaid Metering | T28: 150
A29: OEB's MIST Metering | F29: 0 | G29: 150 | H29: 150 | I29: 125 | J29: 125 | K29: 125 | P29: OEB's MIST Metering | Q29: 0 | R29: 150 | S29: 150 | T29: 125 | U29: 125 | V29: 125
A30: Long Term load transfers (LTLT) | E30: 781 | F30: 395 | P30: Long Term load transfers (LTLT) | Q30: 395
A31: MoE approved Micro Grid Project | F31: 0 | G31: 110 | H31: 45 | P31: MoE approved Micro Grid Project | Q31: 0 | R31: 110 | S31: 45
A33: System Access Total | B33: =SUM(B17:B32) -> -726 | C33: 7982 | D33: 1628 | E33: 2343 | F33: 2307 | G33: 4084 | H33: 2685 | I33: 2475 | J33: 2340 | K33: 2350 | P33: System Access Total | Q33: =SUM(Q17:Q32) -> 2307 | R33: 4084 | S33: 2685 | T33: 2475 | U33: 2340 | V33: 2350
A35: System Renewal | P35: System Renewal
A36: O/H Rebuilds | B36: 2288 | C36: 2215 | D36: 1390 | E36: 2407 | F36: 2663 | G36: 2410 | H36: 2455 | I36: 2055 | J36: 2510 | K36: 2117 | M36: =SUM(G36:L36) -> 11547 | P36: O/H Rebuilds | Q36: 2663 | R36: 2410 | S36: 2455 | T36: 2055 | U36: 2510 | V36: 2117 | X36: =SUM(R36:W36) -> 11547
A37: U/G Rebuilds | B37: 684 | C37: 1416 | D37: 1013 | E37: 1789 | F37: 1450 | G37: 1133 | H37: 1007 | I37: 1087 | J37: 921 | K37: 904 | M37: 5052 | P37: U/G Rebuilds | Q37: 1450 | R37: 1133 | S37: 1007 | T37: 1087 | U37: 921 | V37: 904 | X37: 5052
A38: Station Rebuilds | B38: 466 | C38: 2758 | D38: 3879 | E38: 925 | F38: 1015 | G38: 510 | H38: 640 | I38: 500 | J38: 500 | K38: 1000 | M38: 3150 | P38: Station Rebuilds | Q38: 1015 | R38: 510 | S38: 640 | T38: 500 | U38: 500 | V38: 1000 | X38: 3150
A39: Reactive/emergency Plant Replacement | B39: 1199 | C39: 650 | D39: 880 | E39: 850 | F39: 830 | G39: 830 | H39: 830 | I39: 830 | J39: 830 | K39: 830 | P39: Reactive/emergency Plant Replacement | Q39: 830 | R39: 830 | S39: 830 | T39: 830 | U39: 830 | V39: 830
A41: System Renewal Total | B41: =SUM(B36:B40) -> 4637 | C41: 7039 | D41: 7162 | E41: 5971 | F41: 5958 | G41: 4883 | H41: 4932 | I41: 4472 | J41: 4761 | K41: 4851 | P41: System Renewal Total | Q41: =SUM(Q36:Q40) -> 5958 | R41: 4883 | S41: 4932 | T41: 4472 | U41: 4761 | V41: 4851
A43: System Services | P43: System Services
A44: Wilson TS to Thornton TS Load Transfer - OH Plant Rebuild/Extension | E44: 1903 | F44: 1930 | P44: Wilson TS to Thornton TS Load Transfer - OH Plant Rebuild/Extension | Q44: 1930
A45: Thorton TS Capacity - HONI Contributions | G45: 1500 | H45: 1500 | P45: Thorton TS Capacity - HONI Contributions | R45: 1500 | S45: 1500
A46: Wilson TS Capacity - HONI Contributions | I46: 1000 | J46: 1000 | K46: 1500 | P46: Wilson TS Capacity - HONI Contributions | T46: 1000 | U46: 1000 | V46: 1500
A47: MS9 - 44kV/13.8kV Substation | G47: 750 | H47: 1000 | I47: 3250 | J47: 2000 | M47: =SUM(G47:L47) -> 7000 | P47: MS9 - 44kV/13.8kV Substation | R47: 750 | S47: 1000 | T47: 3250 | U47: 2000 | X47: =SUM(R47:W47) -> 7000
A48: MS9 Proposed OH distribution feeders | J48: 1000 | K48: 1000 | M48: =SUM(G48:L48) -> 2000 | P48: MS9 Proposed OH distribution feeders | U48: 1000 | V48: 1000 | X48: =SUM(R48:W48) -> 2000
A49: Underground Distribution Automation Downtown UG Vaults, including Self Healing system - For Safety, Efficiency, Reliability & Power Quality Improvements | F49: 900 | G49: 548 | H49: 280 | I49: 10 | J49: 10 | K49: 10 | P49: Underground Distribution Automation Downtown UG Vaults, including Self Healing system - For Safety, Efficiency, Reliability & Power Quality Improvements | Q49: 900 | R49: 548 | S49: 280 | T49: 10 | U49: 10 | V49: 10
A50: Overhead Automated Self healing Switching - Intellirupters switches (8 feeders 13 switches over 3 years) | I50: 350 | J50: 350 | K50: 255 | P50: Overhead Automated Self healing Switching - Intellirupters switches (8 feeders 13 switches over 3 years) | T50: 350 | U50: 350 | V50: 255
A51: Smart Fault Indicators | G51: 25 | H51: 25 | I51: 25 | J51: 25 | K51: 25 | P51: Smart Fault Indicators | R51: 25 | S51: 25 | T51: 25 | U51: 25 | V51: 25
A52: Volt-Var optimization & Reduction in Distribution Losses | F52: 0 | G52: 0 | H52: 0 | I52: 0 | J52: 225 | K52: 225 | P52: Volt-Var optimization & Reduction in Distribution Losses | Q52: 0 | R52: 0 | S52: 0 | T52: 0 | U52: 225 | V52: 225
A53: Distribution System Supply Optimization | G53: 45 | H53: 25 | I53: 35 | J53: 35 | K53: 35 | P53: Distribution System Supply Optimization | R53: 45 | S53: 25 | T53: 35 | U53: 35 | V53: 35
A55: System Services Total | B55: =SUM(B44:B54) -> 0 | C55: 0 | D55: 0 | E55: 1903 | F55: 2830 | G55: 2868 | H55: 2830 | I55: 4670 | J55: 4645 | K55: 3050 | P55: System Services Total | Q55: =SUM(Q44:Q54) -> 2830 | R55: 2868 | S55: 2830 | T55: 4670 | U55: 4645 | V55: 3050
A57: General Plant | P57: General Plant
A58: Fleet | B58: 245 | C58: 585 | D58: 1438 | E58: 17 | F58: 155 | G58: 420 | H58: 415 | I58: 440 | J58: 190 | K58: 170 | P58: Fleet | Q58: 155 | R58: 420 | S58: 415 | T58: 440 | U58: 190 | V58: 170
A59: Total Facilities Leasehold Improvements | B59: 36 | C59: 354 | D59: 174 | E59: 17 | F59: 104 | G59: 225 | H59: 50 | I59: 50 | J59: 50 | K59: 50 | P59: Total Facilities Leasehold Improvements | Q59: 104 | R59: 225 | S59: 50 | T59: 50 | U59: 50 | V59: 50
A60: Major Tools and Equipment | B60: 152 | C60: 110 | D60: 110 | E60: 44 | F60: 40 | G60: 50 | H60: 50 | I60: 50 | J60: 50 | K60: 50 | P60: Major Tools and Equipment | Q60: 40 | R60: 50 | S60: 50 | T60: 50 | U60: 50 | V60: 50
A61: Outage Management System Implementation including interface with SCADA, GIS, CIS, AMI, IVR | B61: 0 | C61: 0 | D61: 0 | E61: 0 | F61: 75 | G61: 850 | H61: 0 | I61: 0 | J61: 0 | K61: 0 | P61: Outage Management System Implementation including interface with SCADA, GIS, CIS, AMI, IVR | Q61: 75 | R61: 850 | S61: 0 | T61: 0 | U61: 0 | V61: 0
A62: Mobile Work force | F62: 0 | H62: 50 | I62: 50 | P62: Mobile Work force | Q62: 0 | S62: 50 | T62: 50
A63: ODS Replacement due to enhanced operational requirements not available with existing ODS | H63: 400 | P63: ODS Replacement due to enhanced operational requirements not available with existing ODS | S63: 400
A64: GIS Enhancements for operational needs including OMS | F64: 120 | H64: 60 | I64: 60 | J64: 60 | K64: 60 | P64: GIS Enhancements for operational needs including OMS | Q64: 120 | S64: 60 | T64: 60 | U64: 60 | V64: 60
A65: MAS Enhancements for operational needs | F65: 25 | H65: 25 | I65: 25 | J65: 50 | K65: 50 | P65: MAS Enhancements for operational needs | Q65: 25 | S65: 25 | T65: 25 | U65: 50 | V65: 50
A66: ODS/CIS Enhancements for operational needs | F66: 25 | J66: 50 | K66: 50 | P66: ODS/CIS Enhancements for operational needs | Q66: 25 | U66: 50 | V66: 50
A67: Office IT Capital Expenditure | B67: 64 | C67: 165 | D67: 167 | E67: 270 | F67: 90 | G67: 130 | H67: 130 | I67: 80 | J67: 280 | K67: 80 | P67: Office IT Capital Expenditure | Q67: 90 | R67: 130 | S67: 130 | T67: 80 | U67: 280 | V67: 80
A69: General Plant Total | B69: =SUM(B58:B68) -> 497 | C69: 1214 | D69: 1889 | E69: 348 | F69: 634 | G69: 1675 | H69: 1180 | I69: 755 | J69: 730 | K69: 510 | P69: General Plant Total | Q69: =SUM(Q58:Q68) -> 634 | R69: 1675 | S69: 1180 | T69: 755 | U69: 730 | V69: 510
A71: Miscellaneous | B71: =4686-4408 -> 278 | C71: 262 | D71: 413 | E71: 182 | P71: Miscellaneous
A72: Total | B72: =SUM(B71,B69,B55,B41,B33) -> 4686 | C72: 16497 | D72: 11092 | E72: 10747 | F72: 11729 | G72: 13510 | H72: 11627 | I72: 12372 | J72: 12476 | K72: 10761 | P72: Total | Q72: =SUM(Q71,Q69,Q55,Q41,Q33) -> 11729 | R72: 13510 | S72: 11627 | T72: 12372 | U72: 12476 | V72: 10761
A73: Less Renewable Generation Facility Assets and Other Non Rate-Regulated Utility Assets | P73: Less Renewable Generation Facility Assets and Other Non Rate-Regulated Utility Assets
A74: Total | B74: =B72+B73 -> 4686 | C74: 16497 | D74: 11092 | E74: 10747 | F74: 11729 | G74: 13510 | H74: 11627 | I74: 12372 | J74: 12476 | K74: 10761 | P74: Total | Q74: =Q72+Q73 -> 11729 | R74: 13510 | S74: 11627 | T74: 12372 | U74: 12476 | V74: 10761
A78: Notes: | P78: Notes:
A80: 1 Please provide a breakdown of the major components of each capital project undertaken in each year. Please ensure that all projects below the materiality threshold are included in the miscellaneous line. Add more projects as required. | P80: 1 Please provide a breakdown of the major components of each capital project undertaken in each year. Please ensure that all projects below the materiality threshold are included in the miscellaneous line. Add more projects as required.
A81: 2 The applicant should group projects appropriately and avoid presentations that result in classification of significant components of the OM&A budget in the miscellaneous category. | P81: 2 The applicant should group projects appropriately and avoid presentations that result in classification of significant components of the OM&A budget in the miscellaneous category.
A87: Total From Appendix 2-BA | C87: 16497 | D87: 11092 | E87: 10747 | F87: 11729 | G87: 13509.9 | H87: 11627 | I87: 12372 | J87: 12476 | K87: 10761 | P87: Total From Appendix 2-BA | Q87: 11729 | R87: 13509.9 | S87: 11627 | T87: 12372 | U87: 12476 | V87: 10761
A88: Diff | C88: =C87-C74 -> 0 | D88: =D87-D74 -> 0 | E88: 0 | F88: 0 | G88: -0.1 | H88: 0 | I88: 0 | J88: 0 | K88: 0 | P88: Diff | Q88: =Q87-Q74 -> 0 | R88: -0.1 | S88: 0 | T88: 0 | U88: 0 | V88: 0
A102: System Access | B102: =SUM(B17:B18,B20,B22,B24,B26:B32) -> 1447 | C102: =SUM(C17:C18,C20,C22,C24,C26:C32) -> 8913 | D102: 2899 | E102: 4042 | F102: 3867 | G102: 8995 | H102: 4140 | I102: 3550 | J102: 3435 | K102: 3455 | P102: System Access | Q102: =SUM(Q17:Q18,Q20,Q22,Q24,Q26:Q32) -> 3867 | R102: 8995 | S102: 4140 | T102: 3550 | U102: 3435 | V102: 3455
A103: System Renewal | B103: =B41 -> 4637 | C103: =C41 -> 7039 | D103: 7162 | E103: 5971 | F103: 5958 | G103: 4883 | H103: 4932 | I103: 4472 | J103: 4761 | K103: 4851 | P103: System Renewal | Q103: =Q41 -> 5958 | R103: 4883 | S103: 4932 | T103: 4472 | U103: 4761 | V103: 4851
A104: System Services | B104: =B55 -> 0 | C104: =C55 -> 0 | D104: 0 | E104: 1903 | F104: 2830 | G104: 2868 | H104: 2830 | I104: 4670 | J104: 4645 | K104: 3050 | P104: System Services | Q104: =Q55 -> 2830 | R104: 2868 | S104: 2830 | T104: 4670 | U104: 4645 | V104: 3050
A105: General Plant | B105: =B69+B71 -> 775 | C105: =C69+C71 -> 1476 | D105: 2302 | E105: 530 | F105: 634 | G105: 1675 | H105: 1180 | I105: 755 | J105: 730 | K105: 510 | P105: General Plant | Q105: =Q69+Q71 -> 634 | R105: 1675 | S105: 1180 | T105: 755 | U105: 730 | V105: 510
A106: Contributions | B106: =B33-B102 -> -2173 | C106: =C33-C102 -> -931 | D106: -1271 | E106: -1699 | F106: -1560 | G106: -4911 | H106: -1455 | I106: -1075 | J106: -1095 | K106: -1105 | P106: Contributions | Q106: =Q33-Q102 -> -1560 | R106: -4911 | S106: -1455 | T106: -1075 | U106: -1095 | V106: -1105
B108: =SUM(B102:B107) -> 4686 | C108: =SUM(C102:C107) -> 16497 | D108: 11092 | E108: 10747 | F108: 11729 | G108: 13510 | H108: 11627 | I108: 12372 | J108: 12476 | K108: 10761 | Q108: =SUM(Q102:Q107) -> 11729 | R108: 13510 | S108: 11627 | T108: 12372 | U108: 12476 | V108: 10761
B110: =B108-B72 -> 0 | C110: =C108-C72 -> 0 | D110: 0 | E110: 0 | F110: 0 | G110: 0 | H110: 0 | I110: 0 | J110: 0 | K110: 0 | Q110: =Q108-Q72 -> 0 | R110: 0 | S110: 0 | T110: 0 | U110: 0 | V110: 0

Sheet App.2-AB_Capital Expenditures
S1: File Number: | U1: =EBNUMBER -> EB-2014-0101
S2: Exhibit:
S3: Tab:
S4: Schedule:
S5: Page:
S7: Date:
A9: Appendix 2-AB
A10: Table 2 - Capital Expenditure Summary from Chapter 5 Consolidated Distribution System Plan Filing Requirements
A12: First year of Forecast Period: | B12: 2015
A13: CATEGORY | B13: Historical Period (previous plan1 & actual) | Q13: Forecast Period (planned)
B14: =E14-1 -> 2010 | E14: =H14-1 -> 2011 | H14: =K14-1 -> 2012 | K14: =N14-1 -> 2013 | N14: =Q14-1 -> 2014 | Q14: =B12 -> 2015 | R14: =Q14+1 -> 2016 | S14: =R14+1 -> 2017 | T14: 2018 | U14: 2019
B15: Plan | C15: Actual | D15: Var | E15: Plan | F15: Actual | G15: Var | H15: Plan | I15: Actual | J15: Var | K15: Plan | L15: Actual | M15: Var | N15: Plan | O15: Actual2 | P15: Var
B16: $ '000 | D16: % | E16: $ '000 | G16: % | H16: $ '000 | J16: % | K16: $ '000 | M16: % | N16: $ '000 | P16: % | Q16: $ '000
A17: System Access | C17: ='App.2-AA_Capital Projects (OLD)'!B102 -> 1447 | D17: =IF(ISERROR((C17-B17)/B17),"--",(C17-B17)/B17) -> -- | F17: ='App.2-AA_Capital Projects (OLD)'!C102 -> 8913 | G17: =IF(ISERROR((F17-E17)/E17),"--",(F17-E17)/E17) -> -- | H17: 2609 | I17: ='App.2-AA_Capital Projects (OLD)'!D102 -> 2899 | J17: =IF(ISERROR((I17-H17)/H17),"--",(I17-H17)/H17) -> 0.1111536987 | L17: ='App.2-AA_Capital Projects (OLD)'!E102 -> 4042 | M17: =IF(ISERROR((L17-K17)/K17),"--",(L17-K17)/K17) -> -- | O17: ='App.2-AA_Capital Projects'!F33-O22 -> 3764 | P17: =IF(ISERROR((O17-N17)/N17),"--",(O17-N17)/N17) -> -- | Q17: ='App.2-AA_Capital Projects'!G33-Q22 -> 8595 | R17: ='App.2-AA_Capital Projects'!H33-R22 -> 3740 | S17: ='App.2-AA_Capital Projects'!I33-S22 -> 3150 | T17: ='App.2-AA_Capital Projects'!J33-T22 -> 3435 | U17: ='App.2-AA_Capital Projects'!K33-U22 -> 3455
A18: System Renewal | C18: ='App.2-AA_Capital Projects (OLD)'!B103 -> 4637 | D18: =IF(ISERROR((C18-B18)/B18),"--",(C18-B18)/B18) -> -- | F18: ='App.2-AA_Capital Projects (OLD)'!C103 -> 7039 | G18: =IF(ISERROR((F18-E18)/E18),"--",(F18-E18)/E18) -> -- | H18: 7037 | I18: ='App.2-AA_Capital Projects (OLD)'!D103 -> 7162 | J18: =IF(ISERROR((I18-H18)/H18),"--",(I18-H18)/H18) -> 0.01776325139 | L18: ='App.2-AA_Capital Projects (OLD)'!E103 -> 5971 | M18: =IF(ISERROR((L18-K18)/K18),"--",(L18-K18)/K18) -> -- | O18: ='App.2-AA_Capital Projects'!F42 -> 7098 | P18: =IF(ISERROR((O18-N18)/N18),"--",(O18-N18)/N18) -> -- | Q18: ='App.2-AA_Capital Projects'!G42 -> 5943 | R18: ='App.2-AA_Capital Projects'!H42 -> 4932 | S18: ='App.2-AA_Capital Projects'!I42 -> 4472 | T18: ='App.2-AA_Capital Projects'!J42 -> 4761 | U18: ='App.2-AA_Capital Projects'!K42 -> 4851
A19: System Service | C19: ='App.2-AA_Capital Projects (OLD)'!B104 -> 0 | D19: -- | F19: ='App.2-AA_Capital Projects (OLD)'!C104 -> 0 | G19: -- | I19: ='App.2-AA_Capital Projects (OLD)'!D104 -> 0 | J19: -- | L19: ='App.2-AA_Capital Projects (OLD)'!E104 -> 1903 | M19: -- | O19: ='App.2-AA_Capital Projects'!F59 -> 1566 | P19: -- | Q19: ='App.2-AA_Capital Projects'!G59 -> 1068 | R19: ='App.2-AA_Capital Projects'!H59 -> 1380 | S19: ='App.2-AA_Capital Projects'!I59 -> 420 | T19: ='App.2-AA_Capital Projects'!J59 -> 25145 | U19: ='App.2-AA_Capital Projects'!K59 -> 4050
A20: General Plant | C20: ='App.2-AA_Capital Projects (OLD)'!B105 -> 775 | D20: -- | F20: ='App.2-AA_Capital Projects (OLD)'!C105 -> 1476 | G20: -- | H20: 1500 | I20: ='App.2-AA_Capital Projects (OLD)'!D105 -> 2302 | J20: 0.5346666667 | L20: ='App.2-AA_Capital Projects (OLD)'!E105 -> 530 | M20: -- | O20: ='App.2-AA_Capital Projects'!F73 -> 486 | P20: -- | Q20: ='App.2-AA_Capital Projects'!G73 -> 1675 | R20: ='App.2-AA_Capital Projects'!H73 -> 1180 | S20: ='App.2-AA_Capital Projects'!I73 -> 755 | T20: ='App.2-AA_Capital Projects'!J73+'App.2-AA_Capital Projects'!J75 -> 888.7 | U20: ='App.2-AA_Capital Projects'!K73 -> 510
A21: TOTAL EXPENDITURE GROSS | B21: =SUM(B17:B20) -> 0 | C21: =SUM(C17:C20) -> 6859 | D21: -- | E21: 0 | F21: 17428 | G21: -- | H21: 11146 | I21: 12363 | J21: 0.1091871523 | K21: 0 | L21: 12446 | M21: -- | N21: 0 | O21: 12914 | P21: -- | Q21: 17281 | R21: =SUM(R17:R20) -> 11232 | S21: 8797 | T21: 34229.7 | U21: 12866
A22: Less 3rd Party Contributions | C22: ='App.2-AA_Capital Projects (OLD)'!B106 -> -2173 | D22: =IF(ISERROR((C22-B22)/B22),"--",(C22-B22)/B22) -> -- | F22: ='App.2-AA_Capital Projects (OLD)'!C106 -> -931 | G22: =IF(ISERROR((F22-E22)/E22),"--",(F22-E22)/E22) -> -- | H22: =10221-11146 -> -925 | I22: ='App.2-AA_Capital Projects (OLD)'!D106 -> -1271 | J22: =IF(ISERROR((I22-H22)/H22),"--",(I22-H22)/H22) -> 0.3740540541 | L22: ='App.2-AA_Capital Projects (OLD)'!E106 -> -1699 | M22: =IF(ISERROR((L22-K22)/K22),"--",(L22-K22)/K22) -> -- | O22: ='App.2-AA_Capital Projects'!F19+'App.2-AA_Capital Projects'!F21+'App.2-AA_Capital Projects'!F23+'App.2-AA_Capital Projects'!F25 -> -2258 | P22: =IF(ISERROR((O22-N22)/N22),"--",(O22-N22)/N22) -> -- | Q22: ='App.2-AA_Capital Projects'!G19+'App.2-AA_Capital Projects'!G21+'App.2-AA_Capital Projects'!G23+'App.2-AA_Capital Projects'!G25 -> -4911 | R22: ='App.2-AA_Capital Projects'!H19+'App.2-AA_Capital Projects'!H21+'App.2-AA_Capital Projects'!H23+'App.2-AA_Capital Projects'!H25 -> -1455 | S22: ='App.2-AA_Capital Projects'!I19+'App.2-AA_Capital Projects'!I21+'App.2-AA_Capital Projects'!I23+'App.2-AA_Capital Projects'!I25 -> -1075 | T22: ='App.2-AA_Capital Projects'!J19+'App.2-AA_Capital Projects'!J21+'App.2-AA_Capital Projects'!J23+'App.2-AA_Capital Projects'!J25 -> -1095 | U22: ='App.2-AA_Capital Projects'!K19+'App.2-AA_Capital Projects'!K21+'App.2-AA_Capital Projects'!K23+'App.2-AA_Capital Projects'!K25 -> -1105
A23: TOTAL EXPENDITURE NET | B23: =SUM(B21:B22) -> 0 | C23: =SUM(C21:C22) -> 4686 | D23: -- | E23: =SUM(E21:E22) -> 0 | F23: =SUM(F21:F22) -> 16497 | G23: -- | H23: =SUM(H21:H22) -> 10221 | I23: =SUM(I21:I22) -> 11092 | J23: 0.08521671069 | K23: =SUM(K21:K22) -> 0 | L23: =SUM(L21:L22) -> 10747 | M23: -- | N23: =SUM(N21:N22) -> 0 | O23: =SUM(O21:O22) -> 10656 | P23: -- | Q23: =SUM(Q21:Q22) -> 12370 | R23: 9777 | S23: 7722 | T23: 33134.7 | U23: 11761
A24: System O&M | C24: 1576 | D24: -- | F24: 1798 | G24: -- | H24: 2392 | I24: 2262 | J24: -0.05434782609 | L24: 2233 | M24: -- | O24: 0 | P24: -- | Q24: 0 | R24: 0 | S24: 0 | T24: 0 | U24: 0
A26: Notes to the Table:
A27: 1. Historical “previous plan” data is not required unless a plan has previously been filed
A28: 2. Indicate the number of months of 'actual' data included in the last year of the Historical Period (normally a 'bridge' year):
A30: Explanatory Notes on Variances (complete only if applicable)
A31: Notes on shifts in forecast vs. histrical budgets by category
A34: Notes on year over year Plan vs. Actual variances for Total Expenditures
A37: Notes on Plan vs. Actual variance trends for individual expenditure categories

Sheet App.2-BA1_Fix Asset Cont.CGAAP
L1: File Number: | M1: =EBNUMBER -> EB-2014-0101
L2: Exhibit:
L3: Tab:
L4: Schedule:
L5: Page:
L7: Date:
A9: Appendix 2-BA
A10: Fixed Asset Continuity Schedule - CGAAP/ASPE/USGAAP
E12: Year | F12: 2011
D14: Cost | J14: Accumulated Depreciation
A15: CCA Class | B15: OEB | C15: Description | D15: Opening Balance | E15: Additions | F15: Disposals | G15: Closing Balance | I15: Opening Balance | J15: Additions | K15: Disposals | L15: Closing Balance | M15: Net Book Value
A16: 12 | B16: 1611 | C16: Computer Software (Formally known as Account 1925) | D16: 235770.4 | E16: 395951.24 | F16: 0 | G16: =D16+E16+F16 -> 631721.64 | I16: -230849.93 | J16: -103908.28 | K16: 0 | L16: =I16+J16+K16 -> -334758.21 | M16: =G16+L16 -> 296963.43
A17: CEC | B17: 1612 | C17: Land Rights (Formally known as Account 1906) | D17: 0 | E17: 0 | F17: 0 | G17: =D17+E17+F17 -> 0 | I17: 0 | J17: 0 | K17: 0 | L17: =I17+J17+K17 -> 0 | M17: =G17+L17 -> 0 | P17: 1805 | Q17: Land | R17: 293875.47 | S17: 0 | T17: 0
A18: N/A | B18: 1805 | C18: Land | D18: 293875.47 | E18: 0 | F18: 0 | G18: =D18+E18+F18 -> 293875.47 | I18: 0 | J18: 0 | K18: 0 | L18: =I18+J18+K18 -> 0 | M18: =G18+L18 -> 293875.47 | P18: 1808 | Q18: Buildings and Fixtures | R18: 514520.26 | S18: 41469 | T18: 0
A19: 47 | B19: 1808 | C19: Buildings | D19: 570962.63 | E19: 0 | F19: 0 | G19: =D19+E19+F19 -> 570962.63 | I19: -306646.54 | J19: -10360.17 | K19: 0 | L19: =I19+J19+K19 -> -317006.71 | M19: =G19+L19 -> 253955.92 | P19: 1820 | Q19: Transformer Stn Equip. - < 50 kV | R19: 12873446.41 | S19: 3239548.07 | T19: 3326487.94
A20: 13 | B20: 1810 | C20: Leasehold Improvements | D20: 0 | E20: 0 | F20: 0 | G20: 0 | I20: 0 | J20: 0 | K20: 0 | L20: 0 | M20: 0 | P20: 1830 | Q20: Poles, Towers and Fixtures | R20: 21908330.28 | S20: 5367305.9 | T20: 922597.8984
A21: 47 | B21: 1815 | C21: Transformer Station Equipment >50 kV | D21: 0 | E21: 0 | F21: 0 | G21: 0 | I21: 0 | J21: 0 | K21: 0 | L21: 0 | M21: 0 | P21: 1835 | Q21: OH Conductors and Devices | R21: 14526270.52 | S21: 3329683.52 | T21: 196120.5512
A22: 47 | B22: 1820 | C22: Distribution Station Equipment <50 kV | D22: 12057872.4 | E22: 2744991.31 | F22: -209902.51 | G22: 14592961.2 | I22: -7760684.61 | J22: -341271.65 | K22: 209902.51 | L22: -7892053.75 | M22: 6700907.454 | P22: 1845 | Q22: UG Conductors and Devices | R22: 56244759.87 | S22: 11642614.77 | T22: 1551057.997
A23: 47 | B23: 1825 | C23: Storage Battery Equipment | D23: 0 | E23: 0 | F23: 0 | G23: 0 | I23: 0 | J23: 0 | K23: 0 | L23: 0 | M23: 0 | P23: 1850 | Q23: Line Transformers | R23: 9333673.15 | S23: 3250175.48 | T23: 136953.5887
A24: 47 | B24: 1830 | C24: Poles, Towers & Fixtures | D24: 0 | E24: 0 | F24: 0 | G24: 0 | I24: 0 | J24: 0 | K24: 0 | L24: 0 | M24: 0 | P24: 1860 | Q24: Meters | R24: 7142656.56 | S24: 777565.67 | T24: 673968.4216
A25: 47 | B25: 1835 | C25: Overhead Conductors & Devices | D25: 50225428 | E25: 3040545.46 | F25: 0 | G25: 53265973.46 | I25: -25164483.93 | J25: -1631888.43 | K25: 0 | L25: -26796372.36 | M25: 26469601.1 | P25: 1910 | Q25: Leasehold Improvements | R25: 296464.96 | S25: 124275.41 | T25: 260000
A26: 47 | B26: 1840 | C26: Underground Conduit | D26: 0 | E26: 0 | F26: 0 | G26: 0 | I26: 0 | J26: 0 | K26: 0 | L26: 0 | M26: 0 | P26: 1915 | Q26: Office Furniture and Equipment | R26: 861503.23 | S26: 600028.18 | T26: 0
A27: 47 | B27: 1845 | C27: Underground Conductors & Devices | D27: 63940851.99 | E27: 3317590.608 | F27: 0 | G27: 67258442.6 | I27: -28185193.38 | J27: -2310962.33 | K27: 0 | L27: -30496155.71 | M27: 36762286.89 | P27: 1920 | Q27: Computer Equipment - Hardware | R27: 2090183.65 | S27: 1904299.62 | T27: 154500
A28: 47 | B28: 1850 | C28: Line Transformers | D28: 15755641.63 | E28: 68951.33 | F28: 0 | G28: 15824592.96 | I28: -13564509.8 | J28: -361878.27 | K28: 0 | L28: -13926388.07 | M28: 1898204.89 | P28: 1925 | Q28: Computer Software | R28: 235770.4 | S28: 225929.46 | T28: 154500
A29: 47 | B29: 1855 | C29: Services (Overhead & Underground) | D29: 0 | E29: 0 | F29: 0 | G29: 0 | I29: 0 | J29: 0 | K29: 0 | L29: 0 | M29: 0 | P29: 1930 | Q29: Transportation Equipment | R29: 3622595.09 | S29: 2446926.04 | T29: 1040000
A30: 47 | B30: 1860 | C30: Meters | D30: 9133509.381 | E30: 0 | F30: -6485929 | G30: 2647580.381 | I30: -5615399.7 | J30: -1197416.09 | K30: 4571642 | L30: -2241173.79 | M30: 406406.5908 | P30: 1935 | Q30: Stores Equipment | R30: 38637.56 | S30: 23365.8 | T30: 0
A31: 47 | B31: 1860 | C31: Meters (Smart Meters) | D31: 0 | E31: 6780571.38 | F31: 0 | G31: 6780571.38 | I31: 0 | J31: 0 | K31: 0 | L31: 0 | M31: 6780571.38 | P31: 1940 | Q31: Tools, Shop and Garage Equip. | R31: 1977361.1 | S31: 615227.63 | T31: 96828.8
A32: N/A | B32: 1905 | C32: Land | D32: 0 | E32: 0 | F32: 0 | G32: 0 | I32: 0 | J32: 0 | K32: 0 | L32: 0 | M32: 0 | P32: 1945 | Q32: Measurement & Testing Equip. | R32: 645127 | S32: 330207.64 | T32: 0
A33: 47 | B33: 1908 | C33: Buildings & Fixtures | D33: 0 | E33: 0 | F33: 0 | G33: 0 | I33: 0 | J33: 0 | K33: 0 | L33: 0 | M33: 0 | P33: 1955 | Q33: Communication Equipment | R33: 96488.45 | S33: 96488.45 | T33: 0
A34: 13 | B34: 1910 | C34: Leasehold Improvements | D34: 296464.96 | E34: 334284.62 | F34: 0 | G34: 630749.58 | I34: -115393.38 | J34: -20313.74 | K34: 0 | L34: -135707.12 | M34: 495042.46 | P34: 1975 | Q34: Load Mgmt Controls - Utility | R34: 1021693.43 | S34: 597214.26 | T34: 107500
A35: 8 | B35: 1915 | C35: Office Furniture & Equipment (10 years) | D35: 0 | E35: 0 | F35: 0 | G35: 0 | I35: 0 | J35: 0 | K35: 0 | L35: 0 | M35: 0 | P35: 1980 | Q35: System Supervisory Equipment | R35: 293582.38 | S35: 293582.38 | T35: 0
A36: 8 | B36: 1915 | C36: Office Furniture & Equipment (5 years) | D36: 707744.88 | E36: 10957.75 | F36: 0 | G36: 718702.63 | I36: -663598.44 | J36: -13587.86 | K36: 0 | L36: -677186.3 | M36: 41516.33
A37: 10 | B37: 1920 | C37: Computer Equipment - Hardware | D37: 2074786.46 | E37: 37421.3 | F37: 0 | G37: 2112207.76 | I37: -2010840.24 | J37: -53176.65 | K37: 0 | L37: -2064016.89 | M37: 48190.87
A38: 45 | B38: 1920 | C38: Computer Equip.-Hardware(Post Mar. 22/04) | D38: 0 | E38: 0 | F38: 0 | G38: 0 | I38: 0 | J38: 0 | K38: 0 | L38: 0 | M38: 0
A39: 45.1 | B39: 1920 | C39: Computer Equip.-Hardware(Post Mar. 19/07) | D39: 0 | E39: 0 | F39: 0 | G39: 0 | I39: 0 | J39: 0 | K39: 0 | L39: 0 | M39: 0
A40: 10 | B40: 1930 | C40: Transportation Equipment | D40: 3622595.09 | E40: 585196.63 | F40: -1134957.97 | G40: 3072833.75 | I40: -3095195.04 | J40: -179914.51 | K40: 1134957.97 | L40: -2140151.58 | M40: 932682.17
A41: 8 | B41: 1935 | C41: Stores Equipment | D41: 24516 | E41: 0 | F41: 0 | G41: 24516 | I41: -23940.85 | J41: -115.02 | K41: 0 | L41: -24055.87 | M41: 460.13
A42: 8 | B42: 1940 | C42: Tools, Shop & Garage Equipment | D42: 1415479.856 | E42: 110102.2 | F42: 0 | G42: 1525582.056 | I42: -825283.62 | J42: -93568.93 | K42: 0 | L42: -918852.55 | M42: 606729.5062
A43: 8 | B43: 1945 | C43: Measurement & Testing Equipment | D43: 405788.37 | E43: 0 | F43: 0 | G43: 405788.37 | I43: -292604.61 | J43: -56592.07 | K43: 0 | L43: -349196.68 | M43: 56591.69
A44: 8 | B44: 1950 | C44: Power Operated Equipment | D44: 0 | E44: 0 | F44: 0 | G44: 0 | I44: 0 | J44: 0 | K44: 0 | L44: 0 | M44: 0
A45: 8 | B45: 1955 | C45: Communications Equipment | D45: 264585.13 | E45: 2000 | F45: 0 | G45: 266585.13 | I45: -243237.24 | J45: -9610.57 | K45: 0 | L45: -252847.81 | M45: 13737.32
A46: 8 | B46: 1955 | C46: Communication Equipment (Smart Meters) | D46: 0 | E46: 0 | F46: 0 | G46: 0 | I46: 0 | J46: 0 | K46: 0 | L46: 0 | M46: 0
A47: 8 | B47: 1960 | C47: Miscellaneous Equipment | D47: 23602.49 | E47: 0 | F47: 0 | G47: 23602.49 | I47: -11082.25 | J47: 0 | K47: 0 | L47: -11082.25 | M47: 12520.24
A48: 47 | B48: 1970 | C48: Load Management Controls Customer Premises | D48: 107034.76 | E48: 0 | F48: 0 | G48: 107034.76 | I48: -107034.72 | J48: 0 | K48: 0 | L48: -107034.72 | M48: 0.03999999999
A49: 47 | B49: 1975 | C49: Load Management Controls Utility Premises | D49: 1021693.43 | E49: 0 | F49: 0 | G49: 1021693.43 | I49: -724890.64 | J49: -42447.92 | K49: 0 | L49: -767338.56 | M49: 254354.87
A50: 47 | B50: 1980 | C50: System Supervisor Equipment | D50: 293582.38 | E50: 0 | F50: 0 | G50: 293582.38 | I50: -293583.1 | J50: 0 | K50: 0 | L50: -293583.1 | M50: -0.72
A51: 47 | B51: 1985 | C51: Miscellaneous Fixed Assets | D51: 0 | E51: 0 | F51: 0 | G51: 0 | I51: 0 | J51: 0 | K51: 0 | L51: 0 | M51: 0
A52: 47 | B52: 1990 | C52: Other Tangible Property | D52: 0 | E52: 0 | F52: 0 | G52: 0 | I52: 0 | J52: 0 | K52: 0 | L52: 0 | M52: 0
A53: 47 | B53: 1995 | C53: Contributions & Grants | D53: -28454845.96 | E53: -930790.87 | F53: 0 | G53: -29385636.83 | I53: 6344389.17 | J53: 1156809.65 | K53: 0 | L53: 7501198.82 | M53: -21884438.01
B54: etc. | G54: 0 | L54: 0 | M54: 0
G55: 0 | L55: 0 | M55: 0
C56: Sub-Total | D56: =SUM(D16:D55) -> 134016939.8 | E56: =SUM(E16:E55) -> 16497772.96 | F56: -7830789.48 | G56: 142683923.2 | I56: =SUM(I16:I55) -> -82890062.85 | J56: =SUM(J16:J55) -> -5270202.84 | K56: 5916502.48 | L56: -82243763.21 | M56: 60440160.02
C57: Less Socialized Renewable Energy Generation Investments (input as negative) | G57: =D57+E57+F57 -> 0 | L57: =I57+J57+K57 -> 0 | M57: =G57+L57 -> 0
C58: Less Other Non Rate-Regulated Utility Assets (input as negative) | G58: 0 | L58: =I58+J58+K58 -> 0 | M58: 0
C59: Total PP&E | D59: =SUM(D56:D58) -> 134016939.8 | E59: =SUM(E56:E58) -> 16497772.96 | F59: -7830789.48 | G59: 142683923.2 | I59: =SUM(I56:I58) -> -82890062.85 | J59: =SUM(J56:J58) -> -5270202.84 | K59: =SUM(K56:K58) -> 5916502.48 | L59: =SUM(L56:L58) -> -82243763.21 | M59: =SUM(M56:M58) -> 60440160.02
I61: Less: Fully Allocated Depreciation
A62: 10 | C62: Transportation | I62: Transportation
A63: 8 | C63: Stores Equipment | I63: Stores Equipment
I64: Net Depreciation | K64: =J59-K62-K63 -> -5270202.84
A66: Notes:
A68: 1 | B68: Tables in the format outlined above covering all fixed asset accounts should be submitted for the Test Year, Bridge Year and all relevant historical years. At a minimum , the applicant must provide data for the earlier of: 1) all historical years back to its last rebasing; or 2) at least three years of historical actuals, in addition to Bridge Year and Test Year forecasts.
A71: 2 | B71: The "CCA Class" for fixed assets should agree with the CCA Class used for tax purposes in Tax Returns. Fixed Assets sub-components may be used where the underlying asset components are classified under multiple CCA Classes for tax purposes. If an applicant uses any different classes from those shown in the table, an explanation should be provided. (also see note 3 below).
A74: 3 | B74: The table may need to be customized for a utility's asset categories or for any new asset accounts announced or authorized by the Board.
A76: 4 | B76: The additions column (F) must not include construction work in progress (CWIP).

Sheet App.2-BA2_Fx Asst Cnt.MIFRS 11
N1: File Number: | O1: =EBNUMBER -> EB-2014-0101
N2: Exhibit:
N3: Tab:
N4: Schedule:
N5: Page:
N7: Date:
A9: Appendix 2-BA
A10: Fixed Asset Continuity Schedule - MIFRS
E12: Year | F12: 2011
D14: Cost | K14: Accumulated Depreciation
A15: CCA Class | B15: OEB | C15: Description | D15: Opening Balance | E15: Additions | F15: Disposals | G15: MIFRS Adjustments | H15: Closing Balance | J15: Opening Balance | K15: Additions | L15: Disposals | M15: MIFRS Adjustments | N15: Closing Balance | O15: Net Book Value
A16: 12 | B16: 1611 | C16: Computer Software (Formally known as Account 1925) | D16: 235770.4 | E16: 395951.24 | F16: 0 | G16: 83968.19 | H16: =D16+E16+F16+G16 -> 715689.83 | J16: -230849.93 | K16: -103908.28 | L16: 0 | M16: -31121.07 | N16: =J16+K16+L16+M16 -> -365879.28 | O16: =H16+N16 -> 349810.55
A17: CEC | B17: 1612 | C17: Land Rights (Formally known as Account 1906) | D17: 0 | E17: 0 | F17: 0 | G17: 0 | H17: =D17+E17+F17+G17 -> 0 | J17: 0 | K17: 0 | L17: 0 | M17: 0 | N17: =J17+K17+L17+M17 -> 0 | O17: 0
A18: N/A | B18: 1805 | C18: Land | D18: 293875.47 | E18: 0 | F18: 0 | G18: 0 | H18: 293875.47 | J18: 0 | K18: 0 | L18: 0 | M18: 0 | N18: 0 | O18: 293875.47
A19: 47 | B19: 1808 | C19: Buildings | D19: 570962.63 | E19: 0 | F19: 0 | G19: 138449.84 | H19: 709412.47 | J19: -306646.54 | K19: -10360.17 | L19: 0 | M19: -42631.53 | N19: -359638.24 | O19: 349774.23
A20: 13 | B20: 1810 | C20: Leasehold Improvements | D20: 0 | E20: 0 | F20: 0 | G20: 0 | H20: 0 | J20: 0 | K20: 0 | L20: 0 | M20: 0 | N20: 0 | O20: 0
A21: 47 | B21: 1815 | C21: Transformer Station Equipment >50 kV | D21: 0 | E21: 0 | F21: 0 | G21: 0 | H21: 0 | J21: 0 | K21: 0 | L21: 0 | M21: 0 | N21: 0 | O21: 0
A22: 47 | B22: 1820 | C22: Distribution Station Equipment <50 kV | D22: 12057872.4 | E22: 2744991.31 | F22: -209902.51 | G22: 1058005.422 | H22: 15650966.63 | J22: -7760684.61 | K22: -341271.65 | L22: 209902.51 | M22: -43885.28 | N22: -7935939.03 | O22: 7715027.596
A23: 47 | B23: 1825 | C23: Storage Battery Equipment | D23: 0 | E23: 0 | F23: 0 | G23: 0 | H23: 0 | J23: 0 | K23: 0 | L23: 0 | M23: 0 | N23: 0 | O23: 0
A24: 47 | B24: 1830 | C24: Poles, Towers & Fixtures | D24: 0 | E24: 0 | F24: 0 | G24: 29012569.32 | H24: 29012569.32 | J24: 0 | K24: 0 | L24: 0 | M24: -13619314.63 | N24: -13619314.63 | O24: 15393254.69
A25: 47 | B25: 1835 | C25: Overhead Conductors & Devices | D25: 50225428 | E25: 3040545.46 | F25: 0 | G25: -35384274.33 | H25: 17881699.13 | J25: -25164483.93 | K25: -1631888.43 | L25: 0 | M25: 17698650.59 | N25: -9097721.77 | O25: 8783977.361
A26: 47 | B26: 1840 | C26: Underground Conduit | D26: 0 | E26: 0 | F26: 0 | G26: 0 | H26: 0 | J26: 0 | K26: 0 | L26: 0 | M26: 0 | N26: 0 | O26: 0
A27: 47 | B27: 1845 | C27: Underground Conductors & Devices | D27: 63940851.99 | E27: 3317590.608 | F27: 0 | G27: -29198053.99 | H27: 38060388.61 | J27: -28185193.38 | K27: -2310962.33 | L27: 0 | M27: 14012503.16 | N27: -16483652.55 | O27: 21576736.06
A28: 47 | B28: 1850 | C28: Line Transformers | D28: 15755641.63 | E28: 68951.33 | F28: 0 | G28: 32952250.46 | H28: 48776843.42 | J28: -13564509.8 | K28: -361878.27 | L28: 0 | M28: -14872043.99 | N28: -28798432.06 | O28: 19978411.36
A29: 47 | B29: 1855 | C29: Services (Overhead & Underground) | D29: 0 | E29: 0 | F29: 0 | G29: 0 | H29: 0 | J29: 0 | K29: 0 | L29: 0 | M29: 0 | N29: 0 | O29: 0
A30: 47 | B30: 1860 | C30: Meters | D30: 9133509.381 | E30: 0 | F30: -6485929 | G30: 0 | H30: 2647580.381 | J30: -5615399.7 | K30: -1197416.09 | L30: 4571642 | M30: -242119.52 | N30: -2483293.31 | O30: 164287.0708
A31: 47 | B31: 1860 | C31: Meters (Smart Meters) | D31: 0 | E31: 6780571.38 | F31: 0 | G31: 190564.3631 | H31: 6971135.743 | J31: 0 | K31: 0 | L31: 0 | M31: 0 | N31: 0 | O31: 6971135.743
A32: N/A | B32: 1905 | C32: Land | D32: 0 | E32: 0 | F32: 0 | G32: 0 | H32: 0 | J32: 0 | K32: 0 | L32: 0 | M32: 0 | N32: 0 | O32: 0
A33: 47 | B33: 1908 | C33: Buildings & Fixtures | D33: 0 | E33: 0 | F33: 0 | G33: 0 | H33: 0 | J33: 0 | K33: 0 | L33: 0 | M33: 0 | N33: 0 | O33: 0
A34: 13 | B34: 1910 | C34: Leasehold Improvements | D34: 296464.96 | E34: 334284.62 | F34: 0 | G34: 58717.98 | H34: 689467.56 | J34: -115393.38 | K34: -20313.74 | L34: 0 | M34: -70147.35 | N34: -205854.47 | O34: 483613.09
A35: 8 | B35: 1915 | C35: Office Furniture & Equipment (10 years) | D35: 0 | E35: 0 | F35: 0 | G35: 0 | H35: 0 | J35: 0 | K35: 0 | L35: 0 | M35: 0 | N35: 0 | O35: 0
A36: 8 | B36: 1915 | C36: Office Furniture & Equipment (5 years) | D36: 707744.88 | E36: 10957.75 | F36: 0 | G36: -33806.2 | H36: 684896.43 | J36: -663598.44 | K36: -13587.86 | L36: 0 | M36: 33280.58 | N36: -643905.72 | O36: 40990.71
A37: 10 | B37: 1920 | C37: Computer Equipment - Hardware | D37: 2074786.46 | E37: 37421.3 | F37: 0 | G37: 55746.4 | H37: 2167954.16 | J37: -2010840.24 | K37: -53176.65 | L37: 0 | M37: 0 | N37: -2064016.89 | O37: 103937.27
A38: 45 | B38: 1920 | C38: Computer Equip.-Hardware(Post Mar. 22/04) | D38: 0 | E38: 0 | F38: 0 | G38: 0 | H38: 0 | J38: 0 | K38: 0 | L38: 0 | M38: -57524.15 | N38: -57524.15 | O38: -57524.15
A39: 45.1 | B39: 1920 | C39: Computer Equip.-Hardware(Post Mar. 19/07) | D39: 0 | E39: 0 | F39: 0 | G39: 0 | H39: 0 | J39: 0 | K39: 0 | L39: 0 | M39: 0 | N39: 0 | O39: 0
A40: 10 | B40: 1930 | C40: Transportation Equipment | D40: 3622595.09 | E40: 585196.63 | F40: -1134957.97 | G40: 0 | H40: 3072833.75 | J40: -3095195.04 | K40: -179914.51 | L40: 1134957.97 | M40: 0 | N40: -2140151.58 | O40: 932682.17
A41: 8 | B41: 1935 | C41: Stores Equipment | D41: 24516 | E41: 0 | F41: 0 | G41: 0 | H41: 24516 | J41: -23940.85 | K41: -115.02 | L41: 0 | M41: -172.14 | N41: -24228.01 | O41: 287.99
A42: 8 | B42: 1940 | C42: Tools, Shop & Garage Equipment | D42: 1415479.856 | E42: 110102.2 | F42: 0 | G42: 650562.4719 | H42: 2176144.528 | J42: -825283.62 | K42: -93568.93 | L42: 0 | M42: -570309.11 | N42: -1489161.66 | O42: 686982.8682
A43: 8 | B43: 1945 | C43: Measurement & Testing Equipment | D43: 405788.37 | E43: 0 | F43: 0 | G43: 18771.51 | H43: 424559.88 | J43: -292604.61 | K43: -56592.07 | L43: 0 | M43: 80589.88 | N43: -268606.8 | O43: 155953.08
A44: 8 | B44: 1950 | C44: Power Operated Equipment | D44: 0 | E44: 0 | F44: 0 | G44: 0 | H44: 0 | J44: 0 | K44: 0 | L44: 0 | M44: 0 | N44: 0 | O44: 0
A45: 8 | B45: 1955 | C45: Communications Equipment | D45: 264585.13 | E45: 2000 | F45: 0 | G45: 0 | H45: 266585.13 | J45: -243237.24 | K45: -9610.57 | L45: 0 | M45: 1449.45 | N45: -251398.36 | O45: 15186.77
A46: 8 | B46: 1955 | C46: Communication Equipment (Smart Meters) | D46: 0 | E46: 0 | F46: 0 | G46: 0 | H46: 0 | J46: 0 | K46: 0 | L46: 0 | M46: 0 | N46: 0 | O46: 0
A47: 8 | B47: 1960 | C47: Miscellaneous Equipment | D47: 23602.49 | E47: 0 | F47: 0 | G47: 71964.28 | H47: 95566.77 | J47: -11082.25 | K47: 0 | L47: 0 | M47: -48675.75 | N47: -59758 | O47: 35808.77
A48: 47 | B48: 1970 | C48: Load Management Controls Customer Premises | D48: 107034.76 | E48: 0 | F48: 0 | G48: 0 | H48: 107034.76 | J48: -107034.72 | K48: 0 | L48: 0 | M48: 70871.35 | N48: -36163.37 | O48: 70871.39
A49: 47 | B49: 1975 | C49: Load Management Controls Utility Premises | D49: 1021693.43 | E49: 0 | F49: 0 | G49: 0 | H49: 1021693.43 | J49: -724890.64 | K49: -42447.92 | L49: 0 | M49: 25001.42 | N49: -742337.14 | O49: 279356.29
A50: 47 | B50: 1980 | C50: System Supervisor Equipment | D50: 293582.38 | E50: 0 | F50: 0 | G50: 0 | H50: 293582.38 | J50: -293583.1 | K50: 0 | L50: 0 | M50: 0 | N50: -293583.1 | O50: -0.72
A51: 47 | B51: 1985 | C51: Miscellaneous Fixed Assets | D51: 0 | E51: 0 | F51: 0 | G51: 0 | H51: 0 | J51: 0 | K51: 0 | L51: 0 | M51: 0 | N51: 0 | O51: 0
A52: 47 | B52: 1990 | C52: Other Tangible Property | D52: 0 | E52: 0 | F52: 0 | G52: 0 | H52: 0 | J52: 0 | K52: 0 | L52: 0 | M52: 0 | N52: 0 | O52: 0
A53: 47 | B53: 1995 | C53: Contributions & Grants | D53: -28454845.96 | E53: -930790.87 | F53: 0 | G53: 27930.29 | H53: -29357706.54 | J53: 6344389.17 | K53: 1156809.65 | L53: 0 | M53: -534474.902 | N53: 6966723.918 | O53: -22390982.62
B54: etc. | H54: 0 | N54: 0 | O54: 0
H55: 0 | N55: 0 | O55: 0
C56: Sub-Total | D56: =SUM(D16:D55) -> 134016939.8 | E56: =SUM(E16:E55) -> 16497772.96 | F56: -7830789.48 | G56: -296633.994 | H56: 142387289.2 | J56: =SUM(J16:J55) -> -82890062.85 | K56: =SUM(K16:K55) -> -5270202.84 | L56: 5916502.48 | M56: 1789927.008 | N56: -80453836.2 | O56: 61933453.04
C57: Less Socialized Renewable Energy Generation Investments (input as negative) | H57: =D57+E57+F57+G57 -> 0 | N57: =J57+K57+L57+M57 -> 0 | O57: =H57+N57 -> 0
C58: Less Other Non Rate-Regulated Utility Assets (input as negative) | H58: 0 | N58: 0 | O58: =H58+N58 -> 0
C59: Total PP&E | D59: =SUM(D56:D58) -> 134016939.8 | E59: =SUM(E56:E58) -> 16497772.96 | F59: -7830789.48 | G59: -296633.994 | H59: 142387289.2 | J59: =SUM(J56:J58) -> -82890062.85 | K59: -5270202.84 | L59: 5916502.48 | M59: 1789927.008 | N59: -80453836.2 | O59: 61933453.04
C60: Depreciation Expense adj. from gain or loss on the retirement of assets (pool of like assets)
C61: Total | K61: =K59+K60 -> -5270202.84
J63: Less: Fully Allocated Depreciation
A64: 10 | C64: Transportation | J64: Transportation
A65: 8 | C65: Stores Equipment | J65: Stores Equipment
J66: Net Depreciation | L66: =K61-L64-L65 -> -5270202.84
A68: Notes:
A70: 1 | B70: Tables in the format outlined above covering all fixed asset accounts should be submitted for the Test Year, Bridge Year and all relevant historical years. At a minimum , the applicant must provide data for the earlier of: 1) all historical years back to its last rebasing; or 2) at least three years of historical actuals, in addition to Bridge Year and Test Year forecasts.
A73: 2 | B73: The "CCA Class" for fixed assets should agree with the CCA Class used for tax purposes in Tax Returns. Fixed Assets sub-components may be used where the underlying asset components are classified under multiple CCA Classes for tax purposes. If an applicant uses any different classes from those shown in the table, an explanation should be provided. (also see note 3 below).
A76: 3 | B76: The table may need to be customized for a utility's asset categories or for any new asset accounts announced or authorized by the Board.
A78: 4 | B78: The additions column (F) must not include construction work in progress (CWIP).

Sheet App.2-BA2_Fx Asst Cnt.MIFRS 12
L1: File Number: | M1: =EBNUMBER -> EB-2014-0101
L2: Exhibit:
L3: Tab:
L4: Schedule:
L5: Page:
L7: Date:
A9: Appendix 2-BA
A10: Fixed Asset Continuity Schedule - MIFRS
E12: Year | F12: 2012
D14: Cost | J14: Accumulated Depreciation
A15: CCA Class | B15: OEB | C15: Description | D15: Opening Balance | E15: Additions | F15: Disposals | G15: Closing Balance | I15: Opening Balance | J15: Additions | K15: Disposals | L15: Closing Balance | M15: Net Book Value
A16: 12 | B16: 1611 | C16: Computer Software (Formally known as Account 1925) | D16: 715689.83 | E16: 459114.56 | F16: 0 | G16: =D16+E16+F16 -> 1174804.39 | I16: -365879.28 | J16: -206524.86 | K16: 0 | L16: =I16+J16+K16 -> -572404.14 | M16: =G16+L16 -> 602400.25
A17: CEC | B17: 1612 | C17: Land Rights (Formally known as Account 1906) | D17: 0 | E17: 0 | F17: 0 | G17: =D17+E17+F17 -> 0 | I17: 0 | J17: 0 | K17: 0 | L17: 0 | M17: 0
A18: N/A | B18: 1805 | C18: Land | D18: 293875.47 | E18: 0 | F18: 0 | G18: =D18+E18+F18 -> 293875.47 | I18: 0 | J18: 0 | K18: 0 | L18: 0 | M18: 293875.47
A19: 47 | B19: 1808 | C19: Buildings | D19: 709412.47 | E19: 0 | F19: 0 | G19: =D19+E19+F19 -> 709412.47 | I19: -359638.24 | J19: -14235.79 | K19: 0 | L19: -373874.03 | M19: 335538.44
A20: 13 | B20: 1810 | C20: Leasehold Improvements | D20: 0 | E20: 0 | F20: 0 | G20: 0 | I20: 0 | J20: 0 | K20: 0 | L20: 0 | M20: 0
A21: 47 | B21: 1815 | C21: Transformer Station Equipment >50 kV | D21: 0 | E21: 0 | F21: 0 | G21: 0 | I21: 0 | J21: 0 | K21: 0 | L21: 0 | M21: 0
A22: 47 | B22: 1820 | C22: Distribution Station Equipment <50 kV | D22: 15650966.63 | E22: 4461904.858 | F22: -940990.08 | G22: 19171881.4 | I22: -7935939.03 | J22: -304485.78 | K22: 716211.1 | L22: -7524213.71 | M22: 11647667.69
A23: 47 | B23: 1825 | C23: Storage Battery Equipment | D23: 0 | E23: 0 | F23: 0 | G23: 0 | I23: 0 | J23: 0 | K23: 0 | L23: 0 | M23: 0
A24: 47 | B24: 1830 | C24: Poles, Towers & Fixtures | D24: 29012569.32 | E24: 1593280.539 | F24: 0 | G24: 30605849.86 | I24: -13619314.63 | J24: -404082.41 | K24: 0 | L24: -14023397.04 | M24: 16582452.82
A25: 47 | B25: 1835 | C25: Overhead Conductors & Devices | D25: 17881699.13 | E25: 806544.5317 | F25: 0 | G25: 18688243.66 | I25: -9097721.77 | J25: -210506.64 | K25: 0 | L25: -9308228.41 | M25: 9380015.253
A26: 47 | B26: 1840 | C26: Underground Conduit | D26: 0 | E26: 0 | F26: 0 | G26: 0 | I26: 0 | J26: 0 | K26: 0 | L26: 0 | M26: 0
A27: 47 | B27: 1845 | C27: Underground Conductors & Devices | D27: 38060388.61 | E27: 878002.6092 | F27: 0 | G27: 38938391.22 | I27: -16483652.55 | J27: -674672.54 | K27: 0 | L27: -17158325.09 | M27: 21780066.13
A28: 47 | B28: 1850 | C28: Line Transformers | D28: 48776843.42 | E28: 1865329.111 | F28: -208100 | G28: 50434072.53 | I28: -28798432.06 | J28: -665651.5 | K28: 208100 | L28: -29255983.56 | M28: 21178088.97
A29: 47 | B29: 1855 | C29: Services (Overhead & Underground) | D29: 0 | E29: 0 | F29: 0 | G29: 0 | I29: 0 | J29: 0 | K29: 0 | L29: 0 | M29: 0
A30: 47 | B30: 1860 | C30: Meters | D30: 2647580.381 | E30: 0 | F30: -3090.49 | G30: 2644489.891 | I30: -2483293.31 | J30: -712727.4 | K30: 1434.28 | L30: -3194586.43 | M30: -550096.5392
A31: 47 | B31: 1860 | C31: Meters (Smart Meters) | D31: 6971135.743 | E31: 247975.0569 | F31: 0 | G31: 7219110.8 | I31: 0 | J31: 0 | K31: 0 | L31: 0 | M31: 7219110.8
A32: N/A | B32: 1905 | C32: Land | D32: 0 | E32: 0 | F32: 0 | G32: 0 | I32: 0 | J32: 0 | K32: 0 | L32: 0 | M32: 0
A33: 47 | B33: 1908 | C33: Buildings & Fixtures | D33: 0 | E33: 0 | F33: 0 | G33: 0 | I33: 0 | J33: 0 | K33: 0 | L33: 0 | M33: 0
A34: 13 | B34: 1910 | C34: Leasehold Improvements | D34: 689467.56 | E34: 200045.87 | F34: 0 | G34: 889513.43 | I34: -205854.47 | J34: -170614.86 | K34: 0 | L34: -376469.33 | M34: 513044.1
A35: 8 | B35: 1915 | C35: Office Furniture & Equipment (10 years) | D35: 0 | E35: 0 | F35: 0 | G35: 0 | I35: 0 | J35: 0 | K35: 0 | L35: 0 | M35: 0
A36: 8 | B36: 1915 | C36: Office Furniture & Equipment (5 years) | D36: 684896.43 | E36: 6911.36 | F36: 0 | G36: 691807.79 | I36: -643905.72 | J36: -8753.87 | K36: 0 | L36: -652659.59 | M36: 39148.2
A37: 10 | B37: 1920 | C37: Computer Equipment - Hardware | D37: 2167954.16 | E37: 0 | F37: 0 | G37: 2167954.16 | I37: -2064016.89 | J37: 0 | K37: 0 | L37: -2064016.89 | M37: 103937.27
A38: 45 | B38: 1920 | C38: Computer Equip.-Hardware(Post Mar. 22/04) | D38: 0 | E38: 129775.53 | F38: 0 | G38: 129775.53 | I38: -57524.15 | J38: -17430.49 | K38: 0 | L38: -74954.64 | M38: 54820.89
A39: 45.1 | B39: 1920 | C39: Computer Equip.-Hardware(Post Mar. 19/07) | D39: 0 | E39: 0 | F39: 0 | G39: 0 | I39: 0 | J39: 0 | K39: 0 | L39: 0 | M39: 0
A40: 10 | B40: 1930 | C40: Transportation Equipment | D40: 3072833.75 | E40: 1405317.19 | F40: -143212.83 | G40: 4334938.11 | I40: -2140151.58 | J40: -171211.19 | K40: 143212.83 | L40: -2168149.94 | M40: 2166788.17
A41: 8 | B41: 1935 | C41: Stores Equipment | D41: 24516 | E41: 0 | F41: 0 | G41: 24516 | I41: -24228.01 | J41: -287.94 | K41: 0 | L41: -24515.95 | M41: 0.05
A42: 8 | B42: 1940 | C42: Tools, Shop & Garage Equipment | D42: 2176144.528 | E42: 84727.88809 | F42: 0 | G42: 2260872.416 | I42: -1489161.66 | J42: -217058.73 | K42: 0 | L42: -1706220.39 | M42: 554652.0262
A43: 8 | B43: 1945 | C43: Measurement & Testing Equipment | D43: 424559.88 | E43: 14905.12 | F43: 0 | G43: 439465 | I43: -268606.8 | J43: -13474.77 | K43: 0 | L43: -282081.57 | M43: 157383.43
A44: 8 | B44: 1950 | C44: Power Operated Equipment | D44: 0 | E44: 0 | F44: 0 | G44: 0 | I44: 0 | J44: 0 | K44: 0 | L44: 0 | M44: 0
A45: 8 | B45: 1955 | C45: Communications Equipment | D45: 266585.13 | E45: 147267.44 | F45: 0 | G45: 413852.57 | I45: -251398.36 | J45: -12724.15 | K45: 0 | L45: -264122.51 | M45: 149730.06
A46: 8 | B46: 1955 | C46: Communication Equipment (Smart Meters) | D46: 0 | E46: 0 | F46: 0 | G46: 0 | I46: 0 | J46: 0 | K46: 0 | L46: 0 | M46: 0
A47: 8 | B47: 1960 | C47: Miscellaneous Equipment | D47: 95566.77 | E47: 62078.24 | F47: 0 | G47: 157645.01 | I47: -59758 | J47: -19352.59 | K47: 0 | L47: -79110.59 | M47: 78534.42
A48: 47 | B48: 1970 | C48: Load Management Controls Customer Premises | D48: 107034.76 | E48: 0 | F48: 0 | G48: 107034.76 | I48: -36163.37 | J48: 0 | K48: 0 | L48: -36163.37 | M48: 70871.39
A49: 47 | B49: 1975 | C49: Load Management Controls Utility Premises | D49: 1021693.43 | E49: 0 | F49: 0 | G49: 1021693.43 | I49: -742337.14 | J49: -17494.29 | K49: 0 | L49: -759831.43 | M49: 261862
A50: 47 | B50: 1980 | C50: System Supervisor Equipment | D50: 293582.38 | E50: 0 | F50: 0 | G50: 293582.38 | I50: -293583.1 | J50: 0 | K50: 0 | L50: -293583.1 | M50: -0.72
A51: 47 | B51: 1985 | C51: Miscellaneous Fixed Assets | D51: 0 | E51: 0 | F51: 0 | G51: 0 | I51: 0 | J51: 0 | K51: 0 | L51: 0 | M51: 0
A52: 47 | B52: 1990 | C52: Other Tangible Property | D52: 0 | E52: 0 | F52: 0 | G52: 0 | I52: 0 | J52: 0 | K52: 0 | L52: 0 | M52: 0
A53: 47 | B53: 1995 | C53: Contributions & Grants | D53: -29357706.54 | E53: -1271166.46 | F53: 0 | G53: -30628873 | I53: 6966723.918 | J53: 572038.41 | K53: -3176 | L53: 7535586.328 | M53: -23093286.67
B54: etc. | G54: 0 | L54: 0 | M54: 0
G55: 0 | L55: 0 | M55: 0
C56: Sub-Total | D56: =SUM(D16:D55) -> 142387289.2 | E56: =SUM(E16:E55) -> 11092013.44 | F56: -1295393.4 | G56: 152183909.3 | I56: =SUM(I16:I55) -> -80453836.2 | J56: =SUM(J16:J55) -> -3269251.39 | K56: 1065782.21 | L56: -82657305.38 | M56: 69526603.9
C57: Less Socialized Renewable Energy Generation Investments (input as negative) | G57: =D57+E57+F57 -> 0 | L57: =I57+J57+K57 -> 0 | M57: =G57+L57 -> 0
C58: Less Other Non Rate-Regulated Utility Assets (input as negative) | G58: 0 | L58: =I58+J58+K58 -> 0 | M58: =G58+L58 -> 0
C59: Total PP&E | D59: =SUM(D56:D58) -> 142387289.2 | E59: =SUM(E56:E58) -> 11092013.44 | F59: -1295393.4 | G59: 152183909.3 | I59: =SUM(I56:I58) -> -80453836.2 | J59: -3269251.39 | K59: 1065782.21 | L59: -82657305.38 | M59: 69526603.9
C60: Depreciation Expense adj. from gain or loss on the retirement of assets (pool of like assets)
C61: Total | J61: =J59+J60 -> -3269251.39
I63: Less: Fully Allocated Depreciation
A64: 10 | C64: Transportation | I64: Transportation
A65: 8 | C65: Stores Equipment | I65: Stores Equipment
I66: Net Depreciation | K66: =J61-K64-K65 -> -3269251.39
A68: Notes:
A70: 1 | B70: Tables in the format outlined above covering all fixed asset accounts should be submitted for the Test Year, Bridge Year and all relevant historical years. At a minimum , the applicant must provide data for the earlier of: 1) all historical years back to its last rebasing; or 2) at least three years of historical actuals, in addition to Bridge Year and Test Year forecasts.
A73: 2 | B73: The "CCA Class" for fixed assets should agree with the CCA Class used for tax purposes in Tax Returns. Fixed Assets sub-components may be used where the underlying asset components are classified under multiple CCA Classes for tax purposes. If an applicant uses any different classes from those shown in the table, an explanation should be provided. (also see note 3 below).
A76: 3 | B76: The table may need to be customized for a utility's asset categories or for any new asset accounts announced or authorized by the Board.
A78: 4 | B78: The additions column (F) must not include construction work in progress (CWIP).

Sheet App.2-BA2_Fx Asst Cnt.MIFRS 13
L1: File Number: | M1: =EBNUMBER -> EB-2014-0101
L2: Exhibit:
L3: Tab:
L4: Schedule:
L5: Page:
L7: Date:
A9: Appendix 2-BA
A10: Fixed Asset Continuity Schedule - MIFRS
E12: Year | F12: 2013
D14: Cost | J14: Accumulated Depreciation
A15: CCA Class | B15: OEB | C15: Description | D15: Opening Balance | E15: Additions | F15: Disposals | G15: Closing Balance | I15: Opening Balance | J15: Additions | K15: Disposals | L15: Closing Balance | M15: Net Book Value
A16: 12 | B16: 1611 | C16: Computer Software (Formally known as Account 1925) | D16: 1174804.39 | E16: 377372 | F16: 0 | G16: =D16+E16+F16 -> 1552176.39 | I16: -572404.14 | J16: -366622 | K16: 0 | L16: =I16+J16+K16 -> -939026.14 | M16: =G16+L16 -> 613150.25
A17: CEC | B17: 1612 | C17: Land Rights (Formally known as Account 1906) | D17: 0 | E17: 0 | F17: 0 | G17: =D17+E17+F17 -> 0 | I17: 0 | J17: 0 | K17: 0 | L17: 0 | M17: 0
A18: N/A | B18: 1805 | C18: Land | D18: 293875.47 | E18: 0 | F18: 0 | G18: =D18+E18+F18 -> 293875.47 | I18: 0 | J18: 0 | K18: 0 | L18: 0 | M18: 293875.47
A19: 47 | B19: 1808 | C19: Buildings | D19: 709412.47 | E19: 0 | F19: 0 | G19: =D19+E19+F19 -> 709412.47 | I19: -373874.03 | J19: -14197 | K19: 0 | L19: -388071.03 | M19: 321341.44
A20: 13 | B20: 1810 | C20: Leasehold Improvements | D20: 0 | E20: 0 | F20: 0 | G20: 0 | I20: 0 | J20: 0 | K20: 0 | L20: 0 | M20: 0
A21: 47 | B21: 1815 | C21: Transformer Station Equipment >50 kV | D21: 0 | E21: 0 | F21: 0 | G21: 0 | I21: 0 | J21: 0 | K21: 0 | L21: 0 | M21: 0
A22: 47 | B22: 1820 | C22: Distribution Station Equipment <50 kV | D22: 19171881.4 | E22: 3998 | F22: -200000 | G22: 18975879.4 | I22: -7524213.71 | J22: -322548 | K22: 186014.5599 | L22: -7660747.15 | M22: 11315132.25
A23: 47 | B23: 1825 | C23: Storage Battery Equipment | D23: 0 | E23: 0 | F23: 0 | G23: 0 | I23: 0 | J23: 0 | K23: 0 | L23: 0 | M23: 0
A24: 47 | B24: 1830 | C24: Poles, Towers & Fixtures | D24: 30605849.86 | E24: 4590574 | F24: -750000 | G24: 34446423.86 | I24: -14023397.04 | J24: -481215 | K24: 697554.5996 | L24: -13807057.44 | M24: 20639366.42
A25: 47 | B25: 1835 | C25: Overhead Conductors & Devices | D25: 18688243.66 | E25: 1587521 | F25: -956064 | G25: 19319700.66 | I25: -9308228.41 | J25: -268031 | K25: 889209.121 | L25: -8687050.289 | M25: 10632650.37
A26: 47 | B26: 1840 | C26: Underground Conduit | D26: 0 | E26: 0 | F26: 0 | G26: 0 | I26: 0 | J26: 0 | K26: 0 | L26: 0 | M26: 0
A27: 47 | B27: 1845 | C27: Underground Conductors & Devices | D27: 38938391.22 | E27: 2500792 | F27: -350000 | G27: 41089183.22 | I27: -17158325.09 | J27: -803428 | K27: 325525.4798 | L27: -17636227.61 | M27: 23452955.61
A28: 47 | B28: 1850 | C28: Line Transformers | D28: 50434072.53 | E28: 2370264 | F28: -800000 | G28: 52004336.53 | I28: -29255983.56 | J28: -738775 | K28: 744058.2396 | L28: -29250700.32 | M28: 22753636.21
A29: 47 | B29: 1855 | C29: Services (Overhead & Underground) | D29: 0 | E29: 0 | F29: 0 | G29: 0 | I29: 0 | J29: 0 | K29: 0 | L29: 0 | M29: 0
A30: 47 | B30: 1860 | C30: Meters | D30: 2644489.891 | E30: 57202.6 | F30: 0 | G30: 2701692.491 | I30: -3194586.43 | J30: 0 | K30: 0 | L30: -3194586.43 | M30: -492893.9392
A31: 47 | B31: 1860 | C31: Meters (Smart Meters) | D31: 7219110.8 | E31: 514823.4 | F31: 0 | G31: 7733934.2 | I31: 0 | J31: -747565 | K31: 0 | L31: -747565 | M31: 6986369.2
A32: N/A | B32: 1905 | C32: Land | D32: 0 | E32: 0 | F32: 0 | G32: 0 | I32: 0 | J32: 0 | K32: 0 | L32: 0 | M32: 0
A33: 47 | B33: 1908 | C33: Buildings & Fixtures | D33: 0 | E33: 0 | F33: 0 | G33: 0 | I33: 0 | J33: 0 | K33: 0 | L33: 0 | M33: 0
A34: 13 | B34: 1910 | C34: Leasehold Improvements | D34: 889513.43 | E34: 18265 | F34: 0 | G34: 907778.43 | I34: -376469.33 | J34: -153806 | K34: 0 | L34: -530275.33 | M34: 377503.1
A35: 8 | B35: 1915 | C35: Office Furniture & Equipment (10 years) | D35: 0 | E35: 0 | F35: 0 | G35: 0 | I35: 0 | J35: 0 | K35: 0 | L35: 0 | M35: 0
A36: 8 | B36: 1915 | C36: Office Furniture & Equipment (5 years) | D36: 691807.79 | E36: 31131 | F36: 0 | G36: 722938.79 | I36: -652659.59 | J36: -9661 | K36: 0 | L36: -662320.59 | M36: 60618.2
A37: 10 | B37: 1920 | C37: Computer Equipment - Hardware | D37: 2167954.16 | E37: 241584 | F37: 0 | G37: 2409538.16 | I37: -2064016.89 | J37: -86794 | K37: 0 | L37: -2150810.89 | M37: 258727.27
A38: 45 | B38: 1920 | C38: Computer Equip.-Hardware(Post Mar. 22/04) | D38: 129775.53 | E38: 0 | F38: 0 | G38: 129775.53 | I38: -74954.64 | J38: 0 | K38: 0 | L38: -74954.64 | M38: 54820.89
A39: 45.1 | B39: 1920 | C39: Computer Equip.-Hardware(Post Mar. 19/07) | D39: 0 | E39: 0 | F39: 0 | G39: 0 | I39: 0 | J39: 0 | K39: 0 | L39: 0 | M39: 0
A40: 10 | B40: 1930 | C40: Transportation Equipment | D40: 4334938.11 | E40: 17542 | F40: -249145 | G40: 4103335.11 | I40: -2168149.94 | J40: -274279 | K40: 244700 | L40: -2197728.94 | M40: 1905606.17
A41: 8 | B41: 1935 | C41: Stores Equipment | D41: 24516 | E41: 0 | F41: 0 | G41: 24516 | I41: -24515.95 | J41: 0 | K41: 0 | L41: -24515.95 | M41: 0.05
A42: 8 | B42: 1940 | C42: Tools, Shop & Garage Equipment | D42: 2260872.416 | E42: 112253 | F42: 0 | G42: 2373125.416 | I42: -1706220.39 | J42: -200143 | K42: 0 | L42: -1906363.39 | M42: 466762.0262
A43: 8 | B43: 1945 | C43: Measurement & Testing Equipment | D43: 439465 | E43: 19169 | F43: 0 | G43: 458634 | I43: -282081.57 | J43: -14792 | K43: 0 | L43: -296873.57 | M43: 161760.43
A44: 8 | B44: 1950 | C44: Power Operated Equipment | D44: 0 | E44: 0 | F44: 0 | G44: 0 | I44: 0 | J44: 0 | K44: 0 | L44: 0 | M44: 0
A45: 8 | B45: 1955 | C45: Communications Equipment | D45: 413852.57 | E45: 4280 | F45: 0 | G45: 418132.57 | I45: -264122.51 | J45: -20482 | K45: 0 | L45: -284604.51 | M45: 133528.06
A46: 8 | B46: 1955 | C46: Communication Equipment (Smart Meters) | D46: 0 | E46: 0 | F46: 0 | G46: 0 | I46: 0 | J46: 0 | K46: 0 | L46: 0 | M46: 0
A47: 8 | B47: 1960 | C47: Miscellaneous Equipment | D47: 157645.01 | E47: 0 | F47: 0 | G47: 157645.01 | I47: -79110.59 | J47: -19187 | K47: 0 | L47: -98297.59 | M47: 59347.42
A48: 47 | B48: 1970 | C48: Load Management Controls Customer Premises | D48: 107034.76 | E48: 0 | F48: 0 | G48: 107034.76 | I48: -36163.37 | J48: 0 | K48: 0 | L48: -36163.37 | M48: 70871.39
A49: 47 | B49: 1975 | C49: Load Management Controls Utility Premises | D49: 1021693.43 | E49: 0 | F49: 0 | G49: 1021693.43 | I49: -759831.43 | J49: -17447 | K49: 0 | L49: -777278.43 | M49: 244415
A50: 47 | B50: 1980 | C50: System Supervisor Equipment | D50: 293582.38 | E50: 0 | F50: 0 | G50: 293582.38 | I50: -293583.1 | J50: 0 | K50: 0 | L50: -293583.1 | M50: -0.72
A51: 47 | B51: 1985 | C51: Miscellaneous Fixed Assets | D51: 0 | E51: 0 | F51: 0 | G51: 0 | I51: 0 | J51: 0 | K51: 0 | L51: 0 | M51: 0
A52: 47 | B52: 1990 | C52: Other Tangible Property | D52: 0 | E52: 0 | F52: 0 | G52: 0 | I52: 0 | J52: 0 | K52: 0 | L52: 0 | M52: 0
A53: 47 | B53: 1995 | C53: Contributions & Grants | D53: -30628873 | E53: -1699267 | F53: 0 | G53: -32328140 | I53: 7535586.328 | J53: 687172 | K53: -3484 | L53: 8219274.328 | M53: -24108865.67
B54: etc. | G54: 0 | L54: 0 | M54: 0
G55: 0 | L55: 0 | M55: 0
C56: Sub-Total | D56: =SUM(D16:D55) -> 152183909.3 | E56: =SUM(E16:E55) -> 10747504 | F56: -3305209 | G56: 159626204.3 | I56: =SUM(I16:I55) -> -82657305.38 | J56: =SUM(J16:J55) -> -3851800 | K56: 3083578 | L56: -83425527.38 | M56: 76200676.9
C57: Less Socialized Renewable Energy Generation Investments (input as negative) | G57: =D57+E57+F57 -> 0 | L57: =I57+J57+K57 -> 0 | M57: =G57+L57 -> 0
C58: Less Other Non Rate-Regulated Utility Assets (input as negative) | G58: 0 | L58: =I58+J58+K58 -> 0 | M58: =G58+L58 -> 0
C59: Total PP&E | D59: =SUM(D56:D58) -> 152183909.3 | E59: =SUM(E56:E58) -> 10747504 | F59: -3305209 | G59: 159626204.3 | I59: =SUM(I56:I58) -> -82657305.38 | J59: -3851800 | K59: 3083578 | L59: -83425527.38 | M59: 76200676.9
C60: Depreciation Expense adj. from gain or loss on the retirement of assets (pool of like assets)
C61: Total | J61: =J59+J60 -> -3851800
I63: Less: Fully Allocated Depreciation
A64: 10 | C64: Transportation | I64: Transportation
A65: 8 | C65: Stores Equipment | I65: Stores Equipment
I66: Net Depreciation | K66: =J61-K64-K65 -> -3851800
A68: Notes:
A70: 1 | B70: Tables in the format outlined above covering all fixed asset accounts should be submitted for the Test Year, Bridge Year and all relevant historical years. At a minimum , the applicant must provide data for the earlier of: 1) all historical years back to its last rebasing; or 2) at least three years of historical actuals, in addition to Bridge Year and Test Year forecasts.
A73: 2 | B73: The "CCA Class" for fixed assets should agree with the CCA Class used for tax purposes in Tax Returns. Fixed Assets sub-components may be used where the underlying asset components are classified under multiple CCA Classes for tax purposes. If an applicant uses any different classes from those shown in the table, an explanation should be provided. (also see note 3 below).
A76: 3 | B76: The table may need to be customized for a utility's asset categories or for any new asset accounts announced or authorized by the Board.
A78: 4 | B78: The additions column (F) must not include construction work in progress (CWIP).

Sheet App.2-BA2_Fx Asst Cnt.MIFRS 14
L1: File Number: | M1: =EBNUMBER -> EB-2014-0101
L2: Exhibit:
L3: Tab:
L4: Schedule:
L5: Page:
L7: Date:
A9: Appendix 2-BA
A10: Fixed Asset Continuity Schedule - MIFRS
E12: Year | F12: 2014
D14: Cost | J14: Accumulated Depreciation
A15: CCA Class | B15: OEB | C15: Description | D15: Opening Balance | E15: Additions | F15: Disposals | G15: Closing Balance | I15: Opening Balance | J15: Additions | K15: Disposals | L15: Closing Balance | M15: Net Book Value
A16: 12 | B16: 1611 | C16: Computer Software (Formally known as Account 1925) | D16: 1552176.39 | E16: 83000.92141 | F16: 0 | G16: =D16+E16+F16 -> 1635177.311 | I16: -939026.14 | J16: -371456 | K16: 0 | L16: =I16+J16+K16 -> -1310482.14 | M16: =G16+L16 -> 324695.1714
A17: CEC | B17: 1612 | C17: Land Rights (Formally known as Account 1906) | D17: 0 | E17: 0 | F17: 0 | G17: =D17+E17+F17 -> 0 | I17: 0 | J17: 0 | K17: 0 | L17: 0 | M17: 0
A18: N/A | B18: 1805 | C18: Land | D18: 293875.47 | E18: 0 | F18: 0 | G18: =D18+E18+F18 -> 293875.47 | I18: 0 | J18: 0 | K18: 0 | L18: 0 | M18: 293875.47
A19: 47 | B19: 1808 | C19: Buildings | D19: 709412.47 | E19: 47648 | F19: 0 | G19: =D19+E19+F19 -> 757060.47 | I19: -388071.03 | J19: -14581.13806 | K19: 0 | L19: -402652.1681 | M19: 354408.3019
A20: 13 | B20: 1810 | C20: Leasehold Improvements | D20: 0 | E20: 0 | F20: 0 | G20: 0 | I20: 0 | J20: 0 | K20: 0 | L20: 0 | M20: 0
A21: 47 | B21: 1815 | C21: Transformer Station Equipment >50 kV | D21: 0 | E21: 0 | F21: 0 | G21: 0 | I21: 0 | J21: 0 | K21: 0 | L21: 0 | M21: 0
A22: 47 | B22: 1820 | C22: Distribution Station Equipment <50 kV | D22: 18975879.4 | E22: 1758038 | F22: -511147 | G22: 20222770.4 | I22: -7660747.15 | J22: -93542 | K22: 509796 | L22: -7244493.15 | M22: 12978277.25
A23: 47 | B23: 1825 | C23: Storage Battery Equipment | D23: 0 | E23: 0 | F23: 0 | G23: 0 | I23: 0 | J23: 0 | K23: 0 | L23: 0 | M23: 0
A24: 47 | B24: 1830 | C24: Poles, Towers & Fixtures | D24: 34446423.86 | E24: 3370745.005 | F24: -750583 | G24: 37066585.86 | I24: -13807057.44 | J24: -699349 | K24: 742658 | L24: -13763748.44 | M24: 23302837.42
A25: 47 | B25: 1835 | C25: Overhead Conductors & Devices | D25: 19319700.66 | E25: 1793381 | F25: -940102 | G25: 20172979.66 | I25: -8687050.289 | J25: -313560 | K25: 940102 | L25: -8060508.289 | M25: 12112471.37
A26: 47 | B26: 1840 | C26: Underground Conduit | D26: 0 | E26: 0 | F26: 0 | G26: 0 | I26: 0 | J26: 0 | K26: 0 | L26: 0 | M26: 0
A27: 47 | B27: 1845 | C27: Underground Conductors & Devices | D27: 41089183.22 | E27: 2239875.76 | F27: -745884 | G27: 42583174.98 | I27: -17636227.61 | J27: -1056879 | K27: 695501 | L27: -17997605.61 | M27: 24585569.37
A28: 47 | B28: 1850 | C28: Line Transformers | D28: 52004336.53 | E28: 2916583.863 | F28: -117014 | G28: 54803906.39 | I28: -29250700.32 | J28: -863264 | K28: 96619 | L28: -30017345.32 | M28: 24786561.07
A29: 47 | B29: 1855 | C29: Services (Overhead & Underground) | D29: 0 | E29: 0 | F29: 0 | G29: 0 | I29: 0 | J29: 0 | K29: 0 | L29: 0 | M29: 0
A30: 47 | B30: 1860 | C30: Meters | D30: 2701692.491 | E30: 558725.1658 | F30: 0 | G30: 3260417.657 | I30: -3194586.43 | J30: -756435 | K30: 0 | L30: -3951021.43 | M30: -690603.7734
A31: 47 | B31: 1860 | C31: Meters (Smart Meters) | D31: 7733934.2 | E31: 0 | F31: 0 | G31: 7733934.2 | I31: -747565 | J31: 0 | K31: 0 | L31: -747565 | M31: 6986369.2
A32: N/A | B32: 1905 | C32: Land | D32: 0 | E32: 0 | F32: 0 | G32: 0 | I32: 0 | J32: 0 | K32: 0 | L32: 0 | M32: 0
A33: 47 | B33: 1908 | C33: Buildings & Fixtures | D33: 0 | E33: 0 | F33: 0 | G33: 0 | I33: 0 | J33: 0 | K33: 0 | L33: 0 | M33: 0
A34: 13 | B34: 1910 | C34: Leasehold Improvements | D34: 907778.43 | E34: 27481.9493 | F34: 0 | G34: 935260.3793 | I34: -530275.33 | J34: -118599.3249 | K34: 0 | L34: -648874.6549 | M34: 286385.7244
A35: 8 | B35: 1915 | C35: Office Furniture & Equipment (10 years) | D35: 0 | E35: 0 | F35: 0 | G35: 0 | I35: 0 | J35: 0 | K35: 0 | L35: 0 | M35: 0
A36: 8 | B36: 1915 | C36: Office Furniture & Equipment (5 years) | D36: 722938.79 | E36: 0.4238736548 | F36: 0 | G36: 722939.2139 | I36: -662320.59 | J36: -18523 | K36: 0 | L36: -680843.59 | M36: 42095.62387
A37: 10 | B37: 1920 | C37: Computer Equipment - Hardware | D37: 2409538.16 | E37: 62473.25754 | F37: 0 | G37: 2472011.418 | I37: -2150810.89 | J37: -112997 | K37: 0 | L37: -2263807.89 | M37: 208203.5275
A38: 45 | B38: 1920 | C38: Computer Equip.-Hardware(Post Mar. 22/04) | D38: 129775.53 | E38: 0 | F38: 0 | G38: 129775.53 | I38: -74954.64 | J38: 0 | K38: 0 | L38: -74954.64 | M38: 54820.89
A39: 45.1 | B39: 1920 | C39: Computer Equip.-Hardware(Post Mar. 19/07) | D39: 0 | E39: 0 | F39: 0 | G39: 0 | I39: 0 | J39: 0 | K39: 0 | L39: 0 | M39: 0
A40: 10 | B40: 1930 | C40: Transportation Equipment | D40: 4103335.11 | E40: 84704.96643 | F40: 0 | G40: 4188040.076 | I40: -2197728.94 | J40: -250138 | K40: 0 | L40: -2447866.94 | M40: 1740173.136
A41: 8 | B41: 1935 | C41: Stores Equipment | D41: 24516 | E41: 0 | F41: 0 | G41: 24516 | I41: -24515.95 | J41: 0 | K41: 0 | L41: -24515.95 | M41: 0.05
A42: 8 | B42: 1940 | C42: Tools, Shop & Garage Equipment | D42: 2373125.416 | E42: 25397.03135 | F42: 0 | G42: 2398522.448 | I42: -1906363.39 | J42: -139605 | K42: 0 | L42: -2045968.39 | M42: 352554.0576
A43: 8 | B43: 1945 | C43: Measurement & Testing Equipment | D43: 458634 | E43: 51669.77138 | F43: 0 | G43: 510303.7714 | I43: -296873.57 | J43: -22064 | K43: 0 | L43: -318937.57 | M43: 191366.2014
A44: 8 | B44: 1950 | C44: Power Operated Equipment | D44: 0 | E44: 0 | F44: 0 | G44: 0 | I44: 0 | J44: 0 | K44: 0 | L44: 0 | M44: 0
A45: 8 | B45: 1955 | C45: Communications Equipment | D45: 418132.57 | E45: 0 | F45: 0 | G45: 418132.57 | I45: -284604.51 | J45: -15855.4 | K45: 0 | L45: -300459.91 | M45: 117672.66
A46: 8 | B46: 1955 | C46: Communication Equipment (Smart Meters) | D46: 0 | E46: 0 | F46: 0 | G46: 0 | I46: 0 | J46: 0 | K46: 0 | L46: 0 | M46: 0
A47: 8 | B47: 1960 | C47: Miscellaneous Equipment | D47: 157645.01 | E47: 4746 | F47: 0 | G47: 162391.01 | I47: -98297.59 | J47: -1991 | K47: 0 | L47: -100288.59 | M47: 62102.42
A48: 47 | B48: 1970 | C48: Load Management Controls Customer Premises | D48: 107034.76 | E48: 0 | F48: 0 | G48: 107034.76 | I48: -36163.37 | J48: -70871 | K48: 0 | L48: -107034.37 | M48: 0.3899999996
A49: 47 | B49: 1975 | C49: Load Management Controls Utility Premises | D49: 1021693.43 | E49: 0 | F49: 0 | G49: 1021693.43 | I49: -777278.43 | J49: -17446.5 | K49: 0 | L49: -794724.93 | M49: 226968.5
A50: 47 | B50: 1980 | C50: System Supervisor Equipment | D50: 293582.38 | E50: 0 | F50: 0 | G50: 293582.38 | I50: -293583.1 | J50: 0 | K50: 0 | L50: -293583.1 | M50: -0.72
A51: 47 | B51: 1985 | C51: Miscellaneous Fixed Assets | D51: 0 | E51: 0 | F51: 0 | G51: 0 | I51: 0 | J51: 0 | K51: 0 | L51: 0 | M51: 0
A52: 47 | B52: 1990 | C52: Other Tangible Property | D52: 0 | E52: 0 | F52: 0 | G52: 0 | I52: 0 | J52: 0 | K52: 0 | L52: 0 | M52: 0
A53: 47 | B53: 1995 | C53: Contributions & Grants | D53: -32328140 | E53: -2367193.115 | F53: 152785 | G53: -34542548.12 | I53: 8219274.328 | J53: 995356 | K53: -259532 | L53: =I53+J53+K53+L80 -> 8955098.328 | M53: -25587449.79
B54: etc. | G54: 0 | L54: 0 | M54: 0
G55: 0 | L55: 0 | M55: 0
C56: Sub-Total | D56: =SUM(D16:D55) -> 159626204.3 | E56: =SUM(E16:E55) -> 10657278 | F56: -2911945 | G56: 167371537.3 | I56: =SUM(I16:I55) -> -83425527.38 | J56: =SUM(J16:J55) -> -3941800.363 | K56: 2725144 | L56: -84642183.74 | M56: 82729353.54
C57: Less Socialized Renewable Energy Generation Investments (input as negative) | G57: =D57+E57+F57 -> 0 | L57: =I57+J57+K57 -> 0 | M57: =G57+L57 -> 0
C58: Less Other Non Rate-Regulated Utility Assets (input as negative) | G58: 0 | L58: =I58+J58+K58 -> 0 | M58: =G58+L58 -> 0
C59: Total PP&E | D59: =SUM(D56:D58) -> 159626204.3 | E59: =SUM(E56:E58) -> 10657278 | F59: -2911945 | G59: 167371537.3 | I59: =SUM(I56:I58) -> -83425527.38 | J59: -3941800.363 | K59: 2725144 | L59: -84642183.74 | M59: 82729353.54
C60: Depreciation Expense adj. from gain or loss on the retirement of assets (pool of like assets)
C61: Total | J61: =J59+J60 -> -3941800.363
I63: Less: Fully Allocated Depreciation
A64: 10 | C64: Transportation | I64: Transportation
A65: 8 | C65: Stores Equipment | I65: Stores Equipment
I66: Net Depreciation | K66: =J61-K64-K65 -> -3941800.363
A68: Notes:
A70: 1 | B70: Tables in the format outlined above covering all fixed asset accounts should be submitted for the Test Year, Bridge Year and all relevant historical years. At a minimum , the applicant must provide data for the earlier of: 1) all historical years back to its last rebasing; or 2) at least three years of historical actuals, in addition to Bridge Year and Test Year forecasts.
A73: 2 | B73: The "CCA Class" for fixed assets should agree with the CCA Class used for tax purposes in Tax Returns. Fixed Assets sub-components may be used where the underlying asset components are classified under multiple CCA Classes for tax purposes. If an applicant uses any different classes from those shown in the table, an explanation should be provided. (also see note 3 below).
A76: 3 | B76: The table may need to be customized for a utility's asset categories or for any new asset accounts announced or authorized by the Board.
A78: 4 | B78: The additions column (F) must not include construction work in progress (CWIP).
G80: Adj to Accumulated Depn from Depn Study result (Acct 1995) | L80: =-144920+144920 -> 0

Sheet App.2-BA2_Fx Asst Cnt.MIFRS 15
L1: File Number: | M1: =EBNUMBER -> EB-2014-0101
L2: Exhibit:
L3: Tab:
L4: Schedule:
L5: Page:
L7: Date:
A9: Appendix 2-BA
A10: Fixed Asset Continuity Schedule - MIFRS
E12: Year | F12: 2015
D14: Cost | J14: Accumulated Depreciation
A15: CCA Class | B15: OEB | C15: Description | D15: Opening Balance | E15: Additions | F15: Disposals | G15: Closing Balance | I15: Opening Balance | J15: Additions | K15: Disposals | L15: Closing Balance | M15: Net Book Value
A16: 12 | B16: 1611 | C16: Computer Software (Formally known as Account 1925) | D16: 1635177.311 | E16: 739564.8648 | F16: -974.5222244 | G16: =D16+E16+F16 -> 2373767.654 | I16: -1310482.14 | J16: -433162.0708 | K16: 487.2611122 | L16: =I16+J16+K16 -> -1743156.95 | M16: =G16+L16 -> 630610.7043
A17: CEC | B17: 1612 | C17: Land Rights (Formally known as Account 1906) | D17: 0 | E17: 0 | F17: 0 | G17: =D17+E17+F17 -> 0 | I17: 0 | J17: 0 | K17: 0 | L17: 0 | M17: 0
A18: N/A | B18: 1805 | C18: Land | D18: 135152.47 | E18: 0 | F18: 0 | G18: =D18+E18+F18 -> 135152.47 | I18: 0 | J18: 0 | K18: 0 | L18: 0 | M18: 135152.47
A19: 47 | B19: 1808 | C19: Buildings | D19: 757060.47 | E19: 0 | F19: 0 | G19: =D19+E19+F19 -> 757060.47 | I19: -402652.1681 | J19: -14196.88 | K19: 0 | L19: -416849.0481 | M19: 340211.4219
A20: 13 | B20: 1810 | C20: Leasehold Improvements | D20: 0 | E20: 0 | F20: 0 | G20: 0 | I20: 0 | J20: 0 | K20: 0 | L20: 0 | M20: 0
A21: 47 | B21: 1815 | C21: Transformer Station Equipment >50 kV | D21: 0 | E21: 0 | F21: 0 | G21: 0 | I21: 0 | J21: 0 | K21: 0 | L21: 0 | M21: 0
A22: 47 | B22: 1820 | C22: Distribution Station Equipment <50 kV | D22: 20222770.4 | E22: 1127523.16 | F22: -79664.68609 | G22: 21270628.88 | I22: -7244493.15 | J22: -448511.6829 | K22: 79004.29114 | L22: -7614000.542 | M22: 13656628.34
A23: 47 | B23: 1825 | C23: Storage Battery Equipment | D23: 0 | E23: 0 | F23: 0 | G23: 0 | I23: 0 | J23: 0 | K23: 0 | L23: 0 | M23: 0
A24: 47 | B24: 1830 | C24: Poles, Towers & Fixtures | D24: 37066585.86 | E24: 6350261.53 | F24: -1278748.655 | G24: 42138098.74 | I24: -13763748.44 | J24: -654584.1164 | K24: 1126765.392 | L24: -13291567.16 | M24: 28846531.58
A25: 47 | B25: 1835 | C25: Overhead Conductors & Devices | D25: 20172979.66 | E25: 3156836.193 | F25: -623025.7183 | G25: 22706790.14 | I25: -8060508.289 | J25: -370083.6415 | K25: 542534.9606 | L25: -7888056.97 | M25: 14818733.17
A26: 47 | B26: 1840 | C26: Underground Conduit | D26: 0 | E26: 0 | F26: 0 | G26: 0 | I26: 0 | J26: 0 | K26: 0 | L26: 0 | M26: 0
A27: 47 | B27: 1845 | C27: Underground Conductors & Devices | D27: 42583174.98 | E27: 3484015.273 | F27: -667534.2195 | G27: 45399656.03 | I27: -17997605.61 | J27: -836426.7936 | K27: 576960.6413 | L27: -18257071.76 | M27: 27142584.27
A28: 47 | B28: 1850 | C28: Line Transformers | D28: 54803906.39 | E28: 685864.8489 | F28: -165724.7063 | G28: 55324046.54 | I28: -30264403.32 | J28: -786720.4886 | K28: 142980.744 | L28: -30908143.07 | M28: 24415903.47
A29: 47 | B29: 1855 | C29: Services (Overhead & Underground) | D29: 0 | E29: 0 | F29: 0 | G29: 0 | I29: 0 | J29: 0 | K29: 0 | L29: 0 | M29: 0
A30: 47 | B30: 1860 | C30: Meters | D30: 3260417.657 | E30: 612932.0749 | F30: -94125.55099 | G30: 3779224.181 | I30: -3951021.43 | J30: -805133.7265 | K30: 47519.35759 | L30: -4708635.799 | M30: -929411.6183
A31: 47 | B31: 1860 | C31: Meters (Smart Meters) | D31: 7733934.2 | E31: 0 | F31: 0 | G31: 7733934.2 | I31: -747565 | J31: 0 | K31: 0 | L31: -747565 | M31: 6986369.2
A32: N/A | B32: 1905 | C32: Land | D32: 0 | E32: 0 | F32: 0 | G32: 0 | I32: 0 | J32: 0 | K32: 0 | L32: 0 | M32: 0
A33: 47 | B33: 1908 | C33: Buildings & Fixtures | D33: 0 | E33: 0 | F33: 0 | G33: 0 | I33: 0 | J33: 0 | K33: 0 | L33: 0 | M33: 0
A34: 13 | B34: 1910 | C34: Leasehold Improvements | D34: 935260.3793 | E34: 247500 | F34: 0 | G34: 1182760.379 | I34: -648874.6549 | J34: -171269.1 | K34: 0 | L34: -820143.7549 | M34: 362616.6244
A35: 8 | B35: 1915 | C35: Office Furniture & Equipment (10 years) | D35: 0 | E35: 0 | F35: 0 | G35: 0 | I35: 0 | J35: 0 | K35: 0 | L35: 0 | M35: 0
A36: 8 | B36: 1915 | C36: Office Furniture & Equipment (5 years) | D36: 722939.2139 | E36: 27500 | F36: 0 | G36: 750439.2139 | I36: -680843.59 | J36: -9433.9 | K36: 0 | L36: -690277.49 | M36: 60161.72387
A37: 10 | B37: 1920 | C37: Computer Equipment - Hardware | D37: 2472011.418 | E37: 266511.4614 | F37: -1334.182257 | G37: 2737188.697 | I37: -2263807.89 | J37: -180849.4127 | K37: 667.0911287 | L37: -2443990.212 | M37: 293198.4851
A38: 45 | B38: 1920 | C38: Computer Equip.-Hardware(Post Mar. 22/04) | D38: 129775.53 | E38: 0 | F38: 0 | G38: 129775.53 | I38: -74954.64 | J38: 0 | K38: 0 | L38: -74954.64 | M38: 54820.89
A39: 45.1 | B39: 1920 | C39: Computer Equip.-Hardware(Post Mar. 19/07) | D39: 0 | E39: 0 | F39: 0 | G39: 0 | I39: 0 | J39: 0 | K39: 0 | L39: 0 | M39: 0
A40: 10 | B40: 1930 | C40: Transportation Equipment | D40: 4188040.076 | E40: 420000 | F40: 0 | G40: 4608040.076 | I40: -2447866.94 | J40: -293862.7433 | K40: 0 | L40: -2741729.683 | M40: 1866310.393
A41: 8 | B41: 1935 | C41: Stores Equipment | D41: 24516 | E41: 0 | F41: 0 | G41: 24516 | I41: -24515.95 | J41: 0 | K41: 0 | L41: -24515.95 | M41: 0.05
A42: 8 | B42: 1940 | C42: Tools, Shop & Garage Equipment | D42: 2398522.448 | E42: 153506.2824 | F42: -14391.81 | G42: 2537636.92 | I42: -2045968.39 | J42: -152650.8453 | K42: 12187.76887 | L42: -2186431.466 | M42: 351205.4535
A43: 8 | B43: 1945 | C43: Measurement & Testing Equipment | D43: 510303.7714 | E43: 8884.312658 | F43: -336.8170959 | G43: 518851.2669 | I43: -318937.57 | J43: -17564.17606 | K43: 306.8777985 | L43: -336194.8683 | M43: 182656.3987
A44: 8 | B44: 1950 | C44: Power Operated Equipment | D44: 0 | E44: 0 | F44: 0 | G44: 0 | I44: 0 | J44: 0 | K44: 0 | L44: 0 | M44: 0
A45: 8 | B45: 1955 | C45: Communications Equipment | D45: 418132.57 | E45: 0 | F45: 0 | G45: 418132.57 | I45: -300459.91 | J45: -15854.4 | K45: 0 | L45: -316314.31 | M45: 101818.26
A46: 8 | B46: 1955 | C46: Communication Equipment (Smart Meters) | D46: 0 | E46: 0 | F46: 0 | G46: 0 | I46: 0 | J46: 0 | K46: 0 | L46: 0 | M46: 0
A47: 8 | B47: 1960 | C47: Miscellaneous Equipment | D47: 162391.01 | E47: 0 | F47: 0 | G47: 162391.01 | I47: -100288.59 | J47: -12756.89 | K47: 0 | L47: -113045.48 | M47: 49345.53
A48: 47 | B48: 1970 | C48: Load Management Controls Customer Premises | D48: 107034.76 | E48: 0 | F48: 0 | G48: 107034.76 | I48: -107034.37 | J48: 0 | K48: 0 | L48: -107034.37 | M48: 0.3899999996
A49: 47 | B49: 1975 | C49: Load Management Controls Utility Premises | D49: 1021693.43 | E49: 0 | F49: 0 | G49: 1021693.43 | I49: -794724.93 | J49: -58017.05528 | K49: 0 | L49: -852741.9853 | M49: 168951.4447
A50: 47 | B50: 1980 | C50: System Supervisor Equipment | D50: 293582.38 | E50: 0 | F50: 0 | G50: 293582.38 | I50: -293583.1 | J50: 0 | K50: 0 | L50: -293583.1 | M50: -0.72
A51: 47 | B51: 1985 | C51: Miscellaneous Fixed Assets | D51: 0 | E51: 0 | F51: 0 | G51: 0 | I51: 0 | J51: 0 | K51: 0 | L51: 0 | M51: 0
A52: 47 | B52: 1990 | C52: Other Tangible Property | D52: 0 | E52: 0 | F52: 0 | G52: 0 | I52: 0 | J52: 0 | K52: 0 | L52: 0 | M52: 0
A53: 47 | B53: 1995 | C53: Contributions & Grants | D53: -34542548.12 | E53: -4911000 | F53: 0 | G53: -39453548.12 | I53: 8955098.328 | J53: 825341.8485 | K53: 0 | L53: 9780440.177 | M53: -29673107.94
B54: etc. | G54: 0 | L54: 0 | M54: 0
G55: 0 | L55: 0 | M55: 0
C56: Sub-Total | D56: =SUM(D16:D55) -> 167212814.3 | E56: =SUM(E16:E55) -> 12369900 | F56: -2925860.868 | G56: 176656853.4 | I56: =SUM(I16:I55) -> -84889241.74 | J56: =SUM(J16:J55) -> -4435736.074 | K56: 2529414.386 | L56: -86795563.43 | M56: 89861289.98
C57: Less Socialized Renewable Energy Generation Investments (input as negative) | G57: =D57+E57+F57 -> 0 | L57: =I57+J57+K57 -> 0 | M57: =G57+L57 -> 0
C58: Less Other Non Rate-Regulated Utility Assets (input as negative) | G58: 0 | L58: =I58+J58+K58 -> 0 | M58: =G58+L58 -> 0
C59: Total PP&E | D59: =SUM(D56:D58) -> 167212814.3 | E59: =SUM(E56:E58) -> 12369900 | F59: -2925860.868 | G59: 176656853.4 | I59: =SUM(I56:I58) -> -84889241.74 | J59: -4435736.074 | K59: 2529414.386 | L59: -86795563.43 | M59: 89861289.98
C60: Depreciation Expense adj. from gain or loss on the retirement of assets (pool of like assets)
C61: Total | J61: =J59+J60 -> -4435736.074
I63: Less: Fully Allocated Depreciation
A64: 10 | C64: Transportation | I64: Transportation
A65: 8 | C65: Stores Equipment | I65: Stores Equipment
I66: Net Depreciation | K66: =J61-K64-K65 -> -4435736.074
A68: Notes:
A70: 1 | B70: Tables in the format outlined above covering all fixed asset accounts should be submitted for the Test Year, Bridge Year and all relevant historical years. At a minimum , the applicant must provide data for the earlier of: 1) all historical years back to its last rebasing; or 2) at least three years of historical actuals, in addition to Bridge Year and Test Year forecasts.
A73: 2 | B73: The "CCA Class" for fixed assets should agree with the CCA Class used for tax purposes in Tax Returns. Fixed Assets sub-components may be used where the underlying asset components are classified under multiple CCA Classes for tax purposes. If an applicant uses any different classes from those shown in the table, an explanation should be provided. (also see note 3 below).
A76: 3 | B76: The table may need to be customized for a utility's asset categories or for any new asset accounts announced or authorized by the Board.
A78: 4 | B78: The additions column (F) must not include construction work in progress (CWIP).

Sheet App.2-BA2_Fx Asst Cnt.MIFRS 16
L1: File Number: | M1: =EBNUMBER -> EB-2014-0101
L2: Exhibit:
L3: Tab:
L4: Schedule:
L5: Page:
L7: Date:
A9: Appendix 2-BA
A10: Fixed Asset Continuity Schedule - MIFRS
E12: Year | F12: 2016
D14: Cost | J14: Accumulated Depreciation
A15: CCA Class | B15: OEB | C15: Description | D15: Opening Balance | E15: Additions | F15: Disposals | G15: Closing Balance | I15: Opening Balance | J15: Additions | K15: Disposals | L15: Closing Balance | M15: Net Book Value
A16: 12 | B16: 1611 | C16: Computer Software (Formally known as Account 1925) | D16: 2373767.654 | E16: 445025.9459 | F16: 0 | G16: =D16+E16+F16 -> 2818793.6 | I16: -1743156.95 | J16: -502319.3026 | K16: 0 | L16: =I16+J16+K16 -> -2245476.252 | M16: =G16+L16 -> 573317.3477
A17: CEC | B17: 1612 | C17: Land Rights (Formally known as Account 1906) | D17: 0 | E17: 0 | F17: 0 | G17: =D17+E17+F17 -> 0 | I17: 0 | J17: 0 | K17: 0 | L17: 0 | M17: 0
A18: N/A | B18: 1805 | C18: Land | D18: 135152.47 | E18: 0 | F18: 0 | G18: =D18+E18+F18 -> 135152.47 | I18: 0 | J18: 0 | K18: 0 | L18: 0 | M18: 135152.47
A19: 47 | B19: 1808 | C19: Buildings | D19: 757060.47 | E19: 0 | F19: 0 | G19: =D19+E19+F19 -> 757060.47 | I19: -416849.0481 | J19: -11932.64 | K19: 0 | L19: -428781.6881 | M19: 328278.7819
A20: 13 | B20: 1810 | C20: Leasehold Improvements | D20: 0 | E20: 0 | F20: 0 | G20: 0 | I20: 0 | J20: 0 | K20: 0 | L20: 0 | M20: 0
A21: 47 | B21: 1815 | C21: Transformer Station Equipment >50 kV | D21: 0 | E21: 0 | F21: 0 | G21: 0 | I21: 0 | J21: 0 | K21: 0 | L21: 0 | M21: 0
A22: 47 | B22: 1820 | C22: Distribution Station Equipment <50 kV | D22: 21270628.88 | E22: 1759912.371 | F22: -184741.0653 | G22: 22845800.18 | I22: -7614000.542 | J22: -484170.3629 | K22: 184080.6704 | L22: -7914090.234 | M22: 14931709.95
A23: 47 | B23: 1825 | C23: Storage Battery Equipment | D23: 0 | E23: 0 | F23: 0 | G23: 0 | I23: 0 | J23: 0 | K23: 0 | L23: 0 | M23: 0
A24: 47 | B24: 1830 | C24: Poles, Towers & Fixtures | D24: 42138098.74 | E24: 2833573.15 | F24: -834719.0783 | G24: 44136952.81 | I24: -13291567.16 | J24: -747339.0364 | K24: 743138.0562 | L24: -13295768.14 | M24: 30841184.67
A25: 47 | B25: 1835 | C25: Overhead Conductors & Devices | D25: 22706790.14 | E25: 1584612.842 | F25: -420165.8442 | G25: 23871237.13 | I25: -7888056.97 | J25: -418770.4852 | K25: 375102.7572 | L25: -7931724.698 | M25: 15939512.44
A26: 47 | B26: 1840 | C26: Underground Conduit | D26: 0 | E26: 0 | F26: 0 | G26: 0 | I26: 0 | J26: 0 | K26: 0 | L26: 0 | M26: 0
A27: 47 | B27: 1845 | C27: Underground Conductors & Devices | D27: 45399656.03 | E27: 2652223.06 | F27: -539060.6405 | G27: 47512818.45 | I27: -18257071.76 | J27: -906070.9336 | K27: 474723.6319 | L27: -18688419.06 | M27: 28824399.39
A28: 47 | B28: 1850 | C28: Line Transformers | D28: 55324046.54 | E28: 448362.2328 | F28: -131537.5498 | G28: 55640871.22 | I28: -30908143.07 | J28: -799171.1978 | K28: 116760.2198 | L28: -31590554.04 | M28: 24050317.18
A29: 47 | B29: 1855 | C29: Services (Overhead & Underground) | D29: 0 | E29: 0 | F29: 0 | G29: 0 | I29: 0 | J29: 0 | K29: 0 | L29: 0 | M29: 0
A30: 47 | B30: 1860 | C30: Meters | D30: 3779224.181 | E30: 615910.9836 | F30: -93304.98583 | G30: 4301830.178 | I30: -4708635.799 | J30: -849094.3563 | K30: 47070.90423 | L30: -5510659.251 | M30: -1208829.073
A31: 47 | B31: 1860 | C31: Meters (Smart Meters) | D31: 7733934.2 | E31: 0 | F31: 0 | G31: 7733934.2 | I31: -747565 | J31: 0 | K31: 0 | L31: -747565 | M31: 6986369.2
A32: N/A | B32: 1905 | C32: Land | D32: 0 | E32: 0 | F32: 0 | G32: 0 | I32: 0 | J32: 0 | K32: 0 | L32: 0 | M32: 0
A33: 47 | B33: 1908 | C33: Buildings & Fixtures | D33: 0 | E33: 0 | F33: 0 | G33: 0 | I33: 0 | J33: 0 | K33: 0 | L33: 0 | M33: 0
A34: 13 | B34: 1910 | C34: Leasehold Improvements | D34: 1182760.379 | E34: 90000 | F34: 0 | G34: 1272760.379 | I34: -820143.7549 | J34: -171590.63 | K34: 0 | L34: -991734.3849 | M34: 281025.9944
A35: 8 | B35: 1915 | C35: Office Furniture & Equipment (10 years) | D35: 0 | E35: 0 | F35: 0 | G35: 0 | I35: 0 | J35: 0 | K35: 0 | L35: 0 | M35: 0
A36: 8 | B36: 1915 | C36: Office Furniture & Equipment (5 years) | D36: 750439.2139 | E36: 10000 | F36: 0 | G36: 760439.2139 | I36: -690277.49 | J36: -11068.53 | K36: 0 | L36: -701346.02 | M36: 59093.19387
A37: 10 | B37: 1920 | C37: Computer Equipment - Hardware | D37: 2737188.697 | E37: 172404.5846 | F37: 0 | G37: 2909593.281 | I37: -2443990.212 | J37: -211296.2984 | K37: 0 | L37: -2655286.51 | M37: 254306.7713
A38: 45 | B38: 1920 | C38: Computer Equip.-Hardware(Post Mar. 22/04) | D38: 129775.53 | E38: 0 | F38: 0 | G38: 129775.53 | I38: -74954.64 | J38: 0 | K38: 0 | L38: -74954.64 | M38: 54820.89
A39: 45.1 | B39: 1920 | C39: Computer Equip.-Hardware(Post Mar. 19/07) | D39: 0 | E39: 0 | F39: 0 | G39: 0 | I39: 0 | J39: 0 | K39: 0 | L39: 0 | M39: 0
A40: 10 | B40: 1930 | C40: Transportation Equipment | D40: 4608040.076 | E40: 415000 | F40: 0 | G40: 5023040.076 | I40: -2741729.683 | J40: -324117.9833 | K40: 0 | L40: -3065847.667 | M40: 1957192.41
A41: 8 | B41: 1935 | C41: Stores Equipment | D41: 24516 | E41: 0 | F41: 0 | G41: 24516 | I41: -24515.95 | J41: 0 | K41: 0 | L41: -24515.95 | M41: 0.05
A42: 8 | B42: 1940 | C42: Tools, Shop & Garage Equipment | D42: 2537636.92 | E42: 145820.4144 | F42: -15363.65048 | G42: 2668093.684 | I42: -2186431.466 | J42: -131505.5701 | K42: 12968.35345 | L42: -2304968.683 | M42: 363125.0008
A43: 8 | B43: 1945 | C43: Measurement & Testing Equipment | D43: 518851.2669 | E43: 59154.39988 | F43: -482.8296494 | G43: 577522.8372 | I43: -336194.8683 | J43: -20377.58626 | K43: 434.6373798 | L43: -356137.8171 | M43: 221385.02
A44: 8 | B44: 1950 | C44: Power Operated Equipment | D44: 0 | E44: 0 | F44: 0 | G44: 0 | I44: 0 | J44: 0 | K44: 0 | L44: 0 | M44: 0
A45: 8 | B45: 1955 | C45: Communications Equipment | D45: 418132.57 | E45: 0 | F45: 0 | G45: 418132.57 | I45: -316314.31 | J45: -15854.4 | K45: 0 | L45: -332168.71 | M45: 85963.86
A46: 8 | B46: 1955 | C46: Communication Equipment (Smart Meters) | D46: 0 | E46: 0 | F46: 0 | G46: 0 | I46: 0 | J46: 0 | K46: 0 | L46: 0 | M46: 0
A47: 8 | B47: 1960 | C47: Miscellaneous Equipment | D47: 162391.01 | E47: 0 | F47: 0 | G47: 162391.01 | I47: -113045.48 | J47: -11073.89 | K47: 0 | L47: -124119.37 | M47: 38271.64
A48: 47 | B48: 1970 | C48: Load Management Controls Customer Premises | D48: 107034.76 | E48: 0 | F48: 0 | G48: 107034.76 | I48: -107034.37 | J48: 0 | K48: 0 | L48: -107034.37 | M48: 0.3899999996
A49: 47 | B49: 1975 | C49: Load Management Controls Utility Premises | D49: 1021693.43 | E49: 0 | F49: 0 | G49: 1021693.43 | I49: -852741.9853 | J49: -46497.40889 | K49: 0 | L49: -899239.3942 | M49: 122454.0358
A50: 47 | B50: 1980 | C50: System Supervisor Equipment | D50: 293582.38 | E50: 0 | F50: 0 | G50: 293582.38 | I50: -293583.1 | J50: 0 | K50: 0 | L50: -293583.1 | M50: -0.72
A51: 47 | B51: 1985 | C51: Miscellaneous Fixed Assets | D51: 0 | E51: 0 | F51: 0 | G51: 0 | I51: 0 | J51: 0 | K51: 0 | L51: 0 | M51: 0
A52: 47 | B52: 1990 | C52: Other Tangible Property | D52: 0 | E52: 0 | F52: 0 | G52: 0 | I52: 0 | J52: 0 | K52: 0 | L52: 0 | M52: 0
A53: 47 | B53: 1995 | C53: Contributions & Grants | D53: -39453548.12 | E53: -1455000 | F53: 0 | G53: -40908548.12 | I53: 9780440.177 | J53: 918524.204 | K53: 0 | L53: 10698964.38 | M53: -30209583.73
B54: etc. | G54: 0 | L54: 0 | M54: 0
G55: 0 | L55: 0 | M55: 0
C56: Sub-Total | D56: =SUM(D16:D55) -> 176656853.4 | E56: =SUM(E16:E55) -> 9776999.984 | F56: -2219375.644 | G56: 184214477.8 | I56: =SUM(I16:I55) -> -86795563.43 | J56: =SUM(J16:J55) -> -4743726.408 | K56: 1954279.231 | L56: -89585010.61 | M56: 94629467.15
C57: Less Socialized Renewable Energy Generation Investments (input as negative) | G57: =D57+E57+F57 -> 0 | L57: =I57+J57+K57 -> 0 | M57: =G57+L57 -> 0
C58: Less Other Non Rate-Regulated Utility Assets (input as negative) | G58: 0 | L58: =I58+J58+K58 -> 0 | M58: =G58+L58 -> 0
C59: Total PP&E | D59: =SUM(D56:D58) -> 176656853.4 | E59: =SUM(E56:E58) -> 9776999.984 | F59: -2219375.644 | G59: 184214477.8 | I59: =SUM(I56:I58) -> -86795563.43 | J59: -4743726.408 | K59: 1954279.231 | L59: -89585010.61 | M59: 94629467.15
C60: Depreciation Expense adj. from gain or loss on the retirement of assets (pool of like assets)
C61: Total | J61: =J59+J60 -> -4743726.408
I63: Less: Fully Allocated Depreciation
A64: 10 | C64: Transportation | I64: Transportation
A65: 8 | C65: Stores Equipment | I65: Stores Equipment
I66: Net Depreciation | K66: =J61-K64-K65 -> -4743726.408
A68: Notes:
A70: 1 | B70: Tables in the format outlined above covering all fixed asset accounts should be submitted for the Test Year, Bridge Year and all relevant historical years. At a minimum , the applicant must provide data for the earlier of: 1) all historical years back to its last rebasing; or 2) at least three years of historical actuals, in addition to Bridge Year and Test Year forecasts.
A73: 2 | B73: The "CCA Class" for fixed assets should agree with the CCA Class used for tax purposes in Tax Returns. Fixed Assets sub-components may be used where the underlying asset components are classified under multiple CCA Classes for tax purposes. If an applicant uses any different classes from those shown in the table, an explanation should be provided. (also see note 3 below).
A76: 3 | B76: The table may need to be customized for a utility's asset categories or for any new asset accounts announced or authorized by the Board.
A78: 4 | B78: The additions column (F) must not include construction work in progress (CWIP).

Sheet App.2-BA2_Fx Asst Cnt.MIFRS 17
L1: File Number: | M1: =EBNUMBER -> EB-2014-0101
L2: Exhibit:
L3: Tab:
L4: Schedule:
L5: Page:
L7: Date:
A9: Appendix 2-BA
A10: Fixed Asset Continuity Schedule - MIFRS
E12: Year | F12: 2017
D14: Cost | J14: Accumulated Depreciation
A15: CCA Class | B15: OEB | C15: Description | D15: Opening Balance | E15: Additions | F15: Disposals | G15: Closing Balance | I15: Opening Balance | J15: Additions | K15: Disposals | L15: Closing Balance | M15: Net Book Value
A16: 12 | B16: 1611 | C16: Computer Software (Formally known as Account 1925) | D16: 2818793.6 | E16: 135847.2973 | F16: -812.1018537 | G16: =D16+E16+F16 -> 2953828.795 | I16: -2245476.252 | J16: -476504.8198 | K16: 406.0509268 | L16: =I16+J16+K16 -> -2721575.021 | M16: =G16+L16 -> 232253.7742
A17: CEC | B17: 1612 | C17: Land Rights (Formally known as Account 1906) | D17: 0 | E17: 0 | F17: 0 | G17: =D17+E17+F17 -> 0 | I17: 0 | J17: 0 | K17: 0 | L17: 0 | M17: 0
A18: N/A | B18: 1805 | C18: Land | D18: 135152.47 | E18: 0 | F18: 0 | G18: =D18+E18+F18 -> 135152.47 | I18: 0 | J18: 0 | K18: 0 | L18: 0 | M18: 135152.47
A19: 47 | B19: 1808 | C19: Buildings | D19: 757060.47 | E19: 0 | F19: 0 | G19: =D19+E19+F19 -> 757060.47 | I19: -428781.6881 | J19: -11932.64 | K19: 0 | L19: -440714.3281 | M19: 316346.1419
A20: 13 | B20: 1810 | C20: Leasehold Improvements | D20: 0 | E20: 0 | F20: 0 | G20: 0 | I20: 0 | J20: 0 | K20: 0 | L20: 0 | M20: 0
A21: 47 | B21: 1815 | C21: Transformer Station Equipment >50 kV | D21: 0 | E21: 0 | F21: 0 | G21: 0 | I21: 0 | J21: 0 | K21: 0 | L21: 0 | M21: 0
A22: 47 | B22: 1820 | C22: Distribution Station Equipment <50 kV | D22: 22845800.18 | E22: 512047.4243 | F22: -131249.8025 | G22: 23226597.81 | I22: -7914090.234 | J22: -510929.2329 | K22: 130216.1121 | L22: -8294803.355 | M22: 14931794.45
A23: 47 | B23: 1825 | C23: Storage Battery Equipment | D23: 0 | E23: 0 | F23: 0 | G23: 0 | I23: 0 | J23: 0 | K23: 0 | L23: 0 | M23: 0
A24: 47 | B24: 1830 | C24: Poles, Towers & Fixtures | D24: 44136952.81 | E24: 4941932.31 | F24: -382025.3904 | G24: 48696859.73 | I24: -13295768.14 | J24: -829071.9164 | K24: 332720.7827 | L24: -13792119.28 | M24: 34904740.45
A25: 47 | B25: 1835 | C25: Overhead Conductors & Devices | D25: 23871237.13 | E25: 620888.87 | F25: -206909.9214 | G25: 24285216.08 | I25: -7931724.698 | J25: -442044.3611 | K25: 183472.6307 | L25: -8190296.428 | M25: 16094919.65
A26: 47 | B26: 1840 | C26: Underground Conduit | D26: 0 | E26: 0 | F26: 0 | G26: 0 | I26: 0 | J26: 0 | K26: 0 | L26: 0 | M26: 0
A27: 47 | B27: 1845 | C27: Underground Conductors & Devices | D27: 47512818.45 | E27: 243550.6 | F27: -552226.792 | G27: 47204142.26 | I27: -18688419.06 | J27: -938254.4602 | K27: 493150.7306 | L27: -19133522.79 | M27: 28070619.47
A28: 47 | B28: 1850 | C28: Line Transformers | D28: 55640871.22 | E28: 758620.5057 | F28: -83357.2731 | G28: 56316134.45 | I28: -31590554.04 | J28: -811449.9361 | K28: 74376.34227 | L28: -32327627.64 | M28: 23988506.81
A29: 47 | B29: 1855 | C29: Services (Overhead & Underground) | D29: 0 | E29: 0 | F29: 0 | G29: 0 | I29: 0 | J29: 0 | K29: 0 | L29: 0 | M29: 0
A30: 47 | B30: 1860 | C30: Meters | D30: 4301830.178 | E30: 753109.1098 | F30: -77771.84186 | G30: 4977167.446 | I30: -5510659.251 | J30: -898884.3092 | K30: 39092.13898 | L30: -6370451.421 | M30: -1393283.975
A31: 47 | B31: 1860 | C31: Meters (Smart Meters) | D31: 7733934.2 | E31: 0 | F31: 0 | G31: 7733934.2 | I31: -747565 | J31: 0 | K31: 0 | L31: -747565 | M31: 6986369.2
A32: N/A | B32: 1905 | C32: Land | D32: 0 | E32: 0 | F32: 0 | G32: 0 | I32: 0 | J32: 0 | K32: 0 | L32: 0 | M32: 0
A33: 47 | B33: 1908 | C33: Buildings & Fixtures | D33: 0 | E33: 0 | F33: 0 | G33: 0 | I33: 0 | J33: 0 | K33: 0 | L33: 0 | M33: 0
A34: 13 | B34: 1910 | C34: Leasehold Improvements | D34: 1272760.379 | E34: 45000 | F34: 0 | G34: 1317760.379 | I34: -991734.3849 | J34: -127163.06 | K34: 0 | L34: -1118897.445 | M34: 198862.9344
A35: 8 | B35: 1915 | C35: Office Furniture & Equipment (10 years) | D35: 0 | E35: 0 | F35: 0 | G35: 0 | I35: 0 | J35: 0 | K35: 0 | L35: 0 | M35: 0
A36: 8 | B36: 1915 | C36: Office Furniture & Equipment (5 years) | D36: 760439.2139 | E36: 5000 | F36: 0 | G36: 765439.2139 | I36: -701346.02 | J36: -11387.37 | K36: 0 | L36: -712733.39 | M36: 52705.82387
A37: 10 | B37: 1920 | C37: Computer Equipment - Hardware | D37: 2909593.281 | E37: 98267.19207 | F37: -1111.818548 | G37: 3006748.655 | I37: -2655286.51 | J37: -198710.5205 | K37: 555.9092739 | L37: -2853441.121 | M37: 153307.5336
A38: 45 | B38: 1920 | C38: Computer Equip.-Hardware(Post Mar. 22/04) | D38: 129775.53 | E38: 0 | F38: 0 | G38: 129775.53 | I38: -74954.64 | J38: 0 | K38: 0 | L38: -74954.64 | M38: 54820.89
A39: 45.1 | B39: 1920 | C39: Computer Equip.-Hardware(Post Mar. 19/07) | D39: 0 | E39: 0 | F39: 0 | G39: 0 | I39: 0 | J39: 0 | K39: 0 | L39: 0 | M39: 0
A40: 10 | B40: 1930 | C40: Transportation Equipment | D40: 5023040.076 | E40: 440000 | F40: 0 | G40: 5463040.076 | I40: -3065847.667 | J40: -335065.2433 | K40: 0 | L40: -3400912.91 | M40: 2062127.166
A41: 8 | B41: 1935 | C41: Stores Equipment | D41: 24516 | E41: 0 | F41: 0 | G41: 24516 | I41: -24515.95 | J41: 0 | K41: 0 | L41: -24515.95 | M41: 0.05
A42: 8 | B42: 1940 | C42: Tools, Shop & Garage Equipment | D42: 2668093.684 | E42: 173788.4095 | F42: -9163.406105 | G42: 2832718.687 | I42: -2304968.683 | J42: -134746.4628 | K42: 8446.312625 | L42: -2431268.833 | M42: 401449.8541
A43: 8 | B43: 1945 | C43: Measurement & Testing Equipment | D43: 577522.8372 | E43: 68948.26175 | F43: -480.593691 | G43: 645990.5052 | I43: -356137.8171 | J43: -22007.52826 | K43: 458.1025573 | L43: -377687.2428 | M43: 268303.2624
A44: 8 | B44: 1950 | C44: Power Operated Equipment | D44: 0 | E44: 0 | F44: 0 | G44: 0 | I44: 0 | J44: 0 | K44: 0 | L44: 0 | M44: 0
A45: 8 | B45: 1955 | C45: Communications Equipment | D45: 418132.57 | E45: 0 | F45: 0 | G45: 418132.57 | I45: -332168.71 | J45: -15854.4 | K45: 0 | L45: -348023.11 | M45: 70109.46
A46: 8 | B46: 1955 | C46: Communication Equipment (Smart Meters) | D46: 0 | E46: 0 | F46: 0 | G46: 0 | I46: 0 | J46: 0 | K46: 0 | L46: 0 | M46: 0
A47: 8 | B47: 1960 | C47: Miscellaneous Equipment | D47: 162391.01 | E47: 0 | F47: 0 | G47: 162391.01 | I47: -124119.37 | J47: -6299.45 | K47: 0 | L47: -130418.82 | M47: 31972.19
A48: 47 | B48: 1970 | C48: Load Management Controls Customer Premises | D48: 107034.76 | E48: 0 | F48: 0 | G48: 107034.76 | I48: -107034.37 | J48: 0 | K48: 0 | L48: -107034.37 | M48: 0.3899999996
A49: 47 | B49: 1975 | C49: Load Management Controls Utility Premises | D49: 1021693.43 | E49: 0 | F49: 0 | G49: 1021693.43 | I49: -899239.3942 | J49: -790.22 | K49: 0 | L49: -900029.6142 | M49: 121663.8158
A50: 47 | B50: 1980 | C50: System Supervisor Equipment | D50: 293582.38 | E50: 0 | F50: 0 | G50: 293582.38 | I50: -293583.1 | J50: 0 | K50: 0 | L50: -293583.1 | M50: -0.72
A51: 47 | B51: 1985 | C51: Miscellaneous Fixed Assets | D51: 0 | E51: 0 | F51: 0 | G51: 0 | I51: 0 | J51: 0 | K51: 0 | L51: 0 | M51: 0
A52: 47 | B52: 1990 | C52: Other Tangible Property | D52: 0 | E52: 0 | F52: 0 | G52: 0 | I52: 0 | J52: 0 | K52: 0 | L52: 0 | M52: 0
A53: 47 | B53: 1995 | C53: Contributions & Grants | D53: -40908548.12 | E53: -1075000 | F53: 0 | G53: -41983548.12 | I53: 10698964.38 | J53: 951411.0673 | K53: 0 | L53: 11650375.45 | M53: -30333172.67
B54: etc. | G54: 0 | L54: 0 | M54: 0
G55: 0 | L55: 0 | M55: 0
C56: Sub-Total | D56: =SUM(D16:D55) -> 184214477.8 | E56: =SUM(E16:E55) -> 7721999.98 | F56: -1445108.942 | G56: 190491368.8 | I56: =SUM(I16:I55) -> -89585010.61 | J56: =SUM(J16:J55) -> -4819684.863 | K56: 1262895.113 | L56: -93141800.36 | M56: 97349568.43
C57: Less Socialized Renewable Energy Generation Investments (input as negative) | G57: =D57+E57+F57 -> 0 | L57: =I57+J57+K57 -> 0 | M57: =G57+L57 -> 0
C58: Less Other Non Rate-Regulated Utility Assets (input as negative) | G58: 0 | L58: =I58+J58+K58 -> 0 | M58: =G58+L58 -> 0
C59: Total PP&E | D59: =SUM(D56:D58) -> 184214477.8 | E59: =SUM(E56:E58) -> 7721999.98 | F59: -1445108.942 | G59: 190491368.8 | I59: =SUM(I56:I58) -> -89585010.61 | J59: -4819684.863 | K59: 1262895.113 | L59: -93141800.36 | M59: 97349568.43
C60: Depreciation Expense adj. from gain or loss on the retirement of assets (pool of like assets)
C61: Total | J61: =J59+J60 -> -4819684.863
I63: Less: Fully Allocated Depreciation
A64: 10 | C64: Transportation | I64: Transportation
A65: 8 | C65: Stores Equipment | I65: Stores Equipment
I66: Net Depreciation | K66: =J61-K64-K65 -> -4819684.863
A68: Notes:
A70: 1 | B70: Tables in the format outlined above covering all fixed asset accounts should be submitted for the Test Year, Bridge Year and all relevant historical years. At a minimum , the applicant must provide data for the earlier of: 1) all historical years back to its last rebasing; or 2) at least three years of historical actuals, in addition to Bridge Year and Test Year forecasts.
A73: 2 | B73: The "CCA Class" for fixed assets should agree with the CCA Class used for tax purposes in Tax Returns. Fixed Assets sub-components may be used where the underlying asset components are classified under multiple CCA Classes for tax purposes. If an applicant uses any different classes from those shown in the table, an explanation should be provided. (also see note 3 below).
A76: 3 | B76: The table may need to be customized for a utility's asset categories or for any new asset accounts announced or authorized by the Board.
A78: 4 | B78: The additions column (F) must not include construction work in progress (CWIP).

Sheet App.2-BA2_Fx Asst Cnt.MIFRS 18
L1: File Number: | M1: =EBNUMBER -> EB-2014-0101
L2: Exhibit:
L3: Tab:
L4: Schedule:
L5: Page:
L7: Date:
A9: Appendix 2-BA
A10: Fixed Asset Continuity Schedule - MIFRS
E12: Year | F12: 2018
D14: Cost | J14: Accumulated Depreciation
A15: CCA Class | B15: OEB | C15: Description | D15: Opening Balance | E15: Additions | F15: Disposals | G15: Closing Balance | I15: Opening Balance | J15: Additions | K15: Disposals | L15: Closing Balance | M15: Net Book Value
A16: 12 | B16: 1611 | C16: Computer Software (Formally known as Account 1925) | D16: 2953828.795 | E16: 242233.3784 | F16: -812.1018537 | G16: =D16+E16+F16 -> 3195250.072 | I16: -2721575.021 | J16: -357257.4549 | K16: 406.0509268 | L16: =I16+J16+K16 -> -3078426.425 | M16: =G16+L16 -> 116823.6467
A17: CEC | B17: 1612 | C17: Land Rights (Formally known as Account 1906) | D17: 0 | E17: 0 | F17: 0 | G17: =D17+E17+F17 -> 0 | I17: 0 | J17: 0 | K17: 0 | L17: 0 | M17: 0
A18: N/A | B18: 1805 | C18: Land | D18: 135152.47 | E18: 158723 | F18: 0 | G18: =D18+E18+F18 -> 293875.47 | I18: 0 | J18: 0 | K18: 0 | L18: 0 | M18: 293875.47
A19: 47 | B19: 1808 | C19: Buildings | D19: 757060.47 | E19: 1750000 | F19: 0 | G19: =D19+E19+F19 -> 2507060.47 | I19: -440714.3281 | J19: -26045.54323 | K19: 0 | L19: -466759.8713 | M19: 2040300.599
A20: 13 | B20: 1810 | C20: Leasehold Improvements | D20: 0 | E20: 0 | F20: 0 | G20: 0 | I20: 0 | J20: 0 | K20: 0 | L20: 0 | M20: 0
A21: 47 | B21: 1815 | C21: Transformer Station Equipment >50 kV | D21: 0 | E21: 0 | F21: 0 | G21: 0 | I21: 0 | J21: 0 | K21: 0 | L21: 0 | M21: 0
A22: 47 | B22: 1820 | C22: Distribution Station Equipment <50 kV | D22: 23226597.81 | E22: 6099632.19 | F22: -130843.5917 | G22: 29195386.4 | I22: -8294803.355 | J22: -590064.6829 | K22: 130183.1967 | L22: -8754684.841 | M22: 20440701.56
A23: 47 | B23: 1825 | C23: Storage Battery Equipment | D23: 0 | E23: 0 | F23: 0 | G23: 0 | I23: 0 | J23: 0 | K23: 0 | L23: 0 | M23: 0
A24: 47 | B24: 1830 | C24: Poles, Towers & Fixtures | D24: 48696859.73 | E24: 3099063.422 | F24: -760110.5835 | G24: 51035812.57 | I24: -13792119.28 | J24: -909383.8064 | K24: 608886.9627 | L24: -14092616.12 | M24: 36943196.45
A25: 47 | B25: 1835 | C25: Overhead Conductors & Devices | D25: 24285216.08 | E25: 4953547.64 | F25: -405108.0525 | G25: 28833655.67 | I25: -8190296.428 | J25: -500569.0211 | K25: 325010.085 | L25: -8365855.364 | M25: 20467800.31
A26: 47 | B26: 1840 | C26: Underground Conduit | D26: 0 | E26: 0 | F26: 0 | G26: 0 | I26: 0 | J26: 0 | K26: 0 | L26: 0 | M26: 0
A27: 47 | B27: 1845 | C27: Underground Conductors & Devices | D27: 47204142.26 | E27: 16008401.23 | F27: -586808.2697 | G27: 62625735.22 | I27: -19133522.79 | J27: -1143456 | K27: 483921.3825 | L27: -19793057.41 | M27: 42832677.81
A28: 47 | B28: 1850 | C28: Line Transformers | D28: 56316134.45 | E28: 494500.7264 | F28: -135985.1248 | G28: 56674650.05 | I28: -32327627.64 | J28: -823567.1875 | K28: 110457.4476 | L28: -33040737.38 | M28: 23633912.68
A29: 47 | B29: 1855 | C29: Services (Overhead & Underground) | D29: 0 | E29: 0 | F29: 0 | G29: 0 | I29: 0 | J29: 0 | K29: 0 | L29: 0 | M29: 0
A30: 47 | B30: 1860 | C30: Meters | D30: 4977167.446 | E30: 602950.8338 | F30: -78444.85801 | G30: 5501673.422 | I30: -6370451.421 | J30: -950113.5388 | K30: 39586.95878 | L30: -7280978.001 | M30: -1779304.579
A31: 47 | B31: 1860 | C31: Meters (Smart Meters) | D31: 7733934.2 | E31: 0 | F31: 0 | G31: 7733934.2 | I31: -747565 | J31: 0 | K31: 0 | L31: -747565 | M31: 6986369.2
A32: N/A | B32: 1905 | C32: Land | D32: 0 | E32: 0 | F32: 0 | G32: 0 | I32: 0 | J32: 0 | K32: 0 | L32: 0 | M32: 0
A33: 47 | B33: 1908 | C33: Buildings & Fixtures | D33: 0 | E33: 0 | F33: 0 | G33: 0 | I33: 0 | J33: 0 | K33: 0 | L33: 0 | M33: 0
A34: 13 | B34: 1910 | C34: Leasehold Improvements | D34: 1317760.379 | E34: 45000 | F34: 0 | G34: 1362760.379 | I34: -1118897.445 | J34: -118826.5 | K34: 0 | L34: -1237723.945 | M34: 125036.4344
A35: 8 | B35: 1915 | C35: Office Furniture & Equipment (10 years) | D35: 0 | E35: 0 | F35: 0 | G35: 0 | I35: 0 | J35: 0 | K35: 0 | L35: 0 | M35: 0
A36: 8 | B36: 1915 | C36: Office Furniture & Equipment (5 years) | D36: 765439.2139 | E36: 5000 | F36: 0 | G36: 770439.2139 | I36: -712733.39 | J36: -11848.34 | K36: 0 | L36: -724581.73 | M36: 45857.48387
A37: 10 | B37: 1920 | C37: Computer Equipment - Hardware | D37: 3006748.655 | E37: 261160.3152 | F37: -1111.818548 | G37: 3266797.151 | I37: -2853441.121 | J37: -190190.8489 | K37: 555.9092739 | L37: -3043076.061 | M37: 223721.0906
A38: 45 | B38: 1920 | C38: Computer Equip.-Hardware(Post Mar. 22/04) | D38: 129775.53 | E38: 0 | F38: 0 | G38: 129775.53 | I38: -74954.64 | J38: 0 | K38: 0 | L38: -74954.64 | M38: 54820.89
A39: 45.1 | B39: 1920 | C39: Computer Equip.-Hardware(Post Mar. 19/07) | D39: 0 | E39: 0 | F39: 0 | G39: 0 | I39: 0 | J39: 0 | K39: 0 | L39: 0 | M39: 0
A40: 10 | B40: 1930 | C40: Transportation Equipment | D40: 5463040.076 | E40: 190000 | F40: 0 | G40: 5653040.076 | I40: -3400912.91 | J40: -366143.2933 | K40: 0 | L40: -3767056.203 | M40: 1885983.873
A41: 8 | B41: 1935 | C41: Stores Equipment | D41: 24516 | E41: 0 | F41: 0 | G41: 24516 | I41: -24515.95 | J41: 0 | K41: 0 | L41: -24515.95 | M41: 0.05
A42: 8 | B42: 1940 | C42: Tools, Shop & Garage Equipment | D42: 2832718.687 | E42: 154786.4339 | F42: -15054.9426 | G42: 2972450.179 | I42: -2431268.833 | J42: -143966.0014 | K42: 12118.75793 | L42: -2563116.077 | M42: 409334.1019
A43: 8 | B43: 1945 | C43: Measurement & Testing Equipment | D43: 645990.5052 | E43: 132773.8238 | F43: -589.6889446 | G43: 778174.6401 | I43: -377687.2428 | J43: -36353.57801 | K43: 477.6956816 | L43: -413563.1252 | M43: 364611.5149
A44: 8 | B44: 1950 | C44: Power Operated Equipment | D44: 0 | E44: 0 | F44: 0 | G44: 0 | I44: 0 | J44: 0 | K44: 0 | L44: 0 | M44: 0
A45: 8 | B45: 1955 | C45: Communications Equipment | D45: 418132.57 | E45: 31950 | F45: 0 | G45: 450082.57 | I45: -348023.11 | J45: -17451.9 | K45: 0 | L45: -365475.01 | M45: 84607.56
A46: 8 | B46: 1955 | C46: Communication Equipment (Smart Meters) | D46: 0 | E46: 0 | F46: 0 | G46: 0 | I46: 0 | J46: 0 | K46: 0 | L46: 0 | M46: 0
A47: 8 | B47: 1960 | C47: Miscellaneous Equipment | D47: 162391.01 | E47: 0 | F47: 0 | G47: 162391.01 | I47: -130418.82 | J47: -6286.4 | K47: 0 | L47: -136705.22 | M47: 25685.79
A48: 47 | B48: 1970 | C48: Load Management Controls Customer Premises | D48: 107034.76 | E48: 0 | F48: 0 | G48: 107034.76 | I48: -107034.37 | J48: 0 | K48: 0 | L48: -107034.37 | M48: 0.3899999996
A49: 47 | B49: 1975 | C49: Load Management Controls Utility Premises | D49: 1021693.43 | E49: 0 | F49: 0 | G49: 1021693.43 | I49: -900029.6142 | J49: 0 | K49: 0 | L49: -900029.6142 | M49: 121663.8158
A50: 47 | B50: 1980 | C50: System Supervisor Equipment | D50: 293582.38 | E50: 0 | F50: 0 | G50: 293582.38 | I50: -293583.1 | J50: 0 | K50: 0 | L50: -293583.1 | M50: -0.72
A51: 47 | B51: 1985 | C51: Miscellaneous Fixed Assets | D51: 0 | E51: 0 | F51: 0 | G51: 0 | I51: 0 | J51: 0 | K51: 0 | L51: 0 | M51: 0
A52: 47 | B52: 1990 | C52: Other Tangible Property | D52: 0 | E52: 0 | F52: 0 | G52: 0 | I52: 0 | J52: 0 | K52: 0 | L52: 0 | M52: 0
A53: 47 | B53: 1995 | C53: Contributions & Grants | D53: -41983548.12 | E53: -1095000 | F53: 0 | G53: -43078548.12 | I53: 11650375.45 | J53: 980214.4152 | K53: 0 | L53: 12630589.86 | M53: -30447958.25
B54: etc. | G54: 0 | L54: 0 | M54: 0
G55: 0 | L55: 0 | M55: 0
C56: Sub-Total | D56: =SUM(D16:D55) -> 190491368.8 | E56: =SUM(E16:E55) -> 33134722.99 | F56: -2114869.032 | G56: 221511222.8 | I56: =SUM(I16:I55) -> -93141800.36 | J56: =SUM(J16:J55) -> -5211309.682 | K56: 1711604.447 | L56: -96641505.6 | M56: 124869717.2
C57: Less Socialized Renewable Energy Generation Investments (input as negative) | G57: =D57+E57+F57 -> 0 | L57: =I57+J57+K57 -> 0 | M57: =G57+L57 -> 0
C58: Less Other Non Rate-Regulated Utility Assets (input as negative) | G58: 0 | L58: =I58+J58+K58 -> 0 | M58: =G58+L58 -> 0
C59: Total PP&E | D59: =SUM(D56:D58) -> 190491368.8 | E59: =SUM(E56:E58) -> 33134722.99 | F59: -2114869.032 | G59: 221511222.8 | I59: =SUM(I56:I58) -> -93141800.36 | J59: -5211309.682 | K59: 1711604.447 | L59: -96641505.6 | M59: 124869717.2
C60: Depreciation Expense adj. from gain or loss on the retirement of assets (pool of like assets)
C61: Total | J61: =J59+J60 -> -5211309.682
I63: Less: Fully Allocated Depreciation
A64: 10 | C64: Transportation | I64: Transportation
A65: 8 | C65: Stores Equipment | I65: Stores Equipment
I66: Net Depreciation | K66: =J61-K64-K65 -> -5211309.682
A68: Notes:
A70: 1 | B70: Tables in the format outlined above covering all fixed asset accounts should be submitted for the Test Year, Bridge Year and all relevant historical years. At a minimum , the applicant must provide data for the earlier of: 1) all historical years back to its last rebasing; or 2) at least three years of historical actuals, in addition to Bridge Year and Test Year forecasts.
A73: 2 | B73: The "CCA Class" for fixed assets should agree with the CCA Class used for tax purposes in Tax Returns. Fixed Assets sub-components may be used where the underlying asset components are classified under multiple CCA Classes for tax purposes. If an applicant uses any different classes from those shown in the table, an explanation should be provided. (also see note 3 below).
A76: 3 | B76: The table may need to be customized for a utility's asset categories or for any new asset accounts announced or authorized by the Board.
A78: 4 | B78: The additions column (F) must not include construction work in progress (CWIP).

Sheet App.2-BA2_Fx Asst Cnt.MIFRS 19
L1: File Number: | M1: =EBNUMBER -> EB-2014-0101
L2: Exhibit:
L3: Tab:
L4: Schedule:
L5: Page:
L7: Date:
A9: Appendix 2-BA
A10: Fixed Asset Continuity Schedule - MIFRS
E12: Year | F12: 2019
D14: Cost | J14: Accumulated Depreciation
A15: CCA Class | B15: OEB | C15: Description | D15: Opening Balance | E15: Additions | F15: Disposals | G15: Closing Balance | I15: Opening Balance | J15: Additions | K15: Disposals | L15: Closing Balance | M15: Net Book Value
A16: 12 | B16: 1611 | C16: Computer Software (Formally known as Account 1925) | D16: 3195250.072 | E16: 194233.3784 | F16: -812.1018537 | G16: =D16+E16+F16 -> 3388671.348 | I16: -3078426.425 | J16: -232570.1126 | K16: 406.0509268 | L16: =I16+J16+K16 -> -3310590.487 | M16: =G16+L16 -> 78080.86153
A17: CEC | B17: 1612 | C17: Land Rights (Formally known as Account 1906) | D17: 0 | E17: 0 | F17: 0 | G17: =D17+E17+F17 -> 0 | I17: 0 | J17: 0 | K17: 0 | L17: 0 | M17: 0
A18: N/A | B18: 1805 | C18: Land | D18: 293875.47 | E18: 0 | F18: 0 | G18: =D18+E18+F18 -> 293875.47 | I18: 0 | J18: 0 | K18: 0 | L18: 0 | M18: 293875.47
A19: 47 | B19: 1808 | C19: Buildings | D19: 2507060.47 | E19: 0 | F19: 0 | G19: =D19+E19+F19 -> 2507060.47 | I19: -466759.8713 | J19: -40158.44645 | K19: 0 | L19: -506918.3177 | M19: 2000142.152
A20: 13 | B20: 1810 | C20: Leasehold Improvements | D20: 0 | E20: 0 | F20: 0 | G20: 0 | I20: 0 | J20: 0 | K20: 0 | L20: 0 | M20: 0
A21: 47 | B21: 1815 | C21: Transformer Station Equipment >50 kV | D21: 0 | E21: 0 | F21: 0 | G21: 0 | I21: 0 | J21: 0 | K21: 0 | L21: 0 | M21: 0
A22: 47 | B22: 1820 | C22: Distribution Station Equipment <50 kV | D22: 29195386.4 | E22: 3503283.735 | F22: -299093.8399 | G22: 32399576.3 | I22: -8754684.841 | J22: -704487.4658 | K22: 265672.5068 | L22: -9193499.8 | M22: 23206076.5
A23: 47 | B23: 1825 | C23: Storage Battery Equipment | D23: 0 | E23: 0 | F23: 0 | G23: 0 | I23: 0 | J23: 0 | K23: 0 | L23: 0 | M23: 0
A24: 47 | B24: 1830 | C24: Poles, Towers & Fixtures | D24: 51035812.57 | E24: 2846612.666 | F24: -604237.6429 | G24: 53278187.59 | I24: -14092616.12 | J24: -968437.8964 | K24: 471045.6792 | L24: -14590008.34 | M24: 38688179.25
A25: 47 | B25: 1835 | C25: Overhead Conductors & Devices | D25: 28833655.67 | E25: 1814691.365 | F25: -323125.9383 | G25: 30325221.1 | I25: -8365855.364 | J25: -572894.4221 | K25: 254678.0791 | L25: -8684071.707 | M25: 21641149.39
A26: 47 | B26: 1840 | C26: Underground Conduit | D26: 0 | E26: 0 | F26: 0 | G26: 0 | I26: 0 | J26: 0 | K26: 0 | L26: 0 | M26: 0
A27: 47 | B27: 1845 | C27: Underground Conductors & Devices | D27: 62625735.22 | E27: 2806064.989 | F27: -533249.7373 | G27: 64898550.47 | I27: -19793057.41 | J27: -1377313.104 | K27: 450644.7951 | L27: -20719725.72 | M27: 44178824.75
A28: 47 | B28: 1850 | C28: Line Transformers | D28: 56674650.05 | E28: 464855.4897 | F28: -113757.8825 | G28: 57025747.66 | I28: -33040737.38 | J28: -831686.7066 | K28: 92270.86871 | L28: -33780153.21 | M28: 23245594.45
A29: 47 | B29: 1855 | C29: Services (Overhead & Underground) | D29: 0 | E29: 0 | F29: 0 | G29: 0 | I29: 0 | J29: 0 | K29: 0 | L29: 0 | M29: 0
A30: 47 | B30: 1860 | C30: Meters | D30: 5501673.422 | E30: 602560.2924 | F30: -78166.47025 | G30: 6026067.244 | I30: -7280978.001 | J30: -985423.55 | K30: 39338.03088 | L30: -8227063.52 | M30: -2200996.276
A31: 47 | B31: 1860 | C31: Meters (Smart Meters) | D31: 7733934.2 | E31: 0 | F31: 0 | G31: 7733934.2 | I31: -747565 | J31: 0 | K31: 0 | L31: -747565 | M31: 6986369.2
A32: N/A | B32: 1905 | C32: Land | D32: 0 | E32: 0 | F32: 0 | G32: 0 | I32: 0 | J32: 0 | K32: 0 | L32: 0 | M32: 0
A33: 47 | B33: 1908 | C33: Buildings & Fixtures | D33: 0 | E33: 0 | F33: 0 | G33: 0 | I33: 0 | J33: 0 | K33: 0 | L33: 0 | M33: 0
A34: 13 | B34: 1910 | C34: Leasehold Improvements | D34: 1362760.379 | E34: 45000 | F34: 0 | G34: 1407760.379 | I34: -1237723.945 | J34: -126000 | K34: 0 | L34: -1363723.945 | M34: 44036.43437
A35: 8 | B35: 1915 | C35: Office Furniture & Equipment (10 years) | D35: 0 | E35: 0 | F35: 0 | G35: 0 | I35: 0 | J35: 0 | K35: 0 | L35: 0 | M35: 0
A36: 8 | B36: 1915 | C36: Office Furniture & Equipment (5 years) | D36: 770439.2139 | E36: 5000 | F36: 0 | G36: 775439.2139 | I36: -724581.73 | J36: -12213.82 | K36: 0 | L36: -736795.55 | M36: 38643.66387
A37: 10 | B37: 1920 | C37: Computer Equipment - Hardware | D37: 3266797.151 | E37: 99160.31524 | F37: -1111.818548 | G37: 3364845.648 | I37: -3043076.061 | J37: -178666.995 | K37: 555.9092739 | L37: -3221187.147 | M37: 143658.5016
A38: 45 | B38: 1920 | C38: Computer Equip.-Hardware(Post Mar. 22/04) | D38: 129775.53 | E38: 0 | F38: 0 | G38: 129775.53 | I38: -74954.64 | J38: 0 | K38: 0 | L38: -74954.64 | M38: 54820.89
A39: 45.1 | B39: 1920 | C39: Computer Equip.-Hardware(Post Mar. 19/07) | D39: 0 | E39: 0 | F39: 0 | G39: 0 | I39: 0 | J39: 0 | K39: 0 | L39: 0 | M39: 0
A40: 10 | B40: 1930 | C40: Transportation Equipment | D40: 5653040.076 | E40: 170000 | F40: 0 | G40: 5823040.076 | I40: -3767056.203 | J40: -384164.9033 | K40: 0 | L40: -4151221.107 | M40: 1671818.97
A41: 8 | B41: 1935 | C41: Stores Equipment | D41: 24516 | E41: 0 | F41: 0 | G41: 24516 | I41: -24515.95 | J41: 0 | K41: 0 | L41: -24515.95 | M41: 0.05
A42: 8 | B42: 1940 | C42: Tools, Shop & Garage Equipment | D42: 2972450.179 | E42: 150004.1652 | F42: -12554.88455 | G42: 3109899.459 | I42: -2563116.077 | J42: -145273.011 | K42: 10324.83674 | L42: -2698064.251 | M42: 411835.2084
A43: 8 | B43: 1945 | C43: Measurement & Testing Equipment | D43: 778174.6401 | E43: 132583.6036 | F43: -538.8835091 | G43: 910219.3602 | I43: -413563.1252 | J43: -54752.31829 | K43: 472.4371059 | L43: -467843.0064 | M43: 442376.3538
A44: 8 | B44: 1950 | C44: Power Operated Equipment | D44: 0 | E44: 0 | F44: 0 | G44: 0 | I44: 0 | J44: 0 | K44: 0 | L44: 0 | M44: 0
A45: 8 | B45: 1955 | C45: Communications Equipment | D45: 450082.57 | E45: 31950 | F45: 0 | G45: 482032.57 | I45: -365475.01 | J45: -20646.9 | K45: 0 | L45: -386121.91 | M45: 95910.66
A46: 8 | B46: 1955 | C46: Communication Equipment (Smart Meters) | D46: 0 | E46: 0 | F46: 0 | G46: 0 | I46: 0 | J46: 0 | K46: 0 | L46: 0 | M46: 0
A47: 8 | B47: 1960 | C47: Miscellaneous Equipment | D47: 162391.01 | E47: 0 | F47: 0 | G47: 162391.01 | I47: -136705.22 | J47: -6286.4 | K47: 0 | L47: -142991.62 | M47: 19399.39
A48: 47 | B48: 1970 | C48: Load Management Controls Customer Premises | D48: 107034.76 | E48: 0 | F48: 0 | G48: 107034.76 | I48: -107034.37 | J48: 0 | K48: 0 | L48: -107034.37 | M48: 0.3899999996
A49: 47 | B49: 1975 | C49: Load Management Controls Utility Premises | D49: 1021693.43 | E49: 0 | F49: 0 | G49: 1021693.43 | I49: -900029.6142 | J49: 0 | K49: 0 | L49: -900029.6142 | M49: 121663.8158
A50: 47 | B50: 1980 | C50: System Supervisor Equipment | D50: 293582.38 | E50: 0 | F50: 0 | G50: 293582.38 | I50: -293583.1 | J50: 0 | K50: 0 | L50: -293583.1 | M50: -0.72
A51: 47 | B51: 1985 | C51: Miscellaneous Fixed Assets | D51: 0 | E51: 0 | F51: 0 | G51: 0 | I51: 0 | J51: 0 | K51: 0 | L51: 0 | M51: 0
A52: 47 | B52: 1990 | C52: Other Tangible Property | D52: 0 | E52: 0 | F52: 0 | G52: 0 | I52: 0 | J52: 0 | K52: 0 | L52: 0 | M52: 0
A53: 47 | B53: 1995 | C53: Contributions & Grants | D53: -43078548.12 | E53: -1105000 | F53: 0 | G53: -44183548.12 | I53: 12630589.86 | J53: 1006398.609 | K53: 0 | L53: 13636988.47 | M53: -30546559.64
B54: etc. | G54: 0 | L54: 0 | M54: 0
G55: 0 | L55: 0 | M55: 0
C56: Sub-Total | D56: =SUM(D16:D55) -> 221511222.8 | E56: =SUM(E16:E55) -> 11761000 | F56: -1966649.2 | G56: 231305573.6 | I56: =SUM(I16:I55) -> -96641505.6 | J56: =SUM(J16:J55) -> -5634577.443 | K56: 1585409.194 | L56: -100690673.8 | M56: 130614899.7
C57: Less Socialized Renewable Energy Generation Investments (input as negative) | G57: =D57+E57+F57 -> 0 | L57: =I57+J57+K57 -> 0 | M57: =G57+L57 -> 0
C58: Less Other Non Rate-Regulated Utility Assets (input as negative) | G58: 0 | L58: =I58+J58+K58 -> 0 | M58: =G58+L58 -> 0
C59: Total PP&E | D59: =SUM(D56:D58) -> 221511222.8 | E59: =SUM(E56:E58) -> 11761000 | F59: -1966649.2 | G59: 231305573.6 | I59: =SUM(I56:I58) -> -96641505.6 | J59: -5634577.443 | K59: 1585409.194 | L59: -100690673.8 | M59: 130614899.7
C60: Depreciation Expense adj. from gain or loss on the retirement of assets (pool of like assets)
C61: Total | J61: =J59+J60 -> -5634577.443
I63: Less: Fully Allocated Depreciation
A64: 10 | C64: Transportation | I64: Transportation
A65: 8 | C65: Stores Equipment | I65: Stores Equipment
I66: Net Depreciation | K66: =J61-K64-K65 -> -5634577.443
A68: Notes:
A70: 1 | B70: Tables in the format outlined above covering all fixed asset accounts should be submitted for the Test Year, Bridge Year and all relevant historical years. At a minimum , the applicant must provide data for the earlier of: 1) all historical years back to its last rebasing; or 2) at least three years of historical actuals, in addition to Bridge Year and Test Year forecasts.
A73: 2 | B73: The "CCA Class" for fixed assets should agree with the CCA Class used for tax purposes in Tax Returns. Fixed Assets sub-components may be used where the underlying asset components are classified under multiple CCA Classes for tax purposes. If an applicant uses any different classes from those shown in the table, an explanation should be provided. (also see note 3 below).
A76: 3 | B76: The table may need to be customized for a utility's asset categories or for any new asset accounts announced or authorized by the Board.
A78: 4 | B78: The additions column (F) must not include construction work in progress (CWIP).

Sheet Appendix 2-BB Service Life Comp
M1: File Number: | O1: =EBNUMBER -> EB-2014-0101
M2: Exhibit:
M3: Tab:
M4: Schedule:
M5: Page:
M7: Date:
A9: Appendix 2-BB
A10: Service Life Comparison
A11: Table F-1 from Kinetrics Report1
C15: Asset Details | F15: Useful Life | J15: USoA Account Number | K15: USoA Account Description | L15: Current | N15: Proposed
A16: Parent* | B16: # | C16: Category| Component | Type | F16: MIN UL | G16: TUL | H16: MAX UL | L16: Years | M16: Rate | N16: Years | O16: Rate
A17: OH | B17: 1 | C17: Fully Dressed Wood Poles | D17: Overall | F17: 35 | G17: 45 | H17: 75 | J17: 1830 | K17: Poles, Towers and Fixtures | L17: 45 | M17: =IF(ISERROR(1/L17), "", 1/L17) -> 0.02222222222 | N17: 45 | O17: =IF(ISERROR(1/N17), "", 1/N17) -> 0.02222222222
D18: Cross Arm | E18: Wood | F18: 20 | G18: 40 | H18: 55 | J18: 1830 | K18: Poles, Towers and Fixtures | L18: 40 | M18: =IF(ISERROR(1/L18), "", 1/L18) -> 0.025 | N18: 40 | O18: =IF(ISERROR(1/N18), "", 1/N18) -> 0.025
E19: Steel | F19: 30 | G19: 70 | H19: 95
B20: 2 | C20: Fully Dressed Concrete Poles | D20: Overall | F20: 50 | G20: 60 | H20: 80 | J20: 1830 | K20: Poles, Towers and Fixtures | L20: 60 | M20: 0.01666666667 | N20: 60 | O20: 0.01666666667
D21: Cross Arm | E21: Wood | F21: 20 | G21: 40 | H21: 55 | J21: 1830 | K21: Poles, Towers and Fixtures | L21: 40 | M21: 0.025 | N21: 40 | O21: 0.025
E22: Steel | F22: 30 | G22: 70 | H22: 95
B23: 3 | C23: Fully Dressed Steel Poles | D23: Overall | F23: 60 | G23: 60 | H23: 80
D24: Cross Arm | E24: Wood | F24: 20 | G24: 40 | H24: 55
E25: Steel | F25: 30 | G25: 70 | H25: 95
B26: 4 | C26: OH Line Switch | F26: 30 | G26: 45 | H26: 55 | J26: 1835 | K26: Overhead Conductors and Devices | L26: 45 | M26: 0.02222222222 | N26: 40 | O26: 0.025
B27: 5 | C27: OH Line Switch Motor | F27: 15 | G27: 25 | H27: 25
B28: 6 | C28: OH Line Switch RTU | F28: 15 | G28: 20 | H28: 20
B29: 7 | C29: OH Integral Switches | F29: 35 | G29: 45 | H29: 60 | J29: 1835 | K29: Overhead Conductors and Devices | L29: 45 | M29: 0.02222222222 | N29: 45 | O29: 0.02222222222
B30: 8 | C30: OH Conductors | F30: 50 | G30: 60 | H30: 75 | J30: 1835 | K30: Overhead Conductors and Devices | L30: 60 | M30: 0.01666666667 | N30: 45 | O30: 0.02222222222
B31: 9 | C31: OH Transformers & Voltage Regulators | F31: 30 | G31: 40 | H31: 60 | J31: 1850 | K31: Line Transformers | L31: 40 | M31: 0.025 | N31: 40 | O31: 0.025
B32: 10 | C32: OH Shunt Capacitor Banks | F32: 25 | G32: 30 | H32: 40
B33: 11 | C33: Reclosers | F33: 25 | G33: 40 | H33: 55
A34: TS & MS | B34: 12 | C34: Power Transformers | D34: Overall | F34: 30 | G34: 45 | H34: 60 | J34: 1820 | K34: Distribution Station Equipment | L34: 45 | M34: 0.02222222222 | N34: 45 | O34: 0.02222222222
D35: Bushing | F35: 10 | G35: 20 | H35: 30
D36: Tap Changer | F36: 20 | G36: 30 | H36: 60
B37: 13 | C37: Station Service Transformer | F37: 30 | G37: 45 | H37: 55 | J37: 1820 | K37: Distribution Station Equipment | L37: 45 | M37: 0.02222222222 | N37: 40 | O37: 0.025
B38: 14 | C38: Station Grounding Transformer | F38: 30 | G38: 40 | H38: 40
B39: 15 | C39: Station DC System | D39: Overall | F39: 10 | G39: 20 | H39: 30
D40: Battery Bank | F40: 10 | G40: 15 | H40: 15
D41: Charger | F41: 20 | G41: 20 | H41: 30
B42: 16 | C42: Station Metal Clad Switchgear | D42: Overall | F42: 30 | G42: 40 | H42: 60 | J42: 1820 | K42: Distribution Station Equipment | L42: 40 | M42: 0.025 | N42: 40 | O42: 0.025
D43: Removable Breaker | F43: 25 | G43: 40 | H43: 60
B44: 17 | C44: Station Independent Breakers | F44: 35 | G44: 45 | H44: 65 | J44: 1820 | K44: Distribution Station Equipment | L44: 45 | M44: 0.02222222222 | N44: 40 | O44: 0.025
B45: 18 | C45: Station Switch | F45: 30 | G45: 50 | H45: 60 | J45: 1820 | K45: Distribution Station Equipment | L45: 50 | M45: 0.02 | N45: 50 | O45: 0.02
B46: 19 | C46: Electromechanical Relays | F46: 25 | G46: 35 | H46: 50 | J46: 1820 | K46: Distribution Station Equipment | L46: 35 | M46: 0.02857142857 | N46: 35 | O46: 0.02857142857
B47: 20 | C47: Solid State Relays | F47: 10 | G47: 30 | H47: 45
B48: 21 | C48: Digital & Numeric Relays | F48: 15 | G48: 20 | H48: 20
B49: 22 | C49: Rigid Busbars | F49: 30 | G49: 55 | H49: 60
B50: 23 | C50: Steel Structure | F50: 35 | G50: 50 | H50: 90
B51: 24 | C51: Primary Paper Insulated Lead Covered (PILC) Cables | F51: 60 | G51: 65 | H51: 75
B52: 25 | C52: Primary Ethylene-Propylene Rubber (EPR) Cables | F52: 20 | G52: 25 | H52: 25
B53: 26 | C53: Primary Non-Tree Retardant (TR) Cross Linked Polyethylene (XLPE) Cables Direct Buried | F53: 20 | G53: 25 | H53: 30
B54: 27 | C54: Primary Non-TR XLPE Cables in Duct | F54: 20 | G54: 25 | H54: 30
B55: 28 | C55: Primary TR XLPE Cables Direct Buried | F55: 25 | G55: 30 | H55: 35
B56: 29 | C56: Primary TR XLPE Cables in Duct | F56: 35 | G56: 40 | H56: 55 | J56: 1845 | K56: Underground Conductors and Devices | L56: 40 | M56: 0.025 | N56: 40 | O56: 0.025
B57: 30 | C57: Secondary PILC Cables | F57: 70 | G57: 75 | H57: 80
B58: 31 | C58: Secondary Cables Direct Buried | F58: 25 | G58: 35 | H58: 40 | J58: 1845 | K58: Underground Conductors and Devices | L58: 35 | M58: 0.02857142857 | N58: 42.5 | O58: 0.02352941176
A59: UG | B59: 32 | C59: Secondary Cables in Duct | F59: 35 | G59: 40 | H59: 60 | J59: 1845 | K59: Underground Conductors and Devices | L59: 40 | M59: 0.025 | N59: 40 | O59: 0.025
B60: 33 | C60: Network Tranformers | D60: Overall | F60: 20 | G60: 35 | H60: 50
D61: Protector | F61: 20 | G61: 35 | H61: 40
B62: 34 | C62: Pad-Mounted Transformers | F62: 25 | G62: 40 | H62: 45 | J62: 1850 | K62: Line Transformers | L62: 40 | M62: 0.025 | N62: 40 | O62: 0.025
B63: 35 | C63: Submersible/Vault Transformers | F63: 25 | G63: 35 | H63: 45 | J63: 1850 | K63: Line Transformers | L63: 35 | M63: 0.02857142857 | N63: 35 | O63: 0.02857142857
B64: 36 | C64: UG Foundation | F64: 35 | G64: 55 | H64: 70 | J64: 1845&1850 | K64: Underground Conductors and Devices | L64: 55 | M64: 0.01818181818 | N64: 55 | O64: 0.01818181818
B65: 37 | C65: UG Vaults | D65: Overall | F65: 40 | G65: 60 | H65: 80 | J65: 1850 | K65: Line Transformers | L65: 60 | M65: 0.01666666667 | N65: 60 | O65: 0.01666666667
D66: Roof | F66: 20 | G66: 30 | H66: 45
B67: 38 | C67: UG Vault Switches | F67: 20 | G67: 35 | H67: 50 | J67: 1845 | K67: Underground Conductors and Devices | L67: 35 | M67: 0.02857142857 | N67: 35 | O67: 0.02857142857
B68: 39 | C68: Pad-Mounted Switchgear | F68: 20 | G68: 30 | H68: 45 | J68: 1845 | K68: Underground Conductors and Devices | L68: 30 | M68: 0.03333333333 | N68: 30 | O68: 0.03333333333
B69: 40 | C69: Ducts | F69: 30 | G69: 50 | H69: 85 | J69: 1845 | K69: Underground Conductors and Devices | L69: 50 | M69: 0.02 | N69: 50 | O69: 0.02
B70: 41 | C70: Concrete Encased Duct Banks | F70: 35 | G70: 55 | H70: 80 | J70: 1845 | K70: Underground Conductors and Devices | L70: 55 | M70: 0.01818181818 | N70: 55 | O70: 0.01818181818
B71: 42 | C71: Cable Chambers | F71: 50 | G71: 60 | H71: 80
A72: S | B72: 43 | C72: Remote SCADA | F72: 15 | G72: 20 | H72: 30 | J72: 1975 | K72: Load Management Controls - Utility Premises | L72: 20 | M72: 0.05 | N72: 8 | O72: 0.125
A75: Table F-2 from Kinetrics Report1
C77: Asset Details | F77: Useful Life Range | J77: USoA Account Number | K77: USoA Account Description | L77: Current | N77: Proposed
B78: # | C78: Category| Component | Type | L78: Years | M78: Rate | N78: Years | O78: Rate
B79: 1 | C79: Office Equipment | F79: 5-15 | J79: 1955&1960 | K79: Communication & Misc. Equipment | L79: 10 | M79: =IF(ISERROR(1/L79), "", 1/L79) -> 0.1 | N79: 10 | O79: =IF(ISERROR(1/N79), "", 1/N79) -> 0.1
B80: 2 | C80: Vehicles | D80: Trucks & Buckets | F80: 5-15 | J80: 1930 | K80: Transportation Equipment | L80: 10 | M80: =IF(ISERROR(1/L80), "", 1/L80) -> 0.1 | N80: 10 | O80: =IF(ISERROR(1/N80), "", 1/N80) -> 0.1
D81: Trailers | F81: 5-20 | J81: 1930 | K81: Transportation Equipment | L81: 12 | M81: 0.08333333333 | N81: 12 | O81: 0.08333333333
D82: Vans | F82: 5-10 | J82: 1930 | K82: Transportation Equipment | L82: 8 | M82: 0.125 | N82: 8 | O82: 0.125
B83: 3 | C83: Administrative Buildings | F83: 50-75
B84: 4 | C84: Leasehold Improvements | F84: Lease dependent | J84: 1910 | K84: Leasehold Improvements | L84: 5 | M84: 0.2 | N84: 5 | O84: 0.2
B85: 5 | C85: Station Buildings | D85: Station Buildings | F85: 50-75 | J85: 1808 | K85: Buildings and Fixtures | L85: 62 | M85: 0.01612903226 | N85: 62 | O85: 0.01612903226
D86: Parking | F86: 25-30 | J86: 1808 | K86: Buildings and Fixtures | L86: 42 | M86: 0.02380952381 | N86: 42 | O86: 0.02380952381
D87: Fence | F87: 25-60 | J87: 1808 | K87: Buildings and Fixtures | L87: 42 | M87: 0.02380952381 | N87: 42 | O87: 0.02380952381
D88: Roof | F88: 20-30 | J88: 1808 | K88: Buildings and Fixtures | L88: 42 | M88: 0.02380952381 | N88: 42 | O88: 0.02380952381
B89: 6 | C89: Computer Equipment | D89: Hardware | F89: 3-5 | J89: 1920 | K89: Computer Equipment - Hardware | L89: 4 | M89: 0.25 | N89: 4 | O89: 0.25
D90: Software | F90: 2-5 | J90: 1611 | K90: Computer Software | L90: 3 | M90: 0.3333333333 | N90: 3 | O90: 0.3333333333
B91: 7 | C91: Equipment | D91: Power Operated | F91: 5-10
D92: Stores | F92: 5-10
D93: Tools, Shop, Garage Equipment | F93: 5-10 | J93: 1940 | K93: Tools, Shop and Garage Equipment | L93: 7 | M93: 0.1428571429 | N93: 7 | O93: 0.1428571429
D94: Measurement & Testing Equipment | F94: 5-10 | J94: 1945 | K94: Measurement and Testing Equipment | L94: 7 | M94: 0.1428571429 | N94: 7 | O94: 0.1428571429
B95: 8 | C95: Communication | D95: Towers | F95: 60-70
D96: Wireless | F96: 2-10
B97: 9 | C97: Residential Energy Meters | F97: 25-35 | J97: 1860 | K97: Meters | L97: 30 | M97: 0.03333333333 | N97: 30 | O97: 0.03333333333
B98: 10 | C98: Industrial/Commercial Energy Meters | F98: 25-35 | J98: 1860 | K98: Meters | L98: 30 | M98: 0.03333333333 | N98: 30 | O98: 0.03333333333
B99: 11 | C99: Wholesale Energy Meters | F99: 15-30
B100: 12 | C100: Current & Potential Transformer (CT & PT) | F100: 35-50 | J100: 1860 | K100: Meters | L100: 42 | M100: 0.02380952381 | N100: 42 | O100: 0.02380952381
B101: 13 | C101: Smart Meters | F101: 5-15 | J101: 1860 | K101: Meters | L101: 10 | M101: 0.1 | N101: 10 | O101: 0.1
B102: 14 | C102: Repeaters - Smart Metering | F102: 10-15
B103: 15 | C103: Data Collectors - Smart Metering | F103: 15-20
A105: * TS & MS = Transformer and Municipal Stations UG = Underground Systems S = Monitoring and Control Systems
A106: Note 1: | B106: Tables F-1 and F-2 above are to be used as a reference in order to complete columns J, K, L and N.
B107: See pages 17-19 of Kinetrics Report

Sheet Instruction for App. 2-C MIFRS
A1: General Instructions to MIFRS Appendices
A2: Types of Schedules to File
A4: The purpose of this tab is to provide general instructions. The specific instructions to each appendix are listed in footnotes to each appendix.
A6: Applicants filing a MIFRS application should provide the following information regarding Appendix 2-B and Appendix 2-C:
A8: · If an applicant chooses to adopt IFRS for financial reporting in 2012, in its 2014 cost of service application it must file information for the historic year (2012),modified IFRS and also provide forecasts for the bridge year (2013) and test year (2014) information in modified IFRS format. The years required to be filed prior to the historic year 2012 may be provided in CGAAP only, except for the year 2011 which must also be presented in modified IFRS format.
A11: · If an applicant chooses to adopt IFRS for financial reporting in 2013, in its 2014 cost of service application it must file information for the year prior (i.e. 2012 – the historic year) in both CGAAP and modified IFRS format, and present modified IFRS based forecasts for the bridge (2013) and test years (2014). The years required to be filed prior to the historic year 2012 may be provided in CGAAP only.
A14: · If an applicant chooses to adopt IFRS for financial reporting in 2014, in its 2014 cost of service application it must provide the required actual years (2012) and the bridge year (2013) in CGAAP based format. An applicant must present modified IFRS based forecasts for the bridge (2013) and test years (2014).
E18: Date of Adoption of IFRS
E19: for Financial Reporting Purposes:
E20: January 1, 2012 | F20: January 1, 2013 | G20: January 1, 2014
A21: Information | C21: 2010 H & Prior | E21: CGAAP | F21: CGAAP | G21: CGAAP
A22: Required to be | C22: 2011 H | E22: MIFRS & CGAAP | F22: CGAAP | G22: CGAAP
A23: Filed in 2014 | C23: 2012 H | E23: MIFRS | F23: MIFRS & CGAAP | G23: CGAAP
A24: CoS Application: | C24: 2013 B | E24: MIFRS | F24: MIFRS | G24: MIFRS & CGAAP
C25: 2014 T | E25: MIFRS | F25: MIFRS | G25: MIFRS
A27: Date of Transition to IFRS | E27: January 1, 2011 | F27: January 1, 2012 | G27: January 1, 2013
A29: H - historic year regulatory financial information
A30: B - bridge year regulatory financial information
A31: T - test year regulatory financial information
B32: Year in which both CGAAP and MIFRS information required
A34: For those applicants that adopted IFRS on January 1, 2012 for financial reporting purposes, the date of transition is January 1, 2011. For those applicants that adopted IFRS on January 1, 2013 for financial reporting purposes, the date of transition is January 1, 2012. For those applicants that adopted IFRS on January 1, 2014 for financial reporting purposes, the date of transition is January 1, 2013.
A39: Summary of Impacts to Revenue Requirement from Transition to MIFRS - Appendix 2-YA
A40: For modified IFRS applications, the applicants must provide a summary of the dollar impacts of modified IFRS to each component of the revenue requirement (e.g. rate base, operating costs, etc), including the overall impact on the proposed revenue requirement. Accordingly, the applicants must identify financial differences and resulting revenue requirement impacts arising from the adoption of modified IFRS accounting.
A45: Depreciation and Amortization - Appendix 2-C
A46: If an applicant chooses to adopt IFRS for financial reporting in 2012, the applicant must complete Appendix 2-CA to Appendix 2-CE (inclusive).
A47: If an applicant chooses to adopt IFRS for financial reporting in 2013, the applicant must complete Appendix 2-CF to Appendix 2-CI (inclusive).
A48: If an applicant chooses to adopt IFRS for financial reporting in 2014, the applicant must complete Appendix 2-CJ to Appendix 2-CM (inclusive).
A51: Continuity of Historic Cost under MIFRS - Appendix 2-BA2
A53: Regulatory Gross Assets of Property, Plant and Equipment
A54: For an applicant that adopted IFRS on January 1, 2012 for financial reporting purposes, the applicant must establish the continuity of historic cost by using the December 31, 2010 regulatory gross assets of property, plant and equipment as the opening January 1, 2011 regulatory gross assets. The applicant must provide schedules (including Appendix 2-BA2, Fixed Asset Continuity Schedule) which must identify the following details to substantiate the continuity of historic cost for regulatory purposes:
A58: · December 31, 2010 regulatory gross assets of property, plant and equipment, by asset class; and
A59: · January 1, 2011 regulatory gross assets of property, plant and equipment, by asset class.
A61: For an applicant that adopts IFRS on January 1, 2013 for financial reporting purposes, the applicant must establish the continuity of historic cost by using the December 31, 2011 regulatory gross assets of property, plant and equipment as the opening January 1, 2012 regulatory gross assets. The applicant must provide schedules (including Appendix 2-BA2, Fixed Asset Continuity Schedule) which must identify the following details to substantiate the continuity of historic cost for regulatory purposes:
A65: · December 31, 2011 regulatory gross assets of property, plant and equipment, by asset class; and
A66: · January 1, 2012 regulatory gross assets of property, plant and equipment, by asset class.
A68: For an applicant that adopts IFRS on January 1, 2014 for financial reporting purposes, the applicant must establish the continuity of historic cost by using the December 31, 2012 regulatory gross assets of property, plant and equipment as the opening January 1, 2013 regulatory gross assets. The applicant must provide schedules (including Appendix 2-BA2, Fixed Asset Continuity Schedule) which must identify the following details to substantiate the continuity of historic cost for regulatory purposes:
A72: · December 31, 2012 regulatory gross assets of property, plant and equipment, by asset class; and
A73: · January 1, 2013 regulatory gross assets of property, plant and equipment, by asset class.
A75: Accumulated Depreciation
A76: For an applicant that adopted IFRS on January 1, 2012 for financial reporting purposes, the applicant must establish the continuity of historic cost by using the December 31, 2010 regulatory accumulated depreciation as the opening January 1, 2011 regulatory accumulated depreciation. The applicant must provide schedules (including Appendix 2-BA2, Fixed Asset Continuity Schedule) which must identify the following details to substantiate the continuity of historic cost for regulatory purposes:
A79: · December 31, 2010 regulatory accumulated depreciation, by asset class; and
A80: · January 1, 2011 regulatory accumulated depreciation, by asset class.
A82: For an applicant that adopted IFRS on January 1, 2013 for financial reporting purposes, the applicant must establish the continuity of historic cost by using the December 31, 2011 regulatory accumulated depreciation as the opening January 1, 2012 regulatory accumulated depreciation. The applicant must provide schedules (including Appendix 2-BA2, Fixed Asset Continuity Schedule) which must identify the following details to substantiate the continuity of historic cost for regulatory purposes:
A85: · December 31, 2011 regulatory accumulated depreciation, by asset class; and
A86: · January 1, 2012 regulatory accumulated depreciation, by asset class.
A88: For an applicant that adopted IFRS on January 1, 2014 for financial reporting purposes, the applicant must establish the continuity of historic cost by using the December 31, 2012 regulatory accumulated depreciation as the opening January 1, 2013 regulatory accumulated depreciation. The applicant must provide schedules (including Appendix 2-BA2, Fixed Asset Continuity Schedule) which must identify the following details to substantiate the continuity of historic cost for regulatory purposes:
A91: · December 31, 2012 regulatory accumulated depreciation, by asset class; and
A92: · January 1, 2013 regulatory accumulated depreciation, by asset class.
A94: Account 1575, IFRS-CGAAP Transitional PP&E Amounts - Appendix 2-EA, Appendix 2-EB, Appendix 2-EC
A95: Please refer to section 2.12.4 of the Filing Requirements.
A97: Account 1576, Accounting Changes Under CGAAP - Appendix 2-ED, Appendix 2-EE
A98: Please refer to section 2.12.5 of the Filing Requirements.

Sheet App.2-CA_CGAAP_DepExp_2011
K1: File Number: | L1: =EBNUMBER -> EB-2014-0101
K2: Exhibit:
K3: Tab:
K4: Schedule:
K5: Page:
K7: Date:
A9: Appendix 2-CA
A10: Depreciation and Amortization Expense
A11: Assumes the applicant adopted IFRS for financial reporting purposes January 1, 2012
C12: Year | D12: 2011 | E12: CGAAP
A14: Account | B14: Description | C14: Opening Regulatory Gross PP&E as at Jan 1, 2011 | D14: Less Fully Depreciated | E14: Net for Depreciation | F14: Additions | G14: Total for Depreciation | H14: Years | I14: Depreciation Rate | J14: Depreciation Expense | K14: 2011 Depreciation Expense per Appendix 2-B Fixed Assets, Column K (l) | L14: Variance 2
C15: (a) | D15: (b) | E15: (c) | F15: (d) | G15: (e) = (c) + ½ x (d) 1 | H15: (f) | I15: (g) = 1 / (f) | J15: (h) = (e) / (f) | L15: (m) = (h) - (l)
A16: 1611 | B16: Computer Software (Formally known as Account 1925) | C16: ='App.2-BA1_Fix Asset Cont.CGAAP'!D16 -> 235770.4 | D16: 225929 | E16: =C16-D16 -> 9841.4 | F16: ='App.2-BA1_Fix Asset Cont.CGAAP'!E16 -> 395951.24 | G16: =E16+0.5*F16 -> 207817.02 | H16: 2 | I16: =IF(H16=0,0,1/H16) -> 0.5 | J16: =IF(H16=0,0,G16/H16) -> 103908.51 | K16: =-'App.2-BA1_Fix Asset Cont.CGAAP'!J16 -> 103908.28 | L16: =IF(ISERROR(+J16-K16), 0, +J16-K16) -> 0.23
A17: 1612 | B17: Land Rights (Formally known as Account 1906) | C17: ='App.2-BA1_Fix Asset Cont.CGAAP'!D17 -> 0 | E17: =C17-D17 -> 0 | F17: ='App.2-BA1_Fix Asset Cont.CGAAP'!E17 -> 0 | G17: =E17+0.5*F17 -> 0 | I17: 0 | J17: 0 | K17: =-'App.2-BA1_Fix Asset Cont.CGAAP'!J17 -> 0 | L17: 0
A18: 1805 | B18: Land | C18: ='App.2-BA1_Fix Asset Cont.CGAAP'!D18 -> 293875.47 | E18: 293875.47 | F18: ='App.2-BA1_Fix Asset Cont.CGAAP'!E18 -> 0 | G18: 293875.47 | I18: 0 | J18: 0 | K18: =-'App.2-BA1_Fix Asset Cont.CGAAP'!J18 -> 0 | L18: 0
A19: 1808 | B19: Buildings | C19: ='App.2-BA1_Fix Asset Cont.CGAAP'!D19 -> 570962.63 | D19: 41469 | E19: 529493.63 | F19: ='App.2-BA1_Fix Asset Cont.CGAAP'!E19 -> 0 | G19: 529493.63 | H19: 42 | I19: 0.02380952381 | J19: 12606.99119 | K19: =-'App.2-BA1_Fix Asset Cont.CGAAP'!J19 -> 10360.17 | L19: 2246.82119
A20: 1810 | B20: Leasehold Improvements | C20: ='App.2-BA1_Fix Asset Cont.CGAAP'!D20 -> 0 | E20: 0 | F20: ='App.2-BA1_Fix Asset Cont.CGAAP'!E20 -> 0 | G20: 0 | I20: 0 | J20: 0 | K20: =-'App.2-BA1_Fix Asset Cont.CGAAP'!J20 -> 0 | L20: 0
A21: 1815 | B21: Transformer Station Equipment >50 kV | C21: ='App.2-BA1_Fix Asset Cont.CGAAP'!D21 -> 0 | E21: 0 | F21: ='App.2-BA1_Fix Asset Cont.CGAAP'!E21 -> 0 | G21: 0 | I21: 0 | J21: 0 | K21: =-'App.2-BA1_Fix Asset Cont.CGAAP'!J21 -> 0 | L21: 0
A22: 1820 | B22: Distribution Station Equipment <50 kV | C22: ='App.2-BA1_Fix Asset Cont.CGAAP'!D22 -> 12057872.4 | D22: 3239548 | E22: 8818324.404 | F22: ='App.2-BA1_Fix Asset Cont.CGAAP'!E22 -> 2744991.31 | G22: 10190820.06 | H22: 30 | I22: 0.03333333333 | J22: 339694.002 | K22: =-'App.2-BA1_Fix Asset Cont.CGAAP'!J22 -> 341271.65 | L22: -1577.648041
A23: 1825 | B23: Storage Battery Equipment | C23: ='App.2-BA1_Fix Asset Cont.CGAAP'!D23 -> 0 | E23: 0 | F23: ='App.2-BA1_Fix Asset Cont.CGAAP'!E23 -> 0 | G23: 0 | I23: 0 | J23: 0 | K23: =-'App.2-BA1_Fix Asset Cont.CGAAP'!J23 -> 0 | L23: 0
A24: 1830 | B24: Poles, Towers & Fixtures | C24: ='App.2-BA1_Fix Asset Cont.CGAAP'!D24 -> 0 | E24: 0 | F24: ='App.2-BA1_Fix Asset Cont.CGAAP'!E24 -> 0 | G24: 0 | I24: 0 | J24: 0 | K24: =-'App.2-BA1_Fix Asset Cont.CGAAP'!J24 -> 0 | L24: 0
A25: 1835 | B25: Overhead Conductors & Devices | C25: ='App.2-BA1_Fix Asset Cont.CGAAP'!D25 -> 50225428 | D25: =5367306+3329684+O25 -> 8696990 | E25: 41528438 | F25: ='App.2-BA1_Fix Asset Cont.CGAAP'!E25 -> 3040545.46 | G25: 43048710.73 | H25: 27 | I25: 0.03703703704 | J25: 1594396.694 | K25: =-'App.2-BA1_Fix Asset Cont.CGAAP'!J25 -> 1631888.43 | L25: -37491.7362
A26: 1840 | B26: Underground Conduit | C26: ='App.2-BA1_Fix Asset Cont.CGAAP'!D26 -> 0 | E26: 0 | F26: ='App.2-BA1_Fix Asset Cont.CGAAP'!E26 -> 0 | G26: 0 | I26: 0 | J26: 0 | K26: =-'App.2-BA1_Fix Asset Cont.CGAAP'!J26 -> 0 | L26: 0
A27: 1845 | B27: Underground Conductors & Devices | C27: ='App.2-BA1_Fix Asset Cont.CGAAP'!D27 -> 63940851.99 | D27: =11642615+O27 -> 11642615 | E27: 52298236.99 | F27: ='App.2-BA1_Fix Asset Cont.CGAAP'!E27 -> 3317590.608 | G27: 53957032.3 | H27: 23 | I27: 0.04347826087 | J27: 2345957.926 | K27: =-'App.2-BA1_Fix Asset Cont.CGAAP'!J27 -> 2310962.33 | L27: 34995.59596
A28: 1850 | B28: Line Transformers | C28: ='App.2-BA1_Fix Asset Cont.CGAAP'!D28 -> 15755641.63 | D28: =3250175 -> 3250175 | E28: 12505466.63 | F28: ='App.2-BA1_Fix Asset Cont.CGAAP'!E28 -> 68951.33 | G28: 12539942.3 | H28: 35 | I28: 0.02857142857 | J28: 358284.0656 | K28: =-'App.2-BA1_Fix Asset Cont.CGAAP'!J28 -> 361878.27 | L28: -3594.204421
A29: 1855 | B29: Services (Overhead & Underground) | C29: ='App.2-BA1_Fix Asset Cont.CGAAP'!D29 -> 0 | E29: 0 | F29: ='App.2-BA1_Fix Asset Cont.CGAAP'!E29 -> 0 | G29: 0 | I29: 0 | J29: 0 | K29: =-'App.2-BA1_Fix Asset Cont.CGAAP'!J29 -> 0 | L29: 0
A30: 1860 | B30: Meters | C30: ='App.2-BA1_Fix Asset Cont.CGAAP'!D30 -> 9133509.381 | D30: 777566 | E30: 8355943.381 | F30: ='App.2-BA1_Fix Asset Cont.CGAAP'!E30 -> 0 | G30: 8355943.381 | H30: 30 | I30: 0.03333333333 | J30: 278531.446 | K30: =-'App.2-BA1_Fix Asset Cont.CGAAP'!J30-K31 -> 319708.09 | L30: -41176.64397
A31: 1860 | B31: Meters (Smart Meters) | C31: ='App.2-BA1_Fix Asset Cont.CGAAP'!D31 -> 0 | E31: 0 | F31: ='App.2-BA1_Fix Asset Cont.CGAAP'!E31 -> 6780571.38 | G31: 3390285.69 | H31: 10 | I31: 0.1 | J31: 339028.569 | K31: 877708 | L31: -538679.431
A32: 1905 | B32: Land | C32: ='App.2-BA1_Fix Asset Cont.CGAAP'!D32 -> 0 | E32: 0 | F32: ='App.2-BA1_Fix Asset Cont.CGAAP'!E32 -> 0 | G32: 0 | I32: 0 | J32: 0 | K32: =-'App.2-BA1_Fix Asset Cont.CGAAP'!J32 -> 0 | L32: 0
A33: 1908 | B33: Buildings & Fixtures | C33: ='App.2-BA1_Fix Asset Cont.CGAAP'!D33 -> 0 | E33: 0 | F33: ='App.2-BA1_Fix Asset Cont.CGAAP'!E33 -> 0 | G33: 0 | I33: 0 | J33: 0 | K33: =-'App.2-BA1_Fix Asset Cont.CGAAP'!J33 -> 0 | L33: 0
A34: 1910 | B34: Leasehold Improvements | C34: ='App.2-BA1_Fix Asset Cont.CGAAP'!D34 -> 296464.96 | D34: 124275 | E34: 172189.96 | F34: ='App.2-BA1_Fix Asset Cont.CGAAP'!E34 -> 334284.62 | G34: 339332.27 | H34: 10 | I34: 0.1 | J34: 33933.227 | K34: =-'App.2-BA1_Fix Asset Cont.CGAAP'!J34 -> 20313.74 | L34: 13619.487
A35: 1915 | B35: Office Furniture & Equipment (5 years) | C35: ='App.2-BA1_Fix Asset Cont.CGAAP'!D35 -> 0 | E35: 0 | F35: ='App.2-BA1_Fix Asset Cont.CGAAP'!E35 -> 0 | G35: 0 | I35: 0 | J35: 0 | K35: =-'App.2-BA1_Fix Asset Cont.CGAAP'!J35 -> 0 | L35: 0
A36: 1915 | B36: Office Furniture & Equipment (10 years) | C36: ='App.2-BA1_Fix Asset Cont.CGAAP'!D36 -> 707744.88 | D36: 600028 | E36: 107716.88 | F36: ='App.2-BA1_Fix Asset Cont.CGAAP'!E36 -> 10957.75 | G36: 113195.755 | H36: 10 | I36: 0.1 | J36: 11319.5755 | K36: =-'App.2-BA1_Fix Asset Cont.CGAAP'!J36 -> 13587.86 | L36: -2268.2845
A37: 1920 | B37: Computer Equipment - Hardware | C37: ='App.2-BA1_Fix Asset Cont.CGAAP'!D37 -> 2074786.46 | D37: 1904300 | E37: 170486.46 | F37: ='App.2-BA1_Fix Asset Cont.CGAAP'!E37 -> 37421.3 | G37: 189197.11 | H37: 4 | I37: 0.25 | J37: 47299.2775 | K37: =-'App.2-BA1_Fix Asset Cont.CGAAP'!J37 -> 53176.65 | L37: -5877.3725
A38: 1920 | B38: Computer Equip.-Hardware(Post Mar. 22/04) | C38: ='App.2-BA1_Fix Asset Cont.CGAAP'!D38 -> 0 | E38: 0 | F38: ='App.2-BA1_Fix Asset Cont.CGAAP'!E38 -> 0 | G38: 0 | I38: 0 | J38: 0 | K38: =-'App.2-BA1_Fix Asset Cont.CGAAP'!J38 -> 0 | L38: 0
A39: 1920 | B39: Computer Equip.-Hardware(Post Mar. 19/07) | C39: ='App.2-BA1_Fix Asset Cont.CGAAP'!D39 -> 0 | E39: 0 | F39: ='App.2-BA1_Fix Asset Cont.CGAAP'!E39 -> 0 | G39: 0 | I39: 0 | J39: 0 | K39: =-'App.2-BA1_Fix Asset Cont.CGAAP'!J39 -> 0 | L39: 0
A40: 1930 | B40: Transportation Equipment | C40: ='App.2-BA1_Fix Asset Cont.CGAAP'!D40 -> 3622595.09 | D40: 2446926 | E40: 1175669.09 | F40: ='App.2-BA1_Fix Asset Cont.CGAAP'!E40 -> 585196.63 | G40: 1468267.405 | H40: 8 | I40: 0.125 | J40: 183533.4256 | K40: =-'App.2-BA1_Fix Asset Cont.CGAAP'!J40 -> 179914.51 | L40: 3618.915625
A41: 1935 | B41: Stores Equipment | C41: ='App.2-BA1_Fix Asset Cont.CGAAP'!D41 -> 24516 | D41: 23366 | E41: 1150 | F41: ='App.2-BA1_Fix Asset Cont.CGAAP'!E41 -> 0 | G41: 1150 | H41: 7 | I41: 0.1428571429 | J41: 164.2857143 | K41: =-'App.2-BA1_Fix Asset Cont.CGAAP'!J41 -> 115.02 | L41: 49.26571429
A42: 1940 | B42: Tools, Shop & Garage Equipment | C42: ='App.2-BA1_Fix Asset Cont.CGAAP'!D42 -> 1415479.856 | D42: 615228 | E42: 800251.8562 | F42: ='App.2-BA1_Fix Asset Cont.CGAAP'!E42 -> 110102.2 | G42: 855302.9562 | H42: 7 | I42: 0.1428571429 | J42: 122186.1366 | K42: =-'App.2-BA1_Fix Asset Cont.CGAAP'!J42 -> 93568.93 | L42: 28617.20661
A43: 1945 | B43: Measurement & Testing Equipment | C43: ='App.2-BA1_Fix Asset Cont.CGAAP'!D43 -> 405788.37 | D43: 330208 | E43: 75580.37 | F43: ='App.2-BA1_Fix Asset Cont.CGAAP'!E43 -> 0 | G43: 75580.37 | H43: 7 | I43: 0.1428571429 | J43: 10797.19571 | K43: =-'App.2-BA1_Fix Asset Cont.CGAAP'!J43 -> 56592.07 | L43: -45794.87429
A44: 1950 | B44: Power Operated Equipment | C44: ='App.2-BA1_Fix Asset Cont.CGAAP'!D44 -> 0 | E44: 0 | F44: ='App.2-BA1_Fix Asset Cont.CGAAP'!E44 -> 0 | G44: 0 | I44: 0 | J44: 0 | K44: =-'App.2-BA1_Fix Asset Cont.CGAAP'!J44 -> 0 | L44: 0
A45: 1955 | B45: Communications Equipment | C45: ='App.2-BA1_Fix Asset Cont.CGAAP'!D45 -> 264585.13 | D45: 96488 | E45: 168097.13 | F45: ='App.2-BA1_Fix Asset Cont.CGAAP'!E45 -> 2000 | G45: 169097.13 | H45: 5 | I45: 0.2 | J45: 33819.426 | K45: =-'App.2-BA1_Fix Asset Cont.CGAAP'!J45 -> 9610.57 | L45: 24208.856
A46: 1955 | B46: Communication Equipment (Smart Meters) | C46: ='App.2-BA1_Fix Asset Cont.CGAAP'!D46 -> 0 | E46: 0 | F46: ='App.2-BA1_Fix Asset Cont.CGAAP'!E46 -> 0 | G46: 0 | I46: 0 | J46: 0 | K46: =-'App.2-BA1_Fix Asset Cont.CGAAP'!J46 -> 0 | L46: 0
A47: 1960 | B47: Miscellaneous Equipment | C47: ='App.2-BA1_Fix Asset Cont.CGAAP'!D47 -> 23602.49 | D47: 23602 | E47: 0.49 | F47: ='App.2-BA1_Fix Asset Cont.CGAAP'!E47 -> 0 | G47: 0.49 | I47: 0 | J47: 0 | K47: =-'App.2-BA1_Fix Asset Cont.CGAAP'!J47 -> 0 | L47: 0
A48: 1970 | B48: Load Management Controls Customer Premises | C48: ='App.2-BA1_Fix Asset Cont.CGAAP'!D48 -> 107034.76 | D48: 107035 | E48: -0.24 | F48: ='App.2-BA1_Fix Asset Cont.CGAAP'!E48 -> 0 | G48: -0.24 | I48: 0 | J48: 0 | K48: =-'App.2-BA1_Fix Asset Cont.CGAAP'!J48 -> 0 | L48: 0
A49: 1975 | B49: Load Management Controls Utility Premises | C49: ='App.2-BA1_Fix Asset Cont.CGAAP'!D49 -> 1021693.43 | D49: =597214-107035 -> 490179 | E49: 531514.43 | F49: ='App.2-BA1_Fix Asset Cont.CGAAP'!E49 -> 0 | G49: 531514.43 | H49: 10 | I49: 0.1 | J49: 53151.443 | K49: =-'App.2-BA1_Fix Asset Cont.CGAAP'!J49 -> 42447.92 | L49: 10703.523
A50: 1980 | B50: System Supervisor Equipment | C50: ='App.2-BA1_Fix Asset Cont.CGAAP'!D50 -> 293582.38 | D50: 293582.38 | E50: 0 | F50: ='App.2-BA1_Fix Asset Cont.CGAAP'!E50 -> 0 | G50: 0 | H50: 5 | I50: 0.2 | J50: 0 | K50: =-'App.2-BA1_Fix Asset Cont.CGAAP'!J50 -> 0 | L50: 0
A51: 1985 | B51: Miscellaneous Fixed Assets | C51: ='App.2-BA1_Fix Asset Cont.CGAAP'!D51 -> 0 | E51: 0 | F51: ='App.2-BA1_Fix Asset Cont.CGAAP'!E51 -> 0 | G51: 0 | I51: 0 | J51: 0 | K51: =-'App.2-BA1_Fix Asset Cont.CGAAP'!J51 -> 0 | L51: 0
A52: 1990 | B52: Other Tangible Property | C52: ='App.2-BA1_Fix Asset Cont.CGAAP'!D52 -> 0 | E52: 0 | F52: ='App.2-BA1_Fix Asset Cont.CGAAP'!E52 -> 0 | G52: 0 | I52: 0 | J52: 0 | K52: =-'App.2-BA1_Fix Asset Cont.CGAAP'!J52 -> 0 | L52: 0
A53: 1995 | B53: Contributions & Grants | C53: ='App.2-BA1_Fix Asset Cont.CGAAP'!D53 -> -28454845.96 | D53: =-34929509+34905907+O53 -> -23602 | E53: -28431243.96 | F53: ='App.2-BA1_Fix Asset Cont.CGAAP'!E53 -> -930790.87 | G53: -28896639.39 | H53: 45 | I53: 0.02222222222 | J53: -642147.5421 | K53: =-'App.2-BA1_Fix Asset Cont.CGAAP'!J53 -> -1156809.65 | L53: 514662.1079
A54: etc. | E54: 0 | G54: 0 | I54: 0 | J54: 0 | L54: 0
E55: 0 | G55: 0 | I55: 0 | J55: 0 | L55: 0
B56: Total | C56: =SUM(C16:C55) -> 134016939.8 | D56: =SUM(D16:D55) -> 34905907.38 | E56: =SUM(E16:E55) -> 99111032.38 | F56: =SUM(F16:F55) -> 16497772.96 | G56: =SUM(G16:G55) -> 107359918.9 | J56: =SUM(J16:J55) -> 5226464.654 | K56: =SUM(K16:K55) -> 5270202.84 | L56: =SUM(L16:L55) -> -43738.18593
A58: Notes:
A60: 1 | B60: Board policy of the "half-year" rule - the applicant must ensure that additions in the year attract a half-year depreciation expense in the first year. Deviations from this standard practice must be supported in the application.
A61: 2 | B61: 1860 Smart Meters - Depreciation expense in year includes accrued depreciation for prior years, held in Smart Meter Deferral Account and released to Income Statement current year.
A63: General | B63: Applicants must provide a breakdown of depreciation and amortization expense in the above format for all relevant accounts. Asset Retirement Obligations (AROs), depreciation and accretion expense should be disclosed separately consistent with the Notes of historical Audited Financial Statements.

Sheet App.2-CB_MIFRS_DepExp_2011
N1: File Number: | O1: =EBNUMBER -> EB-2014-0101
N2: Exhibit:
N3: Tab:
N4: Schedule:
N5: Page:
N7: Date:
A9: Appendix 2-CB
A10: Depreciation and Amortization Expense
A11: Assumes the applicant adopted IFRS for financial reporting purposes January 1, 2012
C12: Year | D12: 2011 | E12: MIFRS
A14: Account | B14: Description | C14: Opening NBV as at Jan 1, 2011 5 | D14: Additions | E14: Average Remaining Life of Opening NBV 4 | F14: Years (new additions only) 3 | G14: Depreciation Rate on New Additions | H14: Depreciation Expense on Opening NBV | I14: Depreciation Expense on Additions 1 | J14: 2011 Depreciation Expense | K14: 2011 Depreciation Expense per Appendix 2-B Fixed Assets, Column K (l) | L14: Variance 2 | M14: Depreciation Expense on 2011 Full Year Additions | N14: Less Depreciation Expense on Assets Fully Depreciated during the year (o) | O14: 2011 Full Year Depreciation 6 | S14: MIFRS Dep'n Adjustments
C15: (a) | D15: (d) | E15: (i) | F15: (f) | G15: (g) = 1 / (f) | H15: (j) = (a) / (i) | I15: (h)=((d)*0.5)/(f) | J15: (k) = (j) + (h) | L15: (m) = (k) - (l) | M15: (n) = (d)/(f) | O15: (p) = (j) + (n) - (o)
A16: 1611 | B16: Computer Software (Formally known as Account 1925) | C16: ='App.2-BA2_Fx Asst Cnt.MIFRS 11 '!D16+'App.2-BA2_Fx Asst Cnt.MIFRS 11 '!G16+'App.2-BA2_Fx Asst Cnt.MIFRS 11 '!J16+'App.2-BA2_Fx Asst Cnt.MIFRS 11 '!M16 -> 57767.59 | D16: ='App.2-BA2_Fx Asst Cnt.MIFRS 11 '!E16 -> 395951.24 | E16: 1.5 | F16: 3 | G16: =IF(F16=0,0,1/F16) -> 0.3333333333 | H16: =IF(E16=0,0,+C16/E16) -> 38511.72667 | I16: =IF(F16=0,0,+(D16*0.5)/F16) -> 65991.87333 | J16: =IF(ISERROR(+H16+I16), 0, +H16+I16) -> 104503.6 | K16: =-'App.2-BA2_Fx Asst Cnt.MIFRS 11 '!K16 -> 103908.28 | L16: =IF(ISERROR(+J16-K16), 0, +J16-K16) -> 595.32 | M16: =IF(F16=0,0,+(D16)/F16) -> 131983.7467 | N16: 40489.70667 | O16: =IF(ISERROR(+M16+H16-N16), 0, +M16+H16-N16) -> 130005.7667 | R16: 1611 | S16: -31121.07
A17: 1612 | B17: Land Rights (Formally known as Account 1906) | C17: ='App.2-BA2_Fx Asst Cnt.MIFRS 11 '!D17+'App.2-BA2_Fx Asst Cnt.MIFRS 11 '!G17+'App.2-BA2_Fx Asst Cnt.MIFRS 11 '!J17+'App.2-BA2_Fx Asst Cnt.MIFRS 11 '!M17 -> 0 | D17: ='App.2-BA2_Fx Asst Cnt.MIFRS 11 '!E17 -> 0 | G17: 0 | H17: 0 | I17: 0 | J17: 0 | K17: =-'App.2-BA2_Fx Asst Cnt.MIFRS 11 '!K17 -> 0 | L17: 0 | M17: 0 | N17: 0 | O17: =IF(ISERROR(+M17+H17-N17), 0, +M17+H17-N17) -> 0 | R17: 1612
A18: 1805 | B18: Land | C18: ='App.2-BA2_Fx Asst Cnt.MIFRS 11 '!D18+'App.2-BA2_Fx Asst Cnt.MIFRS 11 '!G18+'App.2-BA2_Fx Asst Cnt.MIFRS 11 '!J18+'App.2-BA2_Fx Asst Cnt.MIFRS 11 '!M18 -> 293875.47 | D18: ='App.2-BA2_Fx Asst Cnt.MIFRS 11 '!E18 -> 0 | G18: 0 | H18: 0 | I18: 0 | J18: 0 | K18: =-'App.2-BA2_Fx Asst Cnt.MIFRS 11 '!K18 -> 0 | L18: 0 | M18: 0 | N18: 0 | O18: 0 | R18: 1805
A19: 1808 | B19: Buildings | C19: ='App.2-BA2_Fx Asst Cnt.MIFRS 11 '!D19+'App.2-BA2_Fx Asst Cnt.MIFRS 11 '!G19+'App.2-BA2_Fx Asst Cnt.MIFRS 11 '!J19+'App.2-BA2_Fx Asst Cnt.MIFRS 11 '!M19 -> 360134.4 | D19: ='App.2-BA2_Fx Asst Cnt.MIFRS 11 '!E19 -> 0 | E19: 39.152 | F19: 62 | G19: 0.01612903226 | H19: 9198.365345 | I19: 0 | J19: 9198.365345 | K19: =-'App.2-BA2_Fx Asst Cnt.MIFRS 11 '!K19 -> 10360.17 | L19: -1161.804655 | M19: 0 | N19: -5037.424655 | O19: 14235.79 | R19: 1808 | S19: -42631.53
A20: 1810 | B20: Leasehold Improvements | C20: ='App.2-BA2_Fx Asst Cnt.MIFRS 11 '!D20+'App.2-BA2_Fx Asst Cnt.MIFRS 11 '!G20+'App.2-BA2_Fx Asst Cnt.MIFRS 11 '!J20+'App.2-BA2_Fx Asst Cnt.MIFRS 11 '!M20 -> 0 | D20: ='App.2-BA2_Fx Asst Cnt.MIFRS 11 '!E20 -> 0 | G20: 0 | H20: 0 | I20: 0 | J20: 0 | K20: =-'App.2-BA2_Fx Asst Cnt.MIFRS 11 '!K20 -> 0 | L20: 0 | M20: 0 | N20: 0 | O20: 0 | R20: 1810
A21: 1815 | B21: Transformer Station Equipment >50 kV | C21: ='App.2-BA2_Fx Asst Cnt.MIFRS 11 '!D21+'App.2-BA2_Fx Asst Cnt.MIFRS 11 '!G21+'App.2-BA2_Fx Asst Cnt.MIFRS 11 '!J21+'App.2-BA2_Fx Asst Cnt.MIFRS 11 '!M21 -> 0 | D21: ='App.2-BA2_Fx Asst Cnt.MIFRS 11 '!E21 -> 0 | G21: 0 | H21: 0 | I21: 0 | J21: 0 | K21: =-'App.2-BA2_Fx Asst Cnt.MIFRS 11 '!K21 -> 0 | L21: 0 | M21: 0 | N21: 0 | O21: 0 | R21: 1815
A22: 1820 | B22: Distribution Station Equipment <50 kV | C22: ='App.2-BA2_Fx Asst Cnt.MIFRS 11 '!D22+'App.2-BA2_Fx Asst Cnt.MIFRS 11 '!G22+'App.2-BA2_Fx Asst Cnt.MIFRS 11 '!J22+'App.2-BA2_Fx Asst Cnt.MIFRS 11 '!M22 -> 5311307.936 | D22: ='App.2-BA2_Fx Asst Cnt.MIFRS 11 '!E22 -> 2744991.31 | E22: 17 | F22: 45 | G22: 0.02222222222 | H22: 312429.8786 | I22: 30499.90344 | J22: 342929.782 | K22: =-'App.2-BA2_Fx Asst Cnt.MIFRS 11 '!K22 -> 341271.65 | L22: 1658.132021 | M22: 60999.80689 | N22: 118520.6261 | O22: 254909.0594 | R22: 1820 | S22: -43885.28
A23: 1825 | B23: Storage Battery Equipment | C23: ='App.2-BA2_Fx Asst Cnt.MIFRS 11 '!D23+'App.2-BA2_Fx Asst Cnt.MIFRS 11 '!G23+'App.2-BA2_Fx Asst Cnt.MIFRS 11 '!J23+'App.2-BA2_Fx Asst Cnt.MIFRS 11 '!M23 -> 0 | D23: ='App.2-BA2_Fx Asst Cnt.MIFRS 11 '!E23 -> 0 | G23: 0 | H23: 0 | I23: 0 | J23: 0 | K23: =-'App.2-BA2_Fx Asst Cnt.MIFRS 11 '!K23 -> 0 | L23: 0 | M23: 0 | N23: 0 | O23: 0 | R23: 1825
A24: 1830 | B24: Poles, Towers & Fixtures | C24: ='App.2-BA2_Fx Asst Cnt.MIFRS 11 '!D24+'App.2-BA2_Fx Asst Cnt.MIFRS 11 '!G24+'App.2-BA2_Fx Asst Cnt.MIFRS 11 '!J24+'App.2-BA2_Fx Asst Cnt.MIFRS 11 '!M24 -> 15393254.69 | D24: ='App.2-BA2_Fx Asst Cnt.MIFRS 11 '!E24 -> 0 | E24: 22 | F24: 45 | G24: 0.02222222222 | H24: 699693.3951 | I24: 0 | J24: 699693.3951 | K24: =-'App.2-BA2_Fx Asst Cnt.MIFRS 11 '!K24 -> 0 | L24: 699693.3951 | M24: 0 | N24: 313314.1022 | O24: 386379.2929 | R24: 1830 | S24: -13619314.63
A25: 1835 | B25: Overhead Conductors & Devices | C25: ='App.2-BA2_Fx Asst Cnt.MIFRS 11 '!D25+'App.2-BA2_Fx Asst Cnt.MIFRS 11 '!G25+'App.2-BA2_Fx Asst Cnt.MIFRS 11 '!J25+'App.2-BA2_Fx Asst Cnt.MIFRS 11 '!M25 -> 7375320.331 | D25: ='App.2-BA2_Fx Asst Cnt.MIFRS 11 '!E25 -> 3040545.46 | E25: 23 | F25: 55 | G25: 0.01818181818 | H25: 320666.1013 | I25: 27641.32236 | J25: 348307.4237 | K25: =-'App.2-BA2_Fx Asst Cnt.MIFRS 11 '!K25 -> 1631888.43 | L25: -1283581.006 | M25: 55282.64473 | N25: 172774.3291 | O25: 203174.417 | R25: 1835 | S25: 17698650.59
A26: 1840 | B26: Underground Conduit | C26: ='App.2-BA2_Fx Asst Cnt.MIFRS 11 '!D26+'App.2-BA2_Fx Asst Cnt.MIFRS 11 '!G26+'App.2-BA2_Fx Asst Cnt.MIFRS 11 '!J26+'App.2-BA2_Fx Asst Cnt.MIFRS 11 '!M26 -> 0 | D26: ='App.2-BA2_Fx Asst Cnt.MIFRS 11 '!E26 -> 0 | G26: 0 | H26: 0 | I26: 0 | J26: 0 | K26: =-'App.2-BA2_Fx Asst Cnt.MIFRS 11 '!K26 -> 0 | L26: 0 | M26: 0 | N26: 0 | O26: 0 | R26: 1840
A27: 1845 | B27: Underground Conductors & Devices | C27: ='App.2-BA2_Fx Asst Cnt.MIFRS 11 '!D27+'App.2-BA2_Fx Asst Cnt.MIFRS 11 '!G27+'App.2-BA2_Fx Asst Cnt.MIFRS 11 '!J27+'App.2-BA2_Fx Asst Cnt.MIFRS 11 '!M27 -> 20570107.78 | D27: ='App.2-BA2_Fx Asst Cnt.MIFRS 11 '!E27 -> 3317590.608 | E27: 22 | F27: 38 | G27: 0.02631578947 | H27: 935004.8992 | I27: 43652.50799 | J27: 978657.4072 | K27: =-'App.2-BA2_Fx Asst Cnt.MIFRS 11 '!K27 -> 2310962.33 | L27: -1332304.923 | M27: 87305.01599 | N27: 359190.0411 | O27: 663119.8741 | R27: 1845 | S27: 14012503.16
A28: 1850 | B28: Line Transformers | C28: ='App.2-BA2_Fx Asst Cnt.MIFRS 11 '!D28+'App.2-BA2_Fx Asst Cnt.MIFRS 11 '!G28+'App.2-BA2_Fx Asst Cnt.MIFRS 11 '!J28+'App.2-BA2_Fx Asst Cnt.MIFRS 11 '!M28 -> 20271338.3 | D28: ='App.2-BA2_Fx Asst Cnt.MIFRS 11 '!E28 -> 68951.33 | E28: 20 | F28: 40 | G28: 0.025 | H28: 1013566.915 | I28: 861.891625 | J28: 1014428.807 | K28: =-'App.2-BA2_Fx Asst Cnt.MIFRS 11 '!K28 -> 361878.27 | L28: 652550.5366 | M28: 1723.78325 | N28: 372955.8121 | O28: 642334.8861 | R28: 1850 | S28: -14872043.99
A29: 1855 | B29: Services (Overhead & Underground) | C29: ='App.2-BA2_Fx Asst Cnt.MIFRS 11 '!D29+'App.2-BA2_Fx Asst Cnt.MIFRS 11 '!G29+'App.2-BA2_Fx Asst Cnt.MIFRS 11 '!J29+'App.2-BA2_Fx Asst Cnt.MIFRS 11 '!M29 -> 0 | D29: ='App.2-BA2_Fx Asst Cnt.MIFRS 11 '!E29 -> 0 | G29: 0 | H29: 0 | I29: 0 | J29: 0 | K29: =-'App.2-BA2_Fx Asst Cnt.MIFRS 11 '!K29 -> 0 | L29: 0 | M29: 0 | N29: 0 | O29: 0 | R29: 1855
A30: 1860 | B30: Meters | C30: ='App.2-BA2_Fx Asst Cnt.MIFRS 11 '!D30+'App.2-BA2_Fx Asst Cnt.MIFRS 11 '!G30+'App.2-BA2_Fx Asst Cnt.MIFRS 11 '!J30+'App.2-BA2_Fx Asst Cnt.MIFRS 11 '!M30 -> 3275990.161 | D30: ='App.2-BA2_Fx Asst Cnt.MIFRS 11 '!E30 -> 0 | E30: 14 | F30: 30 | G30: 0.03333333333 | H30: 233999.2972 | I30: 0 | J30: 233999.2972 | K30: =-'App.2-BA2_Fx Asst Cnt.MIFRS 11 '!K30 -> 1197416.09 | L30: -963416.7928 | M30: 0 | N30: -478728.1028 | O30: 712727.4 | R30: 1860 | S30: -242119.52
A31: 1860 | B31: Meters (Smart Meters) | C31: ='App.2-BA2_Fx Asst Cnt.MIFRS 11 '!D31+'App.2-BA2_Fx Asst Cnt.MIFRS 11 '!G31+'App.2-BA2_Fx Asst Cnt.MIFRS 11 '!J31+'App.2-BA2_Fx Asst Cnt.MIFRS 11 '!M31 -> 190564.3631 | D31: ='App.2-BA2_Fx Asst Cnt.MIFRS 11 '!E31 -> 6780571.38 | E31: 9 | F31: 10 | G31: 0.1 | H31: 21173.81812 | I31: 339028.569 | J31: 360202.3871 | K31: =-'App.2-BA2_Fx Asst Cnt.MIFRS 11 '!K31 -> 0 | L31: 360202.3871 | M31: 678057.138 | N31: 711629.709 | O31: -12398.75284 | R31: 1860.1
A32: 1905 | B32: Land | C32: ='App.2-BA2_Fx Asst Cnt.MIFRS 11 '!D32+'App.2-BA2_Fx Asst Cnt.MIFRS 11 '!G32+'App.2-BA2_Fx Asst Cnt.MIFRS 11 '!J32+'App.2-BA2_Fx Asst Cnt.MIFRS 11 '!M32 -> 0 | D32: ='App.2-BA2_Fx Asst Cnt.MIFRS 11 '!E32 -> 0 | G32: 0 | H32: 0 | I32: 0 | J32: 0 | K32: =-'App.2-BA2_Fx Asst Cnt.MIFRS 11 '!K32 -> 0 | L32: 0 | M32: 0 | N32: 0 | O32: 0 | R32: 1905
A33: 1908 | B33: Buildings & Fixtures | C33: ='App.2-BA2_Fx Asst Cnt.MIFRS 11 '!D33+'App.2-BA2_Fx Asst Cnt.MIFRS 11 '!G33+'App.2-BA2_Fx Asst Cnt.MIFRS 11 '!J33+'App.2-BA2_Fx Asst Cnt.MIFRS 11 '!M33 -> 0 | D33: ='App.2-BA2_Fx Asst Cnt.MIFRS 11 '!E33 -> 0 | G33: 0 | H33: 0 | I33: 0 | J33: 0 | K33: =-'App.2-BA2_Fx Asst Cnt.MIFRS 11 '!K33 -> 0 | L33: 0 | M33: 0 | N33: 0 | O33: 0 | R33: 1908
A34: 1910 | B34: Leasehold Improvements | C34: ='App.2-BA2_Fx Asst Cnt.MIFRS 11 '!D34+'App.2-BA2_Fx Asst Cnt.MIFRS 11 '!G34+'App.2-BA2_Fx Asst Cnt.MIFRS 11 '!J34+'App.2-BA2_Fx Asst Cnt.MIFRS 11 '!M34 -> 169642.21 | D34: ='App.2-BA2_Fx Asst Cnt.MIFRS 11 '!E34 -> 334284.62 | E34: 3 | F34: 5 | G34: 0.2 | H34: 56547.40333 | I34: 33428.462 | J34: 89975.86533 | K34: =-'App.2-BA2_Fx Asst Cnt.MIFRS 11 '!K34 -> 20313.74 | L34: 69662.12533 | M34: 66856.924 | N34: -27205.94567 | O34: 150610.273 | R34: 1910 | S34: -70147.35
A35: 1915 | B35: Office Furniture & Equipment (10 years) | C35: ='App.2-BA2_Fx Asst Cnt.MIFRS 11 '!D35+'App.2-BA2_Fx Asst Cnt.MIFRS 11 '!G35+'App.2-BA2_Fx Asst Cnt.MIFRS 11 '!J35+'App.2-BA2_Fx Asst Cnt.MIFRS 11 '!M35 -> 0 | D35: ='App.2-BA2_Fx Asst Cnt.MIFRS 11 '!E35 -> 0 | G35: 0 | H35: 0 | I35: 0 | J35: 0 | K35: =-'App.2-BA2_Fx Asst Cnt.MIFRS 11 '!K35 -> 0 | L35: 0 | M35: 0 | N35: 0 | O35: 0
A36: 1915 | B36: Office Furniture & Equipment (5 years) | C36: ='App.2-BA2_Fx Asst Cnt.MIFRS 11 '!D36+'App.2-BA2_Fx Asst Cnt.MIFRS 11 '!G36+'App.2-BA2_Fx Asst Cnt.MIFRS 11 '!J36+'App.2-BA2_Fx Asst Cnt.MIFRS 11 '!M36 -> 43620.82 | D36: ='App.2-BA2_Fx Asst Cnt.MIFRS 11 '!E36 -> 10957.75 | E36: 2 | F36: 5 | G36: 0.2 | H36: 21810.41 | I36: 1095.775 | J36: 22906.185 | K36: =-'App.2-BA2_Fx Asst Cnt.MIFRS 11 '!K36 -> 13587.86 | L36: 9318.325 | M36: 2191.55 | N36: 15593.658 | O36: 8408.302 | R36: 1915 | S36: 33280.58
A37: 1920 | B37: Computer Equipment - Hardware | C37: ='App.2-BA2_Fx Asst Cnt.MIFRS 11 '!D37+'App.2-BA2_Fx Asst Cnt.MIFRS 11 '!G37+'App.2-BA2_Fx Asst Cnt.MIFRS 11 '!J37+'App.2-BA2_Fx Asst Cnt.MIFRS 11 '!M37 -> 119692.62 | D37: ='App.2-BA2_Fx Asst Cnt.MIFRS 11 '!E37 -> 37421.3 | E37: 3 | F37: 4 | G37: 0.25 | H37: 39897.54 | I37: 4677.6625 | J37: 44575.2025 | K37: =-'App.2-BA2_Fx Asst Cnt.MIFRS 11 '!K37 -> 53176.65 | L37: -8601.4475 | M37: 9355.325 | N37: 49252.865 | O37: 0 | R37: 1920
A38: 1920 | B38: Computer Equip.-Hardware(Post Mar. 22/04) | C38: ='App.2-BA2_Fx Asst Cnt.MIFRS 11 '!D38+'App.2-BA2_Fx Asst Cnt.MIFRS 11 '!G38+'App.2-BA2_Fx Asst Cnt.MIFRS 11 '!J38+'App.2-BA2_Fx Asst Cnt.MIFRS 11 '!M38 -> -57524.15 | D38: ='App.2-BA2_Fx Asst Cnt.MIFRS 11 '!E38 -> 0 | F38: 4 | G38: 0.25 | H38: 0 | I38: 0 | J38: 0 | K38: =-'App.2-BA2_Fx Asst Cnt.MIFRS 11 '!K38 -> 0 | L38: 0 | M38: 0 | N38: -1208.54875 | O38: 1208.54875 | R38: 1920.1 | S38: -57524.15
A39: 1920 | B39: Computer Equip.-Hardware(Post Mar. 19/07) | C39: ='App.2-BA2_Fx Asst Cnt.MIFRS 11 '!D39+'App.2-BA2_Fx Asst Cnt.MIFRS 11 '!G39+'App.2-BA2_Fx Asst Cnt.MIFRS 11 '!J39+'App.2-BA2_Fx Asst Cnt.MIFRS 11 '!M39 -> 0 | D39: ='App.2-BA2_Fx Asst Cnt.MIFRS 11 '!E39 -> 0 | F39: 4 | G39: 0.25 | H39: 0 | I39: 0 | J39: 0 | K39: =-'App.2-BA2_Fx Asst Cnt.MIFRS 11 '!K39 -> 0 | L39: 0 | M39: 0 | N39: 0 | O39: 0 | R39: 1920
A40: 1930 | B40: Transportation Equipment | C40: ='App.2-BA2_Fx Asst Cnt.MIFRS 11 '!D40+'App.2-BA2_Fx Asst Cnt.MIFRS 11 '!G40+'App.2-BA2_Fx Asst Cnt.MIFRS 11 '!J40+'App.2-BA2_Fx Asst Cnt.MIFRS 11 '!M40 -> 527400.05 | D40: ='App.2-BA2_Fx Asst Cnt.MIFRS 11 '!E40 -> 585196.63 | E40: 4 | F40: 10 | G40: 0.1 | H40: 131850.0125 | I40: 29259.8315 | J40: 161109.844 | K40: =-'App.2-BA2_Fx Asst Cnt.MIFRS 11 '!K40 -> 179914.51 | L40: -18804.666 | M40: 58519.663 | N40: 89424.345 | O40: 100945.3305 | R40: 1930
A41: 1935 | B41: Stores Equipment | C41: ='App.2-BA2_Fx Asst Cnt.MIFRS 11 '!D41+'App.2-BA2_Fx Asst Cnt.MIFRS 11 '!G41+'App.2-BA2_Fx Asst Cnt.MIFRS 11 '!J41+'App.2-BA2_Fx Asst Cnt.MIFRS 11 '!M41 -> 403.01 | D41: ='App.2-BA2_Fx Asst Cnt.MIFRS 11 '!E41 -> 0 | E41: 4 | F41: 7 | G41: 0.1428571429 | H41: 100.7525 | I41: 0 | J41: 100.7525 | K41: =-'App.2-BA2_Fx Asst Cnt.MIFRS 11 '!K41 -> 115.02 | L41: -14.2675 | M41: 0 | N41: -187.1875 | O41: 287.94 | R41: 1935 | S41: -172.14
A42: 1940 | B42: Tools, Shop & Garage Equipment | C42: ='App.2-BA2_Fx Asst Cnt.MIFRS 11 '!D42+'App.2-BA2_Fx Asst Cnt.MIFRS 11 '!G42+'App.2-BA2_Fx Asst Cnt.MIFRS 11 '!J42+'App.2-BA2_Fx Asst Cnt.MIFRS 11 '!M42 -> 670449.5982 | D42: ='App.2-BA2_Fx Asst Cnt.MIFRS 11 '!E42 -> 110102.2 | E42: 6 | F42: 7 | G42: 0.1428571429 | H42: 111741.5997 | I42: 7864.442857 | J42: 119606.0426 | K42: =-'App.2-BA2_Fx Asst Cnt.MIFRS 11 '!K42 -> 93568.93 | L42: 26037.11255 | M42: 15728.88571 | N42: -83536.25259 | O42: 211006.738 | R42: 1940 | S42: -570309.11
A43: 1945 | B43: Measurement & Testing Equipment | C43: ='App.2-BA2_Fx Asst Cnt.MIFRS 11 '!D43+'App.2-BA2_Fx Asst Cnt.MIFRS 11 '!G43+'App.2-BA2_Fx Asst Cnt.MIFRS 11 '!J43+'App.2-BA2_Fx Asst Cnt.MIFRS 11 '!M43 -> 212545.15 | D43: ='App.2-BA2_Fx Asst Cnt.MIFRS 11 '!E43 -> 0 | E43: 5 | F43: 7 | G43: 0.1428571429 | H43: 42509.03 | I43: 0 | J43: 42509.03 | K43: =-'App.2-BA2_Fx Asst Cnt.MIFRS 11 '!K43 -> 56592.07 | L43: -14083.04 | M43: 0 | N43: 30098.91143 | O43: 12410.11857 | R43: 1945 | S43: 80589.88
A44: 1950 | B44: Power Operated Equipment | C44: ='App.2-BA2_Fx Asst Cnt.MIFRS 11 '!D44+'App.2-BA2_Fx Asst Cnt.MIFRS 11 '!G44+'App.2-BA2_Fx Asst Cnt.MIFRS 11 '!J44+'App.2-BA2_Fx Asst Cnt.MIFRS 11 '!M44 -> 0 | D44: ='App.2-BA2_Fx Asst Cnt.MIFRS 11 '!E44 -> 0 | G44: 0 | H44: 0 | I44: 0 | J44: 0 | K44: =-'App.2-BA2_Fx Asst Cnt.MIFRS 11 '!K44 -> 0 | L44: 0 | M44: 0 | N44: 0 | O44: 0 | R44: 1950
A45: 1955 | B45: Communications Equipment | C45: ='App.2-BA2_Fx Asst Cnt.MIFRS 11 '!D45+'App.2-BA2_Fx Asst Cnt.MIFRS 11 '!G45+'App.2-BA2_Fx Asst Cnt.MIFRS 11 '!J45+'App.2-BA2_Fx Asst Cnt.MIFRS 11 '!M45 -> 22797.34 | D45: ='App.2-BA2_Fx Asst Cnt.MIFRS 11 '!E45 -> 2000 | E45: 3 | F45: 10 | G45: 0.1 | H45: 7599.113333 | I45: 100 | J45: 7699.113333 | K45: =-'App.2-BA2_Fx Asst Cnt.MIFRS 11 '!K45 -> 9610.57 | L45: -1911.456667 | M45: 200 | N45: 2438.335333 | O45: 5360.778 | R45: 1955 | S45: 1449.45
A46: 1955 | B46: Communication Equipment (Smart Meters) | C46: ='App.2-BA2_Fx Asst Cnt.MIFRS 11 '!D46+'App.2-BA2_Fx Asst Cnt.MIFRS 11 '!G46+'App.2-BA2_Fx Asst Cnt.MIFRS 11 '!J46+'App.2-BA2_Fx Asst Cnt.MIFRS 11 '!M46 -> 0 | D46: ='App.2-BA2_Fx Asst Cnt.MIFRS 11 '!E46 -> 0 | F46: 10 | G46: 0.1 | H46: 0 | I46: 0 | J46: 0 | K46: =-'App.2-BA2_Fx Asst Cnt.MIFRS 11 '!K46 -> 0 | L46: 0 | M46: 0 | N46: 0 | O46: 0 | R46: 1955
A47: 1960 | B47: Miscellaneous Equipment | C47: ='App.2-BA2_Fx Asst Cnt.MIFRS 11 '!D47+'App.2-BA2_Fx Asst Cnt.MIFRS 11 '!G47+'App.2-BA2_Fx Asst Cnt.MIFRS 11 '!J47+'App.2-BA2_Fx Asst Cnt.MIFRS 11 '!M47 -> 35808.77 | D47: ='App.2-BA2_Fx Asst Cnt.MIFRS 11 '!E47 -> 0 | E47: 5 | F47: 10 | G47: 0.1 | H47: 7161.754 | I47: 0 | J47: 7161.754 | K47: =-'App.2-BA2_Fx Asst Cnt.MIFRS 11 '!K47 -> 0 | L47: 7161.754 | M47: 0 | N47: -9086.924 | O47: 16248.678 | R47: 1960 | S47: -48675.75
A48: 1970 | B48: Load Management Controls Customer Premises | C48: ='App.2-BA2_Fx Asst Cnt.MIFRS 11 '!D48+'App.2-BA2_Fx Asst Cnt.MIFRS 11 '!G48+'App.2-BA2_Fx Asst Cnt.MIFRS 11 '!J48+'App.2-BA2_Fx Asst Cnt.MIFRS 11 '!M48 -> 70871.39 | D48: ='App.2-BA2_Fx Asst Cnt.MIFRS 11 '!E48 -> 0 | E48: 10 | F48: 20 | G48: 0.05 | H48: 7087.139 | I48: 0 | J48: 7087.139 | K48: =-'App.2-BA2_Fx Asst Cnt.MIFRS 11 '!K48 -> 0 | L48: 7087.139 | M48: 0 | N48: 7087.139 | O48: 0 | R48: 1970 | S48: 70871.35
A49: 1975 | B49: Load Management Controls Utility Premises | C49: ='App.2-BA2_Fx Asst Cnt.MIFRS 11 '!D49+'App.2-BA2_Fx Asst Cnt.MIFRS 11 '!G49+'App.2-BA2_Fx Asst Cnt.MIFRS 11 '!J49+'App.2-BA2_Fx Asst Cnt.MIFRS 11 '!M49 -> 321804.21 | D49: ='App.2-BA2_Fx Asst Cnt.MIFRS 11 '!E49 -> 0 | E49: 12 | F49: 20 | G49: 0.05 | H49: 26817.0175 | I49: 0 | J49: 26817.0175 | K49: =-'App.2-BA2_Fx Asst Cnt.MIFRS 11 '!K49 -> 42447.92 | L49: -15630.9025 | M49: 0 | N49: 9322.7275 | O49: 17494.29 | R49: 1975 | S49: 25001.42
A50: 1980 | B50: System Supervisor Equipment | C50: ='App.2-BA2_Fx Asst Cnt.MIFRS 11 '!D50+'App.2-BA2_Fx Asst Cnt.MIFRS 11 '!G50+'App.2-BA2_Fx Asst Cnt.MIFRS 11 '!J50+'App.2-BA2_Fx Asst Cnt.MIFRS 11 '!M50 -> -0.72 | D50: ='App.2-BA2_Fx Asst Cnt.MIFRS 11 '!E50 -> 0 | G50: 0 | H50: 0 | I50: 0 | J50: 0 | K50: =-'App.2-BA2_Fx Asst Cnt.MIFRS 11 '!K50 -> 0 | L50: 0 | M50: 0 | N50: 0 | O50: 0 | R50: 1980
A51: 1985 | B51: Miscellaneous Fixed Assets | C51: ='App.2-BA2_Fx Asst Cnt.MIFRS 11 '!D51+'App.2-BA2_Fx Asst Cnt.MIFRS 11 '!G51+'App.2-BA2_Fx Asst Cnt.MIFRS 11 '!J51+'App.2-BA2_Fx Asst Cnt.MIFRS 11 '!M51 -> 0 | D51: ='App.2-BA2_Fx Asst Cnt.MIFRS 11 '!E51 -> 0 | G51: 0 | H51: 0 | I51: 0 | J51: 0 | K51: =-'App.2-BA2_Fx Asst Cnt.MIFRS 11 '!K51 -> 0 | L51: 0 | M51: 0 | N51: 0 | O51: 0 | R51: 1985
A52: 1990 | B52: Other Tangible Property | C52: ='App.2-BA2_Fx Asst Cnt.MIFRS 11 '!D52+'App.2-BA2_Fx Asst Cnt.MIFRS 11 '!G52+'App.2-BA2_Fx Asst Cnt.MIFRS 11 '!J52+'App.2-BA2_Fx Asst Cnt.MIFRS 11 '!M52 -> 0 | D52: ='App.2-BA2_Fx Asst Cnt.MIFRS 11 '!E52 -> 0 | G52: 0 | H52: 0 | I52: 0 | J52: 0 | K52: =-'App.2-BA2_Fx Asst Cnt.MIFRS 11 '!K52 -> 0 | L52: 0 | M52: 0 | N52: 0 | O52: 0 | R52: 1990
A53: 1995 | B53: Contributions & Grants | C53: ='App.2-BA2_Fx Asst Cnt.MIFRS 11 '!D53+'App.2-BA2_Fx Asst Cnt.MIFRS 11 '!G53+'App.2-BA2_Fx Asst Cnt.MIFRS 11 '!J53+'App.2-BA2_Fx Asst Cnt.MIFRS 11 '!M53 -> -22617001.4 | D53: ='App.2-BA2_Fx Asst Cnt.MIFRS 11 '!E53 -> -930790.87 | E53: 20 | F53: 45 | G53: 0.02222222222 | H53: -1130850.07 | I53: -10342.12078 | J53: -1141192.191 | K53: =-'App.2-BA2_Fx Asst Cnt.MIFRS 11 '!K53 -> -1156809.65 | L53: 15617.45912 | M53: -20684.24156 | N53: -596795.9714 | O53: -554738.3402 | R53: 1995 | S53: -534474.902
A54: etc. | C54: ='App.2-BA2_Fx Asst Cnt.MIFRS 11 '!D54+'App.2-BA2_Fx Asst Cnt.MIFRS 11 '!G54+'App.2-BA2_Fx Asst Cnt.MIFRS 11 '!J54+'App.2-BA2_Fx Asst Cnt.MIFRS 11 '!M54 -> 0 | D54: ='App.2-BA2_Fx Asst Cnt.MIFRS 11 '!E54 -> 0 | G54: 0 | H54: 0 | I54: 0 | J54: 0 | L54: 0 | M54: 0 | O54: 0
G55: 0 | H55: 0 | I55: 0 | J55: 0 | L55: 0 | M55: 0 | O55: 0
B56: Total | C56: =SUM(C16:C55) -> 52620169.92 | D56: =SUM(D16:D55) -> 16497772.96 | H56: =SUM(H16:H55) -> 2906516.098 | I56: 573760.1208 | J56: 3480276.219 | K56: 5270202.84 | L56: -1789926.621 | M56: 1147520.242 | N56: =SUM(N16:N55) -> 1090305.95 | O56: 2963730.39 | S56: =SUM(S16:S55) -> 1789927.008
B57: Depreciation exp. adj. from gain or loss on the retirement of assets (pool of like assets) | J57: 0
B58: Total | J58: =+J57+J56 -> 3480276.219 | S58: =K56-S56 -> 3480275.832 | T58: 2011 CGAAP Depn less MIFRS Adj
A59: Notes:
A61: 1 | B61: Board policy of the "half-year" rule - the applicant must ensure that additions in the year attract a half-year depreciation expense in the first year. Deviations from this standard practice must be supported in the application. | S61: =S58-J58 -> -0.3871412608
A62: 2 | B62: The applicant must provide an explanation of material variances in evidence.
A63: 3 | B63: The applicant should ensure that the years for new additions of assets are the asset useful lives determined by management in accordance with IFRS.
A64: 4 | B64: A recalculation should be performed to determine the average remaining life of opening balance of assets (i.e. excluding 2011 additions) under IFRS. For example, Asset A had a useful life of 20 years under CGAAP. On January 1, 2011, the date of transition, Asset A was 3 years depreciated. As a result, Asset A would have a remaining service life of 17 years (20 years less 3 years) under CGAAP as of January 1, 2011. Due to the transition to IFRS, management re-assessed the asset useful lives under IFRS principles and concluded that the revised useful life of Asset A is now 30 years. Therefore, the average remaining useful life of opening balance of Asset A is determined to be 27 years (30 years less 3 years) under IFRS as of January 1, 2011.
A65: 5 | B65: NBV must exclude assets still on the books but which have been fully amortized or depreciated.
A66: 6 | B66: This column refers to the calculated full year depreciation but excludes the depreciation expense on assets fully depreciated during the year. This column is used for the purpose of calculating depreciation expense in the following year on the next worksheet.
A68: General: | B68: Applicants must provide a breakdown of depreciation and amortization expense in the above format for all relevant accounts. Asset Retirement Obligations (AROs), depreciation and accretion expense should be disclosed separately consistent with the Notes of historical Audited Financial Statements.

Sheet App.2-CC_MIFRS_DepExp_2012
J1: File Number: | K1: =EBNUMBER -> EB-2014-0101
J2: Exhibit:
J3: Tab:
J4: Schedule:
J5: Page:
J7: Date:
A9: Appendix 2-CC
A10: Depreciation and Amortization Expense
A11: Assumes the applicant adopted IFRS for financial reporting purposes January 1, 2012
C12: 2012 | D12: MIFRS
A14: Account | B14: Description | C14: Additions | D14: Years (new additions only) | E14: Depreciation Rate on New Additions | F14: 2012 Depreciation Expense 1 | G14: 2012 Depreciation Expense per Apppendix 2-B Fixed Assets, Column K (l) | H14: Variance 2 | I14: Depreciation Expense on 2012 Full Year Additions | J14: Less Depreciation Expense on Assets Fully Depreciated during the year (o) | K14: 2012 Full Year Depreciation 3
C15: (d) | D15: (f) | E15: (g) = 1 / (f) | F15: (h)=2011 Full Year Deprecation + ((d)*0.5)/(f) | H15: (m) = (h) - (l) | I15: (n)=((d))/(f) | K15: (p) = 2011 Full Year Depreciation + (n) - (o)
A16: 1611 | B16: Computer Software (Formally known as Account 1925) | C16: ='App.2-BA2_Fx Asst Cnt.MIFRS 12'!E16 -> 459114.56 | D16: 3 | E16: =IF(D16=0,0,1/D16) -> 0.3333333333 | F16: =IF(D16=0,'App.2-CB_MIFRS_DepExp_2011'!O16,+'App.2-CB_MIFRS_DepExp_2011'!O16+((C16*0.5)/D16)) -> 206524.86 | G16: =-'App.2-BA2_Fx Asst Cnt.MIFRS 12'!J16 -> 206524.86 | H16: =IF(ISERROR(+F16-G16), 0, +F16-G16) -> 0 | I16: =IF(D16=0,0,+(C16)/D16) -> 153038.1867 | J16: 2463.6 | K16: =F16+I16/2-J16 -> 280580.3533
A17: 1612 | B17: Land Rights (Formally known as Account 1906) | C17: ='App.2-BA2_Fx Asst Cnt.MIFRS 12'!E17 -> 0 | E17: 0 | F17: =IF(D17=0,+'App.2-CB_MIFRS_DepExp_2011'!O17,+'App.2-CB_MIFRS_DepExp_2011'!O17+((C17*0.5)/D17)) -> 0 | G17: =-'App.2-BA2_Fx Asst Cnt.MIFRS 12'!J17 -> 0 | H17: 0 | I17: 0 | J17: 0 | K17: =IF(ISERROR(+I17+'App.2-CB_MIFRS_DepExp_2011'!O17-J17), 0, +I17+'App.2-CB_MIFRS_DepExp_2011'!O17-J17) -> 0
A18: 1805 | B18: Land | C18: ='App.2-BA2_Fx Asst Cnt.MIFRS 12'!E18 -> 0 | E18: 0 | F18: =IF(D18=0,'App.2-CB_MIFRS_DepExp_2011'!O18,+'App.2-CB_MIFRS_DepExp_2011'!O18+((C18*0.5)/D18)) -> 0 | G18: =-'App.2-BA2_Fx Asst Cnt.MIFRS 12'!J18 -> 0 | H18: 0 | I18: 0 | J18: 0 | K18: =F18+I18/2-J18 -> 0
A19: 1808 | B19: Buildings | C19: ='App.2-BA2_Fx Asst Cnt.MIFRS 12'!E19 -> 0 | D19: 62 | E19: 0.01612903226 | F19: =IF(D19=0,'App.2-CB_MIFRS_DepExp_2011'!O19,+'App.2-CB_MIFRS_DepExp_2011'!O19+((C19*0.5)/D19)) -> 14235.79 | G19: =-'App.2-BA2_Fx Asst Cnt.MIFRS 12'!J19 -> 14235.79 | H19: 0 | I19: 0 | J19: 0 | K19: 14235.79
A20: 1810 | B20: Leasehold Improvements | C20: ='App.2-BA2_Fx Asst Cnt.MIFRS 12'!E20 -> 0 | E20: 0 | F20: =IF(D20=0,'App.2-CB_MIFRS_DepExp_2011'!O20,+'App.2-CB_MIFRS_DepExp_2011'!O20+((C20*0.5)/D20)) -> 0 | G20: =-'App.2-BA2_Fx Asst Cnt.MIFRS 12'!J20 -> 0 | H20: 0 | I20: 0 | J20: 0 | K20: 0
A21: 1815 | B21: Transformer Station Equipment >50 kV | C21: ='App.2-BA2_Fx Asst Cnt.MIFRS 12'!E21 -> 0 | E21: 0 | F21: =IF(D21=0,'App.2-CB_MIFRS_DepExp_2011'!O21,+'App.2-CB_MIFRS_DepExp_2011'!O21+((C21*0.5)/D21)) -> 0 | G21: =-'App.2-BA2_Fx Asst Cnt.MIFRS 12'!J21 -> 0 | H21: 0 | I21: 0 | J21: 0 | K21: 0
A22: 1820 | B22: Distribution Station Equipment <50 kV | C22: ='App.2-BA2_Fx Asst Cnt.MIFRS 12'!E22 -> 4461904.858 | D22: 45 | E22: 0.02222222222 | F22: =IF(D22=0,'App.2-CB_MIFRS_DepExp_2011'!O22,+'App.2-CB_MIFRS_DepExp_2011'!O22+((C22*0.5)/D22)) -> 304485.78 | G22: =-'App.2-BA2_Fx Asst Cnt.MIFRS 12'!J22 -> 304485.78 | H22: 0 | I22: 99153.44129 | J22: 52.41 | K22: 354010.0906
A23: 1825 | B23: Storage Battery Equipment | C23: ='App.2-BA2_Fx Asst Cnt.MIFRS 12'!E23 -> 0 | E23: 0 | F23: =IF(D23=0,'App.2-CB_MIFRS_DepExp_2011'!O23,+'App.2-CB_MIFRS_DepExp_2011'!O23+((C23*0.5)/D23)) -> 0 | G23: =-'App.2-BA2_Fx Asst Cnt.MIFRS 12'!J23 -> 0 | H23: 0 | I23: 0 | J23: 0 | K23: 0
A24: 1830 | B24: Poles, Towers & Fixtures | C24: ='App.2-BA2_Fx Asst Cnt.MIFRS 12'!E24 -> 1593280.539 | D24: 45 | E24: 0.02222222222 | F24: =IF(D24=0,'App.2-CB_MIFRS_DepExp_2011'!O24,+'App.2-CB_MIFRS_DepExp_2011'!O24+((C24*0.5)/D24)) -> 404082.41 | G24: =-'App.2-BA2_Fx Asst Cnt.MIFRS 12'!J24 -> 404082.41 | H24: 0 | I24: 35406.2342 | J24: 0.01 | K24: 421785.5171
A25: 1835 | B25: Overhead Conductors & Devices | C25: ='App.2-BA2_Fx Asst Cnt.MIFRS 12'!E25 -> 806544.5317 | D25: 55 | E25: 0.01818181818 | F25: =IF(D25=0,'App.2-CB_MIFRS_DepExp_2011'!O25,+'App.2-CB_MIFRS_DepExp_2011'!O25+((C25*0.5)/D25)) -> 210506.64 | G25: =-'App.2-BA2_Fx Asst Cnt.MIFRS 12'!J25 -> 210506.64 | H25: 0 | I25: 14664.44603 | J25: 111.29 | K25: 217727.573
A26: 1840 | B26: Underground Conduit | C26: ='App.2-BA2_Fx Asst Cnt.MIFRS 12'!E26 -> 0 | E26: 0 | F26: =IF(D26=0,'App.2-CB_MIFRS_DepExp_2011'!O26,+'App.2-CB_MIFRS_DepExp_2011'!O26+((C26*0.5)/D26)) -> 0 | G26: =-'App.2-BA2_Fx Asst Cnt.MIFRS 12'!J26 -> 0 | H26: 0 | I26: 0 | J26: 0 | K26: 0
A27: 1845 | B27: Underground Conductors & Devices | C27: ='App.2-BA2_Fx Asst Cnt.MIFRS 12'!E27 -> 878002.6092 | D27: 38 | E27: 0.02631578947 | F27: =IF(D27=0,'App.2-CB_MIFRS_DepExp_2011'!O27,+'App.2-CB_MIFRS_DepExp_2011'!O27+((C27*0.5)/D27)) -> 674672.54 | G27: =-'App.2-BA2_Fx Asst Cnt.MIFRS 12'!J27 -> 674672.54 | H27: 0 | I27: 23105.33182 | J27: 1981.21 | K27: 684243.9959
A28: 1850 | B28: Line Transformers | C28: ='App.2-BA2_Fx Asst Cnt.MIFRS 12'!E28 -> 1865329.111 | D28: 40 | E28: 0.025 | F28: =IF(D28=0,'App.2-CB_MIFRS_DepExp_2011'!O28,+'App.2-CB_MIFRS_DepExp_2011'!O28+((C28*0.5)/D28)) -> 665651.5 | G28: =-'App.2-BA2_Fx Asst Cnt.MIFRS 12'!J28 -> 665651.5 | H28: 0 | I28: 46633.22777 | J28: 0 | K28: 688968.1139
A29: 1855 | B29: Services (Overhead & Underground) | C29: ='App.2-BA2_Fx Asst Cnt.MIFRS 12'!E29 -> 0 | E29: 0 | F29: =IF(D29=0,'App.2-CB_MIFRS_DepExp_2011'!O29,+'App.2-CB_MIFRS_DepExp_2011'!O29+((C29*0.5)/D29)) -> 0 | G29: =-'App.2-BA2_Fx Asst Cnt.MIFRS 12'!J29 -> 0 | H29: 0 | I29: 0 | J29: 0 | K29: 0
A30: 1860 | B30: Meters | C30: ='App.2-BA2_Fx Asst Cnt.MIFRS 12'!E30 -> 0 | D30: 30 | E30: 0.03333333333 | F30: =IF(D30=0,'App.2-CB_MIFRS_DepExp_2011'!O30,+'App.2-CB_MIFRS_DepExp_2011'!O30+((C30*0.5)/D30)) -> 712727.4 | G30: =-'App.2-BA2_Fx Asst Cnt.MIFRS 12'!J30 -> 712727.4 | H30: 0 | I30: 0 | J30: 609.02 | K30: 712118.38
A31: 1860 | B31: Meters (Smart Meters) | C31: ='App.2-BA2_Fx Asst Cnt.MIFRS 12'!E31 -> 247975.0569 | D31: 10 | E31: 0.1 | F31: =IF(D31=0,'App.2-CB_MIFRS_DepExp_2011'!O31,+'App.2-CB_MIFRS_DepExp_2011'!O31+((C31*0.5)/D31)) -> 4.001776688e-11 | G31: =-'App.2-BA2_Fx Asst Cnt.MIFRS 12'!J31 -> 0 | H31: 4.001776688e-11 | I31: 24797.50569 | K31: 12398.75284
A32: 1905 | B32: Land | C32: ='App.2-BA2_Fx Asst Cnt.MIFRS 12'!E32 -> 0 | E32: 0 | F32: =IF(D32=0,'App.2-CB_MIFRS_DepExp_2011'!O32,+'App.2-CB_MIFRS_DepExp_2011'!O32+((C32*0.5)/D32)) -> 0 | G32: =-'App.2-BA2_Fx Asst Cnt.MIFRS 12'!J32 -> 0 | H32: 0 | I32: 0 | J32: 0 | K32: 0
A33: 1908 | B33: Buildings & Fixtures | C33: ='App.2-BA2_Fx Asst Cnt.MIFRS 12'!E33 -> 0 | E33: 0 | F33: =IF(D33=0,'App.2-CB_MIFRS_DepExp_2011'!O33,+'App.2-CB_MIFRS_DepExp_2011'!O33+((C33*0.5)/D33)) -> 0 | G33: =-'App.2-BA2_Fx Asst Cnt.MIFRS 12'!J33 -> 0 | H33: 0 | I33: 0 | J33: 0 | K33: 0
A34: 1910 | B34: Leasehold Improvements | C34: ='App.2-BA2_Fx Asst Cnt.MIFRS 12'!E34 -> 200045.87 | D34: 5 | E34: 0.2 | F34: =IF(D34=0,'App.2-CB_MIFRS_DepExp_2011'!O34,+'App.2-CB_MIFRS_DepExp_2011'!O34+((C34*0.5)/D34)) -> 170614.86 | G34: =-'App.2-BA2_Fx Asst Cnt.MIFRS 12'!J34 -> 170614.86 | H34: 0 | I34: 40009.174 | J34: 1401.92 | K34: 189217.527
A35: 1915 | B35: Office Furniture & Equipment (10 years) | C35: ='App.2-BA2_Fx Asst Cnt.MIFRS 12'!E35 -> 0 | E35: 0 | F35: =IF(D35=0,'App.2-CB_MIFRS_DepExp_2011'!O35,+'App.2-CB_MIFRS_DepExp_2011'!O35+((C35*0.5)/D35)) -> 0 | G35: =-'App.2-BA2_Fx Asst Cnt.MIFRS 12'!J35 -> 0 | H35: 0 | I35: 0 | J35: 977.54 | K35: -977.54
A36: 1915 | B36: Office Furniture & Equipment (5 years) | C36: ='App.2-BA2_Fx Asst Cnt.MIFRS 12'!E36 -> 6911.36 | D36: 10 | E36: 0.1 | F36: =IF(D36=0,'App.2-CB_MIFRS_DepExp_2011'!O36,+'App.2-CB_MIFRS_DepExp_2011'!O36+((C36*0.5)/D36)) -> 8753.87 | G36: =-'App.2-BA2_Fx Asst Cnt.MIFRS 12'!J36 -> 8753.87 | H36: 0 | I36: 691.136 | K36: 9099.438
A37: 1920 | B37: Computer Equipment - Hardware | C37: ='App.2-BA2_Fx Asst Cnt.MIFRS 12'!E37 -> 0 | D37: 4 | E37: 0.25 | F37: =IF(D37=0,'App.2-CB_MIFRS_DepExp_2011'!O37,+'App.2-CB_MIFRS_DepExp_2011'!O37+((C37*0.5)/D37)) -> 0 | G37: =-'App.2-BA2_Fx Asst Cnt.MIFRS 12'!J37 -> 0 | H37: 0 | I37: 0 | J37: 3008.32 | K37: -3008.32
A38: 1920 | B38: Computer Equip.-Hardware(Post Mar. 22/04) | C38: ='App.2-BA2_Fx Asst Cnt.MIFRS 12'!E38 -> 129775.53 | D38: 4 | E38: 0.25 | F38: =IF(D38=0,'App.2-CB_MIFRS_DepExp_2011'!O38,+'App.2-CB_MIFRS_DepExp_2011'!O38+((C38*0.5)/D38)) -> 17430.49 | G38: =-'App.2-BA2_Fx Asst Cnt.MIFRS 12'!J38 -> 17430.49 | H38: 0 | I38: 32443.8825 | K38: 33652.43125
A39: 1920 | B39: Computer Equip.-Hardware(Post Mar. 19/07) | C39: ='App.2-BA2_Fx Asst Cnt.MIFRS 12'!E39 -> 0 | D39: 4 | E39: 0.25 | F39: =IF(D39=0,'App.2-CB_MIFRS_DepExp_2011'!O39,+'App.2-CB_MIFRS_DepExp_2011'!O39+((C39*0.5)/D39)) -> 0 | G39: =-'App.2-BA2_Fx Asst Cnt.MIFRS 12'!J39 -> 0 | H39: 0 | I39: 0 | K39: 0
A40: 1930 | B40: Transportation Equipment | C40: ='App.2-BA2_Fx Asst Cnt.MIFRS 12'!E40 -> 1405317.19 | D40: 10 | E40: 0.1 | F40: =IF(D40=0,'App.2-CB_MIFRS_DepExp_2011'!O40,+'App.2-CB_MIFRS_DepExp_2011'!O40+((C40*0.5)/D40)) -> 171211.19 | G40: =-'App.2-BA2_Fx Asst Cnt.MIFRS 12'!J40 -> 171211.19 | H40: 0 | I40: 140531.719 | J40: 0 | K40: 241477.0495
A41: 1935 | B41: Stores Equipment | C41: ='App.2-BA2_Fx Asst Cnt.MIFRS 12'!E41 -> 0 | D41: 7 | E41: 0.1428571429 | F41: =IF(D41=0,'App.2-CB_MIFRS_DepExp_2011'!O41,+'App.2-CB_MIFRS_DepExp_2011'!O41+((C41*0.5)/D41)) -> 287.94 | G41: =-'App.2-BA2_Fx Asst Cnt.MIFRS 12'!J41 -> 287.94 | H41: 0 | I41: 0 | J41: 287.94 | K41: 5.684341886e-13
A42: 1940 | B42: Tools, Shop & Garage Equipment | C42: ='App.2-BA2_Fx Asst Cnt.MIFRS 12'!E42 -> 84727.88809 | D42: 7 | E42: 0.1428571429 | F42: =IF(D42=0,'App.2-CB_MIFRS_DepExp_2011'!O42,+'App.2-CB_MIFRS_DepExp_2011'!O42+((C42*0.5)/D42)) -> 217058.73 | G42: =-'App.2-BA2_Fx Asst Cnt.MIFRS 12'!J42 -> 217058.73 | H42: 0 | I42: 12103.98401 | J42: 42543.23 | K42: 180567.492
A43: 1945 | B43: Measurement & Testing Equipment | C43: ='App.2-BA2_Fx Asst Cnt.MIFRS 12'!E43 -> 14905.12 | D43: 7 | E43: 0.1428571429 | F43: =IF(D43=0,'App.2-CB_MIFRS_DepExp_2011'!O43,+'App.2-CB_MIFRS_DepExp_2011'!O43+((C43*0.5)/D43)) -> 13474.77 | G43: =-'App.2-BA2_Fx Asst Cnt.MIFRS 12'!J43 -> 13474.77 | H43: 1.818989404e-12 | I43: 2129.302857 | J43: 0 | K43: 14539.42143
A44: 1950 | B44: Power Operated Equipment | C44: ='App.2-BA2_Fx Asst Cnt.MIFRS 12'!E44 -> 0 | E44: 0 | F44: =IF(D44=0,'App.2-CB_MIFRS_DepExp_2011'!O44,+'App.2-CB_MIFRS_DepExp_2011'!O44+((C44*0.5)/D44)) -> 0 | G44: =-'App.2-BA2_Fx Asst Cnt.MIFRS 12'!J44 -> 0 | H44: 0 | I44: 0 | J44: 0 | K44: 0
A45: 1955 | B45: Communications Equipment | C45: ='App.2-BA2_Fx Asst Cnt.MIFRS 12'!E45 -> 147267.44 | D45: 10 | E45: 0.1 | F45: =IF(D45=0,'App.2-CB_MIFRS_DepExp_2011'!O45,+'App.2-CB_MIFRS_DepExp_2011'!O45+((C45*0.5)/D45)) -> 12724.15 | G45: =-'App.2-BA2_Fx Asst Cnt.MIFRS 12'!J45 -> 12724.15 | H45: 0 | I45: 14726.744 | J45: 19.46 | K45: 20068.062
A46: 1955 | B46: Communication Equipment (Smart Meters) | C46: ='App.2-BA2_Fx Asst Cnt.MIFRS 12'!E46 -> 0 | D46: 10 | E46: 0.1 | F46: =IF(D46=0,'App.2-CB_MIFRS_DepExp_2011'!O46,+'App.2-CB_MIFRS_DepExp_2011'!O46+((C46*0.5)/D46)) -> 0 | G46: =-'App.2-BA2_Fx Asst Cnt.MIFRS 12'!J46 -> 0 | H46: 0 | I46: 0 | K46: 0
A47: 1960 | B47: Miscellaneous Equipment | C47: ='App.2-BA2_Fx Asst Cnt.MIFRS 12'!E47 -> 62078.24 | D47: 10 | E47: 0.1 | F47: =IF(D47=0,'App.2-CB_MIFRS_DepExp_2011'!O47,+'App.2-CB_MIFRS_DepExp_2011'!O47+((C47*0.5)/D47)) -> 19352.59 | G47: =-'App.2-BA2_Fx Asst Cnt.MIFRS 12'!J47 -> 19352.59 | H47: 0 | I47: 6207.824 | J47: 3312.54 | K47: 19143.962
A48: 1970 | B48: Load Management Controls Customer Premises | C48: ='App.2-BA2_Fx Asst Cnt.MIFRS 12'!E48 -> 0 | D48: 20 | E48: 0.05 | F48: =IF(D48=0,'App.2-CB_MIFRS_DepExp_2011'!O48,+'App.2-CB_MIFRS_DepExp_2011'!O48+((C48*0.5)/D48)) -> 0 | G48: =-'App.2-BA2_Fx Asst Cnt.MIFRS 12'!J48 -> 0 | H48: 0 | I48: 0 | J48: 0 | K48: 0
A49: 1975 | B49: Load Management Controls Utility Premises | C49: ='App.2-BA2_Fx Asst Cnt.MIFRS 12'!E49 -> 0 | D49: 20 | E49: 0.05 | F49: =IF(D49=0,'App.2-CB_MIFRS_DepExp_2011'!O49,+'App.2-CB_MIFRS_DepExp_2011'!O49+((C49*0.5)/D49)) -> 17494.29 | G49: =-'App.2-BA2_Fx Asst Cnt.MIFRS 12'!J49 -> 17494.29 | H49: 0 | I49: 0 | J49: 0 | K49: 17494.29
A50: 1980 | B50: System Supervisor Equipment | C50: ='App.2-BA2_Fx Asst Cnt.MIFRS 12'!E50 -> 0 | E50: 0 | F50: =IF(D50=0,'App.2-CB_MIFRS_DepExp_2011'!O50,+'App.2-CB_MIFRS_DepExp_2011'!O50+((C50*0.5)/D50)) -> 0 | G50: =-'App.2-BA2_Fx Asst Cnt.MIFRS 12'!J50 -> 0 | H50: 0 | I50: 0 | J50: 0 | K50: 0
A51: 1985 | B51: Miscellaneous Fixed Assets | C51: ='App.2-BA2_Fx Asst Cnt.MIFRS 12'!E51 -> 0 | E51: 0 | F51: =IF(D51=0,'App.2-CB_MIFRS_DepExp_2011'!O51,+'App.2-CB_MIFRS_DepExp_2011'!O51+((C51*0.5)/D51)) -> 0 | G51: =-'App.2-BA2_Fx Asst Cnt.MIFRS 12'!J51 -> 0 | H51: 0 | I51: 0 | J51: 0 | K51: 0
A52: 1990 | B52: Other Tangible Property | C52: ='App.2-BA2_Fx Asst Cnt.MIFRS 12'!E52 -> 0 | E52: 0 | F52: =IF(D52=0,'App.2-CB_MIFRS_DepExp_2011'!O52,+'App.2-CB_MIFRS_DepExp_2011'!O52+((C52*0.5)/D52)) -> 0 | G52: =-'App.2-BA2_Fx Asst Cnt.MIFRS 12'!J52 -> 0 | H52: 0 | I52: 0 | J52: 0 | K52: 0
A53: 1995 | B53: Contributions & Grants | C53: ='App.2-BA2_Fx Asst Cnt.MIFRS 12'!E53 -> -1271166.46 | D53: 45 | E53: 0.02222222222 | F53: =IF(D53=0,'App.2-CB_MIFRS_DepExp_2011'!O53,+'App.2-CB_MIFRS_DepExp_2011'!O53+((C53*0.5)/D53)) -> -568862.412 | G53: =-'App.2-BA2_Fx Asst Cnt.MIFRS 12'!J53 -> -572038.41 | H53: 3175.998 | I53: -28248.14356 | J53: -642.01 | K53: -582344.4738
A54: etc. | E54: 0 | F54: =-'App.2-BA2_Fx Asst Cnt.MIFRS 12'!J54 -> 0 | H54: 0 | I54: 0 | K54: =IF(ISERROR(+I54+'App.2-CB_MIFRS_DepExp_2011'!O54-J54), 0, +I54+'App.2-CB_MIFRS_DepExp_2011'!O54-J54) -> 0
E55: 0 | F55: =-'App.2-BA2_Fx Asst Cnt.MIFRS 12'!J55 -> 0 | H55: 0 | I55: 0 | K55: =IF(ISERROR(+I55+'App.2-CB_MIFRS_DepExp_2011'!O55-J55), 0, +I55+'App.2-CB_MIFRS_DepExp_2011'!O55-J55) -> 0
B56: Total | C56: =SUM(C16:C55) -> 11092013.44 | F56: =SUM(F16:F55) -> 3272427.388 | G56: 3269251.39 | H56: 3175.998 | I56: 617393.9963 | J56: 56126.48 | K56: 3524997.906
B57: Depreciation exp. adj. from gain or loss on the retirement of assets (pool of like assets) | F57: =-H56 -> -3175.998
B58: Total | F58: =+F56+F57 -> 3269251.39
A59: Notes:
A60: 1 | B60: Board policy of the "half-year" rule - the applicant must ensure that additions in the year attract a half-year depreciation expense in the first year. Deviations from this standard practice must be supported in the application.
A61: 2 | B61: The applicant must provide an explanation of material variances in evidence.
A62: 3 | B62: This column refers to the calculated full year depreciation but excludes the depreciation expense on assets fully depreciated during the year. This column is used for the purpose of calculating depreciation expense in the following year on the next worksheet.
A64: General: | B64: Applicants must provide a breakdown of depreciation and amortization expense in the above format for all relevant accounts. Asset Retirement Obligations (AROs), depreciation and accretion expense should be disclosed separately consistent with the Notes of historical Audited Financial Statements.

Sheet App.2-CD_MIFRS_DepExp_2013
J1: File Number: | K1: =EBNUMBER -> EB-2014-0101
J2: Exhibit:
J3: Tab:
J4: Schedule:
J5: Page:
J7: Date:
A9: Appendix 2-CD
A10: Depreciation and Amortization Expense
A11: Assumes the applicant adopted IFRS for financial reporting purposes January 1, 2012
C12: 2013 | D12: MIFRS
A14: Account | B14: Description | C14: Additions | D14: Years (new additions only) | E14: Depreciation Rate on New Additions | F14: 2013 Depreciation Expense 1 | G14: 2013 Depreciation Expense per Apppendix 2-B Fixed Assets, Column K (l) | H14: Variance 2 | I14: Depreciation Expense on 2013 Full Year Additions | J14: Less Depreciation Expense on Assets Fully Depreciated during the year (o) | K14: 2013 Full Year Depreciation 3
C15: (d) | D15: (f) | E15: (g) = 1 / (f) | F15: (h)=2012 Full Year Deprecation + ((d)*0.5)/(f) | H15: (m) = (h) - (l) | I15: (n)=((d))/(f) | K15: (p) = 2012 Full Year Depreciation + (n) - (o)
A16: 1611 | B16: Computer Software (Formally known as Account 1925) | C16: ='App.2-BA2_Fx Asst Cnt.MIFRS 13'!E16 -> 377372 | D16: 3 | E16: =IF(D16=0,0,1/D16) -> 0.3333333333 | F16: =IF(D16=0,'App.2-CC_MIFRS_DepExp_2012'!K16,+'App.2-CC_MIFRS_DepExp_2012'!K16+((C16*0.5)/D16)) -> 343475.6867 | G16: =-'App.2-BA2_Fx Asst Cnt.MIFRS 13'!J16 -> 366622 | H16: =IF(ISERROR(+F16-G16), 0, +F16-G16) -> -23146.31333 | I16: =IF(D16=0,0,+(C16)/D16) -> 125790.6667 | J16: 0 | K16: =F16+I16/2-J16 -> 406371.02
A17: 1612 | B17: Land Rights (Formally known as Account 1906) | C17: ='App.2-BA2_Fx Asst Cnt.MIFRS 13'!E17 -> 0 | E17: 0 | F17: =IF(D17=0,'App.2-CC_MIFRS_DepExp_2012'!K17,+'App.2-CC_MIFRS_DepExp_2012'!K17+((C17*0.5)/D17)) -> 0 | G17: =-'App.2-BA2_Fx Asst Cnt.MIFRS 13'!J17 -> 0 | H17: 0 | I17: 0 | J17: 0 | K17: =F17+I17/2-J17 -> 0
A18: 1805 | B18: Land | C18: ='App.2-BA2_Fx Asst Cnt.MIFRS 13'!E18 -> 0 | E18: 0 | F18: =IF(D18=0,'App.2-CC_MIFRS_DepExp_2012'!K18,+'App.2-CC_MIFRS_DepExp_2012'!K18+((C18*0.5)/D18)) -> 0 | G18: =-'App.2-BA2_Fx Asst Cnt.MIFRS 13'!J18 -> 0 | H18: 0 | I18: 0 | J18: 0 | K18: 0
A19: 1808 | B19: Buildings | C19: ='App.2-BA2_Fx Asst Cnt.MIFRS 13'!E19 -> 0 | D19: 62 | E19: 0.01612903226 | F19: =IF(D19=0,'App.2-CC_MIFRS_DepExp_2012'!K19,+'App.2-CC_MIFRS_DepExp_2012'!K19+((C19*0.5)/D19)) -> 14235.79 | G19: =-'App.2-BA2_Fx Asst Cnt.MIFRS 13'!J19 -> 14197 | H19: 38.79 | I19: 0 | J19: 0 | K19: 14235.79
A20: 1810 | B20: Leasehold Improvements | C20: ='App.2-BA2_Fx Asst Cnt.MIFRS 13'!E20 -> 0 | E20: 0 | F20: =IF(D20=0,'App.2-CC_MIFRS_DepExp_2012'!K20,+'App.2-CC_MIFRS_DepExp_2012'!K20+((C20*0.5)/D20)) -> 0 | G20: =-'App.2-BA2_Fx Asst Cnt.MIFRS 13'!J20 -> 0 | H20: 0 | I20: 0 | J20: 0 | K20: 0
A21: 1815 | B21: Transformer Station Equipment >50 kV | C21: ='App.2-BA2_Fx Asst Cnt.MIFRS 13'!E21 -> 0 | E21: 0 | F21: =IF(D21=0,'App.2-CC_MIFRS_DepExp_2012'!K21,+'App.2-CC_MIFRS_DepExp_2012'!K21+((C21*0.5)/D21)) -> 0 | G21: =-'App.2-BA2_Fx Asst Cnt.MIFRS 13'!J21 -> 0 | H21: 0 | I21: 0 | J21: 0 | K21: 0
A22: 1820 | B22: Distribution Station Equipment <50 kV | C22: ='App.2-BA2_Fx Asst Cnt.MIFRS 13'!E22 -> 3998 | D22: 45 | E22: 0.02222222222 | F22: =IF(D22=0,'App.2-CC_MIFRS_DepExp_2012'!K22,+'App.2-CC_MIFRS_DepExp_2012'!K22+((C22*0.5)/D22)) -> 354054.5129 | G22: =-'App.2-BA2_Fx Asst Cnt.MIFRS 13'!J22 -> 322548 | H22: 31506.51287 | I22: 88.84444444 | J22: 0 | K22: 354098.9351
A23: 1825 | B23: Storage Battery Equipment | C23: ='App.2-BA2_Fx Asst Cnt.MIFRS 13'!E23 -> 0 | E23: 0 | F23: =IF(D23=0,'App.2-CC_MIFRS_DepExp_2012'!K23,+'App.2-CC_MIFRS_DepExp_2012'!K23+((C23*0.5)/D23)) -> 0 | G23: =-'App.2-BA2_Fx Asst Cnt.MIFRS 13'!J23 -> 0 | H23: 0 | I23: 0 | J23: 0 | K23: 0
A24: 1830 | B24: Poles, Towers & Fixtures | C24: ='App.2-BA2_Fx Asst Cnt.MIFRS 13'!E24 -> 4590574 | D24: 45 | E24: 0.02222222222 | F24: =IF(D24=0,'App.2-CC_MIFRS_DepExp_2012'!K24,+'App.2-CC_MIFRS_DepExp_2012'!K24+((C24*0.5)/D24)) -> 472791.8949 | G24: =-'App.2-BA2_Fx Asst Cnt.MIFRS 13'!J24 -> 481215 | H24: -8423.105124 | I24: 102012.7556 | J24: 0 | K24: 523798.2727
A25: 1835 | B25: Overhead Conductors & Devices | C25: ='App.2-BA2_Fx Asst Cnt.MIFRS 13'!E25 -> 1587521 | D25: 55 | E25: 0.01818181818 | F25: =IF(D25=0,'App.2-CC_MIFRS_DepExp_2012'!K25,+'App.2-CC_MIFRS_DepExp_2012'!K25+((C25*0.5)/D25)) -> 232159.5821 | G25: =-'App.2-BA2_Fx Asst Cnt.MIFRS 13'!J25 -> 268031 | H25: -35871.41789 | I25: 28864.01818 | J25: 0 | K25: 246591.5912
A26: 1840 | B26: Underground Conduit | C26: ='App.2-BA2_Fx Asst Cnt.MIFRS 13'!E26 -> 0 | E26: 0 | F26: =IF(D26=0,'App.2-CC_MIFRS_DepExp_2012'!K26,+'App.2-CC_MIFRS_DepExp_2012'!K26+((C26*0.5)/D26)) -> 0 | G26: =-'App.2-BA2_Fx Asst Cnt.MIFRS 13'!J26 -> 0 | H26: 0 | I26: 0 | J26: 0 | K26: 0
A27: 1845 | B27: Underground Conductors & Devices | C27: ='App.2-BA2_Fx Asst Cnt.MIFRS 13'!E27 -> 2500792 | D27: 38 | E27: 0.02631578947 | F27: =IF(D27=0,'App.2-CC_MIFRS_DepExp_2012'!K27,+'App.2-CC_MIFRS_DepExp_2012'!K27+((C27*0.5)/D27)) -> 717149.1538 | G27: =-'App.2-BA2_Fx Asst Cnt.MIFRS 13'!J27 -> 803428 | H27: -86278.8462 | I27: 65810.31579 | J27: 220.15 | K27: 749834.1617
A28: 1850 | B28: Line Transformers | C28: ='App.2-BA2_Fx Asst Cnt.MIFRS 13'!E28 -> 2370264 | D28: 40 | E28: 0.025 | F28: =IF(D28=0,'App.2-CC_MIFRS_DepExp_2012'!K28,+'App.2-CC_MIFRS_DepExp_2012'!K28+((C28*0.5)/D28)) -> 718596.4139 | G28: =-'App.2-BA2_Fx Asst Cnt.MIFRS 13'!J28 -> 738775 | H28: -20178.58612 | I28: 59256.6 | J28: 0 | K28: 748224.7139
A29: 1855 | B29: Services (Overhead & Underground) | C29: ='App.2-BA2_Fx Asst Cnt.MIFRS 13'!E29 -> 0 | E29: 0 | F29: =IF(D29=0,'App.2-CC_MIFRS_DepExp_2012'!K29,+'App.2-CC_MIFRS_DepExp_2012'!K29+((C29*0.5)/D29)) -> 0 | G29: =-'App.2-BA2_Fx Asst Cnt.MIFRS 13'!J29 -> 0 | H29: 0 | I29: 0 | J29: 0 | K29: 0
A30: 1860 | B30: Meters | C30: ='App.2-BA2_Fx Asst Cnt.MIFRS 13'!E30 -> 57202.6 | D30: 30 | E30: 0.03333333333 | F30: =IF(D30=0,'App.2-CC_MIFRS_DepExp_2012'!K30,+'App.2-CC_MIFRS_DepExp_2012'!K30+((C30*0.5)/D30)) -> 713071.7567 | G30: =-'App.2-BA2_Fx Asst Cnt.MIFRS 13'!J30 -> 0 | H30: 713071.7567 | I30: 1906.753333 | J30: 491.33 | K30: 713533.8033
A31: 1860 | B31: Meters (Smart Meters) | C31: ='App.2-BA2_Fx Asst Cnt.MIFRS 13'!E31 -> 514823.4 | D31: 10 | E31: 0.1 | F31: =IF(D31=0,'App.2-CC_MIFRS_DepExp_2012'!K31,+'App.2-CC_MIFRS_DepExp_2012'!K31+((C31*0.5)/D31)) -> 38139.92284 | G31: =-'App.2-BA2_Fx Asst Cnt.MIFRS 13'!J31 -> 747565 | H31: -709425.0772 | I31: 51482.34 | K31: 63881.09284
A32: 1905 | B32: Land | C32: ='App.2-BA2_Fx Asst Cnt.MIFRS 13'!E32 -> 0 | E32: 0 | F32: =IF(D32=0,'App.2-CC_MIFRS_DepExp_2012'!K32,+'App.2-CC_MIFRS_DepExp_2012'!K32+((C32*0.5)/D32)) -> 0 | G32: =-'App.2-BA2_Fx Asst Cnt.MIFRS 13'!J32 -> 0 | H32: 0 | I32: 0 | J32: 0 | K32: 0
A33: 1908 | B33: Buildings & Fixtures | C33: ='App.2-BA2_Fx Asst Cnt.MIFRS 13'!E33 -> 0 | E33: 0 | F33: =IF(D33=0,'App.2-CC_MIFRS_DepExp_2012'!K33,+'App.2-CC_MIFRS_DepExp_2012'!K33+((C33*0.5)/D33)) -> 0 | G33: =-'App.2-BA2_Fx Asst Cnt.MIFRS 13'!J33 -> 0 | H33: 0 | I33: 0 | J33: 0 | K33: 0
A34: 1910 | B34: Leasehold Improvements | C34: ='App.2-BA2_Fx Asst Cnt.MIFRS 13'!E34 -> 18265 | D34: 5 | E34: 0.2 | F34: =IF(D34=0,'App.2-CC_MIFRS_DepExp_2012'!K34,+'App.2-CC_MIFRS_DepExp_2012'!K34+((C34*0.5)/D34)) -> 191044.027 | G34: =-'App.2-BA2_Fx Asst Cnt.MIFRS 13'!J34 -> 153806 | H34: 37238.027 | I34: 3653 | J34: 39780.94 | K34: 153089.587
A35: 1915 | B35: Office Furniture & Equipment (10 years) | C35: ='App.2-BA2_Fx Asst Cnt.MIFRS 13'!E35 -> 0 | E35: 0 | F35: =IF(D35=0,'App.2-CC_MIFRS_DepExp_2012'!K35,+'App.2-CC_MIFRS_DepExp_2012'!K35+((C35*0.5)/D35)) -> -977.54 | G35: =-'App.2-BA2_Fx Asst Cnt.MIFRS 13'!J35 -> 0 | H35: -977.54 | I35: 0 | J35: 3776.77 | K35: -4754.31
A36: 1915 | B36: Office Furniture & Equipment (5 years) | C36: ='App.2-BA2_Fx Asst Cnt.MIFRS 13'!E36 -> 31131 | D36: 10 | E36: 0.1 | F36: =IF(D36=0,'App.2-CC_MIFRS_DepExp_2012'!K36,+'App.2-CC_MIFRS_DepExp_2012'!K36+((C36*0.5)/D36)) -> 10655.988 | G36: =-'App.2-BA2_Fx Asst Cnt.MIFRS 13'!J36 -> 9661 | H36: 994.988 | I36: 3113.1 | K36: 12212.538
A37: 1920 | B37: Computer Equipment - Hardware | C37: ='App.2-BA2_Fx Asst Cnt.MIFRS 13'!E37 -> 241584 | D37: 4 | E37: 0.25 | F37: =IF(D37=0,'App.2-CC_MIFRS_DepExp_2012'!K37,+'App.2-CC_MIFRS_DepExp_2012'!K37+((C37*0.5)/D37)) -> 27189.68 | G37: =-'App.2-BA2_Fx Asst Cnt.MIFRS 13'!J37 -> 86794 | H37: -59604.32 | I37: 60396 | J37: 11294.22 | K37: 46093.46
A38: 1920 | B38: Computer Equip.-Hardware(Post Mar. 22/04) | C38: ='App.2-BA2_Fx Asst Cnt.MIFRS 13'!E38 -> 0 | D38: 4 | E38: 0.25 | F38: =IF(D38=0,'App.2-CC_MIFRS_DepExp_2012'!K38,+'App.2-CC_MIFRS_DepExp_2012'!K38+((C38*0.5)/D38)) -> 33652.43125 | G38: =-'App.2-BA2_Fx Asst Cnt.MIFRS 13'!J38 -> 0 | H38: 33652.43125 | I38: 0 | K38: 33652.43125
A39: 1920 | B39: Computer Equip.-Hardware(Post Mar. 19/07) | C39: ='App.2-BA2_Fx Asst Cnt.MIFRS 13'!E39 -> 0 | D39: 4 | E39: 0.25 | F39: =IF(D39=0,'App.2-CC_MIFRS_DepExp_2012'!K39,+'App.2-CC_MIFRS_DepExp_2012'!K39+((C39*0.5)/D39)) -> 0 | G39: =-'App.2-BA2_Fx Asst Cnt.MIFRS 13'!J39 -> 0 | H39: 0 | I39: 0 | K39: 0
A40: 1930 | B40: Transportation Equipment | C40: ='App.2-BA2_Fx Asst Cnt.MIFRS 13'!E40 -> 17542 | D40: 10 | E40: 0.1 | F40: =IF(D40=0,'App.2-CC_MIFRS_DepExp_2012'!K40,+'App.2-CC_MIFRS_DepExp_2012'!K40+((C40*0.5)/D40)) -> 242354.1495 | G40: =-'App.2-BA2_Fx Asst Cnt.MIFRS 13'!J40 -> 274279 | H40: -31924.8505 | I40: 1754.2 | J40: 3470.45 | K40: 239760.7995
A41: 1935 | B41: Stores Equipment | C41: ='App.2-BA2_Fx Asst Cnt.MIFRS 13'!E41 -> 0 | D41: 7 | E41: 0.1428571429 | F41: =IF(D41=0,'App.2-CC_MIFRS_DepExp_2012'!K41,+'App.2-CC_MIFRS_DepExp_2012'!K41+((C41*0.5)/D41)) -> 5.684341886e-13 | G41: =-'App.2-BA2_Fx Asst Cnt.MIFRS 13'!J41 -> 0 | H41: 5.684341886e-13 | I41: 0 | J41: 0 | K41: 5.684341886e-13
A42: 1940 | B42: Tools, Shop & Garage Equipment | C42: ='App.2-BA2_Fx Asst Cnt.MIFRS 13'!E42 -> 112253 | D42: 7 | E42: 0.1428571429 | F42: =IF(D42=0,'App.2-CC_MIFRS_DepExp_2012'!K42,+'App.2-CC_MIFRS_DepExp_2012'!K42+((C42*0.5)/D42)) -> 188585.5634 | G42: =-'App.2-BA2_Fx Asst Cnt.MIFRS 13'!J42 -> 200143 | H42: -11557.43656 | I42: 16036.14286 | J42: 55988.15 | K42: 140615.4849
A43: 1945 | B43: Measurement & Testing Equipment | C43: ='App.2-BA2_Fx Asst Cnt.MIFRS 13'!E43 -> 19169 | D43: 7 | E43: 0.1428571429 | F43: =IF(D43=0,'App.2-CC_MIFRS_DepExp_2012'!K43,+'App.2-CC_MIFRS_DepExp_2012'!K43+((C43*0.5)/D43)) -> 15908.63571 | G43: =-'App.2-BA2_Fx Asst Cnt.MIFRS 13'!J43 -> 14792 | H43: 1116.635714 | I43: 2738.428571 | J43: 0 | K43: 17277.85
A44: 1950 | B44: Power Operated Equipment | C44: ='App.2-BA2_Fx Asst Cnt.MIFRS 13'!E44 -> 0 | E44: 0 | F44: =IF(D44=0,'App.2-CC_MIFRS_DepExp_2012'!K44,+'App.2-CC_MIFRS_DepExp_2012'!K44+((C44*0.5)/D44)) -> 0 | G44: =-'App.2-BA2_Fx Asst Cnt.MIFRS 13'!J44 -> 0 | H44: 0 | I44: 0 | J44: 0 | K44: 0
A45: 1955 | B45: Communications Equipment | C45: ='App.2-BA2_Fx Asst Cnt.MIFRS 13'!E45 -> 4280 | D45: 10 | E45: 0.1 | F45: =IF(D45=0,'App.2-CC_MIFRS_DepExp_2012'!K45,+'App.2-CC_MIFRS_DepExp_2012'!K45+((C45*0.5)/D45)) -> 20282.062 | G45: =-'App.2-BA2_Fx Asst Cnt.MIFRS 13'!J45 -> 20482 | H45: -199.938 | I45: 428 | J45: 4627.59 | K45: 15868.472
A46: 1955 | B46: Communication Equipment (Smart Meters) | C46: ='App.2-BA2_Fx Asst Cnt.MIFRS 13'!E46 -> 0 | D46: 10 | E46: 0.1 | F46: =IF(D46=0,'App.2-CC_MIFRS_DepExp_2012'!K46,+'App.2-CC_MIFRS_DepExp_2012'!K46+((C46*0.5)/D46)) -> 0 | G46: =-'App.2-BA2_Fx Asst Cnt.MIFRS 13'!J46 -> 0 | H46: 0 | I46: 0 | K46: 0
A47: 1960 | B47: Miscellaneous Equipment | C47: ='App.2-BA2_Fx Asst Cnt.MIFRS 13'!E47 -> 0 | D47: 10 | E47: 0.1 | F47: =IF(D47=0,'App.2-CC_MIFRS_DepExp_2012'!K47,+'App.2-CC_MIFRS_DepExp_2012'!K47+((C47*0.5)/D47)) -> 19143.962 | G47: =-'App.2-BA2_Fx Asst Cnt.MIFRS 13'!J47 -> 19187 | H47: -43.038 | I47: 0 | J47: 6430.33 | K47: 12713.632
A48: 1970 | B48: Load Management Controls Customer Premises | C48: ='App.2-BA2_Fx Asst Cnt.MIFRS 13'!E48 -> 0 | D48: 20 | E48: 0.05 | F48: =IF(D48=0,'App.2-CC_MIFRS_DepExp_2012'!K48,+'App.2-CC_MIFRS_DepExp_2012'!K48+((C48*0.5)/D48)) -> 0 | G48: =-'App.2-BA2_Fx Asst Cnt.MIFRS 13'!J48 -> 0 | H48: 0 | I48: 0 | J48: 0 | K48: 0
A49: 1975 | B49: Load Management Controls Utility Premises | C49: ='App.2-BA2_Fx Asst Cnt.MIFRS 13'!E49 -> 0 | D49: 20 | E49: 0.05 | F49: =IF(D49=0,'App.2-CC_MIFRS_DepExp_2012'!K49,+'App.2-CC_MIFRS_DepExp_2012'!K49+((C49*0.5)/D49)) -> 17494.29 | G49: =-'App.2-BA2_Fx Asst Cnt.MIFRS 13'!J49 -> 17447 | H49: 47.29 | I49: 0 | J49: 0 | K49: 17494.29
A50: 1980 | B50: System Supervisor Equipment | C50: ='App.2-BA2_Fx Asst Cnt.MIFRS 13'!E50 -> 0 | E50: 0 | F50: =IF(D50=0,'App.2-CC_MIFRS_DepExp_2012'!K50,+'App.2-CC_MIFRS_DepExp_2012'!K50+((C50*0.5)/D50)) -> 0 | G50: =-'App.2-BA2_Fx Asst Cnt.MIFRS 13'!J50 -> 0 | H50: 0 | I50: 0 | J50: 0 | K50: 0
A51: 1985 | B51: Miscellaneous Fixed Assets | C51: ='App.2-BA2_Fx Asst Cnt.MIFRS 13'!E51 -> 0 | E51: 0 | F51: =IF(D51=0,'App.2-CC_MIFRS_DepExp_2012'!K51,+'App.2-CC_MIFRS_DepExp_2012'!K51+((C51*0.5)/D51)) -> 0 | G51: =-'App.2-BA2_Fx Asst Cnt.MIFRS 13'!J51 -> 0 | H51: 0 | I51: 0 | J51: 0 | K51: 0
A52: 1990 | B52: Other Tangible Property | C52: ='App.2-BA2_Fx Asst Cnt.MIFRS 13'!E52 -> 0 | E52: 0 | F52: =IF(D52=0,'App.2-CC_MIFRS_DepExp_2012'!K52,+'App.2-CC_MIFRS_DepExp_2012'!K52+((C52*0.5)/D52)) -> 0 | G52: =-'App.2-BA2_Fx Asst Cnt.MIFRS 13'!J52 -> 0 | H52: 0 | I52: 0 | J52: 0 | K52: 0
A53: 1995 | B53: Contributions & Grants | C53: ='App.2-BA2_Fx Asst Cnt.MIFRS 13'!E53 -> -1699267 | D53: 45 | E53: 0.02222222222 | F53: =IF(D53=0,'App.2-CC_MIFRS_DepExp_2012'!K53,+'App.2-CC_MIFRS_DepExp_2012'!K53+((C53*0.5)/D53)) -> -601225.2182 | G53: =-'App.2-BA2_Fx Asst Cnt.MIFRS 13'!J53 -> -687172 | H53: 85946.78178 | I53: -37761.48889 | J53: -1933.53 | K53: -618172.4327
A54: etc. | E54: 0 | F54: =IF(D54=0,'App.2-CC_MIFRS_DepExp_2012'!K54,+'App.2-CC_MIFRS_DepExp_2012'!K54+((C54*0.5)/D54)) -> 0 | H54: 0 | I54: 0 | K54: 0
E55: 0 | F55: =IF(D55=0,'App.2-CC_MIFRS_DepExp_2012'!K55,+'App.2-CC_MIFRS_DepExp_2012'!K55+((C55*0.5)/D55)) -> 0 | H55: 0 | I55: 0 | K55: 0
B56: Total | C56: =SUM(C16:C55) -> 10747504 | F56: =SUM(F16:F55) -> 3767782.744 | G56: 3851800 | H56: -84017.25561 | I56: 485569.6765 | J56: 124146.4 | K56: 3886421.183
B57: Depreciation exp. adj. from gain or loss on the retirement of assets (pool of like assets) | F57: =-H56 -> 84017.25561
B58: Total | F58: =+F57+F56 -> 3851800
A59: Notes:
A60: 1 | B60: Board policy of the "half-year" rule - the applicant must ensure that additions in the year attract a half-year depreciation expense in the first year. Deviations from this standard practice must be supported in the application.
A61: 2 | B61: The applicant must provide an explanation of material variances in evidence.
A62: 3 | B62: This column refers to the calculated full year depreciation but excludes the depreciation expense on assets fully depreciated during the year. This column is used for the purpose of calculating depreciation expense in the following year on the next worksheet.
A64: General: | B64: Applicants must provide a breakdown of depreciation and amortization expense in the above format for all relevant accounts. Asset Retirement Obligations (AROs), depreciation and accretion expense should be disclosed separately consistent with the Notes of historical Audited Financial Statements.

Sheet App.2-CE1_MIFRS_DepExp_2014
G1: File Number: | H1: =EBNUMBER -> EB-2014-0101
G2: Exhibit:
G3: Tab:
G4: Schedule:
G5: Page:
G7: Date:
A9: Appendix 2-CE1
A10: Depreciation and Amortization Expense
A11: Assumes the applicant adopted IFRS for financial reporting purposes January 1, 2012
C12: 2014 | D12: MIFRS
A14: Account | B14: Description | C14: Additions | D14: Years (new additions only) | E14: Depreciation Rate on New Additions | F14: 2014 Depreciation Expense 1 | G14: 2014 Depreciation Expense per Appendix 2-B Fixed Assets, Column K (l) | H14: Variance 2 | I14: Depreciation Expense on 2014 Full Year Additions | J14: Less Depreciation Expense on Assets Fully Depreciated during the year (o) | K14: 2014 Full Year Depreciation 3
C15: (d) | D15: (f) | E15: (g) = 1 / (f) | F15: (h)=2013 Full Year Depreciation + ((d)*0.5)/(f) | H15: (m) = (h) - (l) | I15: (n)=((d))/(f) | K15: (p) = 2013 Full Year Depreciation + (n) - (o) | O15: USA | P15: 2014
A16: 1611 | B16: Computer Software (Formally known as Account 1925) | C16: ='App.2-BA2_Fx Asst Cnt.MIFRS 14'!E16 -> 83000.92141 | D16: 3 | E16: =IF(D16=0,0,1/D16) -> 0.3333333333 | F16: =IF(D16=0,'App.2-CD_MIFRS_DepExp_2013'!K16,+'App.2-CD_MIFRS_DepExp_2013'!K16+((C16*0.5)/D16)) -> 420204.5069 | G16: =-'App.2-BA2_Fx Asst Cnt.MIFRS 14'!J16 -> 371456 | H16: =IF(ISERROR(+F16-G16), 0, +F16-G16) -> 48748.5069 | I16: =IF(D16=0,0,+(C16)/D16) -> 27666.9738 | J16: 89201.7 | K16: =F16+I16/2-J16 -> 344836.2938
A17: 1612 | B17: Land Rights (Formally known as Account 1906) | C17: ='App.2-BA2_Fx Asst Cnt.MIFRS 14'!E17 -> 0 | E17: 0 | F17: =IF(D17=0,'App.2-CD_MIFRS_DepExp_2013'!K17,+'App.2-CD_MIFRS_DepExp_2013'!K17+((C17*0.5)/D17)) -> 0 | G17: =-'App.2-BA2_Fx Asst Cnt.MIFRS 14'!J17 -> 0 | H17: 0 | I17: 0 | J17: 0 | K17: =F17+I17/2-J17 -> 0
A18: 1805 | B18: Land | C18: ='App.2-BA2_Fx Asst Cnt.MIFRS 14'!E18 -> 0 | E18: 0 | F18: =IF(D18=0,'App.2-CD_MIFRS_DepExp_2013'!K18,+'App.2-CD_MIFRS_DepExp_2013'!K18+((C18*0.5)/D18)) -> 0 | G18: =-'App.2-BA2_Fx Asst Cnt.MIFRS 14'!J18 -> 0 | H18: 0 | I18: 0 | J18: 0 | K18: 0
A19: 1808 | B19: Buildings | C19: ='App.2-BA2_Fx Asst Cnt.MIFRS 14'!E19 -> 47648 | D19: 62 | E19: 0.01612903226 | F19: =IF(D19=0,'App.2-CD_MIFRS_DepExp_2013'!K19,+'App.2-CD_MIFRS_DepExp_2013'!K19+((C19*0.5)/D19)) -> 14620.04806 | G19: =-'App.2-BA2_Fx Asst Cnt.MIFRS 14'!J19 -> 14581.13806 | H19: 38.91 | I19: 768.516129 | J19: 0 | K19: 15004.30613
A20: 1810 | B20: Leasehold Improvements | C20: ='App.2-BA2_Fx Asst Cnt.MIFRS 14'!E20 -> 0 | E20: 0 | F20: =IF(D20=0,'App.2-CD_MIFRS_DepExp_2013'!K20,+'App.2-CD_MIFRS_DepExp_2013'!K20+((C20*0.5)/D20)) -> 0 | G20: =-'App.2-BA2_Fx Asst Cnt.MIFRS 14'!J20 -> 0 | H20: 0 | I20: 0 | J20: 0 | K20: 0
A21: 1815 | B21: Transformer Station Equipment >50 kV | C21: ='App.2-BA2_Fx Asst Cnt.MIFRS 14'!E21 -> 0 | E21: 0 | F21: =IF(D21=0,'App.2-CD_MIFRS_DepExp_2013'!K21,+'App.2-CD_MIFRS_DepExp_2013'!K21+((C21*0.5)/D21)) -> 0 | G21: =-'App.2-BA2_Fx Asst Cnt.MIFRS 14'!J21 -> 0 | H21: 0 | I21: 0 | J21: 0 | K21: 0
A22: 1820 | B22: Distribution Station Equipment <50 kV | C22: ='App.2-BA2_Fx Asst Cnt.MIFRS 14'!E22 -> 1758038 | D22: 45 | E22: 0.02222222222 | F22: =IF(D22=0,'App.2-CD_MIFRS_DepExp_2013'!K22,+'App.2-CD_MIFRS_DepExp_2013'!K22+((C22*0.5)/D22)) -> 373632.6906 | G22: =-'App.2-BA2_Fx Asst Cnt.MIFRS 14'!J22 -> 93542 | H22: 280090.6906 | I22: 39067.51112 | J22: 4735 | K22: 388431.4462 | O22: 1820 | P22: 4735.438587
A23: 1825 | B23: Storage Battery Equipment | C23: ='App.2-BA2_Fx Asst Cnt.MIFRS 14'!E23 -> 0 | E23: 0 | F23: =IF(D23=0,'App.2-CD_MIFRS_DepExp_2013'!K23,+'App.2-CD_MIFRS_DepExp_2013'!K23+((C23*0.5)/D23)) -> 0 | G23: =-'App.2-BA2_Fx Asst Cnt.MIFRS 14'!J23 -> 0 | H23: 0 | I23: 0 | J23: 0 | K23: 0
A24: 1830 | B24: Poles, Towers & Fixtures | C24: ='App.2-BA2_Fx Asst Cnt.MIFRS 14'!E24 -> 3370745.005 | D24: 45 | E24: 0.02222222222 | F24: =IF(D24=0,'App.2-CD_MIFRS_DepExp_2013'!K24,+'App.2-CD_MIFRS_DepExp_2013'!K24+((C24*0.5)/D24)) -> 561250.9949 | G24: =-'App.2-BA2_Fx Asst Cnt.MIFRS 14'!J24 -> 699349 | H24: -138098.0051 | I24: 74905.44455 | J24: 16001 | K24: 582702.7172 | O24: 1830 | P24: 16000.89782
A25: 1835 | B25: Overhead Conductors & Devices | C25: ='App.2-BA2_Fx Asst Cnt.MIFRS 14'!E25 -> 1793381 | D25: 55 | E25: 0.01818181818 | F25: =IF(D25=0,'App.2-CD_MIFRS_DepExp_2013'!K25,+'App.2-CD_MIFRS_DepExp_2013'!K25+((C25*0.5)/D25)) -> 262895.0548 | G25: =-'App.2-BA2_Fx Asst Cnt.MIFRS 14'!J25 -> 313560 | H25: -50664.94517 | I25: 32606.92727 | J25: 8872 | K25: 270326.5185 | O25: 1835 | P25: 8872.279624
A26: 1840 | B26: Underground Conduit | C26: ='App.2-BA2_Fx Asst Cnt.MIFRS 14'!E26 -> 0 | E26: 0 | F26: =IF(D26=0,'App.2-CD_MIFRS_DepExp_2013'!K26,+'App.2-CD_MIFRS_DepExp_2013'!K26+((C26*0.5)/D26)) -> 0 | G26: =-'App.2-BA2_Fx Asst Cnt.MIFRS 14'!J26 -> 0 | H26: 0 | I26: 0 | J26: 0 | K26: 0
A27: 1845 | B27: Underground Conductors & Devices | C27: ='App.2-BA2_Fx Asst Cnt.MIFRS 14'!E27 -> 2239875.76 | D27: 38 | E27: 0.02631578947 | F27: =IF(D27=0,'App.2-CD_MIFRS_DepExp_2013'!K27,+'App.2-CD_MIFRS_DepExp_2013'!K27+((C27*0.5)/D27)) -> 779306.2112 | G27: =-'App.2-BA2_Fx Asst Cnt.MIFRS 14'!J27 -> 1056879 | H27: -277572.7888 | I27: 58944.09895 | J27: 9292 | K27: 799486.2606 | O27: 1845 | P27: 9291.942552
A28: 1850 | B28: Line Transformers | C28: ='App.2-BA2_Fx Asst Cnt.MIFRS 14'!E28 -> 2916583.863 | D28: 40 | E28: 0.025 | F28: =IF(D28=0,'App.2-CD_MIFRS_DepExp_2013'!K28,+'App.2-CD_MIFRS_DepExp_2013'!K28+((C28*0.5)/D28)) -> 784682.0122 | G28: =-'App.2-BA2_Fx Asst Cnt.MIFRS 14'!J28 -> 863264 | H28: -78581.98783 | I28: 72914.59657 | J28: 2174 | K28: 818965.3105 | O28: 1850 | P28: 2173.557157
A29: 1855 | B29: Services (Overhead & Underground) | C29: ='App.2-BA2_Fx Asst Cnt.MIFRS 14'!E29 -> 0 | E29: 0 | F29: =IF(D29=0,'App.2-CD_MIFRS_DepExp_2013'!K29,+'App.2-CD_MIFRS_DepExp_2013'!K29+((C29*0.5)/D29)) -> 0 | G29: =-'App.2-BA2_Fx Asst Cnt.MIFRS 14'!J29 -> 0 | H29: 0 | I29: 0 | J29: 0 | K29: 0
A30: 1860 | B30: Meters | C30: ='App.2-BA2_Fx Asst Cnt.MIFRS 14'!E30 -> 558725.1658 | D30: 30 | E30: 0.03333333333 | F30: =IF(D30=0,'App.2-CD_MIFRS_DepExp_2013'!K30,+'App.2-CD_MIFRS_DepExp_2013'!K30+((C30*0.5)/D30)) -> 722845.8894 | G30: =-'App.2-BA2_Fx Asst Cnt.MIFRS 14'!J30 -> 756435 | H30: -33589.11057 | I30: 18624.17219 | J30: =536.03+16 -> 552.03 | K30: 731605.9455 | O30: 1860 | P30: 16.21710402
A31: 1860 | B31: Meters (Smart Meters) | C31: ='App.2-BA2_Fx Asst Cnt.MIFRS 14'!E31 -> 0 | D31: 10 | E31: 0.1 | F31: =IF(D31=0,'App.2-CD_MIFRS_DepExp_2013'!K31,+'App.2-CD_MIFRS_DepExp_2013'!K31+((C31*0.5)/D31)) -> 63881.09284 | G31: =-'App.2-BA2_Fx Asst Cnt.MIFRS 14'!J31 -> 0 | H31: 63881.09284 | I31: 0 | K31: 63881.09284
A32: 1905 | B32: Land | C32: ='App.2-BA2_Fx Asst Cnt.MIFRS 14'!E32 -> 0 | E32: 0 | F32: =IF(D32=0,'App.2-CD_MIFRS_DepExp_2013'!K32,+'App.2-CD_MIFRS_DepExp_2013'!K32+((C32*0.5)/D32)) -> 0 | G32: =-'App.2-BA2_Fx Asst Cnt.MIFRS 14'!J32 -> 0 | H32: 0 | I32: 0 | J32: 0 | K32: 0
A33: 1908 | B33: Buildings & Fixtures | C33: ='App.2-BA2_Fx Asst Cnt.MIFRS 14'!E33 -> 0 | E33: 0 | F33: =IF(D33=0,'App.2-CD_MIFRS_DepExp_2013'!K33,+'App.2-CD_MIFRS_DepExp_2013'!K33+((C33*0.5)/D33)) -> 0 | G33: =-'App.2-BA2_Fx Asst Cnt.MIFRS 14'!J33 -> 0 | H33: 0 | I33: 0 | J33: 0 | K33: 0
A34: 1910 | B34: Leasehold Improvements | C34: ='App.2-BA2_Fx Asst Cnt.MIFRS 14'!E34 -> 27481.9493 | D34: 5 | E34: 0.2 | F34: =IF(D34=0,'App.2-CD_MIFRS_DepExp_2013'!K34,+'App.2-CD_MIFRS_DepExp_2013'!K34+((C34*0.5)/D34)) -> 155837.7819 | G34: =-'App.2-BA2_Fx Asst Cnt.MIFRS 14'!J34 -> 118599.3249 | H34: 37238.457 | I34: 5496.389861 | J34: 4687.42 | K34: 153898.5569
A35: 1915 | B35: Office Furniture & Equipment (10 years) | C35: ='App.2-BA2_Fx Asst Cnt.MIFRS 14'!E35 -> 0 | E35: 0 | F35: =IF(D35=0,'App.2-CD_MIFRS_DepExp_2013'!K35,+'App.2-CD_MIFRS_DepExp_2013'!K35+((C35*0.5)/D35)) -> -4754.31 | G35: =-'App.2-BA2_Fx Asst Cnt.MIFRS 14'!J35 -> 0 | H35: -4754.31 | I35: 0 | J35: 1381.93 | K35: -6136.24
A36: 1915 | B36: Office Furniture & Equipment (5 years) | C36: ='App.2-BA2_Fx Asst Cnt.MIFRS 14'!E36 -> 0.4238736548 | D36: 10 | E36: 0.1 | F36: =IF(D36=0,'App.2-CD_MIFRS_DepExp_2013'!K36,+'App.2-CD_MIFRS_DepExp_2013'!K36+((C36*0.5)/D36)) -> 12212.55919 | G36: =-'App.2-BA2_Fx Asst Cnt.MIFRS 14'!J36 -> 18523 | H36: -6310.440806 | I36: 0.04238736548 | K36: 12212.58039
A37: 1920 | B37: Computer Equipment - Hardware | C37: ='App.2-BA2_Fx Asst Cnt.MIFRS 14'!E37 -> 62473.25754 | D37: 4 | E37: 0.25 | F37: =IF(D37=0,'App.2-CD_MIFRS_DepExp_2013'!K37,+'App.2-CD_MIFRS_DepExp_2013'!K37+((C37*0.5)/D37)) -> 53902.61719 | G37: =-'App.2-BA2_Fx Asst Cnt.MIFRS 14'!J37 -> 112997 | H37: -59094.38281 | I37: 15618.31439 | J37: 0 | K37: 61711.77439
A38: 1920 | B38: Computer Equip.-Hardware(Post Mar. 22/04) | C38: ='App.2-BA2_Fx Asst Cnt.MIFRS 14'!E38 -> 0 | D38: 4 | E38: 0.25 | F38: =IF(D38=0,'App.2-CD_MIFRS_DepExp_2013'!K38,+'App.2-CD_MIFRS_DepExp_2013'!K38+((C38*0.5)/D38)) -> 33652.43125 | G38: =-'App.2-BA2_Fx Asst Cnt.MIFRS 14'!J38 -> 0 | H38: 33652.43125 | I38: 0 | K38: 33652.43125
A39: 1920 | B39: Computer Equip.-Hardware(Post Mar. 19/07) | C39: ='App.2-BA2_Fx Asst Cnt.MIFRS 14'!E39 -> 0 | D39: 4 | E39: 0.25 | F39: =IF(D39=0,'App.2-CD_MIFRS_DepExp_2013'!K39,+'App.2-CD_MIFRS_DepExp_2013'!K39+((C39*0.5)/D39)) -> 0 | G39: =-'App.2-BA2_Fx Asst Cnt.MIFRS 14'!J39 -> 0 | H39: 0 | I39: 0 | K39: 0
A40: 1930 | B40: Transportation Equipment | C40: ='App.2-BA2_Fx Asst Cnt.MIFRS 14'!E40 -> 84704.96643 | D40: 10 | E40: 0.1 | F40: =IF(D40=0,'App.2-CD_MIFRS_DepExp_2013'!K40,+'App.2-CD_MIFRS_DepExp_2013'!K40+((C40*0.5)/D40)) -> 243996.0478 | G40: =-'App.2-BA2_Fx Asst Cnt.MIFRS 14'!J40 -> 250138 | H40: -6141.952179 | I40: 8470.496643 | J40: 0 | K40: 248231.2961
A41: 1935 | B41: Stores Equipment | C41: ='App.2-BA2_Fx Asst Cnt.MIFRS 14'!E41 -> 0 | D41: 7 | E41: 0.1428571429 | F41: =IF(D41=0,'App.2-CD_MIFRS_DepExp_2013'!K41,+'App.2-CD_MIFRS_DepExp_2013'!K41+((C41*0.5)/D41)) -> 5.684341886e-13 | G41: =-'App.2-BA2_Fx Asst Cnt.MIFRS 14'!J41 -> 0 | H41: 5.684341886e-13 | I41: 0 | J41: 0 | K41: 5.684341886e-13
A42: 1940 | B42: Tools, Shop & Garage Equipment | C42: ='App.2-BA2_Fx Asst Cnt.MIFRS 14'!E42 -> 25397.03135 | D42: 7 | E42: 0.1428571429 | F42: =IF(D42=0,'App.2-CD_MIFRS_DepExp_2013'!K42,+'App.2-CD_MIFRS_DepExp_2013'!K42+((C42*0.5)/D42)) -> 142429.5585 | G42: =-'App.2-BA2_Fx Asst Cnt.MIFRS 14'!J42 -> 139605 | H42: 2824.558531 | I42: 3628.147335 | J42: =41664.24+1152 -> 42816.24 | K42: 101427.3922 | O42: 1940 | P42: 1152.437932
A43: 1945 | B43: Measurement & Testing Equipment | C43: ='App.2-BA2_Fx Asst Cnt.MIFRS 14'!E43 -> 51669.77138 | D43: 7 | E43: 0.1428571429 | F43: =IF(D43=0,'App.2-CD_MIFRS_DepExp_2013'!K43,+'App.2-CD_MIFRS_DepExp_2013'!K43+((C43*0.5)/D43)) -> 20968.54796 | G43: =-'App.2-BA2_Fx Asst Cnt.MIFRS 14'!J43 -> 22064 | H43: -1095.452044 | I43: 7381.395912 | J43: 41 | K43: 24618.24591 | O43: 1945 | P43: 41.24278303
A44: 1950 | B44: Power Operated Equipment | C44: ='App.2-BA2_Fx Asst Cnt.MIFRS 14'!E44 -> 0 | E44: 0 | F44: =IF(D44=0,'App.2-CD_MIFRS_DepExp_2013'!K44,+'App.2-CD_MIFRS_DepExp_2013'!K44+((C44*0.5)/D44)) -> 0 | G44: =-'App.2-BA2_Fx Asst Cnt.MIFRS 14'!J44 -> 0 | H44: 0 | I44: 0 | J44: 0 | K44: 0
A45: 1955 | B45: Communications Equipment | C45: ='App.2-BA2_Fx Asst Cnt.MIFRS 14'!E45 -> 0 | D45: 10 | E45: 0.1 | F45: =IF(D45=0,'App.2-CD_MIFRS_DepExp_2013'!K45,+'App.2-CD_MIFRS_DepExp_2013'!K45+((C45*0.5)/D45)) -> 15868.472 | G45: =-'App.2-BA2_Fx Asst Cnt.MIFRS 14'!J45 -> 15855.4 | H45: 13.072 | I45: 0 | J45: 0 | K45: 15868.472
A46: 1955 | B46: Communication Equipment (Smart Meters) | C46: ='App.2-BA2_Fx Asst Cnt.MIFRS 14'!E46 -> 0 | D46: 10 | E46: 0.1 | F46: =IF(D46=0,'App.2-CD_MIFRS_DepExp_2013'!K46,+'App.2-CD_MIFRS_DepExp_2013'!K46+((C46*0.5)/D46)) -> 0 | G46: =-'App.2-BA2_Fx Asst Cnt.MIFRS 14'!J46 -> 0 | H46: 0 | I46: 0 | K46: 0
A47: 1960 | B47: Miscellaneous Equipment | C47: ='App.2-BA2_Fx Asst Cnt.MIFRS 14'!E47 -> 4746 | D47: 10 | E47: 0.1 | F47: =IF(D47=0,'App.2-CD_MIFRS_DepExp_2013'!K47,+'App.2-CD_MIFRS_DepExp_2013'!K47+((C47*0.5)/D47)) -> 12950.932 | G47: =-'App.2-BA2_Fx Asst Cnt.MIFRS 14'!J47 -> 1991 | H47: 10959.932 | I47: 474.6 | J47: 0 | K47: 13188.232
A48: 1970 | B48: Load Management Controls Customer Premises | C48: ='App.2-BA2_Fx Asst Cnt.MIFRS 14'!E48 -> 0 | D48: 20 | E48: 0.05 | F48: =IF(D48=0,'App.2-CD_MIFRS_DepExp_2013'!K48,+'App.2-CD_MIFRS_DepExp_2013'!K48+((C48*0.5)/D48)) -> 0 | G48: =-'App.2-BA2_Fx Asst Cnt.MIFRS 14'!J48 -> 70871 | H48: -70871 | I48: 0 | J48: 0 | K48: 0
A49: 1975 | B49: Load Management Controls Utility Premises | C49: ='App.2-BA2_Fx Asst Cnt.MIFRS 14'!E49 -> 0 | D49: 8 | E49: 0.125 | F49: =IF(D49=0,'App.2-CD_MIFRS_DepExp_2013'!K49,+'App.2-CD_MIFRS_DepExp_2013'!K49+((C49*0.5)/D49)) -> 17494.29 | G49: =-'App.2-BA2_Fx Asst Cnt.MIFRS 14'!J49 -> 17446.5 | H49: 47.79 | I49: 0 | J49: 0 | K49: 17494.29
A50: 1980 | B50: System Supervisor Equipment | C50: ='App.2-BA2_Fx Asst Cnt.MIFRS 14'!E50 -> 0 | E50: 0 | F50: =IF(D50=0,'App.2-CD_MIFRS_DepExp_2013'!K50,+'App.2-CD_MIFRS_DepExp_2013'!K50+((C50*0.5)/D50)) -> 0 | G50: =-'App.2-BA2_Fx Asst Cnt.MIFRS 14'!J50 -> 0 | H50: 0 | I50: 0 | J50: 0 | K50: 0
A51: 1985 | B51: Miscellaneous Fixed Assets | C51: ='App.2-BA2_Fx Asst Cnt.MIFRS 14'!E51 -> 0 | E51: 0 | F51: =IF(D51=0,'App.2-CD_MIFRS_DepExp_2013'!K51,+'App.2-CD_MIFRS_DepExp_2013'!K51+((C51*0.5)/D51)) -> 0 | G51: =-'App.2-BA2_Fx Asst Cnt.MIFRS 14'!J51 -> 0 | H51: 0 | I51: 0 | J51: 0 | K51: 0
A52: 1990 | B52: Other Tangible Property | C52: ='App.2-BA2_Fx Asst Cnt.MIFRS 14'!E52 -> 0 | E52: 0 | F52: =IF(D52=0,'App.2-CD_MIFRS_DepExp_2013'!K52,+'App.2-CD_MIFRS_DepExp_2013'!K52+((C52*0.5)/D52)) -> 0 | G52: =-'App.2-BA2_Fx Asst Cnt.MIFRS 14'!J52 -> 0 | H52: 0 | I52: 0 | J52: 0 | K52: 0
A53: 1995 | B53: Contributions & Grants | C53: ='App.2-BA2_Fx Asst Cnt.MIFRS 14'!E53 -> -2367193.115 | D53: 45 | E53: 0.02222222222 | F53: =IF(D53=0,'App.2-CD_MIFRS_DepExp_2013'!K53,+'App.2-CD_MIFRS_DepExp_2013'!K53+((C53*0.5)/D53)) -> -644474.5784 | G53: =-'App.2-BA2_Fx Asst Cnt.MIFRS 14'!J53 -> -995356 | H53: 350881.4216 | I53: -52604.29145 | J53: -80.36 | K53: -670696.3641
A54: etc. | E54: 0 | F54: =IF(D54=0,'App.2-CD_MIFRS_DepExp_2013'!K54,+'App.2-CD_MIFRS_DepExp_2013'!K54+((C54*0.5)/D54)) -> 0 | H54: 0 | I54: 0 | K54: 0
E55: 0 | F55: =IF(D55=0,'App.2-CD_MIFRS_DepExp_2013'!K55,+'App.2-CD_MIFRS_DepExp_2013'!K55+((C55*0.5)/D55)) -> 0 | H55: 0 | I55: 0 | K55: 0
B56: Total | C56: =SUM(C16:C55) -> 10657278 | F56: =SUM(F16:F55) -> 4043402.85 | G56: =SUM(G16:G55) -> 3941800.363 | H56: =SUM(H16:H55) -> 101602.4875 | I56: =SUM(I16:I55) -> 313963.3357 | J56: 179673.96 | K56: 4020710.558 | P56: =SUM(P19:P31) -> 41090.33284
B57: Depreciation exp. adj. from gain or loss on the retirement of assets (pool of like assets) | F57: =-H56 -> -101602.4875
B58: Total Depreciation expense to be included in the test year revenue requirement | F58: =SUM(F56:F57) -> 3941800.363
A59: Notes:
A60: 1 | B60: Board policy of the "half-year" rule - the applicant must ensure that additions in the year attract a half-year depreciation expense in the first year. Deviations from this standard practice must be supported in the application.
A61: 2 | B61: The applicant must provide an explanation of material variances in evidence.
A63: General: | B63: Applicants must provide a breakdown of depreciation and amortization expense in the above format for all relevant accounts. Asset Retirement Obligations (AROs), depreciation and accretion expense should be disclosed separately consistent with the Notes of historical Audited Financial Statements.

Sheet App.2-CE2_MIFRS_DepExp_2015
G1: File Number: | H1: =EBNUMBER -> EB-2014-0101
G2: Exhibit:
G3: Tab:
G4: Schedule:
G5: Page:
G7: Date:
A9: Appendix 2-CE2
A10: Depreciation and Amortization Expense
A11: Assumes the applicant adopted IFRS for financial reporting purposes January 1, 2012
C12: 2015 | D12: MIFRS
A14: Account | B14: Description | C14: Additions | D14: Years (new additions only) | E14: Depreciation Rate on New Additions | F14: 2015 Depreciation Expense 1 | G14: 2015 Depreciation Expense per Appendix 2-B Fixed Assets, Column K (l) | H14: Variance 2 | I14: Depreciation Expense on 2015 Full Year Additions | J14: Less Depreciation Expense on Assets Fully Depreciated during the year (o) | K14: 2015 Full Year Depreciation 3
C15: (d) | D15: (f) | E15: (g) = 1 / (f) | F15: (h)=2014 Full Year Depreciation + ((d)*0.5)/(f) | H15: (m) = (h) - (l) | I15: (n)=((d))/(f) | K15: (p) = 2014 Full Year Depreciation + (n) - (o) | O15: USA | P15: 2015
A16: 1611 | B16: Computer Software (Formally known as Account 1925) | C16: ='App.2-BA2_Fx Asst Cnt.MIFRS 15'!E16 -> 739564.8648 | D16: 3 | E16: =IF(D16=0,0,1/D16) -> 0.3333333333 | F16: =IF(D16=0,'App.2-CE1_MIFRS_DepExp_2014'!K16,+'App.2-CE1_MIFRS_DepExp_2014'!K16+((C16*0.5)/D16)) -> 468097.1046 | G16: =-'App.2-BA2_Fx Asst Cnt.MIFRS 15'!J16 -> 433162.0708 | H16: =IF(ISERROR(+F16-G16), 0, +F16-G16) -> 34935.0338 | I16: =IF(D16=0,0,+(C16)/D16) -> 246521.6216 | J16: 64647.7 | K16: =F16+I16/2-J16 -> 526710.2154
A17: 1612 | B17: Land Rights (Formally known as Account 1906) | C17: ='App.2-BA2_Fx Asst Cnt.MIFRS 15'!E17 -> 0 | E17: 0 | F17: =IF(D17=0,'App.2-CE1_MIFRS_DepExp_2014'!K17,+'App.2-CE1_MIFRS_DepExp_2014'!K17+((C17*0.5)/D17)) -> 0 | G17: =-'App.2-BA2_Fx Asst Cnt.MIFRS 15'!J17 -> 0 | H17: 0 | I17: 0 | J17: 0 | K17: =F17+I17/2-J17 -> 0
A18: 1805 | B18: Land | C18: ='App.2-BA2_Fx Asst Cnt.MIFRS 15'!E18 -> 0 | E18: 0 | F18: =IF(D18=0,'App.2-CE1_MIFRS_DepExp_2014'!K18,+'App.2-CE1_MIFRS_DepExp_2014'!K18+((C18*0.5)/D18)) -> 0 | G18: =-'App.2-BA2_Fx Asst Cnt.MIFRS 15'!J18 -> 0 | H18: 0 | I18: 0 | J18: 0 | K18: 0
A19: 1808 | B19: Buildings | C19: ='App.2-BA2_Fx Asst Cnt.MIFRS 15'!E19 -> 0 | D19: 62 | E19: 0.01612903226 | F19: =IF(D19=0,'App.2-CE1_MIFRS_DepExp_2014'!K19,+'App.2-CE1_MIFRS_DepExp_2014'!K19+((C19*0.5)/D19)) -> 15004.30613 | G19: =-'App.2-BA2_Fx Asst Cnt.MIFRS 15'!J19 -> 14196.88 | H19: 807.426129 | I19: 0 | J19: 2264.24 | K19: 12740.06613
A20: 1810 | B20: Leasehold Improvements | C20: ='App.2-BA2_Fx Asst Cnt.MIFRS 15'!E20 -> 0 | E20: 0 | F20: =IF(D20=0,'App.2-CE1_MIFRS_DepExp_2014'!K20,+'App.2-CE1_MIFRS_DepExp_2014'!K20+((C20*0.5)/D20)) -> 0 | G20: =-'App.2-BA2_Fx Asst Cnt.MIFRS 15'!J20 -> 0 | H20: 0 | I20: 0 | J20: 0 | K20: 0
A21: 1815 | B21: Transformer Station Equipment >50 kV | C21: ='App.2-BA2_Fx Asst Cnt.MIFRS 15'!E21 -> 0 | E21: 0 | F21: =IF(D21=0,'App.2-CE1_MIFRS_DepExp_2014'!K21,+'App.2-CE1_MIFRS_DepExp_2014'!K21+((C21*0.5)/D21)) -> 0 | G21: =-'App.2-BA2_Fx Asst Cnt.MIFRS 15'!J21 -> 0 | H21: 0 | I21: 0 | J21: 0 | K21: 0
A22: 1820 | B22: Distribution Station Equipment <50 kV | C22: ='App.2-BA2_Fx Asst Cnt.MIFRS 15'!E22 -> 1127523.16 | D22: 45 | E22: 0.02222222222 | F22: =IF(D22=0,'App.2-CE1_MIFRS_DepExp_2014'!K22,+'App.2-CE1_MIFRS_DepExp_2014'!K22+((C22*0.5)/D22)) -> 400959.4813 | G22: =-'App.2-BA2_Fx Asst Cnt.MIFRS 15'!J22 -> 448511.6829 | H22: -47552.2016 | I22: 25056.07022 | J22: 5731.247163 | K22: 407756.2693 | O22: 1820 | P22: 5731.247163
A23: 1825 | B23: Storage Battery Equipment | C23: ='App.2-BA2_Fx Asst Cnt.MIFRS 15'!E23 -> 0 | E23: 0 | F23: =IF(D23=0,'App.2-CE1_MIFRS_DepExp_2014'!K23,+'App.2-CE1_MIFRS_DepExp_2014'!K23+((C23*0.5)/D23)) -> 0 | G23: =-'App.2-BA2_Fx Asst Cnt.MIFRS 15'!J23 -> 0 | H23: 0 | I23: 0 | K23: 0
A24: 1830 | B24: Poles, Towers & Fixtures | C24: ='App.2-BA2_Fx Asst Cnt.MIFRS 15'!E24 -> 6350261.53 | D24: 45 | E24: 0.02222222222 | F24: =IF(D24=0,'App.2-CE1_MIFRS_DepExp_2014'!K24,+'App.2-CE1_MIFRS_DepExp_2014'!K24+((C24*0.5)/D24)) -> 653261.1787 | G24: =-'App.2-BA2_Fx Asst Cnt.MIFRS 15'!J24 -> 654584.1164 | H24: -1322.937793 | I24: 141116.9229 | J24: 30276.26638 | K24: 693543.3737 | O24: 1830 | P24: 30276.26638
A25: 1835 | B25: Overhead Conductors & Devices | C25: ='App.2-BA2_Fx Asst Cnt.MIFRS 15'!E25 -> 3156836.193 | D25: 55 | E25: 0.01818181818 | F25: =IF(D25=0,'App.2-CE1_MIFRS_DepExp_2014'!K25,+'App.2-CE1_MIFRS_DepExp_2014'!K25+((C25*0.5)/D25)) -> 299025.0293 | G25: =-'App.2-BA2_Fx Asst Cnt.MIFRS 15'!J25 -> 370083.6415 | H25: -71058.61216 | I25: 57397.02168 | J25: 15942.47685 | K25: 311781.0633 | O25: 1835 | P25: 15942.47685
A26: 1840 | B26: Underground Conduit | C26: ='App.2-BA2_Fx Asst Cnt.MIFRS 15'!E26 -> 0 | E26: 0 | F26: =IF(D26=0,'App.2-CE1_MIFRS_DepExp_2014'!K26,+'App.2-CE1_MIFRS_DepExp_2014'!K26+((C26*0.5)/D26)) -> 0 | G26: =-'App.2-BA2_Fx Asst Cnt.MIFRS 15'!J26 -> 0 | H26: 0 | I26: 0 | K26: 0
A27: 1845 | B27: Underground Conductors & Devices | C27: ='App.2-BA2_Fx Asst Cnt.MIFRS 15'!E27 -> 3484015.273 | D27: 38 | E27: 0.02631578947 | F27: =IF(D27=0,'App.2-CE1_MIFRS_DepExp_2014'!K27,+'App.2-CE1_MIFRS_DepExp_2014'!K27+((C27*0.5)/D27)) -> 845328.5669 | G27: =-'App.2-BA2_Fx Asst Cnt.MIFRS 15'!J27 -> 836426.7936 | H27: 8901.773305 | I27: 91684.61244 | J27: 17522.13234 | K27: 873648.7408 | O27: 1845 | P27: 17522.13234
A28: 1850 | B28: Line Transformers | C28: ='App.2-BA2_Fx Asst Cnt.MIFRS 15'!E28 -> 685864.8489 | D28: 40 | E28: 0.025 | F28: =IF(D28=0,'App.2-CE1_MIFRS_DepExp_2014'!K28,+'App.2-CE1_MIFRS_DepExp_2014'!K28+((C28*0.5)/D28)) -> 827538.6211 | G28: =-'App.2-BA2_Fx Asst Cnt.MIFRS 15'!J28 -> 786720.4886 | H28: 40818.13242 | I28: 17146.62122 | J28: 4245.115986 | K28: 831866.8157 | O28: 1850 | P28: 4245.115986
A29: 1855 | B29: Services (Overhead & Underground) | C29: ='App.2-BA2_Fx Asst Cnt.MIFRS 15'!E29 -> 0 | E29: 0 | F29: =IF(D29=0,'App.2-CE1_MIFRS_DepExp_2014'!K29,+'App.2-CE1_MIFRS_DepExp_2014'!K29+((C29*0.5)/D29)) -> 0 | G29: =-'App.2-BA2_Fx Asst Cnt.MIFRS 15'!J29 -> 0 | H29: 0 | I29: 0 | K29: 0
A30: 1860 | B30: Meters | C30: ='App.2-BA2_Fx Asst Cnt.MIFRS 15'!E30 -> 612932.0749 | D30: 30 | E30: 0.03333333333 | F30: =IF(D30=0,'App.2-CE1_MIFRS_DepExp_2014'!K30,+'App.2-CE1_MIFRS_DepExp_2014'!K30+((C30*0.5)/D30)) -> 741821.4801 | G30: =-'App.2-BA2_Fx Asst Cnt.MIFRS 15'!J30 -> 805133.7265 | H30: -63312.24639 | I30: 20431.06916 | J30: 4669.881902 | K30: 747367.1328 | O30: 1860 | P30: 4669.881902
A31: 1860 | B31: Meters (Smart Meters) | C31: ='App.2-BA2_Fx Asst Cnt.MIFRS 15'!E31 -> 0 | D31: 10 | E31: 0.1 | F31: =IF(D31=0,'App.2-CE1_MIFRS_DepExp_2014'!K31,+'App.2-CE1_MIFRS_DepExp_2014'!K31+((C31*0.5)/D31)) -> 63881.09284 | G31: =-'App.2-BA2_Fx Asst Cnt.MIFRS 15'!J31 -> 0 | H31: 63881.09284 | I31: 0 | K31: 63881.09284
A32: 1905 | B32: Land | C32: ='App.2-BA2_Fx Asst Cnt.MIFRS 15'!E32 -> 0 | E32: 0 | F32: =IF(D32=0,'App.2-CE1_MIFRS_DepExp_2014'!K32,+'App.2-CE1_MIFRS_DepExp_2014'!K32+((C32*0.5)/D32)) -> 0 | G32: =-'App.2-BA2_Fx Asst Cnt.MIFRS 15'!J32 -> 0 | H32: 0 | I32: 0 | J32: 0 | K32: 0
A33: 1908 | B33: Buildings & Fixtures | C33: ='App.2-BA2_Fx Asst Cnt.MIFRS 15'!E33 -> 0 | E33: 0 | F33: =IF(D33=0,'App.2-CE1_MIFRS_DepExp_2014'!K33,+'App.2-CE1_MIFRS_DepExp_2014'!K33+((C33*0.5)/D33)) -> 0 | G33: =-'App.2-BA2_Fx Asst Cnt.MIFRS 15'!J33 -> 0 | H33: 0 | I33: 0 | J33: 0 | K33: 0
A34: 1910 | B34: Leasehold Improvements | C34: ='App.2-BA2_Fx Asst Cnt.MIFRS 15'!E34 -> 247500 | D34: 5 | E34: 0.2 | F34: =IF(D34=0,'App.2-CE1_MIFRS_DepExp_2014'!K34,+'App.2-CE1_MIFRS_DepExp_2014'!K34+((C34*0.5)/D34)) -> 178648.5569 | G34: =-'App.2-BA2_Fx Asst Cnt.MIFRS 15'!J34 -> 171269.1 | H34: 7379.456861 | I34: 49500 | J34: 9.094947018e-13 | K34: 203398.5569
A35: 1915 | B35: Office Furniture & Equipment (10 years) | C35: ='App.2-BA2_Fx Asst Cnt.MIFRS 15'!E35 -> 0 | E35: 0 | F35: =IF(D35=0,'App.2-CE1_MIFRS_DepExp_2014'!K35,+'App.2-CE1_MIFRS_DepExp_2014'!K35+((C35*0.5)/D35)) -> -6136.24 | G35: =-'App.2-BA2_Fx Asst Cnt.MIFRS 15'!J35 -> 0 | H35: -6136.24 | I35: 0 | J35: 240.37 | K35: -6376.61
A36: 1915 | B36: Office Furniture & Equipment (5 years) | C36: ='App.2-BA2_Fx Asst Cnt.MIFRS 15'!E36 -> 27500 | D36: 10 | E36: 0.1 | F36: =IF(D36=0,'App.2-CE1_MIFRS_DepExp_2014'!K36,+'App.2-CE1_MIFRS_DepExp_2014'!K36+((C36*0.5)/D36)) -> 13587.58039 | G36: =-'App.2-BA2_Fx Asst Cnt.MIFRS 15'!J36 -> 9433.9 | H36: 4153.680387 | I36: 2750 | K36: 14962.58039
A37: 1920 | B37: Computer Equipment - Hardware | C37: ='App.2-BA2_Fx Asst Cnt.MIFRS 15'!E37 -> 266511.4614 | D37: 4 | E37: 0.25 | F37: =IF(D37=0,'App.2-CE1_MIFRS_DepExp_2014'!K37,+'App.2-CE1_MIFRS_DepExp_2014'!K37+((C37*0.5)/D37)) -> 95025.70706 | G37: =-'App.2-BA2_Fx Asst Cnt.MIFRS 15'!J37 -> 180849.4127 | H37: -85823.70561 | I37: 66627.86535 | J37: 8195.5 | K37: 120144.1397
A38: 1920 | B38: Computer Equip.-Hardware(Post Mar. 22/04) | C38: ='App.2-BA2_Fx Asst Cnt.MIFRS 15'!E38 -> 0 | D38: 4 | E38: 0.25 | F38: =IF(D38=0,'App.2-CE1_MIFRS_DepExp_2014'!K38,+'App.2-CE1_MIFRS_DepExp_2014'!K38+((C38*0.5)/D38)) -> 33652.43125 | G38: =-'App.2-BA2_Fx Asst Cnt.MIFRS 15'!J38 -> 0 | H38: 33652.43125 | I38: 0 | K38: 33652.43125
A39: 1920 | B39: Computer Equip.-Hardware(Post Mar. 19/07) | C39: ='App.2-BA2_Fx Asst Cnt.MIFRS 15'!E39 -> 0 | D39: 4 | E39: 0.25 | F39: =IF(D39=0,'App.2-CE1_MIFRS_DepExp_2014'!K39,+'App.2-CE1_MIFRS_DepExp_2014'!K39+((C39*0.5)/D39)) -> 0 | G39: =-'App.2-BA2_Fx Asst Cnt.MIFRS 15'!J39 -> 0 | H39: 0 | I39: 0 | K39: 0
A40: 1930 | B40: Transportation Equipment | C40: ='App.2-BA2_Fx Asst Cnt.MIFRS 15'!E40 -> 420000 | D40: 10 | E40: 0.1 | F40: =IF(D40=0,'App.2-CE1_MIFRS_DepExp_2014'!K40,+'App.2-CE1_MIFRS_DepExp_2014'!K40+((C40*0.5)/D40)) -> 269231.2961 | G40: =-'App.2-BA2_Fx Asst Cnt.MIFRS 15'!J40 -> 293862.7433 | H40: -24631.44719 | I40: 42000 | J40: 12744.76 | K40: 277486.5361
A41: 1935 | B41: Stores Equipment | C41: ='App.2-BA2_Fx Asst Cnt.MIFRS 15'!E41 -> 0 | D41: 7 | E41: 0.1428571429 | F41: =IF(D41=0,'App.2-CE1_MIFRS_DepExp_2014'!K41,+'App.2-CE1_MIFRS_DepExp_2014'!K41+((C41*0.5)/D41)) -> 5.684341886e-13 | G41: =-'App.2-BA2_Fx Asst Cnt.MIFRS 15'!J41 -> 0 | H41: 5.684341886e-13 | I41: 0 | J41: 0 | K41: 5.684341886e-13
A42: 1940 | B42: Tools, Shop & Garage Equipment | C42: ='App.2-BA2_Fx Asst Cnt.MIFRS 15'!E42 -> 153506.2824 | D42: 7 | E42: 0.1428571429 | F42: =IF(D42=0,'App.2-CE1_MIFRS_DepExp_2014'!K42,+'App.2-CE1_MIFRS_DepExp_2014'!K42+((C42*0.5)/D42)) -> 112392.1267 | G42: =-'App.2-BA2_Fx Asst Cnt.MIFRS 15'!J42 -> 152650.8453 | H42: -40258.71867 | I42: 21929.46891 | J42: 17063.50603 | K42: 106293.3551 | O42: 1940 | P42: 2180.424361
A43: 1945 | B43: Measurement & Testing Equipment | C43: ='App.2-BA2_Fx Asst Cnt.MIFRS 15'!E43 -> 8884.312658 | D43: 7 | E43: 0.1428571429 | F43: =IF(D43=0,'App.2-CE1_MIFRS_DepExp_2014'!K43,+'App.2-CE1_MIFRS_DepExp_2014'!K43+((C43*0.5)/D43)) -> 25252.83967 | G43: =-'App.2-BA2_Fx Asst Cnt.MIFRS 15'!J43 -> 17564.17606 | H43: 7688.663616 | I43: 1269.187523 | J43: 2077.311147 | K43: 23810.12229 | O43: 1945 | P43: 65.30114703
A44: 1950 | B44: Power Operated Equipment | C44: ='App.2-BA2_Fx Asst Cnt.MIFRS 15'!E44 -> 0 | E44: 0 | F44: =IF(D44=0,'App.2-CE1_MIFRS_DepExp_2014'!K44,+'App.2-CE1_MIFRS_DepExp_2014'!K44+((C44*0.5)/D44)) -> 0 | G44: =-'App.2-BA2_Fx Asst Cnt.MIFRS 15'!J44 -> 0 | H44: 0 | I44: 0 | J44: 0 | K44: 0
A45: 1955 | B45: Communications Equipment | C45: ='App.2-BA2_Fx Asst Cnt.MIFRS 15'!E45 -> 0 | D45: 10 | E45: 0.1 | F45: =IF(D45=0,'App.2-CE1_MIFRS_DepExp_2014'!K45,+'App.2-CE1_MIFRS_DepExp_2014'!K45+((C45*0.5)/D45)) -> 15868.472 | G45: =-'App.2-BA2_Fx Asst Cnt.MIFRS 15'!J45 -> 15854.4 | H45: 14.072 | I45: 0 | J45: 0 | K45: 15868.472
A46: 1955 | B46: Communication Equipment (Smart Meters) | C46: ='App.2-BA2_Fx Asst Cnt.MIFRS 15'!E46 -> 0 | D46: 10 | E46: 0.1 | F46: =IF(D46=0,'App.2-CE1_MIFRS_DepExp_2014'!K46,+'App.2-CE1_MIFRS_DepExp_2014'!K46+((C46*0.5)/D46)) -> 0 | G46: =-'App.2-BA2_Fx Asst Cnt.MIFRS 15'!J46 -> 0 | H46: 0 | I46: 0 | K46: 0
A47: 1960 | B47: Miscellaneous Equipment | C47: ='App.2-BA2_Fx Asst Cnt.MIFRS 15'!E47 -> 0 | D47: 10 | E47: 0.1 | F47: =IF(D47=0,'App.2-CE1_MIFRS_DepExp_2014'!K47,+'App.2-CE1_MIFRS_DepExp_2014'!K47+((C47*0.5)/D47)) -> 13188.232 | G47: =-'App.2-BA2_Fx Asst Cnt.MIFRS 15'!J47 -> 12756.89 | H47: 431.342 | I47: 0 | J47: 0 | K47: 13188.232
A48: 1970 | B48: Load Management Controls Customer Premises | C48: ='App.2-BA2_Fx Asst Cnt.MIFRS 15'!E48 -> 0 | D48: 20 | E48: 0.05 | F48: =IF(D48=0,'App.2-CE1_MIFRS_DepExp_2014'!K48,+'App.2-CE1_MIFRS_DepExp_2014'!K48+((C48*0.5)/D48)) -> 0 | G48: =-'App.2-BA2_Fx Asst Cnt.MIFRS 15'!J48 -> 0 | H48: 0 | I48: 0 | J48: 0 | K48: 0
A49: 1975 | B49: Load Management Controls Utility Premises | C49: ='App.2-BA2_Fx Asst Cnt.MIFRS 15'!E49 -> 0 | D49: 8 | E49: 0.125 | F49: =IF(D49=0,'App.2-CE1_MIFRS_DepExp_2014'!K49,+'App.2-CE1_MIFRS_DepExp_2014'!K49+((C49*0.5)/D49)) -> 17494.29 | G49: =-'App.2-BA2_Fx Asst Cnt.MIFRS 15'!J49 -> 58017.05528 | H49: -40522.76528 | I49: 0 | J49: 0 | K49: 17494.29
A50: 1980 | B50: System Supervisor Equipment | C50: ='App.2-BA2_Fx Asst Cnt.MIFRS 15'!E50 -> 0 | E50: 0 | F50: =IF(D50=0,'App.2-CE1_MIFRS_DepExp_2014'!K50,+'App.2-CE1_MIFRS_DepExp_2014'!K50+((C50*0.5)/D50)) -> 0 | G50: =-'App.2-BA2_Fx Asst Cnt.MIFRS 15'!J50 -> 0 | H50: 0 | I50: 0 | J50: 0 | K50: 0
A51: 1985 | B51: Miscellaneous Fixed Assets | C51: ='App.2-BA2_Fx Asst Cnt.MIFRS 15'!E51 -> 0 | E51: 0 | F51: =IF(D51=0,'App.2-CE1_MIFRS_DepExp_2014'!K51,+'App.2-CE1_MIFRS_DepExp_2014'!K51+((C51*0.5)/D51)) -> 0 | G51: =-'App.2-BA2_Fx Asst Cnt.MIFRS 15'!J51 -> 0 | H51: 0 | I51: 0 | J51: 0 | K51: 0
A52: 1990 | B52: Other Tangible Property | C52: ='App.2-BA2_Fx Asst Cnt.MIFRS 15'!E52 -> 0 | E52: 0 | F52: =IF(D52=0,'App.2-CE1_MIFRS_DepExp_2014'!K52,+'App.2-CE1_MIFRS_DepExp_2014'!K52+((C52*0.5)/D52)) -> 0 | G52: =-'App.2-BA2_Fx Asst Cnt.MIFRS 15'!J52 -> 0 | H52: 0 | I52: 0 | J52: 0 | K52: 0
A53: 1995 | B53: Contributions & Grants | C53: ='App.2-BA2_Fx Asst Cnt.MIFRS 15'!E53 -> -4911000 | D53: 45 | E53: 0.02222222222 | F53: =IF(D53=0,'App.2-CE1_MIFRS_DepExp_2014'!K53,+'App.2-CE1_MIFRS_DepExp_2014'!K53+((C53*0.5)/D53)) -> -725263.0308 | G53: =-'App.2-BA2_Fx Asst Cnt.MIFRS 15'!J53 -> -825341.8485 | H53: 100078.8178 | I53: -109133.3333 | J53: -6708.376 | K53: -773121.3214
A54: etc. | E54: 0 | F54: =IF(D54=0,'App.2-CE1_MIFRS_DepExp_2014'!K54,+'App.2-CE1_MIFRS_DepExp_2014'!K54+((C54*0.5)/D54)) -> 0 | H54: 0 | I54: 0 | K54: 0
E55: 0 | F55: =IF(D55=0,'App.2-CE1_MIFRS_DepExp_2014'!K55,+'App.2-CE1_MIFRS_DepExp_2014'!K55+((C55*0.5)/D55)) -> 0 | H55: 0 | I55: 0 | K55: 0
B56: Total | C56: =SUM(C16:C55) -> 12369900 | F56: =SUM(F16:F55) -> 4357859.122 | G56: =SUM(G16:G55) -> 4435736.074 | H56: =SUM(H16:H55) -> -77876.95231 | I56: =SUM(I16:I55) -> 674297.1277 | J56: 178912.1318 | K56: 4516095.554 | P56: =SUM(P19:P31) -> 78387.12062
B57: Depreciation exp. adj. from gain or loss on the retirement of assets (pool of like assets) | F57: =-H56 -> 77876.95231
B58: Total Depreciation expense to be included in the test year revenue requirement | F58: =SUM(F56:F57) -> 4435736.074
A59: Notes:
A60: 1 | B60: Board policy of the "half-year" rule - the applicant must ensure that additions in the year attract a half-year depreciation expense in the first year. Deviations from this standard practice must be supported in the application.
A61: 2 | B61: The applicant must provide an explanation of material variances in evidence.
A63: General: | B63: Applicants must provide a breakdown of depreciation and amortization expense in the above format for all relevant accounts. Asset Retirement Obligations (AROs), depreciation and accretion expense should be disclosed separately consistent with the Notes of historical Audited Financial Statements.

Sheet App.2-CE3_MIFRS_DepExp_2016
G1: File Number: | H1: =EBNUMBER -> EB-2014-0101
G2: Exhibit:
G3: Tab:
G4: Schedule:
G5: Page:
G7: Date:
A9: Appendix 2-CE3
A10: Depreciation and Amortization Expense
A11: Assumes the applicant adopted IFRS for financial reporting purposes January 1, 2012
C12: 2016 | D12: MIFRS
A14: Account | B14: Description | C14: Additions | D14: Years (new additions only) | E14: Depreciation Rate on New Additions | F14: 2016 Depreciation Expense 1 | G14: 2016 Depreciation Expense per Appendix 2-B Fixed Assets, Column K (l) | H14: Variance 2 | I14: Depreciation Expense on 2016 Full Year Additions | J14: Less Depreciation Expense on Assets Fully Depreciated during the year (o) | K14: 2016 Full Year Depreciation 3
C15: (d) | D15: (f) | E15: (g) = 1 / (f) | F15: (h)=2015 Full Year Depreciation + ((d)*0.5)/(f) | H15: (m) = (h) - (l) | I15: (n)=((d))/(f) | K15: (p) = 2015 Full Year Depreciation + (n) - (o) | O15: USA | P15: 2016
A16: 1611 | B16: Computer Software (Formally known as Account 1925) | C16: ='App.2-BA2_Fx Asst Cnt.MIFRS 16'!E16 -> 445025.9459 | D16: 3 | E16: =IF(D16=0,0,1/D16) -> 0.3333333333 | F16: =IF(D16=0,'App.2-CE2_MIFRS_DepExp_2015'!K16,+'App.2-CE2_MIFRS_DepExp_2015'!K16+((C16*0.5)/D16)) -> 600881.2064 | G16: =-'App.2-BA2_Fx Asst Cnt.MIFRS 16'!J16 -> 502319.3026 | H16: =IF(ISERROR(+F16-G16), 0, +F16-G16) -> 98561.9038 | I16: =IF(D16=0,0,+(C16)/D16) -> 148341.982 | J16: 63626.69 | K16: =F16+I16/2-J16 -> 611425.5074
A17: 1612 | B17: Land Rights (Formally known as Account 1906) | C17: ='App.2-BA2_Fx Asst Cnt.MIFRS 16'!E17 -> 0 | E17: 0 | F17: =IF(D17=0,'App.2-CE2_MIFRS_DepExp_2015'!K17,+'App.2-CE2_MIFRS_DepExp_2015'!K17+((C17*0.5)/D17)) -> 0 | G17: =-'App.2-BA2_Fx Asst Cnt.MIFRS 16'!J17 -> 0 | H17: 0 | I17: 0 | J17: 0 | K17: =F17+I17/2-J17 -> 0
A18: 1805 | B18: Land | C18: ='App.2-BA2_Fx Asst Cnt.MIFRS 16'!E18 -> 0 | E18: 0 | F18: =IF(D18=0,'App.2-CE2_MIFRS_DepExp_2015'!K18,+'App.2-CE2_MIFRS_DepExp_2015'!K18+((C18*0.5)/D18)) -> 0 | G18: =-'App.2-BA2_Fx Asst Cnt.MIFRS 16'!J18 -> 0 | H18: 0 | I18: 0 | J18: 0 | K18: 0
A19: 1808 | B19: Buildings | C19: ='App.2-BA2_Fx Asst Cnt.MIFRS 16'!E19 -> 0 | D19: 62 | E19: 0.01612903226 | F19: =IF(D19=0,'App.2-CE2_MIFRS_DepExp_2015'!K19,+'App.2-CE2_MIFRS_DepExp_2015'!K19+((C19*0.5)/D19)) -> 12740.06613 | G19: =-'App.2-BA2_Fx Asst Cnt.MIFRS 16'!J19 -> 11932.64 | H19: 807.426129 | I19: 0 | J19: 0 | K19: 12740.06613
A20: 1810 | B20: Leasehold Improvements | C20: ='App.2-BA2_Fx Asst Cnt.MIFRS 16'!E20 -> 0 | E20: 0 | F20: =IF(D20=0,'App.2-CE2_MIFRS_DepExp_2015'!K20,+'App.2-CE2_MIFRS_DepExp_2015'!K20+((C20*0.5)/D20)) -> 0 | G20: =-'App.2-BA2_Fx Asst Cnt.MIFRS 16'!J20 -> 0 | H20: 0 | I20: 0 | J20: 0 | K20: 0
A21: 1815 | B21: Transformer Station Equipment >50 kV | C21: ='App.2-BA2_Fx Asst Cnt.MIFRS 16'!E21 -> 0 | E21: 0 | F21: =IF(D21=0,'App.2-CE2_MIFRS_DepExp_2015'!K21,+'App.2-CE2_MIFRS_DepExp_2015'!K21+((C21*0.5)/D21)) -> 0 | G21: =-'App.2-BA2_Fx Asst Cnt.MIFRS 16'!J21 -> 0 | H21: 0 | I21: 0 | J21: 0 | K21: 0
A22: 1820 | B22: Distribution Station Equipment <50 kV | C22: ='App.2-BA2_Fx Asst Cnt.MIFRS 16'!E22 -> 1759912.371 | D22: 45 | E22: 0.02222222222 | F22: =IF(D22=0,'App.2-CE2_MIFRS_DepExp_2015'!K22,+'App.2-CE2_MIFRS_DepExp_2015'!K22+((C22*0.5)/D22)) -> 427310.8512 | G22: =-'App.2-BA2_Fx Asst Cnt.MIFRS 16'!J22 -> 484170.3629 | H22: -56859.51176 | I22: 39109.1638 | J22: 8040.51048 | K22: 438824.9226 | O22: 1820 | P22: 8040.51048
A23: 1825 | B23: Storage Battery Equipment | C23: ='App.2-BA2_Fx Asst Cnt.MIFRS 16'!E23 -> 0 | E23: 0 | F23: =IF(D23=0,'App.2-CE2_MIFRS_DepExp_2015'!K23,+'App.2-CE2_MIFRS_DepExp_2015'!K23+((C23*0.5)/D23)) -> 0 | G23: =-'App.2-BA2_Fx Asst Cnt.MIFRS 16'!J23 -> 0 | H23: 0 | I23: 0 | K23: 0
A24: 1830 | B24: Poles, Towers & Fixtures | C24: ='App.2-BA2_Fx Asst Cnt.MIFRS 16'!E24 -> 2833573.15 | D24: 45 | E24: 0.02222222222 | F24: =IF(D24=0,'App.2-CE2_MIFRS_DepExp_2015'!K24,+'App.2-CE2_MIFRS_DepExp_2015'!K24+((C24*0.5)/D24)) -> 725027.5198 | G24: =-'App.2-BA2_Fx Asst Cnt.MIFRS 16'!J24 -> 747339.0364 | H24: -22311.51662 | I24: 62968.29222 | J24: 39577.80261 | K24: 716933.8633 | O24: 1830 | P24: 39577.80261
A25: 1835 | B25: Overhead Conductors & Devices | C25: ='App.2-BA2_Fx Asst Cnt.MIFRS 16'!E25 -> 1584612.842 | D25: 55 | E25: 0.01818181818 | F25: =IF(D25=0,'App.2-CE2_MIFRS_DepExp_2015'!K25,+'App.2-CE2_MIFRS_DepExp_2015'!K25+((C25*0.5)/D25)) -> 326186.6346 | G25: =-'App.2-BA2_Fx Asst Cnt.MIFRS 16'!J25 -> 418770.4852 | H25: -92583.85063 | I25: 28811.14258 | J25: 20703.30474 | K25: 319888.9011 | O25: 1835 | P25: 20703.30474
A26: 1840 | B26: Underground Conduit | C26: ='App.2-BA2_Fx Asst Cnt.MIFRS 16'!E26 -> 0 | E26: 0 | F26: =IF(D26=0,'App.2-CE2_MIFRS_DepExp_2015'!K26,+'App.2-CE2_MIFRS_DepExp_2015'!K26+((C26*0.5)/D26)) -> 0 | G26: =-'App.2-BA2_Fx Asst Cnt.MIFRS 16'!J26 -> 0 | H26: 0 | I26: 0 | K26: 0
A27: 1845 | B27: Underground Conductors & Devices | C27: ='App.2-BA2_Fx Asst Cnt.MIFRS 16'!E27 -> 2652223.06 | D27: 38 | E27: 0.02631578947 | F27: =IF(D27=0,'App.2-CE2_MIFRS_DepExp_2015'!K27,+'App.2-CE2_MIFRS_DepExp_2015'!K27+((C27*0.5)/D27)) -> 908546.4126 | G27: =-'App.2-BA2_Fx Asst Cnt.MIFRS 16'!J27 -> 906070.9336 | H27: 2475.47903 | I27: 69795.34368 | J27: 24160.73432 | K27: 919283.3501 | O27: 1845 | P27: 24160.73432
A28: 1850 | B28: Line Transformers | C28: ='App.2-BA2_Fx Asst Cnt.MIFRS 16'!E28 -> 448362.2328 | D28: 40 | E28: 0.025 | F28: =IF(D28=0,'App.2-CE2_MIFRS_DepExp_2015'!K28,+'App.2-CE2_MIFRS_DepExp_2015'!K28+((C28*0.5)/D28)) -> 837471.3436 | G28: =-'App.2-BA2_Fx Asst Cnt.MIFRS 16'!J28 -> 799171.1978 | H28: 38300.14581 | I28: 11209.05582 | J28: 5889.335358 | K28: 837186.5362 | O28: 1850 | P28: 5889.335358
A29: 1855 | B29: Services (Overhead & Underground) | C29: ='App.2-BA2_Fx Asst Cnt.MIFRS 16'!E29 -> 0 | E29: 0 | F29: =IF(D29=0,'App.2-CE2_MIFRS_DepExp_2015'!K29,+'App.2-CE2_MIFRS_DepExp_2015'!K29+((C29*0.5)/D29)) -> 0 | G29: =-'App.2-BA2_Fx Asst Cnt.MIFRS 16'!J29 -> 0 | H29: 0 | I29: 0 | K29: 0
A30: 1860 | B30: Meters | C30: ='App.2-BA2_Fx Asst Cnt.MIFRS 16'!E30 -> 615910.9836 | D30: 30 | E30: 0.03333333333 | F30: =IF(D30=0,'App.2-CE2_MIFRS_DepExp_2015'!K30,+'App.2-CE2_MIFRS_DepExp_2015'!K30+((C30*0.5)/D30)) -> 757632.3159 | G30: =-'App.2-BA2_Fx Asst Cnt.MIFRS 16'!J30 -> 849094.3563 | H30: -91462.04048 | I30: 20530.36612 | J30: 7825.290887 | K30: 760072.208 | O30: 1860 | P30: 7825.290887
A31: 1860 | B31: Meters (Smart Meters) | C31: ='App.2-BA2_Fx Asst Cnt.MIFRS 16'!E31 -> 0 | D31: 10 | E31: 0.1 | F31: =IF(D31=0,'App.2-CE2_MIFRS_DepExp_2015'!K31,+'App.2-CE2_MIFRS_DepExp_2015'!K31+((C31*0.5)/D31)) -> 63881.09284 | G31: =-'App.2-BA2_Fx Asst Cnt.MIFRS 16'!J31 -> 0 | H31: 63881.09284 | I31: 0 | K31: 63881.09284
A32: 1905 | B32: Land | C32: ='App.2-BA2_Fx Asst Cnt.MIFRS 16'!E32 -> 0 | E32: 0 | F32: =IF(D32=0,'App.2-CE2_MIFRS_DepExp_2015'!K32,+'App.2-CE2_MIFRS_DepExp_2015'!K32+((C32*0.5)/D32)) -> 0 | G32: =-'App.2-BA2_Fx Asst Cnt.MIFRS 16'!J32 -> 0 | H32: 0 | I32: 0 | J32: 0 | K32: 0
A33: 1908 | B33: Buildings & Fixtures | C33: ='App.2-BA2_Fx Asst Cnt.MIFRS 16'!E33 -> 0 | E33: 0 | F33: =IF(D33=0,'App.2-CE2_MIFRS_DepExp_2015'!K33,+'App.2-CE2_MIFRS_DepExp_2015'!K33+((C33*0.5)/D33)) -> 0 | G33: =-'App.2-BA2_Fx Asst Cnt.MIFRS 16'!J33 -> 0 | H33: 0 | I33: 0 | J33: 0 | K33: 0
A34: 1910 | B34: Leasehold Improvements | C34: ='App.2-BA2_Fx Asst Cnt.MIFRS 16'!E34 -> 90000 | D34: 5 | E34: 0.2 | F34: =IF(D34=0,'App.2-CE2_MIFRS_DepExp_2015'!K34,+'App.2-CE2_MIFRS_DepExp_2015'!K34+((C34*0.5)/D34)) -> 212398.5569 | G34: =-'App.2-BA2_Fx Asst Cnt.MIFRS 16'!J34 -> 171590.63 | H34: 40807.92686 | I34: 18000 | J34: 42417.51 | K34: 178981.0469
A35: 1915 | B35: Office Furniture & Equipment (10 years) | C35: ='App.2-BA2_Fx Asst Cnt.MIFRS 16'!E35 -> 0 | E35: 0 | F35: =IF(D35=0,'App.2-CE2_MIFRS_DepExp_2015'!K35,+'App.2-CE2_MIFRS_DepExp_2015'!K35+((C35*0.5)/D35)) -> -6376.61 | G35: =-'App.2-BA2_Fx Asst Cnt.MIFRS 16'!J35 -> 0 | H35: -6376.61 | I35: 0 | J35: 0 | K35: -6376.61
A36: 1915 | B36: Office Furniture & Equipment (5 years) | C36: ='App.2-BA2_Fx Asst Cnt.MIFRS 16'!E36 -> 10000 | D36: 10 | E36: 0.1 | F36: =IF(D36=0,'App.2-CE2_MIFRS_DepExp_2015'!K36,+'App.2-CE2_MIFRS_DepExp_2015'!K36+((C36*0.5)/D36)) -> 15462.58039 | G36: =-'App.2-BA2_Fx Asst Cnt.MIFRS 16'!J36 -> 11068.53 | H36: 4394.050387 | I36: 1000 | K36: 15962.58039
A37: 1920 | B37: Computer Equipment - Hardware | C37: ='App.2-BA2_Fx Asst Cnt.MIFRS 16'!E37 -> 172404.5846 | D37: 4 | E37: 0.25 | F37: =IF(D37=0,'App.2-CE2_MIFRS_DepExp_2015'!K37,+'App.2-CE2_MIFRS_DepExp_2015'!K37+((C37*0.5)/D37)) -> 141694.7128 | G37: =-'App.2-BA2_Fx Asst Cnt.MIFRS 16'!J37 -> 211296.2984 | H37: -69601.58561 | I37: 43101.14614 | J37: 16221.8 | K37: 147023.4859
A38: 1920 | B38: Computer Equip.-Hardware(Post Mar. 22/04) | C38: ='App.2-BA2_Fx Asst Cnt.MIFRS 16'!E38 -> 0 | D38: 4 | E38: 0.25 | F38: =IF(D38=0,'App.2-CE2_MIFRS_DepExp_2015'!K38,+'App.2-CE2_MIFRS_DepExp_2015'!K38+((C38*0.5)/D38)) -> 33652.43125 | G38: =-'App.2-BA2_Fx Asst Cnt.MIFRS 16'!J38 -> 0 | H38: 33652.43125 | I38: 0 | K38: 33652.43125
A39: 1920 | B39: Computer Equip.-Hardware(Post Mar. 19/07) | C39: ='App.2-BA2_Fx Asst Cnt.MIFRS 16'!E39 -> 0 | D39: 4 | E39: 0.25 | F39: =IF(D39=0,'App.2-CE2_MIFRS_DepExp_2015'!K39,+'App.2-CE2_MIFRS_DepExp_2015'!K39+((C39*0.5)/D39)) -> 0 | G39: =-'App.2-BA2_Fx Asst Cnt.MIFRS 16'!J39 -> 0 | H39: 0 | I39: 0 | K39: 0
A40: 1930 | B40: Transportation Equipment | C40: ='App.2-BA2_Fx Asst Cnt.MIFRS 16'!E40 -> 415000 | D40: 10 | E40: 0.1 | F40: =IF(D40=0,'App.2-CE2_MIFRS_DepExp_2015'!K40,+'App.2-CE2_MIFRS_DepExp_2015'!K40+((C40*0.5)/D40)) -> 298236.5361 | G40: =-'App.2-BA2_Fx Asst Cnt.MIFRS 16'!J40 -> 324117.9833 | H40: -25881.44719 | I40: 41500 | J40: 0 | K40: 318986.5361
A41: 1935 | B41: Stores Equipment | C41: ='App.2-BA2_Fx Asst Cnt.MIFRS 16'!E41 -> 0 | D41: 7 | E41: 0.1428571429 | F41: =IF(D41=0,'App.2-CE2_MIFRS_DepExp_2015'!K41,+'App.2-CE2_MIFRS_DepExp_2015'!K41+((C41*0.5)/D41)) -> 5.684341886e-13 | G41: =-'App.2-BA2_Fx Asst Cnt.MIFRS 16'!J41 -> 0 | H41: 5.684341886e-13 | I41: 0 | J41: 0 | K41: 5.684341886e-13
A42: 1940 | B42: Tools, Shop & Garage Equipment | C42: ='App.2-BA2_Fx Asst Cnt.MIFRS 16'!E42 -> 145820.4144 | D42: 7 | E42: 0.1428571429 | F42: =IF(D42=0,'App.2-CE2_MIFRS_DepExp_2015'!K42,+'App.2-CE2_MIFRS_DepExp_2015'!K42+((C42*0.5)/D42)) -> 116709.099 | G42: =-'App.2-BA2_Fx Asst Cnt.MIFRS 16'!J42 -> 131505.5701 | H42: -14796.47109 | I42: 20831.48777 | J42: 5866.827967 | K42: 121258.0149 | O42: 1940 | P42: 3277.827967
A43: 1945 | B43: Measurement & Testing Equipment | C43: ='App.2-BA2_Fx Asst Cnt.MIFRS 16'!E43 -> 59154.39988 | D43: 7 | E43: 0.1428571429 | F43: =IF(D43=0,'App.2-CE2_MIFRS_DepExp_2015'!K43,+'App.2-CE2_MIFRS_DepExp_2015'!K43+((C43*0.5)/D43)) -> 28035.43656 | G43: =-'App.2-BA2_Fx Asst Cnt.MIFRS 16'!J43 -> 20377.58626 | H43: 7657.850301 | I43: 8450.628554 | J43: 99.78897913 | K43: 32160.96186 | O43: 1945 | P43: 99.78897913
A44: 1950 | B44: Power Operated Equipment | C44: ='App.2-BA2_Fx Asst Cnt.MIFRS 16'!E44 -> 0 | E44: 0 | F44: =IF(D44=0,'App.2-CE2_MIFRS_DepExp_2015'!K44,+'App.2-CE2_MIFRS_DepExp_2015'!K44+((C44*0.5)/D44)) -> 0 | G44: =-'App.2-BA2_Fx Asst Cnt.MIFRS 16'!J44 -> 0 | H44: 0 | I44: 0 | J44: 0 | K44: 0
A45: 1955 | B45: Communications Equipment | C45: ='App.2-BA2_Fx Asst Cnt.MIFRS 16'!E45 -> 0 | D45: 10 | E45: 0.1 | F45: =IF(D45=0,'App.2-CE2_MIFRS_DepExp_2015'!K45,+'App.2-CE2_MIFRS_DepExp_2015'!K45+((C45*0.5)/D45)) -> 15868.472 | G45: =-'App.2-BA2_Fx Asst Cnt.MIFRS 16'!J45 -> 15854.4 | H45: 14.072 | I45: 0 | J45: 0 | K45: 15868.472
A46: 1955 | B46: Communication Equipment (Smart Meters) | C46: ='App.2-BA2_Fx Asst Cnt.MIFRS 16'!E46 -> 0 | D46: 10 | E46: 0.1 | F46: =IF(D46=0,'App.2-CE2_MIFRS_DepExp_2015'!K46,+'App.2-CE2_MIFRS_DepExp_2015'!K46+((C46*0.5)/D46)) -> 0 | G46: =-'App.2-BA2_Fx Asst Cnt.MIFRS 16'!J46 -> 0 | H46: 0 | I46: 0 | K46: 0
A47: 1960 | B47: Miscellaneous Equipment | C47: ='App.2-BA2_Fx Asst Cnt.MIFRS 16'!E47 -> 0 | D47: 10 | E47: 0.1 | F47: =IF(D47=0,'App.2-CE2_MIFRS_DepExp_2015'!K47,+'App.2-CE2_MIFRS_DepExp_2015'!K47+((C47*0.5)/D47)) -> 13188.232 | G47: =-'App.2-BA2_Fx Asst Cnt.MIFRS 16'!J47 -> 11073.89 | H47: 2114.342 | I47: 0 | J47: 0.01 | K47: 13188.222
A48: 1970 | B48: Load Management Controls Customer Premises | C48: ='App.2-BA2_Fx Asst Cnt.MIFRS 16'!E48 -> 0 | D48: 20 | E48: 0.05 | F48: =IF(D48=0,'App.2-CE2_MIFRS_DepExp_2015'!K48,+'App.2-CE2_MIFRS_DepExp_2015'!K48+((C48*0.5)/D48)) -> 0 | G48: =-'App.2-BA2_Fx Asst Cnt.MIFRS 16'!J48 -> 0 | H48: 0 | I48: 0 | J48: 0 | K48: 0
A49: 1975 | B49: Load Management Controls Utility Premises | C49: ='App.2-BA2_Fx Asst Cnt.MIFRS 16'!E49 -> 0 | D49: 8 | E49: 0.125 | F49: =IF(D49=0,'App.2-CE2_MIFRS_DepExp_2015'!K49,+'App.2-CE2_MIFRS_DepExp_2015'!K49+((C49*0.5)/D49)) -> 17494.29 | G49: =-'App.2-BA2_Fx Asst Cnt.MIFRS 16'!J49 -> 46497.40889 | H49: -29003.11889 | I49: 0 | J49: 45562 | K49: -28067.71
A50: 1980 | B50: System Supervisor Equipment | C50: ='App.2-BA2_Fx Asst Cnt.MIFRS 16'!E50 -> 0 | E50: 0 | F50: =IF(D50=0,'App.2-CE2_MIFRS_DepExp_2015'!K50,+'App.2-CE2_MIFRS_DepExp_2015'!K50+((C50*0.5)/D50)) -> 0 | G50: =-'App.2-BA2_Fx Asst Cnt.MIFRS 16'!J50 -> 0 | H50: 0 | I50: 0 | J50: 0 | K50: 0
A51: 1985 | B51: Miscellaneous Fixed Assets | C51: ='App.2-BA2_Fx Asst Cnt.MIFRS 16'!E51 -> 0 | E51: 0 | F51: =IF(D51=0,'App.2-CE2_MIFRS_DepExp_2015'!K51,+'App.2-CE2_MIFRS_DepExp_2015'!K51+((C51*0.5)/D51)) -> 0 | G51: =-'App.2-BA2_Fx Asst Cnt.MIFRS 16'!J51 -> 0 | H51: 0 | I51: 0 | J51: 0 | K51: 0
A52: 1990 | B52: Other Tangible Property | C52: ='App.2-BA2_Fx Asst Cnt.MIFRS 16'!E52 -> 0 | E52: 0 | F52: =IF(D52=0,'App.2-CE2_MIFRS_DepExp_2015'!K52,+'App.2-CE2_MIFRS_DepExp_2015'!K52+((C52*0.5)/D52)) -> 0 | G52: =-'App.2-BA2_Fx Asst Cnt.MIFRS 16'!J52 -> 0 | H52: 0 | I52: 0 | J52: 0 | K52: 0
A53: 1995 | B53: Contributions & Grants | C53: ='App.2-BA2_Fx Asst Cnt.MIFRS 16'!E53 -> -1455000 | D53: 45 | E53: 0.02222222222 | F53: =IF(D53=0,'App.2-CE2_MIFRS_DepExp_2015'!K53,+'App.2-CE2_MIFRS_DepExp_2015'!K53+((C53*0.5)/D53)) -> -789287.9881 | G53: =-'App.2-BA2_Fx Asst Cnt.MIFRS 16'!J53 -> -918524.204 | H53: 129236.2159 | I53: -32333.33333 | J53: -19 | K53: -805435.6548
A54: etc. | E54: 0 | F54: =IF(D54=0,'App.2-CE2_MIFRS_DepExp_2015'!K54,+'App.2-CE2_MIFRS_DepExp_2015'!K54+((C54*0.5)/D54)) -> 0 | H54: 0 | I54: 0 | K54: 0
E55: 0 | F55: =IF(D55=0,'App.2-CE2_MIFRS_DepExp_2015'!K55,+'App.2-CE2_MIFRS_DepExp_2015'!K55+((C55*0.5)/D55)) -> 0 | H55: 0 | I55: 0 | K55: 0
B56: Total | C56: =SUM(C16:C55) -> 9776999.984 | F56: =SUM(F16:F55) -> 4756753.192 | G56: =SUM(G16:G55) -> 4743726.408 | H56: =SUM(H16:H55) -> 13026.78403 | I56: =SUM(I16:I55) -> 481315.2753 | J56: 279972.6053 | K56: 4717438.224 | P56: =SUM(P19:P31) -> 106196.9784
B57: Depreciation exp. adj. from gain or loss on the retirement of assets (pool of like assets) | F57: =-H56 -> -13026.78403
B58: Total Depreciation expense to be included in the test year revenue requirement | F58: =SUM(F56:F57) -> 4743726.408
A59: Notes:
A60: 1 | B60: Board policy of the "half-year" rule - the applicant must ensure that additions in the year attract a half-year depreciation expense in the first year. Deviations from this standard practice must be supported in the application.
A61: 2 | B61: The applicant must provide an explanation of material variances in evidence.
A63: General: | B63: Applicants must provide a breakdown of depreciation and amortization expense in the above format for all relevant accounts. Asset Retirement Obligations (AROs), depreciation and accretion expense should be disclosed separately consistent with the Notes of historical Audited Financial Statements.

Sheet App.2-CE4_MIFRS_DepExp_2017
G1: File Number: | H1: =EBNUMBER -> EB-2014-0101
G2: Exhibit:
G3: Tab:
G4: Schedule:
G5: Page:
G7: Date:
A9: Appendix 2-CE4
A10: Depreciation and Amortization Expense
A11: Assumes the applicant adopted IFRS for financial reporting purposes January 1, 2012
C12: 2017 | D12: MIFRS
A14: Account | B14: Description | C14: Additions | D14: Years (new additions only) | E14: Depreciation Rate on New Additions | F14: 2017 Depreciation Expense 1 | G14: 2017 Depreciation Expense per Appendix 2-B Fixed Assets, Column K (l) | H14: Variance 2 | I14: Depreciation Expense on 2017 Full Year Additions | J14: Less Depreciation Expense on Assets Fully Depreciated during the year (o) | K14: 2017 Full Year Depreciation 3
C15: (d) | D15: (f) | E15: (g) = 1 / (f) | F15: (h)=2016 Full Year Depreciation + ((d)*0.5)/(f) | H15: (m) = (h) - (l) | I15: (n)=((d))/(f) | K15: (p) = 2012 Full Year Depreciation + (n) - (o) | O15: USA | P15: 2017
A16: 1611 | B16: Computer Software (Formally known as Account 1925) | C16: ='App.2-BA2_Fx Asst Cnt.MIFRS 17'!E16 -> 135847.2973 | D16: 3 | E16: =IF(D16=0,0,1/D16) -> 0.3333333333 | F16: =IF(D16=0,'App.2-CE3_MIFRS_DepExp_2016'!K16,+'App.2-CE3_MIFRS_DepExp_2016'!K16+((C16*0.5)/D16)) -> 634066.7236 | G16: =-'App.2-BA2_Fx Asst Cnt.MIFRS 17'!J16 -> 476504.8198 | H16: =IF(ISERROR(+F16-G16), 0, +F16-G16) -> 157561.9038 | I16: =IF(D16=0,0,+(C16)/D16) -> 45282.43242 | J16: 0 | K16: =F16+I16/2-J16 -> 656707.9398
A17: 1612 | B17: Land Rights (Formally known as Account 1906) | C17: ='App.2-BA2_Fx Asst Cnt.MIFRS 17'!E17 -> 0 | E17: 0 | F17: =IF(D17=0,'App.2-CE3_MIFRS_DepExp_2016'!K17,+'App.2-CE3_MIFRS_DepExp_2016'!K17+((C17*0.5)/D17)) -> 0 | G17: =-'App.2-BA2_Fx Asst Cnt.MIFRS 17'!J17 -> 0 | H17: 0 | I17: 0 | J17: 0 | K17: =F17+I17/2-J17 -> 0
A18: 1805 | B18: Land | C18: ='App.2-BA2_Fx Asst Cnt.MIFRS 17'!E18 -> 0 | E18: 0 | F18: =IF(D18=0,'App.2-CE3_MIFRS_DepExp_2016'!K18,+'App.2-CE3_MIFRS_DepExp_2016'!K18+((C18*0.5)/D18)) -> 0 | G18: =-'App.2-BA2_Fx Asst Cnt.MIFRS 17'!J18 -> 0 | H18: 0 | I18: 0 | J18: 0 | K18: 0
A19: 1808 | B19: Buildings | C19: ='App.2-BA2_Fx Asst Cnt.MIFRS 17'!E19 -> 0 | D19: 62 | E19: 0.01612903226 | F19: =IF(D19=0,'App.2-CE3_MIFRS_DepExp_2016'!K19,+'App.2-CE3_MIFRS_DepExp_2016'!K19+((C19*0.5)/D19)) -> 12740.06613 | G19: =-'App.2-BA2_Fx Asst Cnt.MIFRS 17'!J19 -> 11932.64 | H19: 807.426129 | I19: 0 | J19: 0 | K19: 12740.06613
A20: 1810 | B20: Leasehold Improvements | C20: ='App.2-BA2_Fx Asst Cnt.MIFRS 17'!E20 -> 0 | E20: 0 | F20: =IF(D20=0,'App.2-CE3_MIFRS_DepExp_2016'!K20,+'App.2-CE3_MIFRS_DepExp_2016'!K20+((C20*0.5)/D20)) -> 0 | G20: =-'App.2-BA2_Fx Asst Cnt.MIFRS 17'!J20 -> 0 | H20: 0 | I20: 0 | J20: 0 | K20: 0
A21: 1815 | B21: Transformer Station Equipment >50 kV | C21: ='App.2-BA2_Fx Asst Cnt.MIFRS 17'!E21 -> 0 | E21: 0 | F21: =IF(D21=0,'App.2-CE3_MIFRS_DepExp_2016'!K21,+'App.2-CE3_MIFRS_DepExp_2016'!K21+((C21*0.5)/D21)) -> 0 | G21: =-'App.2-BA2_Fx Asst Cnt.MIFRS 17'!J21 -> 0 | H21: 0 | I21: 0 | J21: 0 | K21: 0
A22: 1820 | B22: Distribution Station Equipment <50 kV | C22: ='App.2-BA2_Fx Asst Cnt.MIFRS 17'!E22 -> 512047.4243 | D22: 45 | E22: 0.02222222222 | F22: =IF(D22=0,'App.2-CE3_MIFRS_DepExp_2016'!K22,+'App.2-CE3_MIFRS_DepExp_2016'!K22+((C22*0.5)/D22)) -> 444514.3384 | G22: =-'App.2-BA2_Fx Asst Cnt.MIFRS 17'!J22 -> 510929.2329 | H22: -66414.89451 | I22: 11378.83165 | J22: 9681.133011 | K22: 440522.6212 | O22: 1820 | P22: 9681.133011
A23: 1825 | B23: Storage Battery Equipment | C23: ='App.2-BA2_Fx Asst Cnt.MIFRS 17'!E23 -> 0 | E23: 0 | F23: =IF(D23=0,'App.2-CE3_MIFRS_DepExp_2016'!K23,+'App.2-CE3_MIFRS_DepExp_2016'!K23+((C23*0.5)/D23)) -> 0 | G23: =-'App.2-BA2_Fx Asst Cnt.MIFRS 17'!J23 -> 0 | H23: 0 | I23: 0 | K23: 0
A24: 1830 | B24: Poles, Towers & Fixtures | C24: ='App.2-BA2_Fx Asst Cnt.MIFRS 17'!E24 -> 4941932.31 | D24: 45 | E24: 0.02222222222 | F24: =IF(D24=0,'App.2-CE3_MIFRS_DepExp_2016'!K24,+'App.2-CE3_MIFRS_DepExp_2016'!K24+((C24*0.5)/D24)) -> 771844.2223 | G24: =-'App.2-BA2_Fx Asst Cnt.MIFRS 17'!J24 -> 829071.9164 | H24: -57227.69412 | I24: 109820.718 | J24: 43827.09222 | K24: 782927.4891 | O24: 1830 | P24: 43827.09222
A25: 1835 | B25: Overhead Conductors & Devices | C25: ='App.2-BA2_Fx Asst Cnt.MIFRS 17'!E25 -> 620888.87 | D25: 55 | E25: 0.01818181818 | F25: =IF(D25=0,'App.2-CE3_MIFRS_DepExp_2016'!K25,+'App.2-CE3_MIFRS_DepExp_2016'!K25+((C25*0.5)/D25)) -> 325533.3454 | G25: =-'App.2-BA2_Fx Asst Cnt.MIFRS 17'!J25 -> 442044.3611 | H25: -116511.0157 | I25: 11288.88855 | J25: 23041.11379 | K25: 308136.6759 | O25: 1835 | P25: 23041.11379
A26: 1840 | B26: Underground Conduit | C26: ='App.2-BA2_Fx Asst Cnt.MIFRS 17'!E26 -> 0 | E26: 0 | F26: =IF(D26=0,'App.2-CE3_MIFRS_DepExp_2016'!K26,+'App.2-CE3_MIFRS_DepExp_2016'!K26+((C26*0.5)/D26)) -> 0 | G26: =-'App.2-BA2_Fx Asst Cnt.MIFRS 17'!J26 -> 0 | H26: 0 | I26: 0 | K26: 0
A27: 1845 | B27: Underground Conductors & Devices | C27: ='App.2-BA2_Fx Asst Cnt.MIFRS 17'!E27 -> 243550.6 | D27: 38 | E27: 0.02631578947 | F27: =IF(D27=0,'App.2-CE3_MIFRS_DepExp_2016'!K27,+'App.2-CE3_MIFRS_DepExp_2016'!K27+((C27*0.5)/D27)) -> 922487.9633 | G27: =-'App.2-BA2_Fx Asst Cnt.MIFRS 17'!J27 -> 938254.4602 | H27: -15766.49696 | I27: 6409.226316 | J27: 30968.41282 | K27: 894724.1636 | O27: 1845 | P27: 30968.41282
A28: 1850 | B28: Line Transformers | C28: ='App.2-BA2_Fx Asst Cnt.MIFRS 17'!E28 -> 758620.5057 | D28: 40 | E28: 0.025 | F28: =IF(D28=0,'App.2-CE3_MIFRS_DepExp_2016'!K28,+'App.2-CE3_MIFRS_DepExp_2016'!K28+((C28*0.5)/D28)) -> 846669.2925 | G28: =-'App.2-BA2_Fx Asst Cnt.MIFRS 17'!J28 -> 811449.9361 | H28: 35219.35636 | I28: 18965.51264 | J28: 6931.301272 | K28: 849220.7475 | O28: 1850 | P28: 6931.301272
A29: 1855 | B29: Services (Overhead & Underground) | C29: ='App.2-BA2_Fx Asst Cnt.MIFRS 17'!E29 -> 0 | E29: 0 | F29: =IF(D29=0,'App.2-CE3_MIFRS_DepExp_2016'!K29,+'App.2-CE3_MIFRS_DepExp_2016'!K29+((C29*0.5)/D29)) -> 0 | G29: =-'App.2-BA2_Fx Asst Cnt.MIFRS 17'!J29 -> 0 | H29: 0 | I29: 0 | K29: 0
A30: 1860 | B30: Meters | C30: ='App.2-BA2_Fx Asst Cnt.MIFRS 17'!E30 -> 753109.1098 | D30: 30 | E30: 0.03333333333 | F30: =IF(D30=0,'App.2-CE3_MIFRS_DepExp_2016'!K30,+'App.2-CE3_MIFRS_DepExp_2016'!K30+((C30*0.5)/D30)) -> 772624.0265 | G30: =-'App.2-BA2_Fx Asst Cnt.MIFRS 17'!J30 -> 898884.3092 | H30: -126260.2827 | I30: 25103.63699 | J30: 11694.24862 | K30: 773481.5964 | O30: 1860 | P30: 11694.24862
A31: 1860 | B31: Meters (Smart Meters) | C31: ='App.2-BA2_Fx Asst Cnt.MIFRS 17'!E31 -> 0 | D31: 10 | E31: 0.1 | F31: =IF(D31=0,'App.2-CE3_MIFRS_DepExp_2016'!K31,+'App.2-CE3_MIFRS_DepExp_2016'!K31+((C31*0.5)/D31)) -> 63881.09284 | G31: =-'App.2-BA2_Fx Asst Cnt.MIFRS 17'!J31 -> 0 | H31: 63881.09284 | I31: 0 | K31: 63881.09284
A32: 1905 | B32: Land | C32: ='App.2-BA2_Fx Asst Cnt.MIFRS 17'!E32 -> 0 | E32: 0 | F32: =IF(D32=0,'App.2-CE3_MIFRS_DepExp_2016'!K32,+'App.2-CE3_MIFRS_DepExp_2016'!K32+((C32*0.5)/D32)) -> 0 | G32: =-'App.2-BA2_Fx Asst Cnt.MIFRS 17'!J32 -> 0 | H32: 0 | I32: 0 | J32: 0 | K32: 0
A33: 1908 | B33: Buildings & Fixtures | C33: ='App.2-BA2_Fx Asst Cnt.MIFRS 17'!E33 -> 0 | E33: 0 | F33: =IF(D33=0,'App.2-CE3_MIFRS_DepExp_2016'!K33,+'App.2-CE3_MIFRS_DepExp_2016'!K33+((C33*0.5)/D33)) -> 0 | G33: =-'App.2-BA2_Fx Asst Cnt.MIFRS 17'!J33 -> 0 | H33: 0 | I33: 0 | J33: 0 | K33: 0
A34: 1910 | B34: Leasehold Improvements | C34: ='App.2-BA2_Fx Asst Cnt.MIFRS 17'!E34 -> 45000 | D34: 5 | E34: 0.2 | F34: =IF(D34=0,'App.2-CE3_MIFRS_DepExp_2016'!K34,+'App.2-CE3_MIFRS_DepExp_2016'!K34+((C34*0.5)/D34)) -> 183481.0469 | G34: =-'App.2-BA2_Fx Asst Cnt.MIFRS 17'!J34 -> 127163.06 | H34: 56317.98686 | I34: 9000 | J34: 15510.06 | K34: 172470.9869
A35: 1915 | B35: Office Furniture & Equipment (10 years) | C35: ='App.2-BA2_Fx Asst Cnt.MIFRS 17'!E35 -> 0 | E35: 0 | F35: =IF(D35=0,'App.2-CE3_MIFRS_DepExp_2016'!K35,+'App.2-CE3_MIFRS_DepExp_2016'!K35+((C35*0.5)/D35)) -> -6376.61 | G35: =-'App.2-BA2_Fx Asst Cnt.MIFRS 17'!J35 -> 0 | H35: -6376.61 | I35: 0 | J35: 1.2 | K35: -6377.81
A36: 1915 | B36: Office Furniture & Equipment (5 years) | C36: ='App.2-BA2_Fx Asst Cnt.MIFRS 17'!E36 -> 5000 | D36: 10 | E36: 0.1 | F36: =IF(D36=0,'App.2-CE3_MIFRS_DepExp_2016'!K36,+'App.2-CE3_MIFRS_DepExp_2016'!K36+((C36*0.5)/D36)) -> 16212.58039 | G36: =-'App.2-BA2_Fx Asst Cnt.MIFRS 17'!J36 -> 11387.37 | H36: 4825.210387 | I36: 500 | K36: 16462.58039
A37: 1920 | B37: Computer Equipment - Hardware | C37: ='App.2-BA2_Fx Asst Cnt.MIFRS 17'!E37 -> 98267.19207 | D37: 4 | E37: 0.25 | F37: =IF(D37=0,'App.2-CE3_MIFRS_DepExp_2016'!K37,+'App.2-CE3_MIFRS_DepExp_2016'!K37+((C37*0.5)/D37)) -> 159306.8849 | G37: =-'App.2-BA2_Fx Asst Cnt.MIFRS 17'!J37 -> 198710.5205 | H37: -39403.63561 | I37: 24566.79802 | J37: 30198.11 | K37: 141392.1739
A38: 1920 | B38: Computer Equip.-Hardware(Post Mar. 22/04) | C38: ='App.2-BA2_Fx Asst Cnt.MIFRS 17'!E38 -> 0 | D38: 4 | E38: 0.25 | F38: =IF(D38=0,'App.2-CE3_MIFRS_DepExp_2016'!K38,+'App.2-CE3_MIFRS_DepExp_2016'!K38+((C38*0.5)/D38)) -> 33652.43125 | G38: =-'App.2-BA2_Fx Asst Cnt.MIFRS 17'!J38 -> 0 | H38: 33652.43125 | I38: 0 | K38: 33652.43125
A39: 1920 | B39: Computer Equip.-Hardware(Post Mar. 19/07) | C39: ='App.2-BA2_Fx Asst Cnt.MIFRS 17'!E39 -> 0 | D39: 4 | E39: 0.25 | F39: =IF(D39=0,'App.2-CE3_MIFRS_DepExp_2016'!K39,+'App.2-CE3_MIFRS_DepExp_2016'!K39+((C39*0.5)/D39)) -> 0 | G39: =-'App.2-BA2_Fx Asst Cnt.MIFRS 17'!J39 -> 0 | H39: 0 | I39: 0 | K39: 0
A40: 1930 | B40: Transportation Equipment | C40: ='App.2-BA2_Fx Asst Cnt.MIFRS 17'!E40 -> 440000 | D40: 10 | E40: 0.1 | F40: =IF(D40=0,'App.2-CE3_MIFRS_DepExp_2016'!K40,+'App.2-CE3_MIFRS_DepExp_2016'!K40+((C40*0.5)/D40)) -> 340986.5361 | G40: =-'App.2-BA2_Fx Asst Cnt.MIFRS 17'!J40 -> 335065.2433 | H40: 5921.292809 | I40: 44000 | J40: 171.95 | K40: 362814.5861
A41: 1935 | B41: Stores Equipment | C41: ='App.2-BA2_Fx Asst Cnt.MIFRS 17'!E41 -> 0 | D41: 7 | E41: 0.1428571429 | F41: =IF(D41=0,'App.2-CE3_MIFRS_DepExp_2016'!K41,+'App.2-CE3_MIFRS_DepExp_2016'!K41+((C41*0.5)/D41)) -> 5.684341886e-13 | G41: =-'App.2-BA2_Fx Asst Cnt.MIFRS 17'!J41 -> 0 | H41: 5.684341886e-13 | I41: 0 | J41: 0 | K41: 5.684341886e-13
A42: 1940 | B42: Tools, Shop & Garage Equipment | C42: ='App.2-BA2_Fx Asst Cnt.MIFRS 17'!E42 -> 173788.4095 | D42: 7 | E42: 0.1428571429 | F42: =IF(D42=0,'App.2-CE3_MIFRS_DepExp_2016'!K42,+'App.2-CE3_MIFRS_DepExp_2016'!K42+((C42*0.5)/D42)) -> 133671.4727 | G42: =-'App.2-BA2_Fx Asst Cnt.MIFRS 17'!J42 -> 134746.4628 | H42: -1074.990053 | I42: 24826.91564 | J42: 4081.762689 | K42: 142003.1678 | O42: 1940 | P42: 3932.356974
A43: 1945 | B43: Measurement & Testing Equipment | C43: ='App.2-BA2_Fx Asst Cnt.MIFRS 17'!E43 -> 68948.26175 | D43: 7 | E43: 0.1428571429 | F43: =IF(D43=0,'App.2-CE3_MIFRS_DepExp_2016'!K43,+'App.2-CE3_MIFRS_DepExp_2016'!K43+((C43*0.5)/D43)) -> 37085.8377 | G43: =-'App.2-BA2_Fx Asst Cnt.MIFRS 17'!J43 -> 22007.52826 | H43: 15078.30944 | I43: 9849.751679 | J43: 154.6670999 | K43: 41856.04644 | O43: 1945 | P43: 134.1170999
A44: 1950 | B44: Power Operated Equipment | C44: ='App.2-BA2_Fx Asst Cnt.MIFRS 17'!E44 -> 0 | E44: 0 | F44: =IF(D44=0,'App.2-CE3_MIFRS_DepExp_2016'!K44,+'App.2-CE3_MIFRS_DepExp_2016'!K44+((C44*0.5)/D44)) -> 0 | G44: =-'App.2-BA2_Fx Asst Cnt.MIFRS 17'!J44 -> 0 | H44: 0 | I44: 0 | J44: 0 | K44: 0
A45: 1955 | B45: Communications Equipment | C45: ='App.2-BA2_Fx Asst Cnt.MIFRS 17'!E45 -> 0 | D45: 10 | E45: 0.1 | F45: =IF(D45=0,'App.2-CE3_MIFRS_DepExp_2016'!K45,+'App.2-CE3_MIFRS_DepExp_2016'!K45+((C45*0.5)/D45)) -> 15868.472 | G45: =-'App.2-BA2_Fx Asst Cnt.MIFRS 17'!J45 -> 15854.4 | H45: 14.072 | I45: 0 | J45: 0 | K45: 15868.472
A46: 1955 | B46: Communication Equipment (Smart Meters) | C46: ='App.2-BA2_Fx Asst Cnt.MIFRS 17'!E46 -> 0 | D46: 10 | E46: 0.1 | F46: =IF(D46=0,'App.2-CE3_MIFRS_DepExp_2016'!K46,+'App.2-CE3_MIFRS_DepExp_2016'!K46+((C46*0.5)/D46)) -> 0 | G46: =-'App.2-BA2_Fx Asst Cnt.MIFRS 17'!J46 -> 0 | H46: 0 | I46: 0 | K46: 0
A47: 1960 | B47: Miscellaneous Equipment | C47: ='App.2-BA2_Fx Asst Cnt.MIFRS 17'!E47 -> 0 | D47: 10 | E47: 0.1 | F47: =IF(D47=0,'App.2-CE3_MIFRS_DepExp_2016'!K47,+'App.2-CE3_MIFRS_DepExp_2016'!K47+((C47*0.5)/D47)) -> 13188.222 | G47: =-'App.2-BA2_Fx Asst Cnt.MIFRS 17'!J47 -> 6299.45 | H47: 6888.772 | I47: 0 | J47: 738.09 | K47: 12450.132
A48: 1970 | B48: Load Management Controls Customer Premises | C48: ='App.2-BA2_Fx Asst Cnt.MIFRS 17'!E48 -> 0 | D48: 20 | E48: 0.05 | F48: =IF(D48=0,'App.2-CE3_MIFRS_DepExp_2016'!K48,+'App.2-CE3_MIFRS_DepExp_2016'!K48+((C48*0.5)/D48)) -> 0 | G48: =-'App.2-BA2_Fx Asst Cnt.MIFRS 17'!J48 -> 0 | H48: 0 | I48: 0 | J48: 0 | K48: 0
A49: 1975 | B49: Load Management Controls Utility Premises | C49: ='App.2-BA2_Fx Asst Cnt.MIFRS 17'!E49 -> 0 | D49: 8 | E49: 0.125 | F49: =IF(D49=0,'App.2-CE3_MIFRS_DepExp_2016'!K49,+'App.2-CE3_MIFRS_DepExp_2016'!K49+((C49*0.5)/D49)) -> -28067.71 | G49: =-'App.2-BA2_Fx Asst Cnt.MIFRS 17'!J49 -> 790.22 | H49: -28857.93 | I49: 0 | J49: 0 | K49: -28067.71
A50: 1980 | B50: System Supervisor Equipment | C50: ='App.2-BA2_Fx Asst Cnt.MIFRS 17'!E50 -> 0 | E50: 0 | F50: =IF(D50=0,'App.2-CE3_MIFRS_DepExp_2016'!K50,+'App.2-CE3_MIFRS_DepExp_2016'!K50+((C50*0.5)/D50)) -> 0 | G50: =-'App.2-BA2_Fx Asst Cnt.MIFRS 17'!J50 -> 0 | H50: 0 | I50: 0 | J50: 0 | K50: 0
A51: 1985 | B51: Miscellaneous Fixed Assets | C51: ='App.2-BA2_Fx Asst Cnt.MIFRS 17'!E51 -> 0 | E51: 0 | F51: =IF(D51=0,'App.2-CE3_MIFRS_DepExp_2016'!K51,+'App.2-CE3_MIFRS_DepExp_2016'!K51+((C51*0.5)/D51)) -> 0 | G51: =-'App.2-BA2_Fx Asst Cnt.MIFRS 17'!J51 -> 0 | H51: 0 | I51: 0 | J51: 0 | K51: 0
A52: 1990 | B52: Other Tangible Property | C52: ='App.2-BA2_Fx Asst Cnt.MIFRS 17'!E52 -> 0 | E52: 0 | F52: =IF(D52=0,'App.2-CE3_MIFRS_DepExp_2016'!K52,+'App.2-CE3_MIFRS_DepExp_2016'!K52+((C52*0.5)/D52)) -> 0 | G52: =-'App.2-BA2_Fx Asst Cnt.MIFRS 17'!J52 -> 0 | H52: 0 | I52: 0 | J52: 0 | K52: 0
A53: 1995 | B53: Contributions & Grants | C53: ='App.2-BA2_Fx Asst Cnt.MIFRS 17'!E53 -> -1075000 | D53: 45 | E53: 0.02222222222 | F53: =IF(D53=0,'App.2-CE3_MIFRS_DepExp_2016'!K53,+'App.2-CE3_MIFRS_DepExp_2016'!K53+((C53*0.5)/D53)) -> -817380.0992 | G53: =-'App.2-BA2_Fx Asst Cnt.MIFRS 17'!J53 -> -951411.0673 | H53: 134030.9681 | I53: -23888.88889 | J53: -3.93 | K53: -829320.6137
A54: etc. | E54: 0 | F54: =IF(D54=0,'App.2-CE3_MIFRS_DepExp_2016'!K54,+'App.2-CE3_MIFRS_DepExp_2016'!K54+((C54*0.5)/D54)) -> 0 | H54: 0 | I54: 0 | K54: 0
